Workbook

Sheet 专业总表 (2) (hidden)
A1: 序号 | B1: 姓名 | C1: 学号 | D1: 大一上学期 | L1: 大一下学期 | V1: 大二上学期 | AG1: 大二下学期 | AS1: 大三上学期
D2: 入学教育与安全教育 | E2: 军事训练（Ⅰ） | F2: 高等数学B（Ⅰ） | G2: 无机化学与分析化学 | H2: 思想道德修养与法律基础 | I2: 中国近代史纲要 | J2: 大学英语（Ⅰ） | K2: 大学体育（Ⅰ） | L2: 机械制图 | M2: 计算机辅助绘图 | N2: VB程序设计（A） | O2: 高等数学B（Ⅱ） | P2: 无机与分析化学实验（Ⅰ） | Q2: 有机化学 | R2: 大学物理C（Ⅰ） | S2: 大学英语（Ⅱ） | T2: 大学体育（Ⅱ） | U2: 金工实习 | V2: 物理化学（Ⅰ） | W2: 大学物理C（Ⅱ） | X2: 大学物理实验B（Ⅰ） | Y2: 毛概（Ⅰ） | Z2: 马原 | AA2: 大学英语（Ⅲ） | AB2: 大学体育（Ⅲ） | AC2: 生物化学 | AD2: 线性代数 | AE2: 有机化学实验 | AF2: 无机与分析化学实验（Ⅱ） | AG2: 化工原理（Ⅰ） | AH2: 环境监测实验 | AI2: 环境监测 | AJ2: 工程力学（环工） | AK2: 概率统计基础 | AL2: 物理化学实验（Ⅰ） | AM2: 物理化学（Ⅱ） | AN2: 大学物理实验B（Ⅱ） | AO2: 毛概（Ⅱ） | AP2: 大学英语Ⅳ | AQ2: 大学体育Ⅳ | AR2: 认识实习 | AS2: 化工原理实验（Ⅰ） | AT2: 化工原理（Ⅱ） | AU2: 环境工程微生物学 | AV2: 水污染控制工程（Ⅰ） | AW2: 电工学及实验 | AX2: 物理化学实验（Ⅱ） | AY2: 项目管理与技术经济 | AZ2: 环境工程微生物学实验 | BA2: 水污染控制工程（Ⅰ）课程设计 | BB2: 必修课加权成绩 | BC2: 0.7*必修课 | BD2: 综测一 | BE2: 综测二 | BF2: 综测总分 | BG2: 综测加权 | BH2: 0.2*综测加权 | BI2: 总分数
A3: 1 | B3: 刘雅 | C3: 2016010604 | D3: ='环工16-1分数统计'!H8*'环工16-1分数统计'!$H$3/120 -> 0.675 | E3: ='环工16-1分数统计'!I8*'环工16-1分数统计'!$I$3/120 -> 1.466666667 | F3: ='环工16-1分数统计'!J8*'环工16-1分数统计'!$J$3/120 -> 4.9 | G3: ='环工16-1分数统计'!K8*'环工16-1分数统计'!$K$3/120 -> 3.4875 | H3: ='环工16-1分数统计'!L8*'环工16-1分数统计'!$L$3/120 -> 1.5 | I3: ='环工16-1分数统计'!M8*'环工16-1分数统计'!$M$3/120 -> 1.333333333 | J3: ='环工16-1分数统计'!N8*'环工16-1分数统计'!$N$3/120 -> 3.4 | K3: ='环工16-1分数统计'!O8*'环工16-1分数统计'!$O$3/121 -> 0.6859504132 | L3: ='环工16-1分数统计'!P8*'环工16-1分数统计'!$P$3/120 -> 2 | M3: ='环工16-1分数统计'!Q8*'环工16-1分数统计'!$Q$3/120 -> 0.7 | N3: ='环工16-1分数统计'!R8*'环工16-1分数统计'!$R$3/120 -> 2.1 | O3: ='环工16-1分数统计'!S8*'环工16-1分数统计'!$S$3/120 -> 4.166666667 | P3: ='环工16-1分数统计'!T8*'环工16-1分数统计'!$T$3/120 -> 1.958333333 | Q3: ='环工16-1分数统计'!U8*'环工16-1分数统计'!$U$3/120 -> 3.133333333 | R3: ='环工16-1分数统计'!V8*'环工16-1分数统计'!$V$3/120 -> 2.4 | S3: ='环工16-1分数统计'!W8*'环工16-1分数统计'!$W$3/120 -> 3.36 | T3: ='环工16-1分数统计'!X8*'环工16-1分数统计'!$X$3/120 -> 0.75 | U3: ='环工16-1分数统计'!Y8*'环工16-1分数统计'!$Y$3/120 -> 1.5 | V3: ='环工16-1分数统计'!Z8*'环工16-1分数统计'!$Z$3/120 -> 2.375 | W3: ='环工16-1分数统计'!AA8*'环工16-1分数统计'!$AA$3/120 -> 2.475 | X3: ='环工16-1分数统计'!AB8*'环工16-1分数统计'!$AB$3/120 -> 1.533333333 | Y3: ='环工16-1分数统计'!AC8*'环工16-1分数统计'!$AC$3/120 -> 1.45 | Z3: ='环工16-1分数统计'!AD8*'环工16-1分数统计'!$AD$3/120 -> 1.483333333 | AA3: ='环工16-1分数统计'!AE8*'环工16-1分数统计'!$AE$3/120 -> 1.7 | AB3: ='环工16-1分数统计'!AF8*'环工16-1分数统计'!$AF$3/120 -> 0.675 | AC3: ='环工16-1分数统计'!AG8*'环工16-1分数统计'!$AG$3/120 -> 1.916666667 | AD3: ='环工16-1分数统计'!AH8*'环工16-1分数统计'!$AH$3/120 -> 2.45 | AE3: ='环工16-1分数统计'!AI8*'环工16-1分数统计'!$AI$3/120 -> 1.516666667 | AF3: ='环工16-1分数统计'!AJ8*'环工16-1分数统计'!$AJ$3/120 -> 0.7583333333 | AG3: ='环工16-1分数统计'!AK8*'环工16-1分数统计'!$AK$3/120 -> 2.9 | AH3: ='环工16-1分数统计'!AL8*'环工16-1分数统计'!$AL$3/120 -> 1.516666667 | AI3: ='环工16-1分数统计'!AM8*'环工16-1分数统计'!$AM$3/120 -> 1.175 | AJ3: ='环工16-1分数统计'!AN8*'环工16-1分数统计'!$AN$3/120 -> 2.4 | AK3: ='环工16-1分数统计'!AO8*'环工16-1分数统计'!$AO$3/120 -> 2.25 | AL3: ='环工16-1分数统计'!AP8*'环工16-1分数统计'!$AP$3/120 -> 1.1125 | AM3: ='环工16-1分数统计'!AQ8*'环工16-1分数统计'!$AQ$3/120 -> 2.4 | AN3: ='环工16-1分数统计'!AR8*'环工16-1分数统计'!$AR$3/120 -> 1.483333333 | AO3: ='环工16-1分数统计'!AS8*'环工16-1分数统计'!$AS$3/120 -> 1.55 | AP3: ='环工16-1分数统计'!AT8*'环工16-1分数统计'!$AT$3/120 -> 1.5525 | AQ3: ='环工16-1分数统计'!AU8*'环工16-1分数统计'!$AU$3/120 -> 0.7416666667 | AR3: ='环工16-1分数统计'!AV8*'环工16-1分数统计'!$AV$3/120 -> 1.516666667 | AS3: ='环工16-1分数统计'!AW8*'环工16-1分数统计'!$AW$3/120 -> 0.7166666667 | AT3: ='环工16-1分数统计'!AX8*'环工16-1分数统计'!$AX$3/120 -> 3.166666667 | AU3: ='环工16-1分数统计'!AY8*'环工16-1分数统计'!$AY$3/120 -> 1.566666667 | AV3: ='环工16-1分数统计'!AZ8*'环工16-1分数统计'!$AZ$3/120 -> 1.616666667 | AW3: ='环工16-1分数统计'!BA8*'环工16-1分数统计'!$BA$3/120 -> 1.616666667 | AX3: ='环工16-1分数统计'!BB8*'环工16-1分数统计'!$BB$3/120 -> 1.125 | AY3: ='环工16-1分数统计'!BC8*'环工16-1分数统计'!$BC$3/120 -> 2.475 | AZ3: ='环工16-1分数统计'!BD8*'环工16-1分数统计'!$BD$3/120 -> 1.1125 | BA3: ='环工16-1分数统计'!BE8*'环工16-1分数统计'!$BE$3/120 -> 1.583333333 | BB3: =SUM(D3:BA3) -> 93.42761708 | BC3: =0.7*BB3 -> 65.39933196 | BD3: 99.38865725 | BE3: 117.4018592 | BF3: =SUM(BD3:BE3) -> 216.7905165 | BG3: =BF3/$BF$4*100 -> 107.5957151 | BH3: =0.2*BG3 -> 21.51914303 | BI3: =BH3+BC3 -> 86.91847498
A4: 2 | B4: 李异繁 | C4: 2016010602 | D4: ='环工16-1分数统计'!H6*'环工16-1分数统计'!$H$3/120 -> 0.7333333333 | E4: ='环工16-1分数统计'!I6*'环工16-1分数统计'!$I$3/120 -> 1.533333333 | F4: ='环工16-1分数统计'!J6*'环工16-1分数统计'!$J$3/120 -> 3.9 | G4: ='环工16-1分数统计'!K6*'环工16-1分数统计'!$K$3/120 -> 3.4125 | H4: ='环工16-1分数统计'!L6*'环工16-1分数统计'!$L$3/120 -> 1.466666667 | I4: ='环工16-1分数统计'!M6*'环工16-1分数统计'!$M$3/120 -> 1.35 | J4: ='环工16-1分数统计'!N6*'环工16-1分数统计'!$N$3/120 -> 3.68 | K4: ='环工16-1分数统计'!O6*'环工16-1分数统计'!$O$3/121 -> 0.6694214876 | L4: ='环工16-1分数统计'!P6*'环工16-1分数统计'!$P$3/120 -> 2 | M4: ='环工16-1分数统计'!Q6*'环工16-1分数统计'!$Q$3/120 -> 0.7833333333 | N4: ='环工16-1分数统计'!R6*'环工16-1分数统计'!$R$3/120 -> 2.15 | O4: ='环工16-1分数统计'!S6*'环工16-1分数统计'!$S$3/120 -> 3.75 | P4: ='环工16-1分数统计'!T6*'环工16-1分数统计'!$T$3/120 -> 2 | Q4: ='环工16-1分数统计'!U6*'环工16-1分数统计'!$U$3/120 -> 3.133333333 | R4: ='环工16-1分数统计'!V6*'环工16-1分数统计'!$V$3/120 -> 2.15 | S4: ='环工16-1分数统计'!W6*'环工16-1分数统计'!$W$3/120 -> 3.565 | T4: ='环工16-1分数统计'!X6*'环工16-1分数统计'!$X$3/120 -> 0.8166666667 | U4: ='环工16-1分数统计'!Y6*'环工16-1分数统计'!$Y$3/120 -> 1.5 | V4: ='环工16-1分数统计'!Z6*'环工16-1分数统计'!$Z$3/120 -> 2.025 | W4: ='环工16-1分数统计'!AA6*'环工16-1分数统计'!$AA$3/120 -> 2.125 | X4: ='环工16-1分数统计'!AB6*'环工16-1分数统计'!$AB$3/120 -> 1.466666667 | Y4: ='环工16-1分数统计'!AC6*'环工16-1分数统计'!$AC$3/120 -> 1.366666667 | Z4: ='环工16-1分数统计'!AD6*'环工16-1分数统计'!$AD$3/120 -> 1.333333333 | AA4: ='环工16-1分数统计'!AE6*'环工16-1分数统计'!$AE$3/120 -> 1.7825 | AB4: ='环工16-1分数统计'!AF6*'环工16-1分数统计'!$AF$3/120 -> 0.8083333333 | AC4: ='环工16-1分数统计'!AG6*'环工16-1分数统计'!$AG$3/120 -> 1.75 | AD4: ='环工16-1分数统计'!AH6*'环工16-1分数统计'!$AH$3/120 -> 2.35 | AE4: ='环工16-1分数统计'!AI6*'环工16-1分数统计'!$AI$3/120 -> 1.516666667 | AF4: ='环工16-1分数统计'!AJ6*'环工16-1分数统计'!$AJ$3/120 -> 0.7666666667 | AG4: ='环工16-1分数统计'!AK6*'环工16-1分数统计'!$AK$3/120 -> 2.766666667 | AH4: ='环工16-1分数统计'!AL6*'环工16-1分数统计'!$AL$3/120 -> 1.533333333 | AI4: ='环工16-1分数统计'!AM6*'环工16-1分数统计'!$AM$3/120 -> 1.125 | AJ4: ='环工16-1分数统计'!AN6*'环工16-1分数统计'!$AN$3/120 -> 2.25 | AK4: ='环工16-1分数统计'!AO6*'环工16-1分数统计'!$AO$3/120 -> 1.95 | AL4: ='环工16-1分数统计'!AP6*'环工16-1分数统计'!$AP$3/120 -> 1.1125 | AM4: ='环工16-1分数统计'!AQ6*'环工16-1分数统计'!$AQ$3/120 -> 2.4 | AN4: ='环工16-1分数统计'!AR6*'环工16-1分数统计'!$AR$3/120 -> 1.516666667 | AO4: ='环工16-1分数统计'!AS6*'环工16-1分数统计'!$AS$3/120 -> 1.533333333 | AP4: ='环工16-1分数统计'!AT6*'环工16-1分数统计'!$AT$3/120 -> 1.725 | AQ4: ='环工16-1分数统计'!AU6*'环工16-1分数统计'!$AU$3/120 -> 0.775 | AR4: ='环工16-1分数统计'!AV6*'环工16-1分数统计'!$AV$3/120 -> 1.55 | AS4: ='环工16-1分数统计'!AW6*'环工16-1分数统计'!$AW$3/120 -> 0.7666666667 | AT4: ='环工16-1分数统计'!AX6*'环工16-1分数统计'!$AX$3/120 -> 3.233333333 | AU4: ='环工16-1分数统计'!AY6*'环工16-1分数统计'!$AY$3/120 -> 1.583333333 | AV4: ='环工16-1分数统计'!AZ6*'环工16-1分数统计'!$AZ$3/120 -> 1.633333333 | AW4: ='环工16-1分数统计'!BA6*'环工16-1分数统计'!$BA$3/120 -> 1.633333333 | AX4: ='环工16-1分数统计'!BB6*'环工16-1分数统计'!$BB$3/120 -> 1.125 | AY4: ='环工16-1分数统计'!BC6*'环工16-1分数统计'!$BC$3/120 -> 2.475 | AZ4: ='环工16-1分数统计'!BD6*'环工16-1分数统计'!$BD$3/120 -> 1.1625 | BA4: ='环工16-1分数统计'!BE6*'环工16-1分数统计'!$BE$3/120 -> 1.483333333 | BB4: 91.21775482 | BC4: 63.85242837 | BD4: 99.19331731 | BE4: 102.2928814 | BF4: 201.4861987 | BG4: 100 | BH4: 20 | BI4: 83.85242837
A5: 3 | B5: 仲英杰 | C5: 2016010614 | D5: ='环工16-1分数统计'!H18*'环工16-1分数统计'!$H$3/120 -> 0.75 | E5: ='环工16-1分数统计'!I18*'环工16-1分数统计'!$I$3/120 -> 1.566666667 | F5: ='环工16-1分数统计'!J18*'环工16-1分数统计'!$J$3/120 -> 4.9 | G5: ='环工16-1分数统计'!K18*'环工16-1分数统计'!$K$3/120 -> 3.4875 | H5: ='环工16-1分数统计'!L18*'环工16-1分数统计'!$L$3/120 -> 1.466666667 | I5: ='环工16-1分数统计'!M18*'环工16-1分数统计'!$M$3/120 -> 1.433333333 | J5: ='环工16-1分数统计'!N18*'环工16-1分数统计'!$N$3/120 -> 3.153333333 | K5: ='环工16-1分数统计'!O18*'环工16-1分数统计'!$O$3/121 -> 0.652892562 | L5: ='环工16-1分数统计'!P18*'环工16-1分数统计'!$P$3/120 -> 1.875 | M5: ='环工16-1分数统计'!Q18*'环工16-1分数统计'!$Q$3/120 -> 0.6833333333 | N5: ='环工16-1分数统计'!R18*'环工16-1分数统计'!$R$3/120 -> 2.075 | O5: ='环工16-1分数统计'!S18*'环工16-1分数统计'!$S$3/120 -> 3.875 | P5: ='环工16-1分数统计'!T18*'环工16-1分数统计'!$T$3/120 -> 1.875 | Q5: ='环工16-1分数统计'!U18*'环工16-1分数统计'!$U$3/120 -> 3.033333333 | R5: ='环工16-1分数统计'!V18*'环工16-1分数统计'!$V$3/120 -> 2.325 | S5: ='环工16-1分数统计'!W18*'环工16-1分数统计'!$W$3/120 -> 3.19 | T5: ='环工16-1分数统计'!X18*'环工16-1分数统计'!$X$3/120 -> 0.775 | U5: ='环工16-1分数统计'!Y18*'环工16-1分数统计'!$Y$3/120 -> 1.5 | V5: ='环工16-1分数统计'!Z18*'环工16-1分数统计'!$Z$3/120 -> 2.15 | W5: ='环工16-1分数统计'!AA18*'环工16-1分数统计'!$AA$3/120 -> 2.275 | X5: ='环工16-1分数统计'!AB18*'环工16-1分数统计'!$AB$3/120 -> 1.433333333 | Y5: ='环工16-1分数统计'!AC18*'环工16-1分数统计'!$AC$3/120 -> 1.416666667 | Z5: ='环工16-1分数统计'!AD18*'环工16-1分数统计'!$AD$3/120 -> 1.45 | AA5: ='环工16-1分数统计'!AE18*'环工16-1分数统计'!$AE$3/120 -> 1.723333333 | AB5: ='环工16-1分数统计'!AF18*'环工16-1分数统计'!$AF$3/120 -> 0.775 | AC5: ='环工16-1分数统计'!AG18*'环工16-1分数统计'!$AG$3/120 -> 1.625 | AD5: ='环工16-1分数统计'!AH18*'环工16-1分数统计'!$AH$3/120 -> 2.15 | AE5: ='环工16-1分数统计'!AI18*'环工16-1分数统计'!$AI$3/120 -> 1.5 | AF5: ='环工16-1分数统计'!AJ18*'环工16-1分数统计'!$AJ$3/120 -> 0.75 | AG5: ='环工16-1分数统计'!AK18*'环工16-1分数统计'!$AK$3/120 -> 2.466666667 | AH5: ='环工16-1分数统计'!AL18*'环工16-1分数统计'!$AL$3/120 -> 1.416666667 | AI5: ='环工16-1分数统计'!AM18*'环工16-1分数统计'!$AM$3/120 -> 1.025 | AJ5: ='环工16-1分数统计'!AN18*'环工16-1分数统计'!$AN$3/120 -> 2.025 | AK5: ='环工16-1分数统计'!AO18*'环工16-1分数统计'!$AO$3/120 -> 2 | AL5: ='环工16-1分数统计'!AP18*'环工16-1分数统计'!$AP$3/120 -> 1.1125 | AM5: ='环工16-1分数统计'!AQ18*'环工16-1分数统计'!$AQ$3/120 -> 2.15 | AN5: ='环工16-1分数统计'!AR18*'环工16-1分数统计'!$AR$3/120 -> 1.416666667 | AO5: ='环工16-1分数统计'!AS18*'环工16-1分数统计'!$AS$3/120 -> 1.55 | AP5: ='环工16-1分数统计'!AT18*'环工16-1分数统计'!$AT$3/120 -> 1.65 | AQ5: ='环工16-1分数统计'!AU18*'环工16-1分数统计'!$AU$3/120 -> 0.6833333333 | AR5: ='环工16-1分数统计'!AV18*'环工16-1分数统计'!$AV$3/120 -> 1.516666667 | AS5: ='环工16-1分数统计'!AW18*'环工16-1分数统计'!$AW$3/120 -> 0.7 | AT5: ='环工16-1分数统计'!AX18*'环工16-1分数统计'!$AX$3/120 -> 2.633333333 | AU5: ='环工16-1分数统计'!AY18*'环工16-1分数统计'!$AY$3/120 -> 1.383333333 | AV5: ='环工16-1分数统计'!AZ18*'环工16-1分数统计'!$AZ$3/120 -> 1.533333333 | AW5: ='环工16-1分数统计'!BA18*'环工16-1分数统计'!$BA$3/120 -> 1.45 | AX5: ='环工16-1分数统计'!BB18*'环工16-1分数统计'!$BB$3/120 -> 1.125 | AY5: ='环工16-1分数统计'!BC18*'环工16-1分数统计'!$BC$3/120 -> 2.375 | AZ5: ='环工16-1分数统计'!BD18*'环工16-1分数统计'!$BD$3/120 -> 1.15 | BA5: ='环工16-1分数统计'!BE18*'环工16-1分数统计'!$BE$3/120 -> 1.466666667 | BB5: 88.69455923 | BC5: 62.08619146 | BD5: 98.43992237 | BE5: 105.2956936 | BF5: 203.7356159 | BG5: 101.1164125 | BH5: 20.22328251 | BI5: 82.30947397
A6: 4 | B6: 陈闯 | C6: 2016010617 | D6: ='环工16-1分数统计'!H19*'环工16-1分数统计'!$H$3/120 -> 0.6916666667 | E6: ='环工16-1分数统计'!I19*'环工16-1分数统计'!$I$3/120 -> 1.566666667 | F6: ='环工16-1分数统计'!J19*'环工16-1分数统计'!$J$3/120 -> 4.55 | G6: ='环工16-1分数统计'!K19*'环工16-1分数统计'!$K$3/120 -> 3.375 | H6: ='环工16-1分数统计'!L19*'环工16-1分数统计'!$L$3/120 -> 1.483333333 | I6: ='环工16-1分数统计'!M19*'环工16-1分数统计'!$M$3/120 -> 1.3 | J6: ='环工16-1分数统计'!N19*'环工16-1分数统计'!$N$3/120 -> 2.75 | K6: ='环工16-1分数统计'!O19*'环工16-1分数统计'!$O$3/121 -> 0.7768595041 | L6: ='环工16-1分数统计'!P19*'环工16-1分数统计'!$P$3/120 -> 1.770833333 | M6: ='环工16-1分数统计'!Q19*'环工16-1分数统计'!$Q$3/120 -> 0.675 | N6: ='环工16-1分数统计'!R19*'环工16-1分数统计'!$R$3/120 -> 1.7 | O6: ='环工16-1分数统计'!S19*'环工16-1分数统计'!$S$3/120 -> 4.166666667 | P6: ='环工16-1分数统计'!T19*'环工16-1分数统计'!$T$3/120 -> 1.791666667 | Q6: ='环工16-1分数统计'!U19*'环工16-1分数统计'!$U$3/120 -> 2.766666667 | R6: ='环工16-1分数统计'!V19*'环工16-1分数统计'!$V$3/120 -> 2.15 | S6: ='环工16-1分数统计'!W19*'环工16-1分数统计'!$W$3/120 -> 3.116666667 | T6: ='环工16-1分数统计'!X19*'环工16-1分数统计'!$X$3/120 -> 0.7833333333 | U6: ='环工16-1分数统计'!Y19*'环工16-1分数统计'!$Y$3/120 -> 1.6 | V6: ='环工16-1分数统计'!Z19*'环工16-1分数统计'!$Z$3/120 -> 1.8 | W6: ='环工16-1分数统计'!AA19*'环工16-1分数统计'!$AA$3/120 -> 2.3 | X6: ='环工16-1分数统计'!AB19*'环工16-1分数统计'!$AB$3/120 -> 1.3 | Y6: ='环工16-1分数统计'!AC19*'环工16-1分数统计'!$AC$3/120 -> 1.466666667 | Z6: ='环工16-1分数统计'!AD19*'环工16-1分数统计'!$AD$3/120 -> 1.45 | AA6: ='环工16-1分数统计'!AE19*'环工16-1分数统计'!$AE$3/120 -> 1.466666667 | AB6: ='环工16-1分数统计'!AF19*'环工16-1分数统计'!$AF$3/120 -> 0.7916666667 | AC6: ='环工16-1分数统计'!AG19*'环工16-1分数统计'!$AG$3/120 -> 1.791666667 | AD6: ='环工16-1分数统计'!AH19*'环工16-1分数统计'!$AH$3/120 -> 2.35 | AE6: ='环工16-1分数统计'!AI19*'环工16-1分数统计'!$AI$3/120 -> 1.483333333 | AF6: ='环工16-1分数统计'!AJ19*'环工16-1分数统计'!$AJ$3/120 -> 0.7666666667 | AG6: ='环工16-1分数统计'!AK19*'环工16-1分数统计'!$AK$3/120 -> 2.4 | AH6: ='环工16-1分数统计'!AL19*'环工16-1分数统计'!$AL$3/120 -> 1.466666667 | AI6: ='环工16-1分数统计'!AM19*'环工16-1分数统计'!$AM$3/120 -> 0.925 | AJ6: ='环工16-1分数统计'!AN19*'环工16-1分数统计'!$AN$3/120 -> 2.15 | AK6: ='环工16-1分数统计'!AO19*'环工16-1分数统计'!$AO$3/120 -> 2.175 | AL6: ='环工16-1分数统计'!AP19*'环工16-1分数统计'!$AP$3/120 -> 1.1125 | AM6: ='环工16-1分数统计'!AQ19*'环工16-1分数统计'!$AQ$3/120 -> 2.25 | AN6: ='环工16-1分数统计'!AR19*'环工16-1分数统计'!$AR$3/120 -> 1.466666667 | AO6: ='环工16-1分数统计'!AS19*'环工16-1分数统计'!$AS$3/120 -> 1.416666667 | AP6: ='环工16-1分数统计'!AT19*'环工16-1分数统计'!$AT$3/120 -> 1.338333333 | AQ6: ='环工16-1分数统计'!AU19*'环工16-1分数统计'!$AU$3/120 -> 0.7833333333 | AR6: ='环工16-1分数统计'!AV19*'环工16-1分数统计'!$AV$3/120 -> 1.466666667 | AS6: ='环工16-1分数统计'!AW19*'环工16-1分数统计'!$AW$3/120 -> 0.675 | AT6: ='环工16-1分数统计'!AX19*'环工16-1分数统计'!$AX$3/120 -> 2.733333333 | AU6: ='环工16-1分数统计'!AY19*'环工16-1分数统计'!$AY$3/120 -> 1.5 | AV6: ='环工16-1分数统计'!AZ19*'环工16-1分数统计'!$AZ$3/120 -> 1.5 | AW6: ='环工16-1分数统计'!BA19*'环工16-1分数统计'!$BA$3/120 -> 1.483333333 | AX6: ='环工16-1分数统计'!BB19*'环工16-1分数统计'!$BB$3/120 -> 1.1 | AY6: ='环工16-1分数统计'!BC19*'环工16-1分数统计'!$BC$3/120 -> 2.2 | AZ6: ='环工16-1分数统计'!BD19*'环工16-1分数统计'!$BD$3/120 -> 1.1 | BA6: ='环工16-1分数统计'!BE19*'环工16-1分数统计'!$BE$3/120 -> 1.4 | BB6: 86.62352617 | BC6: 60.63646832 | BD6: 95.24470342 | BE6: 109.4514228 | BF6: 204.6961263 | BG6: 101.5931253 | BH6: 20.31862505 | BI6: 80.95509337
A7: 5 | B7: 李佳奇 | C7: 2016010622 | D7: ='环工16-1分数统计'!H23*'环工16-1分数统计'!$H$3/120 -> 0.725 | E7: ='环工16-1分数统计'!I23*'环工16-1分数统计'!$I$3/120 -> 1.533333333 | F7: ='环工16-1分数统计'!J23*'环工16-1分数统计'!$J$3/120 -> 4.3 | G7: ='环工16-1分数统计'!K23*'环工16-1分数统计'!$K$3/120 -> 3.2625 | H7: ='环工16-1分数统计'!L23*'环工16-1分数统计'!$L$3/120 -> 1.45 | I7: ='环工16-1分数统计'!M23*'环工16-1分数统计'!$M$3/120 -> 1.516666667 | J7: ='环工16-1分数统计'!N23*'环工16-1分数统计'!$N$3/120 -> 2.97 | K7: ='环工16-1分数统计'!O23*'环工16-1分数统计'!$O$3/121 -> 0.6859504132 | L7: ='环工16-1分数统计'!P23*'环工16-1分数统计'!$P$3/120 -> 1.25 | M7: ='环工16-1分数统计'!Q23*'环工16-1分数统计'!$Q$3/120 -> 0.7666666667 | N7: ='环工16-1分数统计'!R23*'环工16-1分数统计'!$R$3/120 -> 1.85 | O7: ='环工16-1分数统计'!S23*'环工16-1分数统计'!$S$3/120 -> 4 | P7: ='环工16-1分数统计'!T23*'环工16-1分数统计'!$T$3/120 -> 1.729166667 | Q7: ='环工16-1分数统计'!U23*'环工16-1分数统计'!$U$3/120 -> 2.833333333 | R7: ='环工16-1分数统计'!V23*'环工16-1分数统计'!$V$3/120 -> 2.275 | S7: ='环工16-1分数统计'!W23*'环工16-1分数统计'!$W$3/120 -> 3.3 | T7: ='环工16-1分数统计'!X23*'环工16-1分数统计'!$X$3/120 -> 0.75 | U7: ='环工16-1分数统计'!Y23*'环工16-1分数统计'!$Y$3/120 -> 1.533333333 | V7: ='环工16-1分数统计'!Z23*'环工16-1分数统计'!$Z$3/120 -> 2.275 | W7: ='环工16-1分数统计'!AA23*'环工16-1分数统计'!$AA$3/120 -> 2.325 | X7: ='环工16-1分数统计'!AB23*'环工16-1分数统计'!$AB$3/120 -> 1.333333333 | Y7: ='环工16-1分数统计'!AC23*'环工16-1分数统计'!$AC$3/120 -> 1.483333333 | Z7: ='环工16-1分数统计'!AD23*'环工16-1分数统计'!$AD$3/120 -> 1.4 | AA7: ='环工16-1分数统计'!AE23*'环工16-1分数统计'!$AE$3/120 -> 1.705 | AB7: ='环工16-1分数统计'!AF23*'环工16-1分数统计'!$AF$3/120 -> 0.7416666667 | AC7: ='环工16-1分数统计'!AG23*'环工16-1分数统计'!$AG$3/120 -> 1.729166667 | AD7: ='环工16-1分数统计'!AH23*'环工16-1分数统计'!$AH$3/120 -> 2.175 | AE7: ='环工16-1分数统计'!AI23*'环工16-1分数统计'!$AI$3/120 -> 1.533333333 | AF7: ='环工16-1分数统计'!AJ23*'环工16-1分数统计'!$AJ$3/120 -> 0.7416666667 | AG7: ='环工16-1分数统计'!AK23*'环工16-1分数统计'!$AK$3/120 -> 3 | AH7: ='环工16-1分数统计'!AL23*'环工16-1分数统计'!$AL$3/120 -> 1.5 | AI7: ='环工16-1分数统计'!AM23*'环工16-1分数统计'!$AM$3/120 -> 1.0875 | AJ7: ='环工16-1分数统计'!AN23*'环工16-1分数统计'!$AN$3/120 -> 2.25 | AK7: ='环工16-1分数统计'!AO23*'环工16-1分数统计'!$AO$3/120 -> 2.175 | AL7: ='环工16-1分数统计'!AP23*'环工16-1分数统计'!$AP$3/120 -> 1.0875 | AM7: ='环工16-1分数统计'!AQ23*'环工16-1分数统计'!$AQ$3/120 -> 2.45 | AN7: ='环工16-1分数统计'!AR23*'环工16-1分数统计'!$AR$3/120 -> 1.433333333 | AO7: ='环工16-1分数统计'!AS23*'环工16-1分数统计'!$AS$3/120 -> 1.55 | AP7: ='环工16-1分数统计'!AT23*'环工16-1分数统计'!$AT$3/120 -> 1.576666667 | AQ7: ='环工16-1分数统计'!AU23*'环工16-1分数统计'!$AU$3/120 -> 0.7666666667 | AR7: ='环工16-1分数统计'!AV23*'环工16-1分数统计'!$AV$3/120 -> 1.4 | AS7: ='环工16-1分数统计'!AW23*'环工16-1分数统计'!$AW$3/120 -> 0.7083333333 | AT7: ='环工16-1分数统计'!AX23*'环工16-1分数统计'!$AX$3/120 -> 2.966666667 | AU7: ='环工16-1分数统计'!AY23*'环工16-1分数统计'!$AY$3/120 -> 1.466666667 | AV7: ='环工16-1分数统计'!AZ23*'环工16-1分数统计'!$AZ$3/120 -> 1.616666667 | AW7: ='环工16-1分数统计'!BA23*'环工16-1分数统计'!$BA$3/120 -> 1.65 | AX7: ='环工16-1分数统计'!BB23*'环工16-1分数统计'!$BB$3/120 -> 1.1 | AY7: ='环工16-1分数统计'!BC23*'环工16-1分数统计'!$BC$3/120 -> 2.35 | AZ7: ='环工16-1分数统计'!BD23*'环工16-1分数统计'!$BD$3/120 -> 1.1 | BA7: ='环工16-1分数统计'!BE23*'环工16-1分数统计'!$BE$3/120 -> 1.516666667 | BB7: 88.92511708 | BC7: 62.24758196 | BD7: 91.86990147 | BE7: 95.0651481 | BF7: 186.9350496 | BG7: 92.77809137 | BH7: 18.55561827 | BI7: 80.80320023
A8: 6 | B8: 程诗宇 | C8: 2016010599 | D8: ='环工16-1分数统计'!H5*'环工16-1分数统计'!$H$3/120 -> 0.7083333333 | E8: ='环工16-1分数统计'!I5*'环工16-1分数统计'!$I$3/120 -> 1.516666667 | F8: ='环工16-1分数统计'!J5*'环工16-1分数统计'!$J$3/120 -> 4.75 | G8: ='环工16-1分数统计'!K5*'环工16-1分数统计'!$K$3/120 -> 3.375 | H8: ='环工16-1分数统计'!L5*'环工16-1分数统计'!$L$3/120 -> 1.366666667 | I8: ='环工16-1分数统计'!M5*'环工16-1分数统计'!$M$3/120 -> 1.266666667 | J8: ='环工16-1分数统计'!N5*'环工16-1分数统计'!$N$3/120 -> 2.75 | K8: ='环工16-1分数统计'!O5*'环工16-1分数统计'!$O$3/121 -> 0.6446280992 | L8: ='环工16-1分数统计'!P5*'环工16-1分数统计'!$P$3/120 -> 1.979166667 | M8: ='环工16-1分数统计'!Q5*'环工16-1分数统计'!$Q$3/120 -> 0.7833333333 | N8: ='环工16-1分数统计'!R5*'环工16-1分数统计'!$R$3/120 -> 2.025 | O8: ='环工16-1分数统计'!S5*'环工16-1分数统计'!$S$3/120 -> 3.916666667 | P8: ='环工16-1分数统计'!T5*'环工16-1分数统计'!$T$3/120 -> 1.8125 | Q8: ='环工16-1分数统计'!U5*'环工16-1分数统计'!$U$3/120 -> 2.9 | R8: ='环工16-1分数统计'!V5*'环工16-1分数统计'!$V$3/120 -> 2.2 | S8: ='环工16-1分数统计'!W5*'环工16-1分数统计'!$W$3/120 -> 2.97 | T8: ='环工16-1分数统计'!X5*'环工16-1分数统计'!$X$3/120 -> 0.775 | U8: ='环工16-1分数统计'!Y5*'环工16-1分数统计'!$Y$3/120 -> 1.466666667 | V8: ='环工16-1分数统计'!Z5*'环工16-1分数统计'!$Z$3/120 -> 2.025 | W8: ='环工16-1分数统计'!AA5*'环工16-1分数统计'!$AA$3/120 -> 2.325 | X8: ='环工16-1分数统计'!AB5*'环工16-1分数统计'!$AB$3/120 -> 1.3 | Y8: ='环工16-1分数统计'!AC5*'环工16-1分数统计'!$AC$3/120 -> 1.116666667 | Z8: ='环工16-1分数统计'!AD5*'环工16-1分数统计'!$AD$3/120 -> 1.333333333 | AA8: ='环工16-1分数统计'!AE5*'环工16-1分数统计'!$AE$3/120 -> 1.411666667 | AB8: ='环工16-1分数统计'!AF5*'环工16-1分数统计'!$AF$3/120 -> 0.7166666667 | AC8: ='环工16-1分数统计'!AG5*'环工16-1分数统计'!$AG$3/120 -> 1.666666667 | AD8: ='环工16-1分数统计'!AH5*'环工16-1分数统计'!$AH$3/120 -> 2.05 | AE8: ='环工16-1分数统计'!AI5*'环工16-1分数统计'!$AI$3/120 -> 1.5 | AF8: ='环工16-1分数统计'!AJ5*'环工16-1分数统计'!$AJ$3/120 -> 0.7916666667 | AG8: ='环工16-1分数统计'!AK5*'环工16-1分数统计'!$AK$3/120 -> 2.733333333 | AH8: ='环工16-1分数统计'!AL5*'环工16-1分数统计'!$AL$3/120 -> 1.466666667 | AI8: ='环工16-1分数统计'!AM5*'环工16-1分数统计'!$AM$3/120 -> 1.025 | AJ8: ='环工16-1分数统计'!AN5*'环工16-1分数统计'!$AN$3/120 -> 1.95 | AK8: ='环工16-1分数统计'!AO5*'环工16-1分数统计'!$AO$3/120 -> 1.8 | AL8: ='环工16-1分数统计'!AP5*'环工16-1分数统计'!$AP$3/120 -> 1.0375 | AM8: ='环工16-1分数统计'!AQ5*'环工16-1分数统计'!$AQ$3/120 -> 2.025 | AN8: ='环工16-1分数统计'!AR5*'环工16-1分数统计'!$AR$3/120 -> 1.433333333 | AO8: ='环工16-1分数统计'!AS5*'环工16-1分数统计'!$AS$3/120 -> 1.5 | AP8: ='环工16-1分数统计'!AT5*'环工16-1分数统计'!$AT$3/120 -> 1.521666667 | AQ8: ='环工16-1分数统计'!AU5*'环工16-1分数统计'!$AU$3/120 -> 0.725 | AR8: ='环工16-1分数统计'!AV5*'环工16-1分数统计'!$AV$3/120 -> 1.383333333 | AS8: ='环工16-1分数统计'!AW5*'环工16-1分数统计'!$AW$3/120 -> 0.6916666667 | AT8: ='环工16-1分数统计'!AX5*'环工16-1分数统计'!$AX$3/120 -> 2.933333333 | AU8: ='环工16-1分数统计'!AY5*'环工16-1分数统计'!$AY$3/120 -> 1.433333333 | AV8: ='环工16-1分数统计'!AZ5*'环工16-1分数统计'!$AZ$3/120 -> 1.6 | AW8: ='环工16-1分数统计'!BA5*'环工16-1分数统计'!$BA$3/120 -> 1.533333333 | AX8: ='环工16-1分数统计'!BB5*'环工16-1分数统计'!$BB$3/120 -> 1.125 | AY8: ='环工16-1分数统计'!BC5*'环工16-1分数统计'!$BC$3/120 -> 2.275 | AZ8: ='环工16-1分数统计'!BD5*'环工16-1分数统计'!$BD$3/120 -> 1.125 | BA8: ='环工16-1分数统计'!BE5*'环工16-1分数统计'!$BE$3/120 -> 1.333333333 | BB8: 86.09379477 | BC8: 60.26565634 | BD8: 93.67031068 | BE8: 95.04436022 | BF8: 188.7146709 | BG8: 93.66133863 | BH8: 18.73226773 | BI8: 78.99792406
A9: 8 | B9: 游恋 | C9: 2016010612 | D9: ='环工16-1分数统计'!H16*'环工16-1分数统计'!$H$3/120 -> 0.6416666667 | E9: ='环工16-1分数统计'!I16*'环工16-1分数统计'!$I$3/120 -> 1.45 | F9: ='环工16-1分数统计'!J16*'环工16-1分数统计'!$J$3/120 -> 4.2 | G9: ='环工16-1分数统计'!K16*'环工16-1分数统计'!$K$3/120 -> 3.4875 | H9: ='环工16-1分数统计'!L16*'环工16-1分数统计'!$L$3/120 -> 1.383333333 | I9: ='环工16-1分数统计'!M16*'环工16-1分数统计'!$M$3/120 -> 1.3 | J9: ='环工16-1分数统计'!N16*'环工16-1分数统计'!$N$3/120 -> 2.1 | K9: ='环工16-1分数统计'!O16*'环工16-1分数统计'!$O$3/121 -> 0.7024793388 | L9: ='环工16-1分数统计'!P16*'环工16-1分数统计'!$P$3/120 -> 1.8125 | M9: ='环工16-1分数统计'!Q16*'环工16-1分数统计'!$Q$3/120 -> 0.7666666667 | N9: ='环工16-1分数统计'!R16*'环工16-1分数统计'!$R$3/120 -> 1.9 | O9: ='环工16-1分数统计'!S16*'环工16-1分数统计'!$S$3/120 -> 4.083333333 | P9: ='环工16-1分数统计'!T16*'环工16-1分数统计'!$T$3/120 -> 1.895833333 | Q9: ='环工16-1分数统计'!U16*'环工16-1分数统计'!$U$3/120 -> 3.033333333 | R9: ='环工16-1分数统计'!V16*'环工16-1分数统计'!$V$3/120 -> 2.375 | S9: ='环工16-1分数统计'!W16*'环工16-1分数统计'!$W$3/120 -> 2.033333333 | T9: ='环工16-1分数统计'!X16*'环工16-1分数统计'!$X$3/120 -> 0.775 | U9: ='环工16-1分数统计'!Y16*'环工16-1分数统计'!$Y$3/120 -> 1.55 | V9: ='环工16-1分数统计'!Z16*'环工16-1分数统计'!$Z$3/120 -> 2 | W9: ='环工16-1分数统计'!AA16*'环工16-1分数统计'!$AA$3/120 -> 2.275 | X9: ='环工16-1分数统计'!AB16*'环工16-1分数统计'!$AB$3/120 -> 1.433333333 | Y9: ='环工16-1分数统计'!AC16*'环工16-1分数统计'!$AC$3/120 -> 1.35 | Z9: ='环工16-1分数统计'!AD16*'环工16-1分数统计'!$AD$3/120 -> 1.316666667 | AA9: ='环工16-1分数统计'!AE16*'环工16-1分数统计'!$AE$3/120 -> 1.233333333 | AB9: ='环工16-1分数统计'!AF16*'环工16-1分数统计'!$AF$3/120 -> 0.7583333333 | AC9: ='环工16-1分数统计'!AG16*'环工16-1分数统计'!$AG$3/120 -> 1.666666667 | AD9: ='环工16-1分数统计'!AH16*'环工16-1分数统计'!$AH$3/120 -> 2.1 | AE9: ='环工16-1分数统计'!AI16*'环工16-1分数统计'!$AI$3/120 -> 1.5 | AF9: ='环工16-1分数统计'!AJ16*'环工16-1分数统计'!$AJ$3/120 -> 0.7333333333 | AG9: ='环工16-1分数统计'!AK16*'环工16-1分数统计'!$AK$3/120 -> 2.8 | AH9: ='环工16-1分数统计'!AL16*'环工16-1分数统计'!$AL$3/120 -> 1.483333333 | AI9: ='环工16-1分数统计'!AM16*'环工16-1分数统计'!$AM$3/120 -> 1.05 | AJ9: ='环工16-1分数统计'!AN16*'环工16-1分数统计'!$AN$3/120 -> 2.15 | AK9: ='环工16-1分数统计'!AO16*'环工16-1分数统计'!$AO$3/120 -> 2.05 | AL9: ='环工16-1分数统计'!AP16*'环工16-1分数统计'!$AP$3/120 -> 1.125 | AM9: ='环工16-1分数统计'!AQ16*'环工16-1分数统计'!$AQ$3/120 -> 2.325 | AN9: ='环工16-1分数统计'!AR16*'环工16-1分数统计'!$AR$3/120 -> 1.45 | AO9: ='环工16-1分数统计'!AS16*'环工16-1分数统计'!$AS$3/120 -> 1.5 | AP9: ='环工16-1分数统计'!AT16*'环工16-1分数统计'!$AT$3/120 -> 1.333333333 | AQ9: ='环工16-1分数统计'!AU16*'环工16-1分数统计'!$AU$3/120 -> 0.7833333333 | AR9: ='环工16-1分数统计'!AV16*'环工16-1分数统计'!$AV$3/120 -> 1.45 | AS9: ='环工16-1分数统计'!AW16*'环工16-1分数统计'!$AW$3/120 -> 0.7083333333 | AT9: ='环工16-1分数统计'!AX16*'环工16-1分数统计'!$AX$3/120 -> 3.033333333 | AU9: ='环工16-1分数统计'!AY16*'环工16-1分数统计'!$AY$3/120 -> 1.416666667 | AV9: ='环工16-1分数统计'!AZ16*'环工16-1分数统计'!$AZ$3/120 -> 1.45 | AW9: ='环工16-1分数统计'!BA16*'环工16-1分数统计'!$BA$3/120 -> 1.616666667 | AX9: ='环工16-1分数统计'!BB16*'环工16-1分数统计'!$BB$3/120 -> 1.1 | AY9: ='环工16-1分数统计'!BC16*'环工16-1分数统计'!$BC$3/120 -> 2.1 | AZ9: ='环工16-1分数统计'!BD16*'环工16-1分数统计'!$BD$3/120 -> 1.1375 | BA9: ='环工16-1分数统计'!BE16*'环工16-1分数统计'!$BE$3/120 -> 1.55 | BB9: 85.46914601 | BC9: 59.8284022 | BD9: 91.16873315 | BE9: 98.03067941 | BF9: 189.1994126 | BG9: 93.90192169 | BH9: 18.78038434 | BI9: 78.60878654
A10: 7 | B10: 齐泽丰 | C10: 2016010607 | D10: ='环工16-1分数统计'!H11*'环工16-1分数统计'!$H$3/120 -> 0.7 | E10: ='环工16-1分数统计'!I11*'环工16-1分数统计'!$I$3/120 -> 1.583333333 | F10: ='环工16-1分数统计'!J11*'环工16-1分数统计'!$J$3/120 -> 4.1 | G10: ='环工16-1分数统计'!K11*'环工16-1分数统计'!$K$3/120 -> 2.925 | H10: ='环工16-1分数统计'!L11*'环工16-1分数统计'!$L$3/120 -> 1.366666667 | I10: ='环工16-1分数统计'!M11*'环工16-1分数统计'!$M$3/120 -> 1.466666667 | J10: ='环工16-1分数统计'!N11*'环工16-1分数统计'!$N$3/120 -> 3.08 | K10: ='环工16-1分数统计'!O11*'环工16-1分数统计'!$O$3/121 -> 0.7355371901 | L10: ='环工16-1分数统计'!P11*'环工16-1分数统计'!$P$3/120 -> 1.895833333 | M10: ='环工16-1分数统计'!Q11*'环工16-1分数统计'!$Q$3/120 -> 0.6833333333 | N10: ='环工16-1分数统计'!R11*'环工16-1分数统计'!$R$3/120 -> 1.775 | O10: ='环工16-1分数统计'!S11*'环工16-1分数统计'!$S$3/120 -> 3.708333333 | P10: ='环工16-1分数统计'!T11*'环工16-1分数统计'!$T$3/120 -> 1.895833333 | Q10: ='环工16-1分数统计'!U11*'环工16-1分数统计'!$U$3/120 -> 2.733333333 | R10: ='环工16-1分数统计'!V11*'环工16-1分数统计'!$V$3/120 -> 2.175 | S10: ='环工16-1分数统计'!W11*'环工16-1分数统计'!$W$3/120 -> 3.3 | T10: ='环工16-1分数统计'!X11*'环工16-1分数统计'!$X$3/120 -> 0.8 | U10: ='环工16-1分数统计'!Y11*'环工16-1分数统计'!$Y$3/120 -> 1.566666667 | V10: ='环工16-1分数统计'!Z11*'环工16-1分数统计'!$Z$3/120 -> 1.6 | W10: ='环工16-1分数统计'!AA11*'环工16-1分数统计'!$AA$3/120 -> 1.925 | X10: ='环工16-1分数统计'!AB11*'环工16-1分数统计'!$AB$3/120 -> 1.3 | Y10: ='环工16-1分数统计'!AC11*'环工16-1分数统计'!$AC$3/120 -> 1.516666667 | Z10: ='环工16-1分数统计'!AD11*'环工16-1分数统计'!$AD$3/120 -> 1.433333333 | AA10: ='环工16-1分数统计'!AE11*'环工16-1分数统计'!$AE$3/120 -> 1.595 | AB10: ='环工16-1分数统计'!AF11*'环工16-1分数统计'!$AF$3/120 -> 0.7666666667 | AC10: ='环工16-1分数统计'!AG11*'环工16-1分数统计'!$AG$3/120 -> 1.666666667 | AD10: ='环工16-1分数统计'!AH11*'环工16-1分数统计'!$AH$3/120 -> 1.9 | AE10: ='环工16-1分数统计'!AI11*'环工16-1分数统计'!$AI$3/120 -> 1.45 | AF10: ='环工16-1分数统计'!AJ11*'环工16-1分数统计'!$AJ$3/120 -> 0.775 | AG10: ='环工16-1分数统计'!AK11*'环工16-1分数统计'!$AK$3/120 -> 2.333333333 | AH10: ='环工16-1分数统计'!AL11*'环工16-1分数统计'!$AL$3/120 -> 1.45 | AI10: ='环工16-1分数统计'!AM11*'环工16-1分数统计'!$AM$3/120 -> 0.875 | AJ10: ='环工16-1分数统计'!AN11*'环工16-1分数统计'!$AN$3/120 -> 2.025 | AK10: ='环工16-1分数统计'!AO11*'环工16-1分数统计'!$AO$3/120 -> 1.6 | AL10: ='环工16-1分数统计'!AP11*'环工16-1分数统计'!$AP$3/120 -> 1.1 | AM10: ='环工16-1分数统计'!AQ11*'环工16-1分数统计'!$AQ$3/120 -> 2.325 | AN10: ='环工16-1分数统计'!AR11*'环工16-1分数统计'!$AR$3/120 -> 1.5 | AO10: ='环工16-1分数统计'!AS11*'环工16-1分数统计'!$AS$3/120 -> 1.5 | AP10: ='环工16-1分数统计'!AT11*'环工16-1分数统计'!$AT$3/120 -> 1.503333333 | AQ10: ='环工16-1分数统计'!AU11*'环工16-1分数统计'!$AU$3/120 -> 0.7583333333 | AR10: ='环工16-1分数统计'!AV11*'环工16-1分数统计'!$AV$3/120 -> 1.633333333 | AS10: ='环工16-1分数统计'!AW11*'环工16-1分数统计'!$AW$3/120 -> 0.7083333333 | AT10: ='环工16-1分数统计'!AX11*'环工16-1分数统计'!$AX$3/120 -> 2.833333333 | AU10: ='环工16-1分数统计'!AY11*'环工16-1分数统计'!$AY$3/120 -> 1.516666667 | AV10: ='环工16-1分数统计'!AZ11*'环工16-1分数统计'!$AZ$3/120 -> 1.583333333 | AW10: ='环工16-1分数统计'!BA11*'环工16-1分数统计'!$BA$3/120 -> 1.65 | AX10: ='环工16-1分数统计'!BB11*'环工16-1分数统计'!$BB$3/120 -> 1.1 | AY10: ='环工16-1分数统计'!BC11*'环工16-1分数统计'!$BC$3/120 -> 2.275 | AZ10: ='环工16-1分数统计'!BD11*'环工16-1分数统计'!$BD$3/120 -> 1.1 | BA10: ='环工16-1分数统计'!BE11*'环工16-1分数统计'!$BE$3/120 -> 1.433333333 | BB10: 85.22220386 | BC10: 59.6555427 | BD10: 92.94386513 | BE10: 97.87665921 | BF10: 190.8205243 | BG10: 94.70649877 | BH10: 18.94129975 | BI10: 78.59684245
A11: 9 | B11: 余美琪 | C11: 2016010613 | D11: ='环工16-1分数统计'!H17*'环工16-1分数统计'!$H$3/120 -> 0.675 | E11: ='环工16-1分数统计'!I17*'环工16-1分数统计'!$I$3/120 -> 1.516666667 | F11: ='环工16-1分数统计'!J17*'环工16-1分数统计'!$J$3/120 -> 4.2 | G11: ='环工16-1分数统计'!K17*'环工16-1分数统计'!$K$3/120 -> 3.0375 | H11: ='环工16-1分数统计'!L17*'环工16-1分数统计'!$L$3/120 -> 1.283333333 | I11: ='环工16-1分数统计'!M17*'环工16-1分数统计'!$M$3/120 -> 1.2 | J11: ='环工16-1分数统计'!N17*'环工16-1分数统计'!$N$3/120 -> 3.45 | K11: ='环工16-1分数统计'!O17*'环工16-1分数统计'!$O$3/121 -> 0.652892562 | L11: ='环工16-1分数统计'!P17*'环工16-1分数统计'!$P$3/120 -> 1.520833333 | M11: ='环工16-1分数统计'!Q17*'环工16-1分数统计'!$Q$3/120 -> 0.625 | N11: ='环工16-1分数统计'!R17*'环工16-1分数统计'!$R$3/120 -> 1.7 | O11: ='环工16-1分数统计'!S17*'环工16-1分数统计'!$S$3/120 -> 3.541666667 | P11: ='环工16-1分数统计'!T17*'环工16-1分数统计'!$T$3/120 -> 1.791666667 | Q11: ='环工16-1分数统计'!U17*'环工16-1分数统计'!$U$3/120 -> 2.866666667 | R11: ='环工16-1分数统计'!V17*'环工16-1分数统计'!$V$3/120 -> 2.225 | S11: ='环工16-1分数统计'!W17*'环工16-1分数统计'!$W$3/120 -> 3.335 | T11: ='环工16-1分数统计'!X17*'环工16-1分数统计'!$X$3/120 -> 0.7083333333 | U11: ='环工16-1分数统计'!Y17*'环工16-1分数统计'!$Y$3/120 -> 1.483333333 | V11: ='环工16-1分数统计'!Z17*'环工16-1分数统计'!$Z$3/120 -> 2 | W11: ='环工16-1分数统计'!AA17*'环工16-1分数统计'!$AA$3/120 -> 2.25 | X11: ='环工16-1分数统计'!AB17*'环工16-1分数统计'!$AB$3/120 -> 1.433333333 | Y11: ='环工16-1分数统计'!AC17*'环工16-1分数统计'!$AC$3/120 -> 1.466666667 | Z11: ='环工16-1分数统计'!AD17*'环工16-1分数统计'!$AD$3/120 -> 1.4 | AA11: ='环工16-1分数统计'!AE17*'环工16-1分数统计'!$AE$3/120 -> 1.61 | AB11: ='环工16-1分数统计'!AF17*'环工16-1分数统计'!$AF$3/120 -> 0.7416666667 | AC11: ='环工16-1分数统计'!AG17*'环工16-1分数统计'!$AG$3/120 -> 1.5625 | AD11: ='环工16-1分数统计'!AH17*'环工16-1分数统计'!$AH$3/120 -> 2.1 | AE11: ='环工16-1分数统计'!AI17*'环工16-1分数统计'!$AI$3/120 -> 1.466666667 | AF11: ='环工16-1分数统计'!AJ17*'环工16-1分数统计'!$AJ$3/120 -> 0.725 | AG11: ='环工16-1分数统计'!AK17*'环工16-1分数统计'!$AK$3/120 -> 2.666666667 | AH11: ='环工16-1分数统计'!AL17*'环工16-1分数统计'!$AL$3/120 -> 1.533333333 | AI11: ='环工16-1分数统计'!AM17*'环工16-1分数统计'!$AM$3/120 -> 0.975 | AJ11: ='环工16-1分数统计'!AN17*'环工16-1分数统计'!$AN$3/120 -> 2.175 | AK11: ='环工16-1分数统计'!AO17*'环工16-1分数统计'!$AO$3/120 -> 2.075 | AL11: ='环工16-1分数统计'!AP17*'环工16-1分数统计'!$AP$3/120 -> 1.1125 | AM11: ='环工16-1分数统计'!AQ17*'环工16-1分数统计'!$AQ$3/120 -> 2.175 | AN11: ='环工16-1分数统计'!AR17*'环工16-1分数统计'!$AR$3/120 -> 1.45 | AO11: ='环工16-1分数统计'!AS17*'环工16-1分数统计'!$AS$3/120 -> 1.533333333 | AP11: ='环工16-1分数统计'!AT17*'环工16-1分数统计'!$AT$3/120 -> 1.456666667 | AQ11: ='环工16-1分数统计'!AU17*'环工16-1分数统计'!$AU$3/120 -> 0.775 | AR11: ='环工16-1分数统计'!AV17*'环工16-1分数统计'!$AV$3/120 -> 1.5 | AS11: ='环工16-1分数统计'!AW17*'环工16-1分数统计'!$AW$3/120 -> 0.6666666667 | AT11: ='环工16-1分数统计'!AX17*'环工16-1分数统计'!$AX$3/120 -> 3.066666667 | AU11: ='环工16-1分数统计'!AY17*'环工16-1分数统计'!$AY$3/120 -> 1.566666667 | AV11: ='环工16-1分数统计'!AZ17*'环工16-1分数统计'!$AZ$3/120 -> 1.45 | AW11: ='环工16-1分数统计'!BA17*'环工16-1分数统计'!$BA$3/120 -> 1.516666667 | AX11: ='环工16-1分数统计'!BB17*'环工16-1分数统计'!$BB$3/120 -> 1.0875 | AY11: ='环工16-1分数统计'!BC17*'环工16-1分数统计'!$BC$3/120 -> 2.2 | AZ11: ='环工16-1分数统计'!BD17*'环工16-1分数统计'!$BD$3/120 -> 1.1125 | BA11: ='环工16-1分数统计'!BE17*'环工16-1分数统计'!$BE$3/120 -> 1.2 | BB11: 85.86289256 | BC11: 60.10402479 | BD11: 89.371215 | BE11: 90.0143683 | BF11: 179.3855833 | BG11: 89.03120135 | BH11: 17.80624027 | BI11: 77.91026506
A12: 10 | B12: 刘涵钰 | C12: 2016010603 | D12: ='环工16-1分数统计'!H7*'环工16-1分数统计'!$H$3/120 -> 0.6583333333 | E12: ='环工16-1分数统计'!I7*'环工16-1分数统计'!$I$3/120 -> 1.516666667 | F12: ='环工16-1分数统计'!J7*'环工16-1分数统计'!$J$3/120 -> 3.85 | G12: ='环工16-1分数统计'!K7*'环工16-1分数统计'!$K$3/120 -> 3.3 | H12: ='环工16-1分数统计'!L7*'环工16-1分数统计'!$L$3/120 -> 1.516666667 | I12: ='环工16-1分数统计'!M7*'环工16-1分数统计'!$M$3/120 -> 1.283333333 | J12: ='环工16-1分数统计'!N7*'环工16-1分数统计'!$N$3/120 -> 2.97 | K12: ='环工16-1分数统计'!O7*'环工16-1分数统计'!$O$3/121 -> 0.5950413223 | L12: ='环工16-1分数统计'!P7*'环工16-1分数统计'!$P$3/120 -> 1.833333333 | M12: ='环工16-1分数统计'!Q7*'环工16-1分数统计'!$Q$3/120 -> 0.7666666667 | N12: ='环工16-1分数统计'!R7*'环工16-1分数统计'!$R$3/120 -> 2.025 | O12: ='环工16-1分数统计'!S7*'环工16-1分数统计'!$S$3/120 -> 3.916666667 | P12: ='环工16-1分数统计'!T7*'环工16-1分数统计'!$T$3/120 -> 1.833333333 | Q12: ='环工16-1分数统计'!U7*'环工16-1分数统计'!$U$3/120 -> 2.866666667 | R12: ='环工16-1分数统计'!V7*'环工16-1分数统计'!$V$3/120 -> 2.225 | S12: ='环工16-1分数统计'!W7*'环工16-1分数统计'!$W$3/120 -> 2.97 | T12: ='环工16-1分数统计'!X7*'环工16-1分数统计'!$X$3/120 -> 0.725 | U12: ='环工16-1分数统计'!Y7*'环工16-1分数统计'!$Y$3/120 -> 1.5 | V12: ='环工16-1分数统计'!Z7*'环工16-1分数统计'!$Z$3/120 -> 1.675 | W12: ='环工16-1分数统计'!AA7*'环工16-1分数统计'!$AA$3/120 -> 2.275 | X12: ='环工16-1分数统计'!AB7*'环工16-1分数统计'!$AB$3/120 -> 1.4 | Y12: ='环工16-1分数统计'!AC7*'环工16-1分数统计'!$AC$3/120 -> 1.366666667 | Z12: ='环工16-1分数统计'!AD7*'环工16-1分数统计'!$AD$3/120 -> 1.333333333 | AA12: ='环工16-1分数统计'!AE7*'环工16-1分数统计'!$AE$3/120 -> 1.411666667 | AB12: ='环工16-1分数统计'!AF7*'环工16-1分数统计'!$AF$3/120 -> 0.6666666667 | AC12: ='环工16-1分数统计'!AG7*'环工16-1分数统计'!$AG$3/120 -> 1.729166667 | AD12: ='环工16-1分数统计'!AH7*'环工16-1分数统计'!$AH$3/120 -> 2.075 | AE12: ='环工16-1分数统计'!AI7*'环工16-1分数统计'!$AI$3/120 -> 1.45 | AF12: ='环工16-1分数统计'!AJ7*'环工16-1分数统计'!$AJ$3/120 -> 0.7666666667 | AG12: ='环工16-1分数统计'!AK7*'环工16-1分数统计'!$AK$3/120 -> 2.433333333 | AH12: ='环工16-1分数统计'!AL7*'环工16-1分数统计'!$AL$3/120 -> 1.466666667 | AI12: ='环工16-1分数统计'!AM7*'环工16-1分数统计'!$AM$3/120 -> 1.0375 | AJ12: ='环工16-1分数统计'!AN7*'环工16-1分数统计'!$AN$3/120 -> 2.075 | AK12: ='环工16-1分数统计'!AO7*'环工16-1分数统计'!$AO$3/120 -> 1.9 | AL12: ='环工16-1分数统计'!AP7*'环工16-1分数统计'!$AP$3/120 -> 1.0875 | AM12: ='环工16-1分数统计'!AQ7*'环工16-1分数统计'!$AQ$3/120 -> 2.15 | AN12: ='环工16-1分数统计'!AR7*'环工16-1分数统计'!$AR$3/120 -> 1.45 | AO12: ='环工16-1分数统计'!AS7*'环工16-1分数统计'!$AS$3/120 -> 1.55 | AP12: ='环工16-1分数统计'!AT7*'环工16-1分数统计'!$AT$3/120 -> 1.375 | AQ12: ='环工16-1分数统计'!AU7*'环工16-1分数统计'!$AU$3/120 -> 0.6833333333 | AR12: ='环工16-1分数统计'!AV7*'环工16-1分数统计'!$AV$3/120 -> 1.35 | AS12: ='环工16-1分数统计'!AW7*'环工16-1分数统计'!$AW$3/120 -> 0.7333333333 | AT12: ='环工16-1分数统计'!AX7*'环工16-1分数统计'!$AX$3/120 -> 3.1 | AU12: ='环工16-1分数统计'!AY7*'环工16-1分数统计'!$AY$3/120 -> 1.45 | AV12: ='环工16-1分数统计'!AZ7*'环工16-1分数统计'!$AZ$3/120 -> 1.5 | AW12: ='环工16-1分数统计'!BA7*'环工16-1分数统计'!$BA$3/120 -> 1.5 | AX12: ='环工16-1分数统计'!BB7*'环工16-1分数统计'!$BB$3/120 -> 1.125 | AY12: ='环工16-1分数统计'!BC7*'环工16-1分数统计'!$BC$3/120 -> 2.3 | AZ12: ='环工16-1分数统计'!BD7*'环工16-1分数统计'!$BD$3/120 -> 1.1 | BA12: ='环工16-1分数统计'!BE7*'环工16-1分数统计'!$BE$3/120 -> 1.45 | BB12: 85.31754132 | BC12: 59.72227893 | BD12: 90.9492381 | BE12: 90.22212587 | BF12: 181.171364 | BG12: 89.91750557 | BH12: 17.98350111 | BI12: 77.70578004
A13: 11 | B13: 任玥辉 | C13: 2016010608 | D13: ='环工16-1分数统计'!H12*'环工16-1分数统计'!$H$3/120 -> 0.7333333333 | E13: ='环工16-1分数统计'!I12*'环工16-1分数统计'!$I$3/120 -> 1.566666667 | F13: ='环工16-1分数统计'!J12*'环工16-1分数统计'!$J$3/120 -> 4.2 | G13: ='环工16-1分数统计'!K12*'环工16-1分数统计'!$K$3/120 -> 3 | H13: ='环工16-1分数统计'!L12*'环工16-1分数统计'!$L$3/120 -> 1.433333333 | I13: ='环工16-1分数统计'!M12*'环工16-1分数统计'!$M$3/120 -> 1.45 | J13: ='环工16-1分数统计'!N12*'环工16-1分数统计'!$N$3/120 -> 2.933333333 | K13: ='环工16-1分数统计'!O12*'环工16-1分数统计'!$O$3/121 -> 0.6611570248 | L13: ='环工16-1分数统计'!P12*'环工16-1分数统计'!$P$3/120 -> 1.75 | M13: ='环工16-1分数统计'!Q12*'环工16-1分数统计'!$Q$3/120 -> 0.65 | N13: ='环工16-1分数统计'!R12*'环工16-1分数统计'!$R$3/120 -> 1.875 | O13: ='环工16-1分数统计'!S12*'环工16-1分数统计'!$S$3/120 -> 3.416666667 | P13: ='环工16-1分数统计'!T12*'环工16-1分数统计'!$T$3/120 -> 1.833333333 | Q13: ='环工16-1分数统计'!U12*'环工16-1分数统计'!$U$3/120 -> 2.7 | R13: ='环工16-1分数统计'!V12*'环工16-1分数统计'!$V$3/120 -> 1.9 | S13: ='环工16-1分数统计'!W12*'环工16-1分数统计'!$W$3/120 -> 3.336666667 | T13: ='环工16-1分数统计'!X12*'环工16-1分数统计'!$X$3/120 -> 0.7333333333 | U13: ='环工16-1分数统计'!Y12*'环工16-1分数统计'!$Y$3/120 -> 1.5 | V13: ='环工16-1分数统计'!Z12*'环工16-1分数统计'!$Z$3/120 -> 1.6 | W13: ='环工16-1分数统计'!AA12*'环工16-1分数统计'!$AA$3/120 -> 2.125 | X13: ='环工16-1分数统计'!AB12*'环工16-1分数统计'!$AB$3/120 -> 1.266666667 | Y13: ='环工16-1分数统计'!AC12*'环工16-1分数统计'!$AC$3/120 -> 1.433333333 | Z13: ='环工16-1分数统计'!AD12*'环工16-1分数统计'!$AD$3/120 -> 1.45 | AA13: ='环工16-1分数统计'!AE12*'环工16-1分数统计'!$AE$3/120 -> 1.595 | AB13: ='环工16-1分数统计'!AF12*'环工16-1分数统计'!$AF$3/120 -> 0.7416666667 | AC13: ='环工16-1分数统计'!AG12*'环工16-1分数统计'!$AG$3/120 -> 1.5625 | AD13: ='环工16-1分数统计'!AH12*'环工16-1分数统计'!$AH$3/120 -> 2.05 | AE13: ='环工16-1分数统计'!AI12*'环工16-1分数统计'!$AI$3/120 -> 1.483333333 | AF13: ='环工16-1分数统计'!AJ12*'环工16-1分数统计'!$AJ$3/120 -> 0.7666666667 | AG13: ='环工16-1分数统计'!AK12*'环工16-1分数统计'!$AK$3/120 -> 2.5 | AH13: ='环工16-1分数统计'!AL12*'环工16-1分数统计'!$AL$3/120 -> 1.483333333 | AI13: ='环工16-1分数统计'!AM12*'环工16-1分数统计'!$AM$3/120 -> 1.0625 | AJ13: ='环工16-1分数统计'!AN12*'环工16-1分数统计'!$AN$3/120 -> 2.275 | AK13: ='环工16-1分数统计'!AO12*'环工16-1分数统计'!$AO$3/120 -> 2.125 | AL13: ='环工16-1分数统计'!AP12*'环工16-1分数统计'!$AP$3/120 -> 1.125 | AM13: ='环工16-1分数统计'!AQ12*'环工16-1分数统计'!$AQ$3/120 -> 2.325 | AN13: ='环工16-1分数统计'!AR12*'环工16-1分数统计'!$AR$3/120 -> 1.466666667 | AO13: ='环工16-1分数统计'!AS12*'环工16-1分数统计'!$AS$3/120 -> 1.55 | AP13: ='环工16-1分数统计'!AT12*'环工16-1分数统计'!$AT$3/120 -> 1.631666667 | AQ13: ='环工16-1分数统计'!AU12*'环工16-1分数统计'!$AU$3/120 -> 0.6833333333 | AR13: ='环工16-1分数统计'!AV12*'环工16-1分数统计'!$AV$3/120 -> 1.483333333 | AS13: ='环工16-1分数统计'!AW12*'环工16-1分数统计'!$AW$3/120 -> 0.675 | AT13: ='环工16-1分数统计'!AX12*'环工16-1分数统计'!$AX$3/120 -> 2.333333333 | AU13: ='环工16-1分数统计'!AY12*'环工16-1分数统计'!$AY$3/120 -> 1.466666667 | AV13: ='环工16-1分数统计'!AZ12*'环工16-1分数统计'!$AZ$3/120 -> 1.416666667 | AW13: ='环工16-1分数统计'!BA12*'环工16-1分数统计'!$BA$3/120 -> 1.45 | AX13: ='环工16-1分数统计'!BB12*'环工16-1分数统计'!$BB$3/120 -> 1.125 | AY13: ='环工16-1分数统计'!BC12*'环工16-1分数统计'!$BC$3/120 -> 2.125 | AZ13: ='环工16-1分数统计'!BD12*'环工16-1分数统计'!$BD$3/120 -> 1.1375 | BA13: ='环工16-1分数统计'!BE12*'环工16-1分数统计'!$BE$3/120 -> 1.366666667 | BB13: 84.55365702 | BC13: 59.18755992 | BD13: 92.92658464 | BE13: 91.32548749 | BF13: 184.2520721 | BG13: 91.44649772 | BH13: 18.28929954 | BI13: 77.47685946
A14: 12 | B14: 刘姝羽 | C14: 2016010637 | D14: 0.675 | E14: 1.5 | F14: 4.35 | G14: 3.2625 | H14: 1.283333333 | I14: 1.166666667 | J14: =[1]Sheet1!H46*$J$3/120 -> 2.805 | K14: 0.6166666667 | L14: 1.458333333 | M14: 0.6083333333 | N14: 1.8 | O14: 4.041666667 | P14: 1.895833333 | Q14: 2.9 | R14: 1.85 | S14: =[1]Sheet1!I46*$S$3/120 -> 2.8028 | T14: 0.75 | U14: 1.516666667 | V14: 2.175 | W14: 2.275 | X14: 1.35 | Y14: 1.433333333 | Z14: 1.3 | AA14: =[1]Sheet1!K46*$AA$3/120 -> 1.324583333 | AB14: 0.7916666667 | AC14: 1.6875 | AD14: 2.35 | AE14: 1.45 | AF14: 0.775 | AG14: 2.766666667 | AH14: 1.516666667 | AI14: 0.9 | AJ14: 2.1 | AK14: 2.075 | AL14: 1.1125 | AM14: 2 | AN14: 1.516666667 | AO14: 1.466666667 | AP14: =[1]Sheet1!J46*$AP$3/120 -> 1.309275 | AQ14: 0.7583333333 | AR14: 1.416666667 | AS14: 0.675 | AT14: 2.666666667 | AU14: 1.366666667 | AV14: 1.283333333 | AW14: 1.6 | AX14: 1.1 | AY14: 2.15 | AZ14: 1 | BA14: 1 | BB14: 84.71666667 | BC14: 59.30166667 | BD14: 91.01012053 | BE14: 91.47178524 | BF14: 182.4819058 | BG14: 90.56794307 | BH14: 18.11358861 | BI14: 77.41525528
A15: 13 | B15: 马一凡 | C15: 2016010606 | D15: ='环工16-1分数统计'!H10*'环工16-1分数统计'!$H$3/120 -> 0.6833333333 | E15: ='环工16-1分数统计'!I10*'环工16-1分数统计'!$I$3/120 -> 1.5 | F15: ='环工16-1分数统计'!J10*'环工16-1分数统计'!$J$3/120 -> 4.35 | G15: ='环工16-1分数统计'!K10*'环工16-1分数统计'!$K$3/120 -> 3.4125 | H15: ='环工16-1分数统计'!L10*'环工16-1分数统计'!$L$3/120 -> 1.4 | I15: ='环工16-1分数统计'!M10*'环工16-1分数统计'!$M$3/120 -> 1.2 | J15: ='环工16-1分数统计'!N10*'环工16-1分数统计'!$N$3/120 -> 3.45 | K15: ='环工16-1分数统计'!O10*'环工16-1分数统计'!$O$3/121 -> 0.6363636364 | L15: ='环工16-1分数统计'!P10*'环工16-1分数统计'!$P$3/120 -> 1.875 | M15: ='环工16-1分数统计'!Q10*'环工16-1分数统计'!$Q$3/120 -> 0.6083333333 | N15: ='环工16-1分数统计'!R10*'环工16-1分数统计'!$R$3/120 -> 2.15 | O15: ='环工16-1分数统计'!S10*'环工16-1分数统计'!$S$3/120 -> 3.625 | P15: ='环工16-1分数统计'!T10*'环工16-1分数统计'!$T$3/120 -> 1.8125 | Q15: ='环工16-1分数统计'!U10*'环工16-1分数统计'!$U$3/120 -> 3 | R15: ='环工16-1分数统计'!V10*'环工16-1分数统计'!$V$3/120 -> 2.2 | S15: ='环工16-1分数统计'!W10*'环工16-1分数统计'!$W$3/120 -> 3.258333333 | T15: ='环工16-1分数统计'!X10*'环工16-1分数统计'!$X$3/120 -> 0.7166666667 | U15: ='环工16-1分数统计'!Y10*'环工16-1分数统计'!$Y$3/120 -> 1.466666667 | V15: ='环工16-1分数统计'!Z10*'环工16-1分数统计'!$Z$3/120 -> 1.5 | W15: ='环工16-1分数统计'!AA10*'环工16-1分数统计'!$AA$3/120 -> 2.15 | X15: ='环工16-1分数统计'!AB10*'环工16-1分数统计'!$AB$3/120 -> 1.183333333 | Y15: ='环工16-1分数统计'!AC10*'环工16-1分数统计'!$AC$3/120 -> 1.3 | Z15: ='环工16-1分数统计'!AD10*'环工16-1分数统计'!$AD$3/120 -> 1.416666667 | AA15: ='环工16-1分数统计'!AE10*'环工16-1分数统计'!$AE$3/120 -> 1.6675 | AB15: ='环工16-1分数统计'!AF10*'环工16-1分数统计'!$AF$3/120 -> 0.7416666667 | AC15: ='环工16-1分数统计'!AG10*'环工16-1分数统计'!$AG$3/120 -> 1.666666667 | AD15: ='环工16-1分数统计'!AH10*'环工16-1分数统计'!$AH$3/120 -> 1.825 | AE15: ='环工16-1分数统计'!AI10*'环工16-1分数统计'!$AI$3/120 -> 1.4 | AF15: ='环工16-1分数统计'!AJ10*'环工16-1分数统计'!$AJ$3/120 -> 0.75 | AG15: ='环工16-1分数统计'!AK10*'环工16-1分数统计'!$AK$3/120 -> 2.333333333 | AH15: ='环工16-1分数统计'!AL10*'环工16-1分数统计'!$AL$3/120 -> 1.233333333 | AI15: ='环工16-1分数统计'!AM10*'环工16-1分数统计'!$AM$3/120 -> 0.9625 | AJ15: ='环工16-1分数统计'!AN10*'环工16-1分数统计'!$AN$3/120 -> 1.65 | AK15: ='环工16-1分数统计'!AO10*'环工16-1分数统计'!$AO$3/120 -> 1.975 | AL15: ='环工16-1分数统计'!AP10*'环工16-1分数统计'!$AP$3/120 -> 1.0375 | AM15: ='环工16-1分数统计'!AQ10*'环工16-1分数统计'!$AQ$3/120 -> 2.125 | AN15: ='环工16-1分数统计'!AR10*'环工16-1分数统计'!$AR$3/120 -> 1.466666667 | AO15: ='环工16-1分数统计'!AS10*'环工16-1分数统计'!$AS$3/120 -> 1.483333333 | AP15: ='环工16-1分数统计'!AT10*'环工16-1分数统计'!$AT$3/120 -> 1.418333333 | AQ15: ='环工16-1分数统计'!AU10*'环工16-1分数统计'!$AU$3/120 -> 0.75 | AR15: ='环工16-1分数统计'!AV10*'环工16-1分数统计'!$AV$3/120 -> 1.5 | AS15: ='环工16-1分数统计'!AW10*'环工16-1分数统计'!$AW$3/120 -> 0.6333333333 | AT15: ='环工16-1分数统计'!AX10*'环工16-1分数统计'!$AX$3/120 -> 2.633333333 | AU15: ='环工16-1分数统计'!AY10*'环工16-1分数统计'!$AY$3/120 -> 1.366666667 | AV15: ='环工16-1分数统计'!AZ10*'环工16-1分数统计'!$AZ$3/120 -> 1.35 | AW15: ='环工16-1分数统计'!BA10*'环工16-1分数统计'!$BA$3/120 -> 1.633333333 | AX15: ='环工16-1分数统计'!BB10*'环工16-1分数统计'!$BB$3/120 -> 1.0875 | AY15: ='环工16-1分数统计'!BC10*'环工16-1分数统计'!$BC$3/120 -> 2.075 | AZ15: ='环工16-1分数统计'!BD10*'环工16-1分数统计'!$BD$3/120 -> 0.95 | BA15: ='环工16-1分数统计'!BE10*'环工16-1分数统计'!$BE$3/120 -> 1.266666667 | BB15: =SUM(D15:BA15) -> 83.87636364 | BC15: =0.7*BB15 -> 58.71345455 | BD15: 92.15105989 | BE15: 90.77473598 | BF15: =SUM(BD15:BE15) -> 182.9257959 | BG15: 90.78825101 | BH15: 18.1576502 | BI15: 76.87110475
A16: 14 | B16: 唐钰琪 | C16: 2016010609 | D16: ='环工16-1分数统计'!H13*'环工16-1分数统计'!$H$3/120 -> 0.6916666667 | E16: ='环工16-1分数统计'!I13*'环工16-1分数统计'!$I$3/120 -> 1.55 | F16: ='环工16-1分数统计'!J13*'环工16-1分数统计'!$J$3/120 -> 3.3 | G16: ='环工16-1分数统计'!K13*'环工16-1分数统计'!$K$3/120 -> 3 | H16: ='环工16-1分数统计'!L13*'环工16-1分数统计'!$L$3/120 -> 1.366666667 | I16: ='环工16-1分数统计'!M13*'环工16-1分数统计'!$M$3/120 -> 1.366666667 | J16: ='环工16-1分数统计'!N13*'环工16-1分数统计'!$N$3/120 -> 3.3 | K16: ='环工16-1分数统计'!O13*'环工16-1分数统计'!$O$3/121 -> 0.7355371901 | L16: ='环工16-1分数统计'!P13*'环工16-1分数统计'!$P$3/120 -> 1.625 | M16: ='环工16-1分数统计'!Q13*'环工16-1分数统计'!$Q$3/120 -> 0.675 | N16: ='环工16-1分数统计'!R13*'环工16-1分数统计'!$R$3/120 -> 1.95 | O16: ='环工16-1分数统计'!S13*'环工16-1分数统计'!$S$3/120 -> 3.375 | P16: ='环工16-1分数统计'!T13*'环工16-1分数统计'!$T$3/120 -> 1.916666667 | Q16: ='环工16-1分数统计'!U13*'环工16-1分数统计'!$U$3/120 -> 2.233333333 | R16: ='环工16-1分数统计'!V13*'环工16-1分数统计'!$V$3/120 -> 2.1 | S16: ='环工16-1分数统计'!W13*'环工16-1分数统计'!$W$3/120 -> 3.373333333 | T16: ='环工16-1分数统计'!X13*'环工16-1分数统计'!$X$3/120 -> 0.7916666667 | U16: ='环工16-1分数统计'!Y13*'环工16-1分数统计'!$Y$3/120 -> 1.533333333 | V16: ='环工16-1分数统计'!Z13*'环工16-1分数统计'!$Z$3/120 -> 2.05 | W16: ='环工16-1分数统计'!AA13*'环工16-1分数统计'!$AA$3/120 -> 2.1 | X16: ='环工16-1分数统计'!AB13*'环工16-1分数统计'!$AB$3/120 -> 1.266666667 | Y16: ='环工16-1分数统计'!AC13*'环工16-1分数统计'!$AC$3/120 -> 1.533333333 | Z16: ='环工16-1分数统计'!AD13*'环工16-1分数统计'!$AD$3/120 -> 1.45 | AA16: ='环工16-1分数统计'!AE13*'环工16-1分数统计'!$AE$3/120 -> 1.686666667 | AB16: ='环工16-1分数统计'!AF13*'环工16-1分数统计'!$AF$3/120 -> 0.775 | AC16: ='环工16-1分数统计'!AG13*'环工16-1分数统计'!$AG$3/120 -> 1.604166667 | AD16: ='环工16-1分数统计'!AH13*'环工16-1分数统计'!$AH$3/120 -> 2.15 | AE16: ='环工16-1分数统计'!AI13*'环工16-1分数统计'!$AI$3/120 -> 1.45 | AF16: ='环工16-1分数统计'!AJ13*'环工16-1分数统计'!$AJ$3/120 -> 0.7583333333 | AG16: ='环工16-1分数统计'!AK13*'环工16-1分数统计'!$AK$3/120 -> 2.066666667 | AH16: ='环工16-1分数统计'!AL13*'环工16-1分数统计'!$AL$3/120 -> 1.45 | AI16: ='环工16-1分数统计'!AM13*'环工16-1分数统计'!$AM$3/120 -> 0.8375 | AJ16: ='环工16-1分数统计'!AN13*'环工16-1分数统计'!$AN$3/120 -> 2.25 | AK16: ='环工16-1分数统计'!AO13*'环工16-1分数统计'!$AO$3/120 -> 1.65 | AL16: ='环工16-1分数统计'!AP13*'环工16-1分数统计'!$AP$3/120 -> 1.1 | AM16: ='环工16-1分数统计'!AQ13*'环工16-1分数统计'!$AQ$3/120 -> 1.825 | AN16: ='环工16-1分数统计'!AR13*'环工16-1分数统计'!$AR$3/120 -> 1.433333333 | AO16: ='环工16-1分数统计'!AS13*'环工16-1分数统计'!$AS$3/120 -> 1.5 | AP16: ='环工16-1分数统计'!AT13*'环工16-1分数统计'!$AT$3/120 -> 1.558333333 | AQ16: ='环工16-1分数统计'!AU13*'环工16-1分数统计'!$AU$3/120 -> 0.75 | AR16: ='环工16-1分数统计'!AV13*'环工16-1分数统计'!$AV$3/120 -> 1.566666667 | AS16: ='环工16-1分数统计'!AW13*'环工16-1分数统计'!$AW$3/120 -> 0.6833333333 | AT16: ='环工16-1分数统计'!AX13*'环工16-1分数统计'!$AX$3/120 -> 2.566666667 | AU16: ='环工16-1分数统计'!AY13*'环工16-1分数统计'!$AY$3/120 -> 1.6 | AV16: ='环工16-1分数统计'!AZ13*'环工16-1分数统计'!$AZ$3/120 -> 1.533333333 | AW16: ='环工16-1分数统计'!BA13*'环工16-1分数统计'!$BA$3/120 -> 1.166666667 | AX16: ='环工16-1分数统计'!BB13*'环工16-1分数统计'!$BB$3/120 -> 1.1 | AY16: ='环工16-1分数统计'!BC13*'环工16-1分数统计'!$BC$3/120 -> 2.1 | AZ16: ='环工16-1分数统计'!BD13*'环工16-1分数统计'!$BD$3/120 -> 1.1375 | BA16: ='环工16-1分数统计'!BE13*'环工16-1分数统计'!$BE$3/120 -> 1.266666667 | BB16: =SUM(D16:BA16) -> 82.84970386 | BC16: =0.7*BB16 -> 57.9947927 | BD16: 92.99754494 | BE16: 94.04100668 | BF16: =SUM(BD16:BE16) -> 187.0385516 | BG16: 92.82946067 | BH16: 18.56589213 | BI16: 76.56068483
A17: 15 | B17: 李昕 | C17: 2016010635 | D17: 0.725 | E17: 1.566666667 | F17: 3.7 | G17: 3.45 | H17: 1.516666667 | I17: 1.283333333 | J17: =[1]Sheet1!H44*$J$3/120 -> 2.671833333 | K17: 0.6416666667 | L17: 1.6875 | M17: 0.8083333333 | N17: 2.05 | O17: 3.5 | P17: 1.833333333 | Q17: 2.566666667 | R17: 2.4 | S17: =[1]Sheet1!I44*$S$3/120 -> 2.737 | T17: 0.775 | U17: 1.583333333 | V17: 1.65 | W17: 2.1 | X17: 1.25 | Y17: 1.3 | Z17: 1.366666667 | AA17: =[1]Sheet1!K44*$AA$3/120 -> 1.417375 | AB17: 0.775 | AC17: 1.666666667 | AD17: 2.05 | AE17: 1.416666667 | AF17: 0.7083333333 | AG17: 2.433333333 | AH17: 1.45 | AI17: 0.8 | AJ17: 2.15 | AK17: 2 | AL17: 1.075 | AM17: 2.275 | AN17: 1.4 | AO17: 1.483333333 | AP17: =[1]Sheet1!J44*$AP$3/120 -> 1.2497625 | AQ17: 0.775 | AR17: 1.433333333 | AS17: 0.6666666667 | AT17: 2.666666667 | AU17: 1.483333333 | AV17: 1.4 | AW17: 1.533333333 | AX17: 1.0875 | AY17: 2.25 | AZ17: 1.1 | BA17: 1 | BB17: 83.25 | BC17: 58.275 | BD17: 92.38009633 | BE17: 91.52635897 | BF17: 183.9064553 | BG17: 91.27496397 | BH17: 18.25499279 | BI17: 76.52999279
A18: 16 | B18: 李同 | C18: 2016010624 | D18: ='环工16-1分数统计'!H24*'环工16-1分数统计'!$H$3/120 -> 0.725 | E18: ='环工16-1分数统计'!I24*'环工16-1分数统计'!$I$3/120 -> 1.516666667 | F18: ='环工16-1分数统计'!J24*'环工16-1分数统计'!$J$3/120 -> 3.9 | G18: ='环工16-1分数统计'!K24*'环工16-1分数统计'!$K$3/120 -> 3.15 | H18: ='环工16-1分数统计'!L24*'环工16-1分数统计'!$L$3/120 -> 1.466666667 | I18: ='环工16-1分数统计'!M24*'环工16-1分数统计'!$M$3/120 -> 1.383333333 | J18: ='环工16-1分数统计'!N24*'环工16-1分数统计'!$N$3/120 -> 2.456666667 | K18: ='环工16-1分数统计'!O24*'环工16-1分数统计'!$O$3/121 -> 0.5371900826 | L18: ='环工16-1分数统计'!P24*'环工16-1分数统计'!$P$3/120 -> 1.729166667 | M18: ='环工16-1分数统计'!Q24*'环工16-1分数统计'!$Q$3/120 -> 0.5833333333 | N18: ='环工16-1分数统计'!R24*'环工16-1分数统计'!$R$3/120 -> 1.85 | O18: ='环工16-1分数统计'!S24*'环工16-1分数统计'!$S$3/120 -> 3.291666667 | P18: ='环工16-1分数统计'!T24*'环工16-1分数统计'!$T$3/120 -> 1.875 | Q18: ='环工16-1分数统计'!U24*'环工16-1分数统计'!$U$3/120 -> 2.7 | R18: ='环工16-1分数统计'!V24*'环工16-1分数统计'!$V$3/120 -> 1.975 | S18: ='环工16-1分数统计'!W24*'环工16-1分数统计'!$W$3/120 -> 2.97 | T18: ='环工16-1分数统计'!X24*'环工16-1分数统计'!$X$3/120 -> 0.6916666667 | U18: ='环工16-1分数统计'!Y24*'环工16-1分数统计'!$Y$3/120 -> 1.533333333 | V18: ='环工16-1分数统计'!Z24*'环工16-1分数统计'!$Z$3/120 -> 1.925 | W18: ='环工16-1分数统计'!AA24*'环工16-1分数统计'!$AA$3/120 -> 2 | X18: ='环工16-1分数统计'!AB24*'环工16-1分数统计'!$AB$3/120 -> 1.266666667 | Y18: ='环工16-1分数统计'!AC24*'环工16-1分数统计'!$AC$3/120 -> 1.5 | Z18: ='环工16-1分数统计'!AD24*'环工16-1分数统计'!$AD$3/120 -> 1.416666667 | AA18: ='环工16-1分数统计'!AE24*'环工16-1分数统计'!$AE$3/120 -> 1.466666667 | AB18: ='环工16-1分数统计'!AF24*'环工16-1分数统计'!$AF$3/120 -> 0.6916666667 | AC18: ='环工16-1分数统计'!AG24*'环工16-1分数统计'!$AG$3/120 -> 1.708333333 | AD18: ='环工16-1分数统计'!AH24*'环工16-1分数统计'!$AH$3/120 -> 2.125 | AE18: ='环工16-1分数统计'!AI24*'环工16-1分数统计'!$AI$3/120 -> 1.466666667 | AF18: ='环工16-1分数统计'!AJ24*'环工16-1分数统计'!$AJ$3/120 -> 0.7166666667 | AG18: ='环工16-1分数统计'!AK24*'环工16-1分数统计'!$AK$3/120 -> 2.166666667 | AH18: ='环工16-1分数统计'!AL24*'环工16-1分数统计'!$AL$3/120 -> 1.5 | AI18: ='环工16-1分数统计'!AM24*'环工16-1分数统计'!$AM$3/120 -> 0.85 | AJ18: ='环工16-1分数统计'!AN24*'环工16-1分数统计'!$AN$3/120 -> 2.25 | AK18: ='环工16-1分数统计'!AO24*'环工16-1分数统计'!$AO$3/120 -> 1.6 | AL18: ='环工16-1分数统计'!AP24*'环工16-1分数统计'!$AP$3/120 -> 1.1 | AM18: ='环工16-1分数统计'!AQ24*'环工16-1分数统计'!$AQ$3/120 -> 2.175 | AN18: ='环工16-1分数统计'!AR24*'环工16-1分数统计'!$AR$3/120 -> 1.45 | AO18: ='环工16-1分数统计'!AS24*'环工16-1分数统计'!$AS$3/120 -> 1.566666667 | AP18: ='环工16-1分数统计'!AT24*'环工16-1分数统计'!$AT$3/120 -> 1.485 | AQ18: ='环工16-1分数统计'!AU24*'环工16-1分数统计'!$AU$3/120 -> 0.6666666667 | AR18: ='环工16-1分数统计'!AV24*'环工16-1分数统计'!$AV$3/120 -> 1.466666667 | AS18: ='环工16-1分数统计'!AW24*'环工16-1分数统计'!$AW$3/120 -> 0.7083333333 | AT18: ='环工16-1分数统计'!AX24*'环工16-1分数统计'!$AX$3/120 -> 2.9 | AU18: ='环工16-1分数统计'!AY24*'环工16-1分数统计'!$AY$3/120 -> 1.516666667 | AV18: ='环工16-1分数统计'!AZ24*'环工16-1分数统计'!$AZ$3/120 -> 1.533333333 | AW18: ='环工16-1分数统计'!BA24*'环工16-1分数统计'!$BA$3/120 -> 1.5 | AX18: ='环工16-1分数统计'!BB24*'环工16-1分数统计'!$BB$3/120 -> 1.0875 | AY18: ='环工16-1分数统计'!BC24*'环工16-1分数统计'!$BC$3/120 -> 2.25 | AZ18: ='环工16-1分数统计'!BD24*'环工16-1分数统计'!$BD$3/120 -> 1.1375 | BA18: ='环工16-1分数统计'!BE24*'环工16-1分数统计'!$BE$3/120 -> 1.25 | BB18: =SUM(D18:BA18) -> 82.77802342 | BC18: =0.7*BB18 -> 57.94461639 | BD18: 89.41289484 | BE18: 90.92676022 | BF18: =SUM(BD18:BE18) -> 180.3396551 | BG18: 89.50471853 | BH18: 17.90094371 | BI18: 75.8455601
A19: 17 | B19: 李正映 | C19: 2016010648 | D19: 0.6833333333 | E19: 1.633333333 | F19: 3.55 | G19: 3.225 | H19: 1.516666667 | I19: 1.316666667 | J19: =[1]Sheet1!H57*$J$3/120 -> 2.7115 | K19: 0.6833333333 | L19: 1.479166667 | M19: 0.6166666667 | N19: 1.65 | O19: 3.541666667 | P19: 1.791666667 | Q19: 2.7 | R19: 2.15 | S19: =[1]Sheet1!I57*$S$3/120 -> 2.5256 | T19: 0.6583333333 | U19: 1.5 | V19: 2.175 | W19: 2 | X19: 1.233333333 | Y19: 1.35 | Z19: 1.383333333 | AA19: =[1]Sheet1!K57*$AA$3/120 -> 1.386916667 | AB19: 0.7833333333 | AC19: 1.708333333 | AD19: 1.875 | AE19: 1.433333333 | AF19: 0.7416666667 | AG19: 2.3 | AH19: 1.466666667 | AI19: 0.95 | AJ19: 2 | AK19: 1.825 | AL19: 1.1 | AM19: 2.275 | AN19: 1.5 | AO19: 1.616666667 | AP19: =[1]Sheet1!J57*$AP$3/120 -> 1.18119375 | AQ19: 0.7916666667 | AR19: 1.433333333 | AS19: 0.6333333333 | AT19: 2.566666667 | AU19: 1.383333333 | AV19: 1.55 | AW19: 1.383333333 | AX19: 1.0625 | AY19: 2.075 | AZ19: 1.1125 | BA19: 1.333333333 | BB19: 82.2375 | BC19: 57.56625 | BD19: 89.37653417 | BE19: 90.02734483 | BF19: 179.403879 | BG19: 89.04028173 | BH19: 17.80805635 | BI19: 75.37430635
A20: 19 | B20: 郭全弟 | C20: 2016010647 | D20: 0.6833333333 | E20: 1.533333333 | F20: 4.2 | G20: 3.2625 | H20: 1.366666667 | I20: 1.216666667 | J20: =[1]Sheet1!H56*$J$3/120 -> 2.493333333 | K20: 0.5166666667 | L20: 1.625 | M20: 0.775 | N20: 1.875 | O20: 3.458333333 | P20: 1.625 | Q20: 2.666666667 | R20: 2.125 | S20: =[1]Sheet1!I56*$S$3/120 -> 2.5872 | T20: 0.6333333333 | U20: 1.55 | V20: 1.925 | W20: 2.25 | X20: 1.333333333 | Y20: 1.416666667 | Z20: 1.183333333 | AA20: =[1]Sheet1!K56*$AA$3/120 -> 1.26225 | AB20: 0.675 | AC20: 1.4375 | AD20: 2.15 | AE20: 1.433333333 | AF20: 0.725 | AG20: 2.266666667 | AH20: 1.516666667 | AI20: 0.9 | AJ20: 1.7 | AK20: 2.1 | AL20: 1.1125 | AM20: 2.1 | AN20: 1.5 | AO20: 1.533333333 | AP20: · | AQ20: 0.6333333333 | AR20: 1.4 | AS20: 0.7 | AT20: 2.666666667 | AU20: 1.316666667 | AV20: 1.466666667 | AW20: 1.533333333 | AX20: 1.075 | AY20: 2.025 | AZ20: 1.0375 | BA20: 1.4 | BB20: 81.825 | BC20: 57.2775 | BD20: 88.10147367 | BE20: 85.56055291 | BF20: 173.6620266 | BG20: 86.19053199 | BH20: 17.2381064 | BI20: 74.5156064
A21: 18 | B21: 陆文懿 | C21: 2016010638 | D21: 0.6416666667 | E21: 1.516666667 | F21: 4.1 | G21: 3.15 | H21: 1.333333333 | I21: 1.283333333 | J21: =[1]Sheet1!H47*$J$3/120 -> 2.508916667 | K21: 0.6916666667 | L21: 1.625 | M21: 0.6333333333 | N21: 1.6 | O21: 3.625 | P21: 1.791666667 | Q21: 2.733333333 | R21: 1.5 | S21: =[1]Sheet1!I47*$S$3/120 -> 2.576 | T21: 0.6833333333 | U21: 1.5 | V21: 1.9 | W21: 2.25 | X21: 1.2 | Y21: 1.133333333 | Z21: 1.316666667 | AA21: =[1]Sheet1!K47*$AA$3/120 -> 1.401083333 | AB21: 0.7416666667 | AC21: 1.604166667 | AD21: 1.975 | AE21: 1.383333333 | AF21: 0.75 | AG21: 2.666666667 | AH21: 1.45 | AI21: 1 | AJ21: 2.25 | AK21: 2.075 | AL21: 1.075 | AM21: 2.025 | AN21: 1.466666667 | AO21: 1.483333333 | AP21: =[1]Sheet1!J47*$AP$3/120 -> 1.04146875 | AQ21: 0.75 | AR21: 1.516666667 | AS21: 0.675 | AT21: 2.566666667 | AU21: 1.116666667 | AV21: 1.333333333 | AW21: 1.333333333 | AX21: 1.1 | AY21: 2.3 | AZ21: 1.0625 | BA21: 1.3 | BB21: 81.04166667 | BC21: 56.72916667 | BD21: 88.56220854 | BE21: 90.04999534 | BF21: 178.6122039 | BG21: 88.64736393 | BH21: 17.72947279 | BI21: 74.45863945
A22: 20 | B22: 高军政 | C22: 2016010620 | D22: ='环工16-1分数统计'!H21*'环工16-1分数统计'!$H$3/120 -> 0.6416666667 | E22: ='环工16-1分数统计'!I21*'环工16-1分数统计'!$I$3/120 -> 1.533333333 | F22: ='环工16-1分数统计'!J21*'环工16-1分数统计'!$J$3/120 -> 4 | G22: ='环工16-1分数统计'!K21*'环工16-1分数统计'!$K$3/120 -> 3.375 | H22: ='环工16-1分数统计'!L21*'环工16-1分数统计'!$L$3/120 -> 1.45 | I22: ='环工16-1分数统计'!M21*'环工16-1分数统计'!$M$3/120 -> 1.216666667 | J22: ='环工16-1分数统计'!N21*'环工16-1分数统计'!$N$3/120 -> 2.42 | K22: ='环工16-1分数统计'!O21*'环工16-1分数统计'!$O$3/121 -> 0.6115702479 | L22: ='环工16-1分数统计'!P21*'环工16-1分数统计'!$P$3/120 -> 1.8125 | M22: ='环工16-1分数统计'!Q21*'环工16-1分数统计'!$Q$3/120 -> 0.775 | N22: ='环工16-1分数统计'!R21*'环工16-1分数统计'!$R$3/120 -> 1.95 | O22: ='环工16-1分数统计'!S21*'环工16-1分数统计'!$S$3/120 -> 3.875 | P22: ='环工16-1分数统计'!T21*'环工16-1分数统计'!$T$3/120 -> 1.729166667 | Q22: ='环工16-1分数统计'!U21*'环工16-1分数统计'!$U$3/120 -> 2.666666667 | R22: ='环工16-1分数统计'!V21*'环工16-1分数统计'!$V$3/120 -> 2.3 | S22: ='环工16-1分数统计'!W21*'环工16-1分数统计'!$W$3/120 -> 2.97 | T22: ='环工16-1分数统计'!X21*'环工16-1分数统计'!$X$3/120 -> 0.725 | U22: ='环工16-1分数统计'!Y21*'环工16-1分数统计'!$Y$3/120 -> 1.5 | V22: ='环工16-1分数统计'!Z21*'环工16-1分数统计'!$Z$3/120 -> 1.7 | W22: ='环工16-1分数统计'!AA21*'环工16-1分数统计'!$AA$3/120 -> 2.275 | X22: ='环工16-1分数统计'!AB21*'环工16-1分数统计'!$AB$3/120 -> 1.283333333 | Y22: ='环工16-1分数统计'!AC21*'环工16-1分数统计'!$AC$3/120 -> 1.316666667 | Z22: ='环工16-1分数统计'!AD21*'环工16-1分数统计'!$AD$3/120 -> 1.316666667 | AA22: ='环工16-1分数统计'!AE21*'环工16-1分数统计'!$AE$3/120 -> 1.411666667 | AB22: ='环工16-1分数统计'!AF21*'环工16-1分数统计'!$AF$3/120 -> 0.6583333333 | AC22: ='环工16-1分数统计'!AG21*'环工16-1分数统计'!$AG$3/120 -> 1.4375 | AD22: ='环工16-1分数统计'!AH21*'环工16-1分数统计'!$AH$3/120 -> 1.825 | AE22: ='环工16-1分数统计'!AI21*'环工16-1分数统计'!$AI$3/120 -> 1.383333333 | AF22: ='环工16-1分数统计'!AJ21*'环工16-1分数统计'!$AJ$3/120 -> 0.7166666667 | AG22: ='环工16-1分数统计'!AK21*'环工16-1分数统计'!$AK$3/120 -> 2 | AH22: ='环工16-1分数统计'!AL21*'环工16-1分数统计'!$AL$3/120 -> 1.433333333 | AI22: ='环工16-1分数统计'!AM21*'环工16-1分数统计'!$AM$3/120 -> 0.8125 | AJ22: ='环工16-1分数统计'!AN21*'环工16-1分数统计'!$AN$3/120 -> 1.8 | AK22: ='环工16-1分数统计'!AO21*'环工16-1分数统计'!$AO$3/120 -> 1.725 | AL22: ='环工16-1分数统计'!AP21*'环工16-1分数统计'!$AP$3/120 -> 1.025 | AM22: ='环工16-1分数统计'!AQ21*'环工16-1分数统计'!$AQ$3/120 -> 2.05 | AN22: ='环工16-1分数统计'!AR21*'环工16-1分数统计'!$AR$3/120 -> 1.433333333 | AO22: ='环工16-1分数统计'!AS21*'环工16-1分数统计'!$AS$3/120 -> 1.366666667 | AP22: ='环工16-1分数统计'!AT21*'环工16-1分数统计'!$AT$3/120 -> 1.246666667 | AQ22: ='环工16-1分数统计'!AU21*'环工16-1分数统计'!$AU$3/120 -> 0.5333333333 | AR22: ='环工16-1分数统计'!AV21*'环工16-1分数统计'!$AV$3/120 -> 1.466666667 | AS22: ='环工16-1分数统计'!AW21*'环工16-1分数统计'!$AW$3/120 -> 0.6666666667 | AT22: ='环工16-1分数统计'!AX21*'环工16-1分数统计'!$AX$3/120 -> 2.9 | AU22: ='环工16-1分数统计'!AY21*'环工16-1分数统计'!$AY$3/120 -> 1.5 | AV22: ='环工16-1分数统计'!AZ21*'环工16-1分数统计'!$AZ$3/120 -> 1.483333333 | AW22: ='环工16-1分数统计'!BA21*'环工16-1分数统计'!$BA$3/120 -> 1.633333333 | AX22: ='环工16-1分数统计'!BB21*'环工16-1分数统计'!$BB$3/120 -> 1.05 | AY22: ='环工16-1分数统计'!BC21*'环工16-1分数统计'!$BC$3/120 -> 2.25 | AZ22: ='环工16-1分数统计'!BD21*'环工16-1分数统计'!$BD$3/120 -> 1.0125 | BA22: ='环工16-1分数统计'!BE21*'环工16-1分数统计'!$BE$3/120 -> 1.333333333 | BB22: =SUM(D22:BA22) -> 81.59740358 | BC22: =0.7*BB22 -> 57.11818251 | BD22: 89.39301698 | BE22: 83.87043699 | BF22: =SUM(BD22:BE22) -> 173.263454 | BG22: 85.99271565 | BH22: 17.19854313 | BI22: 74.31672564
A23: 21 | B23: 边泽晨 | C23: 2016010629 | D23: 0.7 | E23: 1.616666667 | F23: 3.85 | G23: 3.3 | H23: 1.5 | I23: 1.316666667 | J23: =[1]Sheet1!H39*$J$3/120 -> 2.493333333 | K23: 0.7 | L23: 1.479166667 | M23: 0.725 | N23: 1.725 | O23: 3.458333333 | P23: 1.791666667 | Q23: 2.533333333 | R23: 2.15 | S23: =[1]Sheet1!I39*$S$3/120 -> 2.618 | T23: 0.775 | U23: 1.5 | V23: 1.85 | W23: 1.875 | X23: 1.233333333 | Y23: 1.45 | Z23: 1.383333333 | AA23: =[1]Sheet1!K39*$AA$3/120 -> 1.433666667 | AB23: 0.7333333333 | AC23: 1.625 | AD23: 2.15 | AE23: 1.383333333 | AF23: 0.7166666667 | AG23: 2.2 | AH23: 1.416666667 | AI23: 0.875 | AJ23: 2.075 | AK23: 1.725 | AL23: 1.1 | AM23: 2.25 | AN23: 1.416666667 | AO23: 1.533333333 | AP23: =[1]Sheet1!J39*$AP$3/120 -> 1.2238875 | AQ23: 0.7583333333 | AR23: 1.433333333 | AS23: 0.675 | AT23: 2.033333333 | AU23: 1.333333333 | AV23: 1.2 | AW23: 1.466666667 | AX23: 1.075 | AY23: 2.05 | AZ23: 1.0875 | BA23: 1.133333333 | BB23: 80.825 | BC23: 56.5775 | BD23: 90.58468819 | BE23: 87.14586605 | BF23: 177.7305542 | BG23: 88.20979072 | BH23: 17.64195814 | BI23: 74.21945814
A24: 22 | B24: 曹刘俊 | C24: 2016010644 | D24: 0.6416666667 | E24: 1.483333333 | F24: 4.5 | G24: 2.8125 | H24: 1.4 | I24: 1.25 | J24: =[1]Sheet1!H53*$J$3/120 -> 2.096666667 | K24: 0.5333333333 | L24: 1.708333333 | M24: 0.8 | N24: 1.85 | O24: 3.458333333 | P24: 1.625 | Q24: 2.533333333 | R24: 2.1 | S24: =[1]Sheet1!I53*$S$3/120 -> 2.1 | T24: 0.6583333333 | U24: 1.483333333 | V24: 2 | W24: 2.125 | X24: 1.216666667 | Y24: 1.316666667 | Z24: 1.216666667 | AA24: =[1]Sheet1!K53*$AA$3/120 -> 1.133333333 | AB24: 0.7083333333 | AC24: 1.645833333 | AD24: 2.325 | AE24: 1.383333333 | AF24: 0.7 | AG24: 2.366666667 | AH24: 1.25 | AI24: 0.8 | AJ24: 2.25 | AK24: 2.075 | AL24: 1.0375 | AM24: 2.125 | AN24: 1.433333333 | AO24: 1.5 | AP24: =[1]Sheet1!J53*$AP$3/120 -> 1.035 | AQ24: 0.65 | AR24: 1.366666667 | AS24: 0.5583333333 | AT24: 2.566666667 | AU24: 1.083333333 | AV24: 1.3 | AW24: 1.55 | AX24: 1.0125 | AY24: 2.2 | AZ24: 1.025 | BA24: 1.35 | BB24: 80.60833333 | BC24: 56.42583333 | BD24: 86.88651877 | BE24: 86.57185796 | BF24: 173.4583767 | BG24: 86.08945815 | BH24: 17.21789163 | BI24: 73.64372496
A25: 24 | B25: 丁怀玉 | C25: 2016010631 | D25: 0.65 | E25: 1.55 | F25: 3.3 | G25: 2.85 | H25: 1.45 | I25: 1.316666667 | J25: =[1]Sheet1!H41*$J$3/120 -> 2.244 | K25: 0.65 | L25: 1.8125 | M25: 0.6833333333 | N25: 1.575 | O25: 3.291666667 | P25: 1.833333333 | Q25: 2.6 | R25: 2.225 | S25: =[1]Sheet1!I41*$S$3/120 -> 2.6796 | T25: 0.6833333333 | U25: 1.566666667 | V25: 1.75 | W25: 2.05 | X25: 1.266666667 | Y25: 1.466666667 | Z25: 1.383333333 | AA25: =[1]Sheet1!K41*$AA$3/120 -> 1.309 | AB25: 0.7666666667 | AC25: 1.75 | AD25: 1.825 | AE25: 1.416666667 | AF25: 0.7833333333 | AG25: 2.333333333 | AH25: 1.466666667 | AI25: 0.925 | AJ25: 1.75 | AK25: 1.625 | AL25: 1.1 | AM25: 2.025 | AN25: 1.416666667 | AO25: 1.533333333 | AP25: =[1]Sheet1!J41*$AP$3/120 -> 1.2238875 | AQ25: 0.7333333333 | AR25: 1.416666667 | AS25: 0.6916666667 | AT25: 2.866666667 | AU25: 1.55 | AV25: 1.45 | AW25: 1.483333333 | AX25: 1.125 | AY25: 2.1 | AZ25: 1.0625 | BA25: 1.133333333 | BB25: 80.41666667 | BC25: 56.29166667 | BD25: 86.89646267 | BE25: 86.93412463 | BF25: 173.8305873 | BG25: 86.27419068 | BH25: 17.25483814 | BI25: 73.5465048
A26: 23 | B26: 符琳 | C26: 2016010632 | D26: 0.6583333333 | E26: 1.55 | F26: 3.65 | G26: 2.55 | H26: 1.383333333 | I26: 1.3 | J26: =[1]Sheet1!H42*$J$3/120 -> 2.586833333 | K26: 0.55 | L26: 1.791666667 | M26: 0.775 | N26: 1.575 | O26: 3.833333333 | P26: 1.833333333 | Q26: 2.7 | R26: 2.125 | S26: =[1]Sheet1!I42*$S$3/120 -> 2.6796 | T26: 0.6666666667 | U26: 1.466666667 | V26: 1.9 | W26: 2.025 | X26: 1.283333333 | Y26: 1.35 | Z26: 1.316666667 | AA26: =[1]Sheet1!K42*$AA$3/120 -> 1.246666667 | AB26: 0.7333333333 | AC26: 1.458333333 | AD26: 1.85 | AE26: 1.416666667 | AF26: 0.7583333333 | AG26: 2.1 | AH26: 1.45 | AI26: 0.75 | AJ26: 2.075 | AK26: 1.675 | AL26: 1.0875 | AM26: 2.1 | AN26: 1.4 | AO26: 1.466666667 | AP26: =[1]Sheet1!J42*$AP$3/120 -> 1.0531125 | AQ26: 0.7083333333 | AR26: 1.516666667 | AS26: 0.6666666667 | AT26: 2.3 | AU26: 1.55 | AV26: 1.333333333 | AW26: 1.3 | AX26: 1.0875 | AY26: 2.375 | AZ26: 1.125 | BA26: 1.25 | BB26: 80.05 | BC26: 56.035 | BD26: 88.30719644 | BE26: 87.83580948 | BF26: 176.1430059 | BG26: 87.42187158 | BH26: 17.48437432 | BI26: 73.51937432
A27: 25 | B27: 耿錾卜 | C27: 2016010646 | D27: 0.6083333333 | E27: 1.533333333 | F27: 4.25 | G27: 3.075 | H27: 1.316666667 | I27: 1.183333333 | J27: =[1]Sheet1!H55*$J$3/120 -> 2.244 | K27: 0.525 | L27: 1.6875 | M27: 0.8166666667 | N27: 1.725 | O27: 3.75 | P27: 1.625 | Q27: 2.833333333 | R27: 2.025 | S27: =[1]Sheet1!I55*$S$3/120 -> 2.3408 | T27: 0.6 | U27: 1.516666667 | V27: 1.625 | W27: 2 | X27: 1.233333333 | Y27: 1.2 | Z27: 1.316666667 | AA27: =[1]Sheet1!K55*$AA$3/120 -> 1.122 | AB27: 0.7166666667 | AC27: 1.729166667 | AD27: 2.25 | AE27: 1.3 | AF27: 0.6833333333 | AG27: 2.6 | AH27: 1.35 | AI27: 0.925 | AJ27: 1.75 | AK27: 1.95 | AL27: 1.0625 | AM27: 2.075 | AN27: 1.4 | AO27: 1.533333333 | AP27: =[1]Sheet1!J55*$AP$3/120 -> 0.967725 | AQ27: 0.6333333333 | AR27: 1.366666667 | AS27: 0.6333333333 | AT27: 2.866666667 | AU27: 1.133333333 | AV27: 1.333333333 | AW27: 1.45 | AX27: 1.0625 | AY27: 2.15 | AZ27: 1.1125 | BA27: 1.083333333 | BB27: 79.8625 | BC27: 55.90375 | BD27: 88.00313263 | BE27: 85.19855291 | BF27: 173.2016855 | BG27: 85.96205925 | BH27: 17.19241185 | BI27: 73.09616185
A28: 27 | B28: 姚泽凯 | C28: 2016010626 | D28: ='环工16-1分数统计'!H26*'环工16-1分数统计'!$H$3/120 -> 0.6416666667 | E28: ='环工16-1分数统计'!I26*'环工16-1分数统计'!$I$3/120 -> 1.516666667 | F28: ='环工16-1分数统计'!J26*'环工16-1分数统计'!$J$3/120 -> 3.45 | G28: ='环工16-1分数统计'!K26*'环工16-1分数统计'!$K$3/120 -> 2.625 | H28: ='环工16-1分数统计'!L26*'环工16-1分数统计'!$L$3/120 -> 1.483333333 | I28: ='环工16-1分数统计'!M26*'环工16-1分数统计'!$M$3/120 -> 1.283333333 | J28: ='环工16-1分数统计'!N26*'环工16-1分数统计'!$N$3/120 -> 3.4 | K28: ='环工16-1分数统计'!O26*'环工16-1分数统计'!$O$3/121 -> 0.7272727273 | L28: ='环工16-1分数统计'!P26*'环工16-1分数统计'!$P$3/120 -> 1.583333333 | M28: ='环工16-1分数统计'!Q26*'环工16-1分数统计'!$Q$3/120 -> 0.725 | N28: ='环工16-1分数统计'!R26*'环工16-1分数统计'!$R$3/120 -> 1.875 | O28: ='环工16-1分数统计'!S26*'环工16-1分数统计'!$S$3/120 -> 2.958333333 | P28: ='环工16-1分数统计'!T26*'环工16-1分数统计'!$T$3/120 -> 1.729166667 | Q28: ='环工16-1分数统计'!U26*'环工16-1分数统计'!$U$3/120 -> 2.433333333 | R28: ='环工16-1分数统计'!V26*'环工16-1分数统计'!$V$3/120 -> 1.975 | S28: ='环工16-1分数统计'!W26*'环工16-1分数统计'!$W$3/120 -> 3.6 | T28: ='环工16-1分数统计'!X26*'环工16-1分数统计'!$X$3/120 -> 0.7666666667 | U28: ='环工16-1分数统计'!Y26*'环工16-1分数统计'!$Y$3/120 -> 1.45 | V28: ='环工16-1分数统计'!Z26*'环工16-1分数统计'!$Z$3/120 -> 1.825 | W28: ='环工16-1分数统计'!AA26*'环工16-1分数统计'!$AA$3/120 -> 1.95 | X28: ='环工16-1分数统计'!AB26*'环工16-1分数统计'!$AB$3/120 -> 1.216666667 | Y28: ='环工16-1分数统计'!AC26*'环工16-1分数统计'!$AC$3/120 -> 1.233333333 | Z28: ='环工16-1分数统计'!AD26*'环工16-1分数统计'!$AD$3/120 -> 1.216666667 | AA28: ='环工16-1分数统计'!AE26*'环工16-1分数统计'!$AE$3/120 -> 1.7 | AB28: ='环工16-1分数统计'!AF26*'环工16-1分数统计'!$AF$3/120 -> 0.7 | AC28: ='环工16-1分数统计'!AG26*'环工16-1分数统计'!$AG$3/120 -> 1.583333333 | AD28: ='环工16-1分数统计'!AH26*'环工16-1分数统计'!$AH$3/120 -> 1.65 | AE28: ='环工16-1分数统计'!AI26*'环工16-1分数统计'!$AI$3/120 -> 1.383333333 | AF28: ='环工16-1分数统计'!AJ26*'环工16-1分数统计'!$AJ$3/120 -> 0.6916666667 | AG28: ='环工16-1分数统计'!AK26*'环工16-1分数统计'!$AK$3/120 -> 2 | AH28: ='环工16-1分数统计'!AL26*'环工16-1分数统计'!$AL$3/120 -> 1.35 | AI28: ='环工16-1分数统计'!AM26*'环工16-1分数统计'!$AM$3/120 -> 0.85 | AJ28: ='环工16-1分数统计'!AN26*'环工16-1分数统计'!$AN$3/120 -> 1.825 | AK28: ='环工16-1分数统计'!AO26*'环工16-1分数统计'!$AO$3/120 -> 1.5 | AL28: ='环工16-1分数统计'!AP26*'环工16-1分数统计'!$AP$3/120 -> 1.025 | AM28: ='环工16-1分数统计'!AQ26*'环工16-1分数统计'!$AQ$3/120 -> 1.95 | AN28: ='环工16-1分数统计'!AR26*'环工16-1分数统计'!$AR$3/120 -> 1.416666667 | AO28: ='环工16-1分数统计'!AS26*'环工16-1分数统计'!$AS$3/120 -> 1.483333333 | AP28: ='环工16-1分数统计'!AT26*'环工16-1分数统计'!$AT$3/120 -> 1.8 | AQ28: ='环工16-1分数统计'!AU26*'环工16-1分数统计'!$AU$3/120 -> 0.75 | AR28: ='环工16-1分数统计'!AV26*'环工16-1分数统计'!$AV$3/120 -> 1.25 | AS28: ='环工16-1分数统计'!AW26*'环工16-1分数统计'!$AW$3/120 -> 0.6666666667 | AT28: ='环工16-1分数统计'!AX26*'环工16-1分数统计'!$AX$3/120 -> 2.4 | AU28: ='环工16-1分数统计'!AY26*'环工16-1分数统计'!$AY$3/120 -> 1.266666667 | AV28: ='环工16-1分数统计'!AZ26*'环工16-1分数统计'!$AZ$3/120 -> 1.283333333 | AW28: ='环工16-1分数统计'!BA26*'环工16-1分数统计'!$BA$3/120 -> 1.283333333 | AX28: ='环工16-1分数统计'!BB26*'环工16-1分数统计'!$BB$3/120 -> 1.025 | AY28: ='环工16-1分数统计'!BC26*'环工16-1分数统计'!$BC$3/120 -> 2.175 | AZ28: ='环工16-1分数统计'!BD26*'环工16-1分数统计'!$BD$3/120 -> 1.1375 | BA28: ='环工16-1分数统计'!BE26*'环工16-1分数统计'!$BE$3/120 -> 1.166666667 | BB28: =SUM(D28:BA28) -> 78.97727273 | BC28: =0.7*BB28 -> 55.28409091 | BD28: 89.77818527 | BE28: 86.40130279 | BF28: =SUM(BD28:BE28) -> 176.1794881 | BG28: 87.4399781 | BH28: 17.48799562 | BI28: 72.77208653
A29: 26 | B29: 刘吉东 | C29: 2016010636 | D29: 0.6666666667 | E29: 1.583333333 | F29: 3.2 | G29: 2.775 | H29: 1.4 | I29: 1.2 | J29: =[1]Sheet1!H45*$J$3/120 -> 2.493333333 | K29: 0.675 | L29: 1.458333333 | M29: 0.7416666667 | N29: 1.625 | O29: 3.291666667 | P29: 1.791666667 | Q29: 2.333333333 | R29: 1.825 | S29: =[1]Sheet1!I45*$S$3/120 -> 2.6796 | T29: 0.75 | U29: 1.5 | V29: 1.65 | W29: 1.925 | X29: 1.25 | Y29: 1.283333333 | Z29: 1.2 | AA29: =[1]Sheet1!K45*$AA$3/120 -> 1.293416667 | AB29: 0.775 | AC29: 1.729166667 | AD29: 1.85 | AE29: 1.383333333 | AF29: 0.75 | AG29: 2.033333333 | AH29: 1.516666667 | AI29: 0.7875 | AJ29: 2.25 | AK29: 1.7 | AL29: 1.1125 | AM29: 2.425 | AN29: 1.416666667 | AO29: 1.45 | AP29: =[1]Sheet1!J45*$AP$3/120 -> 1.1100375 | AQ29: 0.7666666667 | AR29: 1.45 | AS29: 0.625 | AT29: 2.5 | AU29: 1.416666667 | AV29: 1.35 | AW29: 1.533333333 | AX29: 1.0875 | AY29: 2.2 | AZ29: 1.05 | BA29: 1.35 | BB29: 78.88333333 | BC29: 55.21833333 | BD29: 86.05613373 | BE29: 90.79320108 | BF29: 176.8493348 | BG29: 87.77243102 | BH29: 17.5544862 | BI29: 72.77281954
A30: 28 | B30: 曹佳美 | C30: 2016010630 | D30: 0.6583333333 | E30: 1.583333333 | F30: 3.8 | G30: 3.3 | H30: 1.5 | I30: 1.3 | J30: =[1]Sheet1!H40*$J$3/120 -> 2.212833333 | K30: 0.625 | L30: 1.395833333 | M30: 0.625 | N30: 1.725 | O30: 3.5 | P30: 1.666666667 | Q30: 2.466666667 | R30: 2.3 | S30: =[1]Sheet1!I40*$S$3/120 -> 2.464 | T30: 0.75 | U30: 1.466666667 | V30: 1.65 | W30: 2.025 | X30: 1.133333333 | Y30: 1.35 | Z30: 1.333333333 | AA30: =[1]Sheet1!K40*$AA$3/120 -> 1.090833333 | AB30: 0.7416666667 | AC30: 1.666666667 | AD30: 2.2 | AE30: 1.4 | AF30: 0.7083333333 | AG30: 2 | AH30: 1.333333333 | AI30: 0.9625 | AJ30: 1.8 | AK30: 1.825 | AL30: 1.1 | AM30: 1.825 | AN30: 1.416666667 | AO30: 1.466666667 | AP30: =[1]Sheet1!J40*$AP$3/120 -> 0.9961875 | AQ30: 0.7166666667 | AR30: 1.383333333 | AS30: 0.6916666667 | AT30: 2.366666667 | AU30: 1.35 | AV30: 1.216666667 | AW30: 1.483333333 | AX30: 1.075 | AY30: 2.275 | AZ30: 1.0625 | BA30: 1.233333333 | BB30: 78.82083333 | BC30: 55.17458333 | BD30: 89.67503142 | BE30: 84.02776503 | BF30: 173.7027965 | BG30: 86.21076656 | BH30: 17.24215331 | BI30: 72.41673665
A31: 29 | B31: 宋艳珂 | C31: 2016010640 | D31: 0.6583333333 | E31: 1.45 | F31: 3.5 | G31: 3.15 | H31: 1.35 | I31: 1.216666667 | J31: =[1]Sheet1!H49*$J$3/120 -> 2.275166667 | K31: 0.6666666667 | L31: 1.833333333 | M31: 0.7166666667 | N31: 1.7 | O31: 3.083333333 | P31: 1.770833333 | Q31: 2.6 | R31: 1.9 | S31: =[1]Sheet1!I49*$S$3/120 -> 2.3716 | T31: 0.7083333333 | U31: 1.433333333 | V31: 1.725 | W31: 1.9 | X31: 1.266666667 | Y31: 1.366666667 | Z31: 1.3 | AA31: =[1]Sheet1!K49*$AA$3/120 -> 1.199916667 | AB31: 0.7333333333 | AC31: 1.625 | AD31: 1.85 | AE31: 1.45 | AF31: 0.6833333333 | AG31: 2.033333333 | AH31: 1.516666667 | AI31: 0.8375 | AJ31: 1.875 | AK31: 1.85 | AL31: 1.0875 | AM31: 1.95 | AN31: 1.466666667 | AO31: 1.35 | AP31: =[1]Sheet1!J49*$AP$3/120 -> 1.09580625 | AQ31: 0.675 | AR31: 1.383333333 | AS31: 0.6833333333 | AT31: 2.833333333 | AU31: 1.316666667 | AV31: 1.333333333 | AW31: 1.6 | AX31: 1.1 | AY31: 2.2 | AZ31: 1.125 | BA31: 1.333333333 | BB31: 78.75416667 | BC31: 55.12791667 | BD31: 86.45645936 | BE31: 85.36373675 | BF31: 171.8201961 | BG31: 85.27640959 | BH31: 17.05528192 | BI31: 72.18319859
A32: 30 | B32: 丁相瑞 | C32: 2016010619 | D32: ='环工16-1分数统计'!H20*'环工16-1分数统计'!$H$3/120 -> 0.675 | E32: ='环工16-1分数统计'!I20*'环工16-1分数统计'!$I$3/120 -> 1.483333333 | F32: ='环工16-1分数统计'!J20*'环工16-1分数统计'!$J$3/120 -> 4.15 | G32: ='环工16-1分数统计'!K20*'环工16-1分数统计'!$K$3/120 -> 2.7375 | H32: ='环工16-1分数统计'!L20*'环工16-1分数统计'!$L$3/120 -> 1.35 | I32: ='环工16-1分数统计'!M20*'环工16-1分数统计'!$M$3/120 -> 1.3 | J32: ='环工16-1分数统计'!N20*'环工16-1分数统计'!$N$3/120 -> 2.31 | K32: ='环工16-1分数统计'!O20*'环工16-1分数统计'!$O$3/121 -> 0.5702479339 | L32: ='环工16-1分数统计'!P20*'环工16-1分数统计'!$P$3/120 -> 1.625 | M32: ='环工16-1分数统计'!Q20*'环工16-1分数统计'!$Q$3/120 -> 0.7 | N32: ='环工16-1分数统计'!R20*'环工16-1分数统计'!$R$3/120 -> 1.5 | O32: ='环工16-1分数统计'!S20*'环工16-1分数统计'!$S$3/120 -> 3.75 | P32: ='环工16-1分数统计'!T20*'环工16-1分数统计'!$T$3/120 -> 1.625 | Q32: ='环工16-1分数统计'!U20*'环工16-1分数统计'!$U$3/120 -> 2.566666667 | R32: ='环工16-1分数统计'!V20*'环工16-1分数统计'!$V$3/120 -> 1.9 | S32: ='环工16-1分数统计'!W20*'环工16-1分数统计'!$W$3/120 -> 3.08 | T32: ='环工16-1分数统计'!X20*'环工16-1分数统计'!$X$3/120 -> 0.7333333333 | U32: ='环工16-1分数统计'!Y20*'环工16-1分数统计'!$Y$3/120 -> 1.566666667 | V32: ='环工16-1分数统计'!Z20*'环工16-1分数统计'!$Z$3/120 -> 1.55 | W32: ='环工16-1分数统计'!AA20*'环工16-1分数统计'!$AA$3/120 -> 1.85 | X32: ='环工16-1分数统计'!AB20*'环工16-1分数统计'!$AB$3/120 -> 1.25 | Y32: ='环工16-1分数统计'!AC20*'环工16-1分数统计'!$AC$3/120 -> 1.383333333 | Z32: ='环工16-1分数统计'!AD20*'环工16-1分数统计'!$AD$3/120 -> 1.283333333 | AA32: ='环工16-1分数统计'!AE20*'环工16-1分数统计'!$AE$3/120 -> 1.43 | AB32: ='环工16-1分数统计'!AF20*'环工16-1分数统计'!$AF$3/120 -> 0.7333333333 | AC32: ='环工16-1分数统计'!AG20*'环工16-1分数统计'!$AG$3/120 -> 1.645833333 | AD32: ='环工16-1分数统计'!AH20*'环工16-1分数统计'!$AH$3/120 -> 1.85 | AE32: ='环工16-1分数统计'!AI20*'环工16-1分数统计'!$AI$3/120 -> 1.333333333 | AF32: ='环工16-1分数统计'!AJ20*'环工16-1分数统计'!$AJ$3/120 -> 0.7 | AG32: ='环工16-1分数统计'!AK20*'环工16-1分数统计'!$AK$3/120 -> 2.166666667 | AH32: ='环工16-1分数统计'!AL20*'环工16-1分数统计'!$AL$3/120 -> 1.366666667 | AI32: ='环工16-1分数统计'!AM20*'环工16-1分数统计'!$AM$3/120 -> 0.75 | AJ32: ='环工16-1分数统计'!AN20*'环工16-1分数统计'!$AN$3/120 -> 2.25 | AK32: ='环工16-1分数统计'!AO20*'环工16-1分数统计'!$AO$3/120 -> 2 | AL32: ='环工16-1分数统计'!AP20*'环工16-1分数统计'!$AP$3/120 -> 1.025 | AM32: ='环工16-1分数统计'!AQ20*'环工16-1分数统计'!$AQ$3/120 -> 1.95 | AN32: ='环工16-1分数统计'!AR20*'环工16-1分数统计'!$AR$3/120 -> 1.466666667 | AO32: ='环工16-1分数统计'!AS20*'环工16-1分数统计'!$AS$3/120 -> 1.516666667 | AP32: ='环工16-1分数统计'!AT20*'环工16-1分数统计'!$AT$3/120 -> 1.393333333 | AQ32: ='环工16-1分数统计'!AU20*'环工16-1分数统计'!$AU$3/120 -> 0.6833333333 | AR32: ='环工16-1分数统计'!AV20*'环工16-1分数统计'!$AV$3/120 -> 1.4 | AS32: ='环工16-1分数统计'!AW20*'环工16-1分数统计'!$AW$3/120 -> 0.625 | AT32: ='环工16-1分数统计'!AX20*'环工16-1分数统计'!$AX$3/120 -> 2.4 | AU32: ='环工16-1分数统计'!AY20*'环工16-1分数统计'!$AY$3/120 -> 1.516666667 | AV32: ='环工16-1分数统计'!AZ20*'环工16-1分数统计'!$AZ$3/120 -> 1.35 | AW32: ='环工16-1分数统计'!BA20*'环工16-1分数统计'!$BA$3/120 -> 1.233333333 | AX32: ='环工16-1分数统计'!BB20*'环工16-1分数统计'!$BB$3/120 -> 1.075 | AY32: ='环工16-1分数统计'!BC20*'环工16-1分数统计'!$BC$3/120 -> 2.225 | AZ32: ='环工16-1分数统计'!BD20*'环工16-1分数统计'!$BD$3/120 -> 1.025 | BA32: ='环工16-1分数统计'!BE20*'环工16-1分数统计'!$BE$3/120 -> 1.216666667 | BB32: =SUM(D32:BA32) -> 79.2669146 | BC32: =0.7*BB32 -> 55.48684022 | BD32: 86.61188494 | BE32: 85.57837638 | BF32: =SUM(BD32:BE32) -> 172.1902613 | BG32: 85.46007736 | BH32: 17.09201547 | BI32: 72.57885569
A33: 31 | B33: 王存璐 | C33: 2016010642 | D33: 0.675 | E33: 1.633333333 | F33: 3.45 | G33: 3.1125 | H33: 1.333333333 | I33: 1.2 | J33: =[1]Sheet1!H51*$J$3/120 -> 2.3375 | K33: 0.55 | L33: 1.291666667 | M33: 0.6 | N33: 1.6 | O33: 3.5 | P33: 1.729166667 | Q33: 2.333333333 | R33: 1.6 | S33: =[1]Sheet1!I51*$S$3/120 -> 2.6488 | T33: 0.7333333333 | U33: 1.466666667 | V33: 1.725 | W33: 1.675 | X33: 1.25 | Y33: 1.35 | Z33: 1.416666667 | AA33: =[1]Sheet1!K51*$AA$3/120 -> 1.277833333 | AB33: 0.6916666667 | AC33: 1.6875 | AD33: 1.75 | AE33: 1.3 | AF33: 0.75 | AG33: 2.033333333 | AH33: 1.516666667 | AI33: 0.825 | AJ33: 1.675 | AK33: 1.85 | AL33: 1.0875 | AM33: 1.8 | AN33: 1.5 | AO33: 1.466666667 | AP33: =[1]Sheet1!J51*$AP$3/120 -> 1.081575 | AQ33: 0.725 | AR33: 1.483333333 | AS33: 0.675 | AT33: 2.433333333 | AU33: 1.45 | AV33: 1.283333333 | AW33: 1.383333333 | AX33: 1.0875 | AY33: 2.075 | AZ33: 1.1125 | BA33: 1.266666667 | BB33: 77.13333333 | BC33: 53.99333333 | BD33: 85.36562548 | BE33: 85.8390014 | BF33: 171.2046269 | BG33: 84.97089525 | BH33: 16.99417905 | BI33: 70.98751238
A34: 32 | B34: 贾钰森 | C34: 2016010621 | D34: ='环工16-1分数统计'!H22*'环工16-1分数统计'!$H$3/120 -> 0.675 | E34: ='环工16-1分数统计'!I22*'环工16-1分数统计'!$I$3/120 -> 1.416666667 | F34: ='环工16-1分数统计'!J22*'环工16-1分数统计'!$J$3/120 -> 3.05 | G34: ='环工16-1分数统计'!K22*'环工16-1分数统计'!$K$3/120 -> 2.925 | H34: ='环工16-1分数统计'!L22*'环工16-1分数统计'!$L$3/120 -> 1.35 | I34: ='环工16-1分数统计'!M22*'环工16-1分数统计'!$M$3/120 -> 1.25 | J34: ='环工16-1分数统计'!N22*'环工16-1分数统计'!$N$3/120 -> 2.273333333 | K34: ='环工16-1分数统计'!O22*'环工16-1分数统计'!$O$3/121 -> 0.6776859504 | L34: ='环工16-1分数统计'!P22*'环工16-1分数统计'!$P$3/120 -> 1.333333333 | M34: ='环工16-1分数统计'!Q22*'环工16-1分数统计'!$Q$3/120 -> 0.6916666667 | N34: ='环工16-1分数统计'!R22*'环工16-1分数统计'!$R$3/120 -> 1.575 | O34: ='环工16-1分数统计'!S22*'环工16-1分数统计'!$S$3/120 -> 2.833333333 | P34: ='环工16-1分数统计'!T22*'环工16-1分数统计'!$T$3/120 -> 1.6875 | Q34: ='环工16-1分数统计'!U22*'环工16-1分数统计'!$U$3/120 -> 2.7 | R34: ='环工16-1分数统计'!V22*'环工16-1分数统计'!$V$3/120 -> 2 | S34: ='环工16-1分数统计'!W22*'环工16-1分数统计'!$W$3/120 -> 2.823333333 | T34: ='环工16-1分数统计'!X22*'环工16-1分数统计'!$X$3/120 -> 0.7583333333 | U34: ='环工16-1分数统计'!Y22*'环工16-1分数统计'!$Y$3/120 -> 1.433333333 | V34: ='环工16-1分数统计'!Z22*'环工16-1分数统计'!$Z$3/120 -> 1.725 | W34: ='环工16-1分数统计'!AA22*'环工16-1分数统计'!$AA$3/120 -> 1.75 | X34: ='环工16-1分数统计'!AB22*'环工16-1分数统计'!$AB$3/120 -> 1.283333333 | Y34: ='环工16-1分数统计'!AC22*'环工16-1分数统计'!$AC$3/120 -> 1.333333333 | Z34: ='环工16-1分数统计'!AD22*'环工16-1分数统计'!$AD$3/120 -> 1.216666667 | AA34: ='环工16-1分数统计'!AE22*'环工16-1分数统计'!$AE$3/120 -> 1.301666667 | AB34: ='环工16-1分数统计'!AF22*'环工16-1分数统计'!$AF$3/120 -> 0.7583333333 | AC34: ='环工16-1分数统计'!AG22*'环工16-1分数统计'!$AG$3/120 -> 1.5625 | AD34: ='环工16-1分数统计'!AH22*'环工16-1分数统计'!$AH$3/120 -> 1.55 | AE34: ='环工16-1分数统计'!AI22*'环工16-1分数统计'!$AI$3/120 -> 1.383333333 | AF34: ='环工16-1分数统计'!AJ22*'环工16-1分数统计'!$AJ$3/120 -> 0.7083333333 | AG34: ='环工16-1分数统计'!AK22*'环工16-1分数统计'!$AK$3/120 -> 2.433333333 | AH34: ='环工16-1分数统计'!AL22*'环工16-1分数统计'!$AL$3/120 -> 1.433333333 | AI34: ='环工16-1分数统计'!AM22*'环工16-1分数统计'!$AM$3/120 -> 0.95 | AJ34: ='环工16-1分数统计'!AN22*'环工16-1分数统计'!$AN$3/120 -> 1.775 | AK34: ='环工16-1分数统计'!AO22*'环工16-1分数统计'!$AO$3/120 -> 1.6 | AL34: ='环工16-1分数统计'!AP22*'环工16-1分数统计'!$AP$3/120 -> 1.075 | AM34: ='环工16-1分数统计'!AQ22*'环工16-1分数统计'!$AQ$3/120 -> 2.275 | AN34: ='环工16-1分数统计'!AR22*'环工16-1分数统计'!$AR$3/120 -> 1.4 | AO34: ='环工16-1分数统计'!AS22*'环工16-1分数统计'!$AS$3/120 -> 1.35 | AP34: ='环工16-1分数统计'!AT22*'环工16-1分数统计'!$AT$3/120 -> 1.246666667 | AQ34: ='环工16-1分数统计'!AU22*'环工16-1分数统计'!$AU$3/120 -> 0.7333333333 | AR34: ='环工16-1分数统计'!AV22*'环工16-1分数统计'!$AV$3/120 -> 1.283333333 | AS34: ='环工16-1分数统计'!AW22*'环工16-1分数统计'!$AW$3/120 -> 0.6166666667 | AT34: ='环工16-1分数统计'!AX22*'环工16-1分数统计'!$AX$3/120 -> 2.466666667 | AU34: ='环工16-1分数统计'!AY22*'环工16-1分数统计'!$AY$3/120 -> 1.416666667 | AV34: ='环工16-1分数统计'!AZ22*'环工16-1分数统计'!$AZ$3/120 -> 1.416666667 | AW34: ='环工16-1分数统计'!BA22*'环工16-1分数统计'!$BA$3/120 -> 1.616666667 | AX34: ='环工16-1分数统计'!BB22*'环工16-1分数统计'!$BB$3/120 -> 1.0375 | AY34: ='环工16-1分数统计'!BC22*'环工16-1分数统计'!$BC$3/120 -> 2.275 | AZ34: ='环工16-1分数统计'!BD22*'环工16-1分数统计'!$BD$3/120 -> 1.0875 | BA34: ='环工16-1分数统计'!BE22*'环工16-1分数统计'!$BE$3/120 -> 1.366666667 | BB34: =SUM(D34:BA34) -> 76.88101928 | BC34: =0.7*BB34 -> 53.8167135 | BD34: 85.9154988 | BE34: 84.95940668 | BF34: =SUM(BD34:BE34) -> 170.8749055 | BG34: 84.80725059 | BH34: 16.96145012 | BI34: 70.77816362
A35: 33 | B35: 通拉嘎 | C35: 2016010641 | D35: 0.7083333333 | E35: 1.533333333 | F35: 4.15 | G35: 2.5125 | H35: 1.516666667 | I35: 1.266666667 | J35: =[1]Sheet1!H50*$J$3/120 -> 2.649166667 | K35: 0.6666666667 | L35: 1.583333333 | M35: 0.6416666667 | N35: 1.7 | O35: 2.708333333 | P35: 1.770833333 | Q35: 2.1 | R35: 1.5 | S35: =[1]Sheet1!I50*$S$3/120 -> 2.6796 | T35: 0.5833333333 | U35: 1.5 | V35: 1.65 | W35: 1.75 | X35: 1.166666667 | Y35: 1.4 | Z35: 1.466666667 | AA35: =[1]Sheet1!K50*$AA$3/120 -> 1.464833333 | AB35: 0.7416666667 | AC35: 1.604166667 | AD35: 1.8 | AE35: 1.383333333 | AF35: 0.7 | AG35: 2.066666667 | AH35: 1.4 | AI35: 0.7875 | AJ35: 1.375 | AK35: 1.575 | AL35: 1.1 | AM35: 1.925 | AN35: 1.433333333 | AO35: 1.5 | AP35: =[1]Sheet1!J50*$AP$3/120 -> 1.195425 | AQ35: 0.7333333333 | AR35: 1.516666667 | AS35: 0.6416666667 | AT35: 2.133333333 | AU35: 1.366666667 | AV35: 1.3 | AW35: 1.2 | AX35: 1.1 | AY35: 2.05 | AZ35: 1.1 | BA35: 1.25 | BB35: 76.35833333 | BC35: 53.45083333 | BD35: 86.57997312 | BE35: 86.12092059 | BF35: 172.7008937 | BG35: =BF35/$BF$4*100 -> 85.7135103 | BH35: =0.2*BG35 -> 17.14270206 | BI35: =BH35+BC35 -> 70.59353539
A36: 34 | B36: 吴航飞 | C36: 2016010625 | D36: ='环工16-1分数统计'!H25*'环工16-1分数统计'!$H$3/120 -> 0.675 | E36: ='环工16-1分数统计'!I25*'环工16-1分数统计'!$I$3/120 -> 1.416666667 | F36: ='环工16-1分数统计'!J25*'环工16-1分数统计'!$J$3/120 -> 3.2 | G36: ='环工16-1分数统计'!K25*'环工16-1分数统计'!$K$3/120 -> 2.7375 | H36: ='环工16-1分数统计'!L25*'环工16-1分数统计'!$L$3/120 -> 1.3 | I36: ='环工16-1分数统计'!M25*'环工16-1分数统计'!$M$3/120 -> 1.183333333 | J36: ='环工16-1分数统计'!N25*'环工16-1分数统计'!$N$3/120 -> 2.456666667 | K36: ='环工16-1分数统计'!O25*'环工16-1分数统计'!$O$3/121 -> 0.5537190083 | L36: ='环工16-1分数统计'!P25*'环工16-1分数统计'!$P$3/120 -> 1.5625 | M36: ='环工16-1分数统计'!Q25*'环工16-1分数统计'!$Q$3/120 -> 0.6416666667 | N36: ='环工16-1分数统计'!R25*'环工16-1分数统计'!$R$3/120 -> 1.85 | O36: ='环工16-1分数统计'!S25*'环工16-1分数统计'!$S$3/120 -> 3.375 | P36: ='环工16-1分数统计'!T25*'环工16-1分数统计'!$T$3/120 -> 1.6875 | Q36: ='环工16-1分数统计'!U25*'环工16-1分数统计'!$U$3/120 -> 2.6 | R36: ='环工16-1分数统计'!V25*'环工16-1分数统计'!$V$3/120 -> 1.875 | S36: ='环工16-1分数统计'!W25*'环工16-1分数统计'!$W$3/120 -> 3.043333333 | T36: ='环工16-1分数统计'!X25*'环工16-1分数统计'!$X$3/120 -> 0.5833333333 | U36: ='环工16-1分数统计'!Y25*'环工16-1分数统计'!$Y$3/120 -> 1.433333333 | V36: ='环工16-1分数统计'!Z25*'环工16-1分数统计'!$Z$3/120 -> 1.5 | W36: ='环工16-1分数统计'!AA25*'环工16-1分数统计'!$AA$3/120 -> 2.25 | X36: ='环工16-1分数统计'!AB25*'环工16-1分数统计'!$AB$3/120 -> 1.15 | Y36: ='环工16-1分数统计'!AC25*'环工16-1分数统计'!$AC$3/120 -> 1.15 | Z36: ='环工16-1分数统计'!AD25*'环工16-1分数统计'!$AD$3/120 -> 1.233333333 | AA36: ='环工16-1分数统计'!AE25*'环工16-1分数统计'!$AE$3/120 -> 1.356666667 | AB36: ='环工16-1分数统计'!AF25*'环工16-1分数统计'!$AF$3/120 -> 0.7416666667 | AC36: ='环工16-1分数统计'!AG25*'环工16-1分数统计'!$AG$3/120 -> 1.5 | AD36: ='环工16-1分数统计'!AH25*'环工16-1分数统计'!$AH$3/120 -> 2.375 | AE36: ='环工16-1分数统计'!AI25*'环工16-1分数统计'!$AI$3/120 -> 1.383333333 | AF36: ='环工16-1分数统计'!AJ25*'环工16-1分数统计'!$AJ$3/120 -> 0.7166666667 | AG36: ='环工16-1分数统计'!AK25*'环工16-1分数统计'!$AK$3/120 -> 2.266666667 | AH36: ='环工16-1分数统计'!AL25*'环工16-1分数统计'!$AL$3/120 -> 1.216666667 | AI36: ='环工16-1分数统计'!AM25*'环工16-1分数统计'!$AM$3/120 -> 0.7625 | AJ36: ='环工16-1分数统计'!AN25*'环工16-1分数统计'!$AN$3/120 -> 2.275 | AK36: ='环工16-1分数统计'!AO25*'环工16-1分数统计'!$AO$3/120 -> 1.625 | AL36: ='环工16-1分数统计'!AP25*'环工16-1分数统计'!$AP$3/120 -> 1.025 | AM36: ='环工16-1分数统计'!AQ25*'环工16-1分数统计'!$AQ$3/120 -> 1.925 | AN36: ='环工16-1分数统计'!AR25*'环工16-1分数统计'!$AR$3/120 -> 1.433333333 | AO36: ='环工16-1分数统计'!AS25*'环工16-1分数统计'!$AS$3/120 -> 1.333333333 | AP36: ='环工16-1分数统计'!AT25*'环工16-1分数统计'!$AT$3/120 -> 1.356666667 | AQ36: ='环工16-1分数统计'!AU25*'环工16-1分数统计'!$AU$3/120 -> 0.6833333333 | AR36: ='环工16-1分数统计'!AV25*'环工16-1分数统计'!$AV$3/120 -> 1.35 | AS36: ='环工16-1分数统计'!AW25*'环工16-1分数统计'!$AW$3/120 -> 0.6333333333 | AT36: ='环工16-1分数统计'!AX25*'环工16-1分数统计'!$AX$3/120 -> 2.566666667 | AU36: ='环工16-1分数统计'!AY25*'环工16-1分数统计'!$AY$3/120 -> 1.15 | AV36: ='环工16-1分数统计'!AZ25*'环工16-1分数统计'!$AZ$3/120 -> 1.3 | AW36: ='环工16-1分数统计'!BA25*'环工16-1分数统计'!$BA$3/120 -> 1.45 | AX36: ='环工16-1分数统计'!BB25*'环工16-1分数统计'!$BB$3/120 -> 1.0375 | AY36: ='环工16-1分数统计'!BC25*'环工16-1分数统计'!$BC$3/120 -> 2.1 | AZ36: ='环工16-1分数统计'!BD25*'环工16-1分数统计'!$BD$3/120 -> 1.025 | BA36: ='环工16-1分数统计'!BE25*'环工16-1分数统计'!$BE$3/120 -> 1.1 | BB36: =SUM(D36:BA36) -> 77.14621901 | BC36: =0.7*BB36 -> 54.00235331 | BD36: 84.24693447 | BE36: 84.14303092 | BF36: =SUM(BD36:BE36) -> 168.3899654 | BG36: 83.57394524 | BH36: 16.71478905 | BI36: 70.71714235
A37: 35 | B37: 程昊 | C37: 2016010645 | D37: 0.5 | E37: 1.266666667 | F37: 3.8 | G37: 2.475 | H37: 1.133333333 | I37: 1.116666667 | J37: =[1]Sheet1!H54*$J$3/120 -> 1.932333333 | K37: 0.5166666667 | L37: 1.541666667 | M37: 0.7833333333 | N37: 1.85 | O37: 3.375 | P37: 1.5625 | Q37: 2.366666667 | R37: 2.275 | S37: =[1]Sheet1!I54*$S$3/120 -> 1.9712 | T37: 0.65 | U37: 1.4 | V37: 1.625 | W37: 1.95 | X37: 1.383333333 | Y37: 1.183333333 | Z37: 1.1 | AA37: =[1]Sheet1!K54*$AA$3/120 -> 1.340166667 | AB37: 0.7166666667 | AC37: 1.541666667 | AD37: 2.225 | AE37: 1.333333333 | AF37: 0.6666666667 | AG37: 2.066666667 | AH37: 1.416666667 | AI37: 0.825 | AJ37: 2 | AK37: 2.075 | AL37: 1.075 | AM37: 1.95 | AN37: 1.4 | AO37: 1.433333333 | AP37: =[1]Sheet1!J54*$AP$3/120 -> 1.0531125 | AQ37: 0.6333333333 | AR37: 1.4 | AS37: 0.6333333333 | AT37: 2.466666667 | AU37: 1.183333333 | AV37: 1.25 | AW37: 1.366666667 | AX37: 1 | AY37: 1.975 | AZ37: 0.975 | BA37: 1 | BB37: 75.32916667 | BC37: 52.73041667 | BD37: 79.51041976 | BE37: 83.4583711 | BF37: 162.9687909 | BG37: 80.88335175 | BH37: 16.17667035 | BI37: 68.90708702
A38: 36 | B38: 孙寅辉 | C38: 2016010651 | D38: 0.75 | E38: 1.366666667 | F38: 3.85 | G38: 3.2625 | H38: 1.4 | I38: 1.233333333 | J38: =[1]Sheet1!H59*$J$3/120 -> 2.3375 | K38: 0.5 | L38: 1.25 | M38: 0.5 | N38: 1.5 | O38: 3.666666667 | P38: 1.708333333 | Q38: 2.033333333 | R38: 1.9 | S38: =[1]Sheet1!I59*$S$3/120 -> 2.618 | T38: 0.575 | U38: 1.416666667 | V38: 1.5 | W38: 2.025 | X38: 1.15 | Y38: 1.4 | Z38: 1.333333333 | AA38: =[1]Sheet1!K59*$AA$3/120 -> 1.324583333 | AB38: 0.6416666667 | AC38: 1.416666667 | AD38: 1.575 | AE38: 1.233333333 | AF38: 0.7083333333 | AG38: 2 | AH38: 1.333333333 | AI38: 0.75 | AJ38: 1.65 | AK38: 1.375 | AL38: 1.0375 | AM38: 1.925 | AN38: 1.216666667 | AO38: 1.383333333 | AP38: =[1]Sheet1!J59*$AP$3/120 -> 1.09580625 | AQ38: 0.5916666667 | AR38: 1.35 | AS38: 0.575 | AT38: 2.2 | AU38: 1.366666667 | AV38: 1.133333333 | AW38: 1.233333333 | AX38: 1.05 | AY38: 2.075 | AZ38: 1.0125 | BA38: 1.016666667 | BB38: 74.20416667 | BC38: 51.94291667 | BD38: 83.49016949 | BE38: 80.42668336 | BF38: 163.9168528 | BG38: 81.35388621 | BH38: 16.27077724 | BI38: 68.21369391
A39: 37 | B39: 杨玉凤 | C39: 2016010611 | D39: ='环工16-1分数统计'!H15*'环工16-1分数统计'!$H$3/120 -> 0.6916666667 | E39: ='环工16-1分数统计'!I15*'环工16-1分数统计'!$I$3/120 -> 1.516666667 | F39: ='环工16-1分数统计'!J15*'环工16-1分数统计'!$J$3/120 -> 3 | G39: ='环工16-1分数统计'!K15*'环工16-1分数统计'!$K$3/120 -> 2.325 | H39: ='环工16-1分数统计'!L15*'环工16-1分数统计'!$L$3/120 -> 1.466666667 | I39: ='环工16-1分数统计'!M15*'环工16-1分数统计'!$M$3/120 -> 1.266666667 | J39: ='环工16-1分数统计'!N15*'环工16-1分数统计'!$N$3/120 -> 2.273333333 | K39: ='环工16-1分数统计'!O15*'环工16-1分数统计'!$O$3/121 -> 0.694214876 | L39: ='环工16-1分数统计'!P15*'环工16-1分数统计'!$P$3/120 -> 1.729166667 | M39: ='环工16-1分数统计'!Q15*'环工16-1分数统计'!$Q$3/120 -> 0.5833333333 | N39: ='环工16-1分数统计'!R15*'环工16-1分数统计'!$R$3/120 -> 1.675 | O39: ='环工16-1分数统计'!S15*'环工16-1分数统计'!$S$3/120 -> 3.458333333 | P39: ='环工16-1分数统计'!T15*'环工16-1分数统计'!$T$3/120 -> 1.791666667 | Q39: ='环工16-1分数统计'!U15*'环工16-1分数统计'!$U$3/120 -> 2.4 | R39: ='环工16-1分数统计'!V15*'环工16-1分数统计'!$V$3/120 -> 1.5 | S39: ='环工16-1分数统计'!W15*'环工16-1分数统计'!$W$3/120 -> 2.933333333 | T39: ='环工16-1分数统计'!X15*'环工16-1分数统计'!$X$3/120 -> 0.75 | U39: ='环工16-1分数统计'!Y15*'环工16-1分数统计'!$Y$3/120 -> 1.55 | V39: ='环工16-1分数统计'!Z15*'环工16-1分数统计'!$Z$3/120 -> 1.525 | W39: ='环工16-1分数统计'!AA15*'环工16-1分数统计'!$AA$3/120 -> 1.6 | X39: ='环工16-1分数统计'!AB15*'环工16-1分数统计'!$AB$3/120 -> 1.316666667 | Y39: ='环工16-1分数统计'!AC15*'环工16-1分数统计'!$AC$3/120 -> 1.3 | Z39: ='环工16-1分数统计'!AD15*'环工16-1分数统计'!$AD$3/120 -> 1.283333333 | AA39: ='环工16-1分数统计'!AE15*'环工16-1分数统计'!$AE$3/120 -> 1.356666667 | AB39: ='环工16-1分数统计'!AF15*'环工16-1分数统计'!$AF$3/120 -> 0.7666666667 | AC39: ='环工16-1分数统计'!AG15*'环工16-1分数统计'!$AG$3/120 -> 1.645833333 | AD39: ='环工16-1分数统计'!AH15*'环工16-1分数统计'!$AH$3/120 -> 1.7 | AE39: ='环工16-1分数统计'!AI15*'环工16-1分数统计'!$AI$3/120 -> 1.4 | AF39: ='环工16-1分数统计'!AJ15*'环工16-1分数统计'!$AJ$3/120 -> 0.725 | AG39: ='环工16-1分数统计'!AK15*'环工16-1分数统计'!$AK$3/120 -> 2 | AH39: ='环工16-1分数统计'!AL15*'环工16-1分数统计'!$AL$3/120 -> 1.466666667 | AI39: ='环工16-1分数统计'!AM15*'环工16-1分数统计'!$AM$3/120 -> 0.8 | AJ39: ='环工16-1分数统计'!AN15*'环工16-1分数统计'!$AN$3/120 -> 1.65 | AK39: ='环工16-1分数统计'!AO15*'环工16-1分数统计'!$AO$3/120 -> 1.55 | AL39: ='环工16-1分数统计'!AP15*'环工16-1分数统计'!$AP$3/120 -> 1.1 | AM39: ='环工16-1分数统计'!AQ15*'环工16-1分数统计'!$AQ$3/120 -> 1.675 | AN39: ='环工16-1分数统计'!AR15*'环工16-1分数统计'!$AR$3/120 -> 1.4 | AO39: ='环工16-1分数统计'!AS15*'环工16-1分数统计'!$AS$3/120 -> 1.516666667 | AP39: ='环工16-1分数统计'!AT15*'环工16-1分数统计'!$AT$3/120 -> 1.283333333 | AQ39: ='环工16-1分数统计'!AU15*'环工16-1分数统计'!$AU$3/120 -> 0.6416666667 | AR39: ='环工16-1分数统计'!AV15*'环工16-1分数统计'!$AV$3/120 -> 1.383333333 | AS39: ='环工16-1分数统计'!AW15*'环工16-1分数统计'!$AW$3/120 -> 0.6333333333 | AT39: ='环工16-1分数统计'!AX15*'环工16-1分数统计'!$AX$3/120 -> 1.833333333 | AU39: ='环工16-1分数统计'!AY15*'环工16-1分数统计'!$AY$3/120 -> 1.133333333 | AV39: ='环工16-1分数统计'!AZ15*'环工16-1分数统计'!$AZ$3/120 -> 1.416666667 | AW39: ='环工16-1分数统计'!BA15*'环工16-1分数统计'!$BA$3/120 -> 1.05 | AX39: ='环工16-1分数统计'!BB15*'环工16-1分数统计'!$BB$3/120 -> 1.05 | AY39: ='环工16-1分数统计'!BC15*'环工16-1分数统计'!$BC$3/120 -> 1.95 | AZ39: ='环工16-1分数统计'!BD15*'环工16-1分数统计'!$BD$3/120 -> 1.075 | BA39: ='环工16-1分数统计'!BE15*'环工16-1分数统计'!$BE$3/120 -> 1.3 | BB39: =SUM(D39:BA39) -> 74.13254821 | BC39: =0.7*BB39 -> 51.89278375 | BD39: 80.63928761 | BE39: 82.41473292 | BF39: =SUM(BD39:BE39) -> 163.0540205 | BG39: 80.92565225 | BH39: 16.18513045 | BI39: 68.0779142
A40: 38 | B40: 闫玺宇 | C40: 2016010610 | D40: ='环工16-1分数统计'!H14*'环工16-1分数统计'!$H$3/120 -> 0.6 | E40: ='环工16-1分数统计'!I14*'环工16-1分数统计'!$I$3/120 -> 1.45 | F40: ='环工16-1分数统计'!J14*'环工16-1分数统计'!$J$3/120 -> 3.1 | G40: ='环工16-1分数统计'!K14*'环工16-1分数统计'!$K$3/120 -> 2.4375 | H40: ='环工16-1分数统计'!L14*'环工16-1分数统计'!$L$3/120 -> 1.416666667 | I40: ='环工16-1分数统计'!M14*'环工16-1分数统计'!$M$3/120 -> 1.1 | J40: ='环工16-1分数统计'!N14*'环工16-1分数统计'!$N$3/120 -> 2.676666667 | K40: ='环工16-1分数统计'!O14*'环工16-1分数统计'!$O$3/121 -> 0.7355371901 | L40: ='环工16-1分数统计'!P14*'环工16-1分数统计'!$P$3/120 -> 1.395833333 | M40: ='环工16-1分数统计'!Q14*'环工16-1分数统计'!$Q$3/120 -> 0.625 | N40: ='环工16-1分数统计'!R14*'环工16-1分数统计'!$R$3/120 -> 1.525 | O40: ='环工16-1分数统计'!S14*'环工16-1分数统计'!$S$3/120 -> 2.5 | P40: ='环工16-1分数统计'!T14*'环工16-1分数统计'!$T$3/120 -> 1.604166667 | Q40: ='环工16-1分数统计'!U14*'环工16-1分数统计'!$U$3/120 -> 2.166666667 | R40: ='环工16-1分数统计'!V14*'环工16-1分数统计'!$V$3/120 -> 1.7 | S40: ='环工16-1分数统计'!W14*'环工16-1分数统计'!$W$3/120 -> 2.933333333 | T40: ='环工16-1分数统计'!X14*'环工16-1分数统计'!$X$3/120 -> 0.8 | U40: ='环工16-1分数统计'!Y14*'环工16-1分数统计'!$Y$3/120 -> 1.5 | V40: ='环工16-1分数统计'!Z14*'环工16-1分数统计'!$Z$3/120 -> 1.525 | W40: ='环工16-1分数统计'!AA14*'环工16-1分数统计'!$AA$3/120 -> 1.5 | X40: ='环工16-1分数统计'!AB14*'环工16-1分数统计'!$AB$3/120 -> 1.116666667 | Y40: ='环工16-1分数统计'!AC14*'环工16-1分数统计'!$AC$3/120 -> 1.3 | Z40: ='环工16-1分数统计'!AD14*'环工16-1分数统计'!$AD$3/120 -> 1.266666667 | AA40: ='环工16-1分数统计'!AE14*'环工16-1分数统计'!$AE$3/120 -> 1.503333333 | AB40: ='环工16-1分数统计'!AF14*'环工16-1分数统计'!$AF$3/120 -> 0.75 | AC40: ='环工16-1分数统计'!AG14*'环工16-1分数统计'!$AG$3/120 -> 1.729166667 | AD40: ='环工16-1分数统计'!AH14*'环工16-1分数统计'!$AH$3/120 -> 2.075 | AE40: ='环工16-1分数统计'!AI14*'环工16-1分数统计'!$AI$3/120 -> 1.333333333 | AF40: ='环工16-1分数统计'!AJ14*'环工16-1分数统计'!$AJ$3/120 -> 0.7583333333 | AG40: ='环工16-1分数统计'!AK14*'环工16-1分数统计'!$AK$3/120 -> 1.9 | AH40: ='环工16-1分数统计'!AL14*'环工16-1分数统计'!$AL$3/120 -> 1.383333333 | AI40: ='环工16-1分数统计'!AM14*'环工16-1分数统计'!$AM$3/120 -> 0.75 | AJ40: ='环工16-1分数统计'!AN14*'环工16-1分数统计'!$AN$3/120 -> 2.05 | AK40: ='环工16-1分数统计'!AO14*'环工16-1分数统计'!$AO$3/120 -> 2.35 | AL40: ='环工16-1分数统计'!AP14*'环工16-1分数统计'!$AP$3/120 -> 1.075 | AM40: ='环工16-1分数统计'!AQ14*'环工16-1分数统计'!$AQ$3/120 -> 1.5 | AN40: ='环工16-1分数统计'!AR14*'环工16-1分数统计'!$AR$3/120 -> 1.416666667 | AO40: ='环工16-1分数统计'!AS14*'环工16-1分数统计'!$AS$3/120 -> 1.433333333 | AP40: ='环工16-1分数统计'!AT14*'环工16-1分数统计'!$AT$3/120 -> 1.32 | AQ40: ='环工16-1分数统计'!AU14*'环工16-1分数统计'!$AU$3/120 -> 0.7333333333 | AR40: ='环工16-1分数统计'!AV14*'环工16-1分数统计'!$AV$3/120 -> 1.333333333 | AS40: ='环工16-1分数统计'!AW14*'环工16-1分数统计'!$AW$3/120 -> 0.5666666667 | AT40: ='环工16-1分数统计'!AX14*'环工16-1分数统计'!$AX$3/120 -> 2 | AU40: ='环工16-1分数统计'!AY14*'环工16-1分数统计'!$AY$3/120 -> 1.416666667 | AV40: ='环工16-1分数统计'!AZ14*'环工16-1分数统计'!$AZ$3/120 -> 1.116666667 | AW40: ='环工16-1分数统计'!BA14*'环工16-1分数统计'!$BA$3/120 -> 1.183333333 | AX40: ='环工16-1分数统计'!BB14*'环工16-1分数统计'!$BB$3/120 -> 1.0125 | AY40: ='环工16-1分数统计'!BC14*'环工16-1分数统计'!$BC$3/120 -> 1.425 | AZ40: ='环工16-1分数统计'!BD14*'环工16-1分数统计'!$BD$3/120 -> 1.0625 | BA40: ='环工16-1分数统计'!BE14*'环工16-1分数统计'!$BE$3/120 -> 1.133333333 | BB40: =SUM(D40:BA40) -> 73.28553719 | BC40: =0.7*BB40 -> 51.29987603 | BD40: 82.65141302 | BE40: 84.65174204 | BF40: =SUM(BD40:BE40) -> 167.3031551 | BG40: 83.03454832 | BH40: 16.60690966 | BI40: 67.9067857
A41: 39 | B41: 于鹏 | C41: 2016010627 | D41: ='环工16-1分数统计'!H27*'环工16-1分数统计'!$H$3/120 -> 0.6666666667 | E41: ='环工16-1分数统计'!I27*'环工16-1分数统计'!$I$3/120 -> 1.533333333 | F41: ='环工16-1分数统计'!J27*'环工16-1分数统计'!$J$3/120 -> 3.7 | G41: ='环工16-1分数统计'!K27*'环工16-1分数统计'!$K$3/120 -> 2.85 | H41: ='环工16-1分数统计'!L27*'环工16-1分数统计'!$L$3/120 -> 1.383333333 | I41: ='环工16-1分数统计'!M27*'环工16-1分数统计'!$M$3/120 -> 1.3 | J41: ='环工16-1分数统计'!N27*'环工16-1分数统计'!$N$3/120 -> 2.533333333 | K41: ='环工16-1分数统计'!O27*'环工16-1分数统计'!$O$3/121 -> 0.6446280992 | L41: ='环工16-1分数统计'!P27*'环工16-1分数统计'!$P$3/120 -> 1.3125 | M41: ='环工16-1分数统计'!Q27*'环工16-1分数统计'!$Q$3/120 -> 0.6166666667 | N41: ='环工16-1分数统计'!R27*'环工16-1分数统计'!$R$3/120 -> 1.6 | O41: ='环工16-1分数统计'!S27*'环工16-1分数统计'!$S$3/120 -> 3.166666667 | P41: ='环工16-1分数统计'!T27*'环工16-1分数统计'!$T$3/120 -> 1.6875 | Q41: ='环工16-1分数统计'!U27*'环工16-1分数统计'!$U$3/120 -> 2.233333333 | R41: ='环工16-1分数统计'!V27*'环工16-1分数统计'!$V$3/120 -> 1.675 | S41: ='环工16-1分数统计'!W27*'环工16-1分数统计'!$W$3/120 -> 2.133333333 | T41: ='环工16-1分数统计'!X27*'环工16-1分数统计'!$X$3/120 -> 0.6666666667 | U41: ='环工16-1分数统计'!Y27*'环工16-1分数统计'!$Y$3/120 -> 1.416666667 | V41: ='环工16-1分数统计'!Z27*'环工16-1分数统计'!$Z$3/120 -> 1.5 | W41: ='环工16-1分数统计'!AA27*'环工16-1分数统计'!$AA$3/120 -> 1.875 | X41: ='环工16-1分数统计'!AB27*'环工16-1分数统计'!$AB$3/120 -> 1.15 | Y41: ='环工16-1分数统计'!AC27*'环工16-1分数统计'!$AC$3/120 -> 1.283333333 | Z41: ='环工16-1分数统计'!AD27*'环工16-1分数统计'!$AD$3/120 -> 1.316666667 | AA41: ='环工16-1分数统计'!AE27*'环工16-1分数统计'!$AE$3/120 -> 1.116666667 | AB41: ='环工16-1分数统计'!AF27*'环工16-1分数统计'!$AF$3/120 -> 0.7583333333 | AC41: ='环工16-1分数统计'!AG27*'环工16-1分数统计'!$AG$3/120 -> 1.520833333 | AD41: ='环工16-1分数统计'!AH27*'环工16-1分数统计'!$AH$3/120 -> 1.675 | AE41: ='环工16-1分数统计'!AI27*'环工16-1分数统计'!$AI$3/120 -> 1.383333333 | AF41: ='环工16-1分数统计'!AJ27*'环工16-1分数统计'!$AJ$3/120 -> 0.7 | AG41: ='环工16-1分数统计'!AK27*'环工16-1分数统计'!$AK$3/120 -> 2.233333333 | AH41: ='环工16-1分数统计'!AL27*'环工16-1分数统计'!$AL$3/120 -> 1.233333333 | AI41: ='环工16-1分数统计'!AM27*'环工16-1分数统计'!$AM$3/120 -> 0.775 | AJ41: ='环工16-1分数统计'!AN27*'环工16-1分数统计'!$AN$3/120 -> 1.5 | AK41: ='环工16-1分数统计'!AO27*'环工16-1分数统计'!$AO$3/120 -> 1.675 | AL41: ='环工16-1分数统计'!AP27*'环工16-1分数统计'!$AP$3/120 -> 0.9875 | AM41: ='环工16-1分数统计'!AQ27*'环工16-1分数统计'!$AQ$3/120 -> 1.65 | AN41: ='环工16-1分数统计'!AR27*'环工16-1分数统计'!$AR$3/120 -> 1.416666667 | AO41: ='环工16-1分数统计'!AS27*'环工16-1分数统计'!$AS$3/120 -> 1.416666667 | AP41: ='环工16-1分数统计'!AT27*'环工16-1分数统计'!$AT$3/120 -> 1.25 | AQ41: ='环工16-1分数统计'!AU27*'环工16-1分数统计'!$AU$3/120 -> 0.675 | AR41: ='环工16-1分数统计'!AV27*'环工16-1分数统计'!$AV$3/120 -> 1.4 | AS41: ='环工16-1分数统计'!AW27*'环工16-1分数统计'!$AW$3/120 -> 0.6 | AT41: ='环工16-1分数统计'!AX27*'环工16-1分数统计'!$AX$3/120 -> 2.266666667 | AU41: ='环工16-1分数统计'!AY27*'环工16-1分数统计'!$AY$3/120 -> 1.083333333 | AV41: ='环工16-1分数统计'!AZ27*'环工16-1分数统计'!$AZ$3/120 -> 1.25 | AW41: ='环工16-1分数统计'!BA27*'环工16-1分数统计'!$BA$3/120 -> 1.316666667 | AX41: ='环工16-1分数统计'!BB27*'环工16-1分数统计'!$BB$3/120 -> 1 | AY41: ='环工16-1分数统计'!BC27*'环工16-1分数统计'!$BC$3/120 -> 2.05 | AZ41: ='环工16-1分数统计'!BD27*'环工16-1分数统计'!$BD$3/120 -> 0.975 | BA41: ='环工16-1分数统计'!BE27*'环工16-1分数统计'!$BE$3/120 -> 1.4 | BB41: =SUM(D41:BA41) -> 73.55296143 | BC41: =0.7*BB41 -> 51.487073 | BD41: 81.66582553 | BE41: 80.57801274 | BF41: =SUM(BD41:BE41) -> 162.2438383 | BG41: 80.52354915 | BH41: 16.10470983 | BI41: 67.59178283
A42: 40 | B42: 张婷婷 | C42: 2016010643 | D42: 0.65 | E42: 1.416666667 | F42: 3 | G42: 2.25 | H42: 1.433333333 | I42: 1.183333333 | J42: =[1]Sheet1!H52*$J$3/120 -> 2.057 | K42: 0.5166666667 | L42: 1.5625 | M42: 0.6083333333 | N42: 1.6 | O42: 2.75 | P42: 1.666666667 | Q42: 2.366666667 | R42: 1.625 | S42: =[1]Sheet1!I52*$S$3/120 -> 2.3716 | T42: 0.675 | U42: 1.416666667 | V42: 1.5 | W42: 1.675 | X42: 1.083333333 | Y42: 1.3 | Z42: 1.2 | AA42: =[1]Sheet1!K52*$AA$3/120 -> 1.184333333 | AB42: 0.7583333333 | AC42: 1.5625 | AD42: 1.7 | AE42: 1.25 | AF42: 0.675 | AG42: 2 | AH42: 1.433333333 | AI42: 0.75 | AJ42: 2 | AK42: 1.65 | AL42: 1.05 | AM42: 1.5 | AN42: 1.416666667 | AO42: 1.416666667 | AP42: =[1]Sheet1!J52*$AP$3/120 -> 1.0531125 | AQ42: 0.7583333333 | AR42: 1.383333333 | AS42: 0.6416666667 | AT42: 2.433333333 | AU42: 1.366666667 | AV42: 1.283333333 | AW42: 1.4 | AX42: 1.0625 | AY42: 1.9 | AZ42: 1.05 | BA42: 1.116666667 | BB42: 72.30416667 | BC42: 50.61291667 | BD42: 79.29012383 | BE42: 81.50759861 | BF42: 160.7977224 | BG42: 79.80582464 | BH42: 15.96116493 | BI42: 66.57408159
A43: 41 | B43: 李桂存 | C43: 2016010634 | D43: 0.5583333333 | E43: 1.483333333 | F43: 3 | G43: 2.3625 | H43: 1.333333333 | I43: 1.216666667 | J43: =[1]Sheet1!H43*$J$3/120 -> 2.04 | K43: 0.625 | L43: 1.291666667 | M43: 0.5 | N43: 1.5 | O43: 2.5 | P43: 1.6875 | Q43: 2.366666667 | R43: 1.5 | S43: =[1]Sheet1!I43*$S$3/120 -> 1.932 | T43: 0.6916666667 | U43: 1.533333333 | V43: 1.5 | W43: 2 | X43: 1.166666667 | Y43: 1.366666667 | Z43: 1.216666667 | AA43: =[1]Sheet1!K43*$AA$3/120 -> 1.1475 | AB43: 0.7166666667 | AC43: 1.625 | AD43: 1.8 | AE43: 1.333333333 | AF43: 0.7 | AG43: 2 | AH43: 1.366666667 | AI43: 0.75 | AJ43: 1.675 | AK43: 1.725 | AL43: 1.075 | AM43: 1.825 | AN43: 1.433333333 | AO43: 1.383333333 | AP43: =[1]Sheet1!J43*$AP$3/120 -> 0.9961875 | AQ43: 0.6916666667 | AR43: 1.416666667 | AS43: 0.6333333333 | AT43: 2.366666667 | AU43: 1.366666667 | AV43: 1.2 | AW43: 1.183333333 | AX43: 1.075 | AY43: 1.95 | AZ43: 1.05 | BA43: 1.166666667 | BB43: 72.24166667 | BC43: 50.56916667 | BD43: 78.09950117 | BE43: 82.05227162 | BF43: 160.1517728 | BG43: 79.48523213 | BH43: 15.89704643 | BI43: 66.46621309
A44: 42 | B44: 穆合塔巴尔·玉素甫 | C44: 2016010639 | D44: 0.6416666667 | E44: 1.366666667 | F44: 3 | G44: 2.2875 | H44: 1.283333333 | I44: 1.1 | J44: =[1]Sheet1!H48*$J$3/120 -> 2.306333333 | K44: 0.6 | L44: 1.25 | M44: 0.5 | N44: 1.5 | O44: 2.5 | P44: 1.666666667 | Q44: 2.133333333 | R44: 1.625 | S44: =[1]Sheet1!I48*$S$3/120 -> 2.464 | T44: 0.7583333333 | U44: 1.516666667 | V44: 1.525 | W44: 2.05 | X44: 1.2 | Y44: 1.283333333 | Z44: 1.45 | AA44: =[1]Sheet1!K48*$AA$3/120 -> 1.246666667 | AB44: 0.7083333333 | AC44: 1.625 | AD44: 1.55 | AE44: 1.333333333 | AF44: 0.7 | AG44: 2 | AH44: 1.333333333 | AI44: 0.8125 | AJ44: 1.925 | AK44: 1.5 | AL44: 1.1 | AM44: 1.85 | AN44: 1.466666667 | AO44: 1.383333333 | AP44: =[1]Sheet1!J48*$AP$3/120 -> 1.09580625 | AQ44: 0.5916666667 | AR44: 1.383333333 | AS44: 0.675 | AT44: 2.2 | AU44: 1.1 | AV44: 1.366666667 | AW44: 1.25 | AX44: 1.1 | AY44: 1.775 | AZ44: 1.0375 | BA44: 1.166666667 | BB44: 71.92083333 | BC44: 50.34458333 | BD44: 80.99109963 | BE44: 80.9324115 | BF44: 161.9235111 | BG44: 80.36456697 | BH44: 16.07291339 | BI44: 66.41749673
A45: 43 | B45: 依斯安·喀迪尔 | C45: 2016010657 | D45: 0.625 | E45: 1.466666667 | F45: 3 | G45: 2.25 | H45: 1.333333333 | I45: 1.35 | J45: =[1]Sheet1!H63*$J$3/120 -> 2.068333333 | K45: 0.5916666667 | L45: 1.5 | M45: 0.675 | N45: 2.075 | O45: 2.5 | P45: 1.5 | Q45: 2.266666667 | R45: 1.5 | S45: =[1]Sheet1!I63*$S$3/120 -> 2.016 | T45: 0.7416666667 | U45: 1.466666667 | V45: 1.7 | W45: 1.325 | X45: 1.083333333 | Y45: 1.2 | Z45: 1.3 | AA45: =[1]Sheet1!K63*$AA$3/120 -> 1.076666667 | AB45: 0.7083333333 | AC45: 1.645833333 | AD45: 2.025 | AE45: 1.233333333 | AF45: 0.7333333333 | AG45: 2 | AH45: 1.266666667 | AI45: 0.8375 | AJ45: 1.65 | AK45: 1.825 | AL45: 1 | AM45: 1.775 | AN45: 1.466666667 | AO45: 1.366666667 | AP45: =[1]Sheet1!J63*$AP$3/120 -> 0.98325 | AQ45: 0.725 | AR45: 1.45 | AS45: 0.6166666667 | AT45: 1.633333333 | AU45: 1.25 | AV45: 1.2 | AW45: 1.133333333 | AX45: 1.0375 | AY45: 1.825 | AZ45: 1.0625 | BA45: 1.25 | BB45: 71.53333333 | BC45: 50.07333333 | BD45: 81.02808753 | BE45: 83.06887615 | BF45: 164.0969637 | BG45: 81.44327735 | BH45: 16.28865547 | BI45: 66.3619888
A46: 44 | B46: 马晓红 | C46: 2016010605 | D46: ='环工16-1分数统计'!H9*'环工16-1分数统计'!$H$3/120 -> 0.6416666667 | E46: ='环工16-1分数统计'!I9*'环工16-1分数统计'!$I$3/120 -> 1.45 | F46: ='环工16-1分数统计'!J9*'环工16-1分数统计'!$J$3/120 -> 3.45 | G46: ='环工16-1分数统计'!K9*'环工16-1分数统计'!$K$3/120 -> 2.475 | H46: ='环工16-1分数统计'!L9*'环工16-1分数统计'!$L$3/120 -> 1.333333333 | I46: ='环工16-1分数统计'!M9*'环工16-1分数统计'!$M$3/120 -> 1.216666667 | J46: ='环工16-1分数统计'!N9*'环工16-1分数统计'!$N$3/120 -> 2.2 | K46: ='环工16-1分数统计'!O9*'环工16-1分数统计'!$O$3/121 -> 0.6363636364 | L46: ='环工16-1分数统计'!P9*'环工16-1分数统计'!$P$3/120 -> 1.416666667 | M46: ='环工16-1分数统计'!Q9*'环工16-1分数统计'!$Q$3/120 -> 0.5916666667 | N46: ='环工16-1分数统计'!R9*'环工16-1分数统计'!$R$3/120 -> 1.5 | O46: ='环工16-1分数统计'!S9*'环工16-1分数统计'!$S$3/120 -> 2.5 | P46: ='环工16-1分数统计'!T9*'环工16-1分数统计'!$T$3/120 -> 1.625 | Q46: ='环工16-1分数统计'!U9*'环工16-1分数统计'!$U$3/120 -> 2.3 | R46: ='环工16-1分数统计'!V9*'环工16-1分数统计'!$V$3/120 -> 1.5 | S46: ='环工16-1分数统计'!W9*'环工16-1分数统计'!$W$3/120 -> 2.713333333 | T46: ='环工16-1分数统计'!X9*'环工16-1分数统计'!$X$3/120 -> 0.675 | U46: ='环工16-1分数统计'!Y9*'环工16-1分数统计'!$Y$3/120 -> 1.533333333 | V46: ='环工16-1分数统计'!Z9*'环工16-1分数统计'!$Z$3/120 -> 1.525 | W46: ='环工16-1分数统计'!AA9*'环工16-1分数统计'!$AA$3/120 -> 1.525 | X46: ='环工16-1分数统计'!AB9*'环工16-1分数统计'!$AB$3/120 -> 1.066666667 | Y46: ='环工16-1分数统计'!AC9*'环工16-1分数统计'!$AC$3/120 -> 1.166666667 | Z46: ='环工16-1分数统计'!AD9*'环工16-1分数统计'!$AD$3/120 -> 1.2 | AA46: ='环工16-1分数统计'!AE9*'环工16-1分数统计'!$AE$3/120 -> 1.338333333 | AB46: ='环工16-1分数统计'!AF9*'环工16-1分数统计'!$AF$3/120 -> 0.7166666667 | AC46: ='环工16-1分数统计'!AG9*'环工16-1分数统计'!$AG$3/120 -> 1.583333333 | AD46: ='环工16-1分数统计'!AH9*'环工16-1分数统计'!$AH$3/120 -> 1.775 | AE46: ='环工16-1分数统计'!AI9*'环工16-1分数统计'!$AI$3/120 -> 1.333333333 | AF46: ='环工16-1分数统计'!AJ9*'环工16-1分数统计'!$AJ$3/120 -> 0.75 | AG46: ='环工16-1分数统计'!AK9*'环工16-1分数统计'!$AK$3/120 -> 2.1 | AH46: ='环工16-1分数统计'!AL9*'环工16-1分数统计'!$AL$3/120 -> 1.216666667 | AI46: ='环工16-1分数统计'!AM9*'环工16-1分数统计'!$AM$3/120 -> 0.75 | AJ46: ='环工16-1分数统计'!AN9*'环工16-1分数统计'!$AN$3/120 -> 1.525 | AK46: ='环工16-1分数统计'!AO9*'环工16-1分数统计'!$AO$3/120 -> 1.725 | AL46: ='环工16-1分数统计'!AP9*'环工16-1分数统计'!$AP$3/120 -> 1.075 | AM46: ='环工16-1分数统计'!AQ9*'环工16-1分数统计'!$AQ$3/120 -> 1.65 | AN46: ='环工16-1分数统计'!AR9*'环工16-1分数统计'!$AR$3/120 -> 1.416666667 | AO46: ='环工16-1分数统计'!AS9*'环工16-1分数统计'!$AS$3/120 -> 1.45 | AP46: ='环工16-1分数统计'!AT9*'环工16-1分数统计'!$AT$3/120 -> 1.283333333 | AQ46: ='环工16-1分数统计'!AU9*'环工16-1分数统计'!$AU$3/120 -> 0.6916666667 | AR46: ='环工16-1分数统计'!AV9*'环工16-1分数统计'!$AV$3/120 -> 1.366666667 | AS46: ='环工16-1分数统计'!AW9*'环工16-1分数统计'!$AW$3/120 -> 0.6166666667 | AT46: ='环工16-1分数统计'!AX9*'环工16-1分数统计'!$AX$3/120 -> 2.333333333 | AU46: ='环工16-1分数统计'!AY9*'环工16-1分数统计'!$AY$3/120 -> 1.233333333 | AV46: ='环工16-1分数统计'!AZ9*'环工16-1分数统计'!$AZ$3/120 -> 1.366666667 | AW46: ='环工16-1分数统计'!BA9*'环工16-1分数统计'!$BA$3/120 -> 1.25 | AX46: ='环工16-1分数统计'!BB9*'环工16-1分数统计'!$BB$3/120 -> 1.0625 | AY46: ='环工16-1分数统计'!BC9*'环工16-1分数统计'!$BC$3/120 -> 2.15 | AZ46: ='环工16-1分数统计'!BD9*'环工16-1分数统计'!$BD$3/120 -> 1.0625 | BA46: ='环工16-1分数统计'!BE9*'环工16-1分数统计'!$BE$3/120 -> 1.166666667 | BB46: =SUM(D46:BA46) -> 72.22969697 | BC46: =0.7*BB46 -> 50.56078788 | BD46: 79.61075296 | BE46: 80.31112903 | BF46: =SUM(BD46:BE46) -> 159.921882 | BG46: 79.37113459 | BH46: 15.87422692 | BI46: 66.4350148
A47: 45 | B47: 於越 | C47: 2016010658 | D47: 0.625 | E47: 1.366666667 | F47: 3 | G47: 2.55 | H47: 1.333333333 | I47: 1.116666667 | J47: =[1]Sheet1!H64*$J$3/120 -> 2.929666667 | K47: 0.5583333333 | L47: 1.3125 | M47: 0.7625 | N47: 1.85 | O47: 2.5 | P47: 1.583333333 | Q47: 2.033333333 | R47: 1.5 | S47: =[1]Sheet1!I64*$S$3/120 -> 2.8028 | T47: 0.6583333333 | U47: 1.35 | V47: 1.7 | W47: 1.5 | X47: 1.1 | Y47: 1.133333333 | Z47: 1.2 | AA47: =[1]Sheet1!K64*$AA$3/120 -> 1.496 | AB47: 0.5916666667 | AC47: 1.645833333 | AD47: 2.15 | AE47: 1.133333333 | AF47: 0.6833333333 | AG47: 2 | AH47: 1.366666667 | AI47: 0.75 | AJ47: 1.5 | AK47: 1.525 | AL47: 0.95 | AM47: 1.65 | AN47: 1.25 | AO47: 1.383333333 | AP47: =[1]Sheet1!J64*$AP$3/120 -> 1.26658125 | AQ47: 0 | AR47: 1.416666667 | AS47: 0.5166666667 | AT47: 1.233333333 | AU47: 1.433333333 | AV47: 0.9166666667 | AW47: 1.116666667 | AX47: 0.975 | AY47: 1.7 | AZ47: 1.0375 | BA47: 1.116666667 | BB47: 70.025 | BC47: 49.0175 | BD47: 78.57749347 | BE47: 74.25250443 | BF47: 152.8299979 | BG47: 75.85134806 | BH47: 15.17026961 | BI47: 64.18776961
A48: 46 | B48: 王昆 | C48: 2016010653 | D48: 0.6916666667 | E48: 1.266666667 | F48: 3.7 | G48: 2.25 | H48: 1.416666667 | I48: 1.333333333 | J48: =[1]Sheet1!H60*$J$3/120 -> 1.9635 | K48: 0.5416666667 | L48: 0.5625 | M48: 0.5 | N48: 1.5 | O48: 3 | P48: 1.666666667 | Q48: 2.033333333 | R48: 1.825 | S48: =[1]Sheet1!I60*$S$3/120 -> 2.3716 | T48: 0.6416666667 | U48: 1.366666667 | V48: 1.5 | W48: 1.5 | X48: 1 | Y48: 1.35 | Z48: 1.333333333 | AA48: =[1]Sheet1!K60*$AA$3/120 -> 0.9973333333 | AB48: 0.6416666667 | AC48: 1.4375 | AD48: 1.6 | AE48: 1.2 | AF48: 0.7083333333 | AG48: 2 | AH48: 1.233333333 | AI48: 0.75 | AJ48: 1.675 | AK48: 1.775 | AL48: 1 | AM48: 1.675 | AN48: 1.45 | AO48: 1.416666667 | AP48: =[1]Sheet1!J60*$AP$3/120 -> 0.9961875 | AQ48: 0.625 | AR48: 1.4 | AS48: 0.5666666667 | AT48: 2 | AU48: 1.183333333 | AV48: 1.05 | AW48: 1.083333333 | AX48: 0.9875 | AY48: 1.95 | AZ48: 0.9375 | BA48: 1.216666667 | BB48: 69.44166667 | BC48: 48.60916667 | BD48: 79.26929215 | BE48: 74.287062 | BF48: 153.5563542 | BG48: 76.21184732 | BH48: 15.24236946 | BI48: 63.85153613
A49: 47 | B49: 肖耀 | C49: 2016010656 | D49: 0.675 | E49: 1.533333333 | F49: 3.6 | G49: 2.25 | H49: 1.433333333 | I49: 1.25 | J49: =[1]Sheet1!H62*$J$3/120 -> 1.714166667 | K49: 0.5166666667 | L49: 1.395833333 | M49: 0.7416666667 | N49: 1.5 | O49: 2.5 | P49: 1.416666667 | Q49: 2.066666667 | R49: 1.5 | S49: =[1]Sheet1!I62*$S$3/120 -> 1.9404 | T49: 0.6416666667 | U49: 1.433333333 | V49: 1.5 | W49: 1.5 | X49: 1.033333333 | Y49: 1.333333333 | Z49: 1.25 | AA49: =[1]Sheet1!K62*$AA$3/120 -> 0.9505833333 | AB49: 0.7083333333 | AC49: 1.375 | AD49: 1.5 | AE49: 1.183333333 | AF49: 0.7166666667 | AG49: 1.833333333 | AH49: 1.35 | AI49: 0.7625 | AJ49: 1.5 | AK49: 1.525 | AL49: 1.025 | AM49: 1.65 | AN49: 1.45 | AO49: 1.466666667 | AP49: =[1]Sheet1!J62*$AP$3/120 -> 0.853875 | AQ49: 0.6416666667 | AR49: 1.383333333 | AS49: 0.6666666667 | AT49: 2.2 | AU49: 1.2 | AV49: 1.083333333 | AW49: 1.1 | AX49: 1.0625 | AY49: 1.95 | AZ49: 0.925 | BA49: 1.05 | BB49: 68.32916667 | BC49: 47.83041667 | BD49: 77.96931525 | BE49: 74.22370847 | BF49: 152.1930237 | BG49: 75.53521019 | BH49: 15.10704204 | BI49: 62.9374587
A50: 48 | B50: 马学成 | C50: 2016010649 | D50: 0.6333333333 | E50: 1.466666667 | F50: 3 | G50: 2.4 | H50: 1.183333333 | I50: 1.1 | J50: =[1]Sheet1!H58*$J$3/120 -> 1.898333333 | K50: 0.5916666667 | L50: 1.25 | M50: 0.6416666667 | N50: 1.5 | O50: 2.5 | P50: 1.583333333 | Q50: 2 | R50: 1.575 | S50: =[1]Sheet1!I58*$S$3/120 -> 1.736 | T50: 0.6166666667 | U50: 1.466666667 | V50: 1.5 | W50: 1.5 | X50: 1.15 | Y50: 1.266666667 | Z50: 1.216666667 | AA50: =[1]Sheet1!K58*$AA$3/120 -> 1.133333333 | AB50: 0.6333333333 | AC50: 1.416666667 | AD50: 1.55 | AE50: 1.283333333 | AF50: 0.6833333333 | AG50: 2 | AH50: 1.233333333 | AI50: 0.75 | AJ50: 1.2 | AK50: 1.425 | AL50: 1.0375 | AM50: 1.6 | AN50: 1.333333333 | AO50: 1.4 | AP50: =[1]Sheet1!J58*$AP$3/120 -> 0.8668125 | AQ50: 0.725 | AR50: 1.383333333 | AS50: 0.5666666667 | AT50: 2 | AU50: 1.133333333 | AV50: 1.016666667 | AW50: 1.183333333 | AX50: 0.975 | AY50: 1.7 | AZ50: 0.9125 | BA50: 1.016666667 | BB50: 67.05 | BC50: 46.935 | BD50: 75.03263098 | BE50: 76.03667249 | BF50: 151.0693035 | BG50: 74.97749445 | BH50: 14.99549889 | BI50: 61.93049889
A51: 49 | B51: 温博 | C51: 2016010655 | D51: 0.5416666667 | E51: 1.266666667 | F51: 3.5 | G51: 2.25 | H51: 1.383333333 | I51: 1.1 | J51: =[1]Sheet1!H61*$J$3/120 -> 1.994666667 | K51: 0.525 | L51: 1.25 | M51: 0.5 | N51: 1.5 | O51: 2.5 | P51: 1.416666667 | Q51: 2 | R51: 1.625 | S51: =[1]Sheet1!I61*$S$3/120 -> 2.0636 | T51: 0.6083333333 | U51: 1.45 | V51: 1.5 | W51: 1.525 | X51: 1 | Y51: 1.383333333 | Z51: 1.25 | AA51: =[1]Sheet1!K61*$AA$3/120 -> 0.935 | AB51: 0.65 | AC51: 1.479166667 | AD51: 1.925 | AE51: 1.2 | AF51: 0.675 | AG51: 1.4 | AH51: 1.216666667 | AI51: 0.75 | AJ51: 1.75 | AK51: 1.55 | AL51: 1 | AM51: 1.5 | AN51: 1.45 | AO51: 1.35 | AP51: =[1]Sheet1!J61*$AP$3/120 -> 0.92503125 | AQ51: 0.7083333333 | AR51: 1.383333333 | AS51: 0.5583333333 | AT51: 1.1 | AU51: 1.116666667 | AV51: 0.9 | AW51: 0.8666666667 | AX51: 1.05 | AY51: 1.7 | AZ51: 0.925 | BA51: 1.066666667 | BB51: 65.79583333 | BC51: 46.05708333 | BD51: 75.78629655 | BE51: 78.39109144 | BF51: 154.177388 | BG51: 76.52007381 | BH51: 15.30401476 | BI51: 61.36109809
A52: 50 | B52: 高信中 | C52: 2015010676 | D52: ='环工16-1分数统计'!H4*'环工16-1分数统计'!$H$3/120 -> 0.5666666667 | E52: ='环工16-1分数统计'!I4*'环工16-1分数统计'!$I$3/120 -> 1.466666667 | F52: ='环工16-1分数统计'!J4*'环工16-1分数统计'!$J$3/120 -> 3 | G52: ='环工16-1分数统计'!K4*'环工16-1分数统计'!$K$3/120 -> 2.25 | H52: ='环工16-1分数统计'!L4*'环工16-1分数统计'!$L$3/120 -> 1.5 | I52: ='环工16-1分数统计'!M4*'环工16-1分数统计'!$M$3/120 -> 1 | J52: ='环工16-1分数统计'!N4*'环工16-1分数统计'!$N$3/120 -> 2.933333333 | K52: ='环工16-1分数统计'!O4*'环工16-1分数统计'!$O$3/120 -> 0.6666666667 | L52: ='环工16-1分数统计'!P4*'环工16-1分数统计'!$P$3/120 -> 1.645833333 | M52: ='环工16-1分数统计'!Q4*'环工16-1分数统计'!$Q$3/120 -> 0.7166666667 | N52: ='环工16-1分数统计'!R4*'环工16-1分数统计'!$R$3/120 -> 1.575 | O52: ='环工16-1分数统计'!S4*'环工16-1分数统计'!$S$3/120 -> 2.541666667 | P52: ='环工16-1分数统计'!T4*'环工16-1分数统计'!$T$3/120 -> 1.625 | Q52: ='环工16-1分数统计'!U4*'环工16-1分数统计'!$U$3/120 -> 2.3 | R52: ='环工16-1分数统计'!V4*'环工16-1分数统计'!$V$3/120 -> 1.95 | S52: ='环工16-1分数统计'!W4*'环工16-1分数统计'!$W$3/120 -> 3.116666667 | T52: ='环工16-1分数统计'!X4*'环工16-1分数统计'!$X$3/120 -> 0.7083333333 | U52: ='环工16-1分数统计'!Y4*'环工16-1分数统计'!$Y$3/120 -> 1.483333333 | V52: ='环工16-1分数统计'!Z4*'环工16-1分数统计'!$Z$3/120 -> 0.55 | W52: ='环工16-1分数统计'!AA4*'环工16-1分数统计'!$AA$3/120 -> 1.525 | X52: ='环工16-1分数统计'!AB4*'环工16-1分数统计'!$AB$3/120 -> 1.166666667 | Y52: ='环工16-1分数统计'!AC4*'环工16-1分数统计'!$AC$3/120 -> 1.366666667 | Z52: ='环工16-1分数统计'!AD4*'环工16-1分数统计'!$AD$3/120 -> 1.35 | AA52: ='环工16-1分数统计'!AE4*'环工16-1分数统计'!$AE$3/120 -> 1.558333333 | AB52: ='环工16-1分数统计'!AF4*'环工16-1分数统计'!$AF$3/120 -> 0.7666666667 | AC52: ='环工16-1分数统计'!AG4*'环工16-1分数统计'!$AG$3/120 -> 1.625 | AD52: ='环工16-1分数统计'!AH4*'环工16-1分数统计'!$AH$3/120 -> 1.175 | AE52: ='环工16-1分数统计'!AI4*'环工16-1分数统计'!$AI$3/120 -> 1.266666667 | AF52: ='环工16-1分数统计'!AJ4*'环工16-1分数统计'!$AJ$3/120 -> 0.6916666667 | AG52: ='环工16-1分数统计'!AK4*'环工16-1分数统计'!$AK$3/120 -> 0.4666666667 | AH52: ='环工16-1分数统计'!AL4*'环工16-1分数统计'!$AL$3/120 -> 1.266666667 | AI52: ='环工16-1分数统计'!AM4*'环工16-1分数统计'!$AM$3/120 -> 0.75 | AJ52: ='环工16-1分数统计'!AN4*'环工16-1分数统计'!$AN$3/120 -> 1.5 | AK52: ='环工16-1分数统计'!AO4*'环工16-1分数统计'!$AO$3/120 -> 1.5 | AL52: ='环工16-1分数统计'!AP4*'环工16-1分数统计'!$AP$3/120 -> 0.9375 | AM52: ='环工16-1分数统计'!AQ4*'环工16-1分数统计'!$AQ$3/120 -> 0.65 | AN52: ='环工16-1分数统计'!AR4*'环工16-1分数统计'!$AR$3/120 -> 1.366666667 | AO52: ='环工16-1分数统计'!AS4*'环工16-1分数统计'!$AS$3/120 -> 1.483333333 | AP52: ='环工16-1分数统计'!AT4*'环工16-1分数统计'!$AT$3/120 -> 1.65 | AQ52: ='环工16-1分数统计'!AU4*'环工16-1分数统计'!$AU$3/120 -> 0.7166666667 | AR52: ='环工16-1分数统计'!AV4*'环工16-1分数统计'!$AV$3/120 -> 1.016666667 | AS52: ='环工16-1分数统计'!AW4*'环工16-1分数统计'!$AW$3/120 -> 0.5 | AT52: ='环工16-1分数统计'!AX4*'环工16-1分数统计'!$AX$3/120 -> 0.4666666667 | AU52: ='环工16-1分数统计'!AY4*'环工16-1分数统计'!$AY$3/120 -> 1.116666667 | AV52: ='环工16-1分数统计'!AZ4*'环工16-1分数统计'!$AZ$3/120 -> 0.7166666667 | AW52: ='环工16-1分数统计'!BA4*'环工16-1分数统计'!$BA$3/120 -> 1 | AX52: ='环工16-1分数统计'!BB4*'环工16-1分数统计'!$BB$3/120 -> 0.9375 | AY52: ='环工16-1分数统计'!BC4*'环工16-1分数统计'!$BC$3/120 -> 1.525 | AZ52: ='环工16-1分数统计'!BD4*'环工16-1分数统计'!$BD$3/120 -> 0.8625 | BA52: ='环工16-1分数统计'!BE4*'环工16-1分数统计'!$BE$3/120 -> 1 | BB52: =SUM(D52:BA52) -> 65.51666667 | BC52: =0.7*BB52 -> 45.86166667 | BD52: 81.96470093 | BE52: 71.66930971 | BF52: =SUM(BD52:BE52) -> 153.6340106 | BG52: 76.25038916 | BH52: 15.25007783 | BI52: 61.1117445
A53: 51 | B53: 扎西多吉 | C53: 2016010628 | D53: ='环工16-1分数统计'!H28*'环工16-1分数统计'!$H$3/120 -> 0.5 | E53: ='环工16-1分数统计'!I28*'环工16-1分数统计'!$I$3/120 -> 1.25 | F53: ='环工16-1分数统计'!J28*'环工16-1分数统计'!$J$3/120 -> 3 | G53: ='环工16-1分数统计'!K28*'环工16-1分数统计'!$K$3/120 -> 1.6875 | H53: ='环工16-1分数统计'!L28*'环工16-1分数统计'!$L$3/120 -> 1 | I53: ='环工16-1分数统计'!M28*'环工16-1分数统计'!$M$3/120 -> 1 | J53: ='环工16-1分数统计'!N28*'环工16-1分数统计'!$N$3/120 -> 1.45 | K53: ='环工16-1分数统计'!O28*'环工16-1分数统计'!$O$3/121 -> 0.6115702479 | L53: ='环工16-1分数统计'!P28*'环工16-1分数统计'!$P$3/120 -> 1.125 | M53: ='环工16-1分数统计'!Q28*'环工16-1分数统计'!$Q$3/120 -> 0.375 | N53: ='环工16-1分数统计'!R28*'环工16-1分数统计'!$R$3/120 -> 1.025 | O53: ='环工16-1分数统计'!S28*'环工16-1分数统计'!$S$3/120 -> 2.5 | P53: ='环工16-1分数统计'!T28*'环工16-1分数统计'!$T$3/120 -> 1.416666667 | Q53: ='环工16-1分数统计'!U28*'环工16-1分数统计'!$U$3/120 -> 1.533333333 | R53: ='环工16-1分数统计'!V28*'环工16-1分数统计'!$V$3/120 -> 1.5 | S53: ='环工16-1分数统计'!W28*'环工16-1分数统计'!$W$3/120 -> 1.366666667 | T53: ='环工16-1分数统计'!X28*'环工16-1分数统计'!$X$3/120 -> 0.675 | U53: ='环工16-1分数统计'!Y28*'环工16-1分数统计'!$Y$3/120 -> 1.433333333 | V53: ='环工16-1分数统计'!Z28*'环工16-1分数统计'!$Z$3/121 -> 1.016528926 | W53: ='环工16-1分数统计'!AA28*'环工16-1分数统计'!$AA$3/120 -> 1.525 | X53: ='环工16-1分数统计'!AB28*'环工16-1分数统计'!$AB$3/120 -> 1 | Y53: ='环工16-1分数统计'!AC28*'环工16-1分数统计'!$AC$3/120 -> 1.116666667 | Z53: ='环工16-1分数统计'!AD28*'环工16-1分数统计'!$AD$3/120 -> 1 | AA53: ='环工16-1分数统计'!AE28*'环工16-1分数统计'!$AE$3/120 -> 1 | AB53: ='环工16-1分数统计'!AF28*'环工16-1分数统计'!$AF$3/120 -> 0.7416666667 | AC53: ='环工16-1分数统计'!AG28*'环工16-1分数统计'!$AG$3/120 -> 1.416666667 | AD53: ='环工16-1分数统计'!AH28*'环工16-1分数统计'!$AH$3/120 -> 1.5 | AE53: ='环工16-1分数统计'!AI28*'环工16-1分数统计'!$AI$3/120 -> 1.266666667 | AF53: ='环工16-1分数统计'!AJ28*'环工16-1分数统计'!$AJ$3/120 -> 0.7 | AG53: ='环工16-1分数统计'!AK28*'环工16-1分数统计'!$AK$3/120 -> 1.333333333 | AH53: ='环工16-1分数统计'!AL28*'环工16-1分数统计'!$AL$3/120 -> 1.25 | AI53: ='环工16-1分数统计'!AM28*'环工16-1分数统计'!$AM$3/120 -> 0.6625 | AJ53: ='环工16-1分数统计'!AN28*'环工16-1分数统计'!$AN$3/120 -> 1.225 | AK53: ='环工16-1分数统计'!AO28*'环工16-1分数统计'!$AO$3/120 -> 1.65 | AL53: ='环工16-1分数统计'!AP28*'环工16-1分数统计'!$AP$3/120 -> 1.05 | AM53: ='环工16-1分数统计'!AQ28*'环工16-1分数统计'!$AQ$3/120 -> 1.15 | AN53: ='环工16-1分数统计'!AR28*'环工16-1分数统计'!$AR$3/121 -> 1.438016529 | AO53: ='环工16-1分数统计'!AS28*'环工16-1分数统计'!$AS$3/120 -> 1 | AP53: ='环工16-1分数统计'!AT28*'环工16-1分数统计'!$AT$3/120 -> 0.85 | AQ53: ='环工16-1分数统计'!AU28*'环工16-1分数统计'!$AU$3/120 -> 0.775 | AR53: ='环工16-1分数统计'!AV28*'环工16-1分数统计'!$AV$3/120 -> 1.166666667 | AS53: ='环工16-1分数统计'!AW28*'环工16-1分数统计'!$AW$3/120 -> 0.5333333333 | AT53: ='环工16-1分数统计'!AX28*'环工16-1分数统计'!$AX$3/120 -> 1.166666667 | AU53: ='环工16-1分数统计'!AY28*'环工16-1分数统计'!$AY$3/120 -> 1 | AV53: ='环工16-1分数统计'!AZ28*'环工16-1分数统计'!$AZ$3/120 -> 0.9 | AW53: ='环工16-1分数统计'!BA28*'环工16-1分数统计'!$BA$3/120 -> 0.8333333333 | AX53: ='环工16-1分数统计'!BB28*'环工16-1分数统计'!$BB$3/121 -> 1.016528926 | AY53: ='环工16-1分数统计'!BC28*'环工16-1分数统计'!$BC$3/120 -> 1.6 | AZ53: ='环工16-1分数统计'!BD28*'环工16-1分数统计'!$BD$3/120 -> 1.0125 | BA53: ='环工16-1分数统计'!BE28*'环工16-1分数统计'!$BE$3/120 -> 1.15 | BB53: =SUM(D53:BA53) -> 58.49514463 | BC53: =0.7*BB53 -> 40.94660124 | BD53: 64.89110939 | BE53: 75.71609759 | BF53: =SUM(BD53:BE53) -> 140.607207 | BG53: 69.78503136 | BH53: 13.95700627 | BI53: 54.90360751
D54: 1 | E54: 2 | F54: 6 | G54: 4.5 | H54: 2 | I54: 2 | J54: 4 | K54: 1 | L54: 2.5 | M54: 1 | N54: 3 | O54: 5 | P54: 2.5 | Q54: 4 | R54: 3 | S54: 4 | T54: 1 | U54: 2 | V54: 3 | W54: 3 | X54: 2 | Y54: 2 | Z54: 2 | AA54: 2 | AB54: 1 | AC54: 2.5 | AD54: 3 | AE54: 2 | AF54: 1 | AG54: 4 | AH54: 2 | AI54: 1.5 | AJ54: 3 | AK54: 3 | AL54: 1.5 | AM54: 3 | AN54: 2 | AO54: 2 | AP54: 2 | AQ54: 1 | AR54: 2 | AS54: 1 | AT54: 4 | AU54: 2 | AV54: 2 | AW54: 2 | AX54: 1.5 | AY54: 3 | AZ54: 1.5 | BA54: 2

Sheet 专业总表
A1: 姓名 | B1: 学号 | C1: 必修课加权成绩 | D1: 0.7*必修课加权成绩 | E1: 大一综测 | F1: 大二综测 | G1: 大三综测 | H1: 三年综测总分 | I1: 综测加权分数 | J1: 0.2*综测加权分数 | K1: 总分
A2: 高信中 | B2: 2015010676 | C2: ='环工16-1单算'!BG4 -> 66.09615385 | D2: =C2*0.7 -> 46.26730769 | E2: ='环工16-1单算'!BI4 -> 81.96470093 | F2: ='环工16-1单算'!BJ4 -> 71.66930971 | G2: ='环工16-1单算'!BK4 -> 64.57319301 | H2: =SUM(E2:G2) -> 218.2072037 | I2: =H2/$H$6*100 -> 63.11976983 | J2: =I2*0.2 -> 12.62395397 | K2: =D2+J2 -> 58.89126166
A3: 程诗宇 | B3: 2016010599 | C3: ='环工16-1单算'!BG5 -> 86.27230769 | D3: =C3*0.7 -> 60.39061538 | E3: ='环工16-1单算'!BI5 -> 93.67031068 | F3: ='环工16-1单算'!BJ5 -> 95.04436022 | G3: ='环工16-1单算'!BK5 -> 102.9772557 | H3: =SUM(E3:G3) -> 291.6919266 | I3: =H3/$H$6*100 -> 84.37634945 | J3: =I3*0.2 -> 16.87526989 | K3: =D3+J3 -> 77.26588527
A4: 李异繁 | B4: 2016010602 | C4: ='环工16-1单算'!BG6 -> 91.44846154 | D4: =C4*0.7 -> 64.01392308 | E4: ='环工16-1单算'!BI6 -> 99.19331731 | F4: ='环工16-1单算'!BJ6 -> 102.2928814 | G4: ='环工16-1单算'!BK6 -> 119.8543592 | H4: =SUM(E4:G4) -> 321.3405579 | I4: =H4/$H$6*100 -> 92.95266935 | J4: =I4*0.2 -> 18.59053387 | K4: =D4+J4 -> 82.60445695
A5: 刘涵钰 | B5: 2016010603 | C5: ='环工16-1单算'!BG7 -> 85.75153846 | D5: =C5*0.7 -> 60.02607692 | E5: ='环工16-1单算'!BI7 -> 90.9492381 | F5: ='环工16-1单算'!BJ7 -> 90.22212587 | G5: ='环工16-1单算'!BK7 -> 96.55614772 | H5: =SUM(E5:G5) -> 277.7275117 | I5: =H5/$H$6*100 -> 80.33692893 | J5: =I5*0.2 -> 16.06738579 | K5: =D5+J5 -> 76.09346271
A6: 刘雅 | B6: 2016010604 | C6: ='环工16-1单算'!BG8 -> 93.40384615 | D6: =C6*0.7 -> 65.38269231 | E6: ='环工16-1单算'!BI8 -> 99.38865725 | F6: ='环工16-1单算'!BJ8 -> 117.4018592 | G6: ='环工16-1单算'!BK8 -> 128.9129046 | H6: =SUM(E6:G6) -> 345.7034211 | I6: =H6/$H$6*100 -> 100 | J6: =I6*0.2 -> 20 | K6: =D6+J6 -> 85.38269231
A7: 马晓红 | B7: 2016010605 | C7: ='环工16-1单算'!BG9 -> 72.45923077 | D7: =C7*0.7 -> 50.72146154 | E7: ='环工16-1单算'!BI9 -> 79.61075296 | F7: ='环工16-1单算'!BJ9 -> 80.31112903 | G7: ='环工16-1单算'!BK9 -> 83.06909165 | H7: =SUM(E7:G7) -> 242.9909736 | I7: =H7/$H$6*100 -> 70.28885421 | J7: =I7*0.2 -> 14.05777084 | K7: =D7+J7 -> 64.77923238
A8: 马一凡 | B8: 2016010606 | C8: ='环工16-1单算'!BG10 -> 83.43307692 | D8: =C8*0.7 -> 58.40315385 | E8: ='环工16-1单算'!BI10 -> 92.15105989 | F8: ='环工16-1单算'!BJ10 -> 90.77473598 | G8: ='环工16-1单算'!BK10 -> 106.2349109 | H8: =SUM(E8:G8) -> 289.1607067 | I8: =H8/$H$6*100 -> 83.6441554 | J8: =I8*0.2 -> 16.72883108 | K8: =D8+J8 -> 75.13198493
A9: 齐泽丰 | B9: 2016010607 | C9: ='环工16-1单算'!BG11 -> 85.60307692 | D9: =C9*0.7 -> 59.92215385 | E9: ='环工16-1单算'!BI11 -> 92.94386513 | F9: ='环工16-1单算'!BJ11 -> 97.87665921 | G9: ='环工16-1单算'!BK11 -> 119.4092672 | H9: =SUM(E9:G9) -> 310.2297915 | I9: =H9/$H$6*100 -> 89.7387103 | J9: =I9*0.2 -> 17.94774206 | K9: =D9+J9 -> 77.86989591
A10: 任玥辉 | B10: 2016010608 | C10: ='环工16-1单算'!BG12 -> 84.95461538 | D10: =C10*0.7 -> 59.46823077 | E10: ='环工16-1单算'!BI12 -> 92.92658464 | F10: ='环工16-1单算'!BJ12 -> 91.32548749 | G10: ='环工16-1单算'!BK12 -> 98.33694536 | H10: =SUM(E10:G10) -> 282.5890175 | I10: =H10/$H$6*100 -> 81.74319381 | J10: =I10*0.2 -> 16.34863876 | K10: =D10+J10 -> 75.81686953
A11: 唐钰琪 | B11: 2016010609 | C11: ='环工16-1单算'!BG13 -> 81.20153846 | D11: =C11*0.7 -> 56.84107692 | E11: ='环工16-1单算'!BI13 -> 92.99754494 | F11: ='环工16-1单算'!BJ13 -> 94.04100668 | G11: ='环工16-1单算'!BK13 -> 100.0105412 | H11: =SUM(E11:G11) -> 287.0490928 | I11: =H11/$H$6*100 -> 83.03333879 | J11: =I11*0.2 -> 16.60666776 | K11: =D11+J11 -> 73.44774468
A12: 闫玺宇 | B12: 2016010610 | C12: ='环工16-1单算'!BG14 -> 72.78076923 | D12: =C12*0.7 -> 50.94653846 | E12: ='环工16-1单算'!BI14 -> 82.65141302 | F12: ='环工16-1单算'!BJ14 -> 84.65174204 | G12: ='环工16-1单算'!BK14 -> 80.2561021 | H12: =SUM(E12:G12) -> 247.5592572 | I12: =H12/$H$6*100 -> 71.61030006 | J12: =I12*0.2 -> 14.32206001 | K12: =D12+J12 -> 65.26859847
A13: 杨玉凤 | B13: 2016010611 | C13: ='环工16-1单算'!BG15 -> 74.60076923 | D13: =C13*0.7 -> 52.22053846 | E13: ='环工16-1单算'!BI15 -> 80.63928761 | F13: ='环工16-1单算'!BJ15 -> 82.41473292 | G13: ='环工16-1单算'!BK15 -> 83.49705235 | H13: =SUM(E13:G13) -> 246.5510729 | I13: =H13/$H$6*100 -> 71.31866735 | J13: =I13*0.2 -> 14.26373347 | K13: =D13+J13 -> 66.48427193
A14: 游恋 | B14: 2016010612 | C14: ='环工16-1单算'!BG16 -> 85.92307692 | D14: =C14*0.7 -> 60.14615385 | E14: ='环工16-1单算'!BI16 -> 91.16873315 | F14: ='环工16-1单算'!BJ16 -> 98.03067941 | G14: ='环工16-1单算'!BK16 -> 94.45784191 | H14: =SUM(E14:G14) -> 283.6572545 | I14: =H14/$H$6*100 -> 82.05219769 | J14: =I14*0.2 -> 16.41043954 | K14: =D14+J14 -> 76.55659338
A15: 余美琪 | B15: 2016010613 | C15: ='环工16-1单算'!BG17 -> 86.23615385 | D15: =C15*0.7 -> 60.36530769 | E15: ='环工16-1单算'!BI17 -> 89.371215 | F15: ='环工16-1单算'!BJ17 -> 90.0143683 | G15: ='环工16-1单算'!BK17 -> 96.2065859 | H15: =SUM(E15:G15) -> 275.5921692 | I15: =H15/$H$6*100 -> 79.71924847 | J15: =I15*0.2 -> 15.94384969 | K15: =D15+J15 -> 76.30915739
A16: 仲英杰 | B16: 2016010614 | C16: ='环工16-1单算'!BG18 -> 88.96923077 | D16: =C16*0.7 -> 62.27846154 | E16: ='环工16-1单算'!BI18 -> 98.43992237 | F16: ='环工16-1单算'!BJ18 -> 105.2956936 | G16: ='环工16-1单算'!BK18 -> 111.153582 | H16: =SUM(E16:G16) -> 314.8891979 | I16: =H16/$H$6*100 -> 91.08651483 | J16: =I16*0.2 -> 18.21730297 | K16: =D16+J16 -> 80.4957645
A17: 陈闯 | B17: 2016010617 | C17: ='环工16-1单算'!BG19 -> 86.77 | D17: =C17*0.7 -> 60.739 | E17: ='环工16-1单算'!BI19 -> 95.24470342 | F17: ='环工16-1单算'!BJ19 -> 109.4514228 | G17: ='环工16-1单算'!BK19 -> 107.4614166 | H17: =SUM(E17:G17) -> 312.1575429 | I17: =H17/$H$6*100 -> 90.29634185 | J17: =I17*0.2 -> 18.05926837 | K17: =D17+J17 -> 78.79826837
A18: 丁相瑞 | B18: 2016010619 | C18: ='环工16-1单算'!BG20 -> 79.26615385 | D18: =C18*0.7 -> 55.48630769 | E18: ='环工16-1单算'!BI20 -> 86.61188494 | F18: ='环工16-1单算'!BJ20 -> 85.57837638 | G18: ='环工16-1单算'!BK20 -> 88.37967786 | H18: =SUM(E18:G18) -> 260.5699392 | I18: =H18/$H$6*100 -> 75.37383876 | J18: =I18*0.2 -> 15.07476775 | K18: =D18+J18 -> 70.56107544
A19: 高军政 | B19: 2016010620 | C19: ='环工16-1单算'!BG21 -> 81.94846154 | D19: =C19*0.7 -> 57.36392308 | E19: ='环工16-1单算'!BI21 -> 89.39301698 | F19: ='环工16-1单算'!BJ21 -> 83.87043699 | G19: ='环工16-1单算'!BK21 -> 90.68818674 | H19: =SUM(E19:G19) -> 263.9516407 | I19: =H19/$H$6*100 -> 76.35204763 | J19: =I19*0.2 -> 15.27040953 | K19: =D19+J19 -> 72.6343326
A20: 贾钰森 | B20: 2016010621 | C20: ='环工16-1单算'!BG22 -> 75.24153846 | D20: =C20*0.7 -> 52.66907692 | E20: ='环工16-1单算'!BI22 -> 85.9154988 | F20: ='环工16-1单算'!BJ22 -> 84.95940668 | G20: ='环工16-1单算'!BK22 -> 82.98329019 | H20: =SUM(E20:G20) -> 253.8581957 | I20: =H20/$H$6*100 -> 73.43236433 | J20: =I20*0.2 -> 14.68647287 | K20: =D20+J20 -> 67.35554979
A21: 李佳奇 | B21: 2016010622 | C21: ='环工16-1单算'!BG23 -> 89.25923077 | D21: =C21*0.7 -> 62.48146154 | E21: ='环工16-1单算'!BI23 -> 91.86990147 | F21: ='环工16-1单算'!BJ23 -> 95.0651481 | G21: ='环工16-1单算'!BK23 -> 102.0322101 | H21: =SUM(E21:G21) -> 288.9672597 | I21: =H21/$H$6*100 -> 83.58819788 | J21: =I21*0.2 -> 16.71763958 | K21: =D21+J21 -> 79.19910111
A22: 李同 | B22: 2016010624 | C22: ='环工16-1单算'!BG24 -> 83.35692308 | D22: =C22*0.7 -> 58.34984615 | E22: ='环工16-1单算'!BI24 -> 89.41289484 | F22: ='环工16-1单算'!BJ24 -> 90.92676022 | G22: ='环工16-1单算'!BK24 -> 93.04822122 | H22: =SUM(E22:G22) -> 273.3878763 | I22: =H22/$H$6*100 -> 79.08162304 | J22: =I22*0.2 -> 15.81632461 | K22: =D22+J22 -> 74.16617076
A23: 吴航飞 | B23: 2016010625 | C23: ='环工16-1单算'!BG25 -> 77.06230769 | D23: =C23*0.7 -> 53.94361538 | E23: ='环工16-1单算'!BI25 -> 84.24693447 | F23: ='环工16-1单算'!BJ25 -> 84.14303092 | G23: ='环工16-1单算'!BK25 -> 82.57951935 | H23: =SUM(E23:G23) -> 250.9694847 | I23: =H23/$H$6*100 -> 72.59676053 | J23: =I23*0.2 -> 14.51935211 | K23: =D23+J23 -> 68.46296749
A24: 姚泽凯 | B24: 2016010626 | C24: ='环工16-1单算'!BG26 -> 79.12307692 | D24: =C24*0.7 -> 55.38615385 | E24: ='环工16-1单算'!BI26 -> 89.77818527 | F24: ='环工16-1单算'!BJ26 -> 86.40130279 | G24: ='环工16-1单算'!BK26 -> 86.90136471 | H24: =SUM(E24:G24) -> 263.0808528 | I24: =H24/$H$6*100 -> 76.1001589 | J24: =I24*0.2 -> 15.22003178 | K24: =D24+J24 -> 70.60618563
A25: 于鹏 | B25: 2016010627 | C25: ='环工16-1单算'!BG27 -> 73.75 | D25: =C25*0.7 -> 51.625 | E25: ='环工16-1单算'!BI27 -> 81.66582553 | F25: ='环工16-1单算'!BJ27 -> 80.57801274 | G25: ='环工16-1单算'!BK27 -> 85.83872836 | H25: =SUM(E25:G25) -> 248.0825666 | I25: =H25/$H$6*100 -> 71.76167533 | J25: =I25*0.2 -> 14.35233507 | K25: =D25+J25 -> 65.97733507
A26: 扎西多吉 | B26: 2016010628 | C26: ='环工16-1单算'!BG28 -> 58.73076923 | D26: =C26*0.7 -> 41.11153846 | E26: ='环工16-1单算'!BI28 -> 64.89110939 | F26: ='环工16-1单算'!BJ28 -> 75.71609759 | G26: ='环工16-1单算'!BK28 -> 73.09373234 | H26: =SUM(E26:G26) -> 213.7009393 | I26: =H26/$H$6*100 -> 61.81626397 | J26: =I26*0.2 -> 12.36325279 | K26: =D26+J26 -> 53.47479126
A27: 边泽晨 | B27: 2016010629 | C27: =环工62单算!BH4 -> 81.69692308 | D27: =C27*0.7 -> 57.18784615 | E27: =环工62单算!BJ4 -> 90.58468819 | F27: =环工62单算!BK4 -> 87.14586605 | G27: =环工62单算!BL4 -> 84.021249 | H27: =SUM(E27:G27) -> 261.7518032 | I27: =H27/$H$6*100 -> 75.71571101 | J27: =I27*0.2 -> 15.1431422 | K27: =D27+J27 -> 72.33098836
A28: 曹佳美 | B28: 2016010630 | C28: =环工62单算!BH5 -> 79.79923077 | D28: =C28*0.7 -> 55.85946154 | E28: =环工62单算!BJ5 -> 89.67503142 | F28: =环工62单算!BK5 -> 84.02776503 | G28: =环工62单算!BL5 -> 86.49036499 | H28: =SUM(E28:G28) -> 260.1931614 | I28: =H28/$H$6*100 -> 75.26485004 | J28: =I28*0.2 -> 15.05297001 | K28: =D28+J28 -> 70.91243155
A29: 丁怀玉 | B29: 2016010631 | C29: =环工62单算!BH6 -> 81.92384615 | D29: =C29*0.7 -> 57.34669231 | E29: =环工62单算!BJ6 -> 86.89646267 | F29: =环工62单算!BK6 -> 86.93412463 | G29: =环工62单算!BL6 -> 90.67990981 | H29: =SUM(E29:G29) -> 264.5104971 | I29: =H29/$H$6*100 -> 76.51370539 | J29: =I29*0.2 -> 15.30274108 | K29: =D29+J29 -> 72.64943339
A30: 符琳 | B30: 2016010632 | C30: =环工62单算!BH7 -> 80.76384615 | D30: =C30*0.7 -> 56.53469231 | E30: =环工62单算!BJ7 -> 88.30719644 | F30: =环工62单算!BK7 -> 87.83580948 | G30: =环工62单算!BL7 -> 86.08283019 | H30: =SUM(E30:G30) -> 262.2258361 | I30: =H30/$H$6*100 -> 75.85283226 | J30: =I30*0.2 -> 15.17056645 | K30: =D30+J30 -> 71.70525876
A31: 李桂存 | B31: 2016010634 | C31: =环工62单算!BH8 -> 70.80769231 | D31: =C31*0.7 -> 49.56538462 | E31: =环工62单算!BJ8 -> 78.09950117 | F31: =环工62单算!BK8 -> 82.05227162 | G31: =环工62单算!BL8 -> 75.69919257 | H31: =SUM(E31:G31) -> 235.8509654 | I31: =H31/$H$6*100 -> 68.22349765 | J31: =I31*0.2 -> 13.64469953 | K31: =D31+J31 -> 63.21008415
A32: 李昕 | B32: 2016010635 | C32: =环工62单算!BH9 -> 84.54615385 | D32: =C32*0.7 -> 59.18230769 | E32: =环工62单算!BJ9 -> 92.38009633 | F32: =环工62单算!BK9 -> 91.52635897 | G32: =环工62单算!BL9 -> 90.0975466 | H32: =SUM(E32:G32) -> 274.0040019 | I32: =H32/$H$6*100 -> 79.25984679 | J32: =I32*0.2 -> 15.85196936 | K32: =D32+J32 -> 75.03427705
A33: 刘吉东 | B33: 2016010636 | C33: =环工62单算!BH10 -> 80.06153846 | D33: =C33*0.7 -> 56.04307692 | E33: =环工62单算!BJ10 -> 86.05613373 | F33: =环工62单算!BK10 -> 90.79320108 | G33: =环工62单算!BL10 -> 87.10569048 | H33: =SUM(E33:G33) -> 263.9550253 | I33: =H33/$H$6*100 -> 76.35302667 | J33: =I33*0.2 -> 15.27060533 | K33: =D33+J33 -> 71.31368226
A34: 刘姝羽 | B34: 2016010637 | C34: =环工62单算!BH11 -> 85.97923077 | D34: =C34*0.7 -> 60.18546154 | E34: =环工62单算!BJ11 -> 91.01012053 | F34: =环工62单算!BK11 -> 91.47178524 | G34: =环工62单算!BL11 -> 93.66411671 | H34: =SUM(E34:G34) -> 276.1460225 | I34: =H34/$H$6*100 -> 79.879459 | J34: =I34*0.2 -> 15.9758918 | K34: =D34+J34 -> 76.16135334
A35: 陆文懿 | B35: 2016010638 | C35: =环工62单算!BH12 -> 82.76923077 | D35: =C35*0.7 -> 57.93846154 | E35: =环工62单算!BJ12 -> 88.56220854 | F35: =环工62单算!BK12 -> 90.04999534 | G35: =环工62单算!BL12 -> 92.54855703 | H35: =SUM(E35:G35) -> 271.1607609 | I35: =H35/$H$6*100 -> 78.43739587 | J35: =I35*0.2 -> 15.68747917 | K35: =D35+J35 -> 73.62594071
A36: 穆合塔巴尔·玉素甫 | B36: 2016010639 | C36: =环工62单算!BH13 -> 73.12307692 | D36: =C36*0.7 -> 51.18615385 | E36: =环工62单算!BJ13 -> 80.99109963 | F36: =环工62单算!BK13 -> 80.9324115 | G36: =环工62单算!BL13 -> 82.0991374 | H36: =SUM(E36:G36) -> 244.0226485 | I36: =H36/$H$6*100 -> 70.58728195 | J36: =I36*0.2 -> 14.11745639 | K36: =D36+J36 -> 65.30361024
A37: 宋艳珂 | B37: 2016010640 | C37: =环工62单算!BH14 -> 80.31 | D37: =C37*0.7 -> 56.217 | E37: =环工62单算!BJ14 -> 86.45645936 | F37: =环工62单算!BK14 -> 85.36373675 | G37: =环工62单算!BL14 -> 90.59895809 | H37: =SUM(E37:G37) -> 262.4191542 | I37: =H37/$H$6*100 -> 75.90875248 | J37: =I37*0.2 -> 15.1817505 | K37: =D37+J37 -> 71.3987505
A38: 通拉嘎 | B38: 2016010641 | C38: =环工62单算!BH15 -> 77.59538462 | D38: =C38*0.7 -> 54.31676923 | E38: =环工62单算!BJ15 -> 86.57997312 | F38: =环工62单算!BK15 -> 86.12092059 | G38: =环工62单算!BL15 -> 85.002878 | H38: =SUM(E38:G38) -> 257.7037717 | I38: =H38/$H$6*100 -> 74.544756 | J38: =I38*0.2 -> 14.9089512 | K38: =D38+J38 -> 69.22572043
A39: 王存璐 | B39: 2016010642 | C39: =环工62单算!BH16 -> 78.65 | D39: =C39*0.7 -> 55.055 | E39: =环工62单算!BJ16 -> 85.36562548 | F39: =环工62单算!BK16 -> 85.8390014 | G39: =环工62单算!BL16 -> 89.19013916 | H39: =SUM(E39:G39) -> 260.394766 | I39: =H39/$H$6*100 -> 75.32316725 | J39: =I39*0.2 -> 15.06463345 | K39: =D39+J39 -> 70.11963345
A40: 张婷婷 | B40: 2016010643 | C40: =环工62单算!BH17 -> 73.43230769 | D40: =C40*0.7 -> 51.40261538 | E40: =环工62单算!BJ17 -> 79.29012383 | F40: =环工62单算!BK17 -> 81.50759861 | G40: =环工62单算!BL17 -> 83.78346844 | H40: =SUM(E40:G40) -> 244.5811909 | I40: =H40/$H$6*100 -> 70.74884886 | J40: =I40*0.2 -> 14.14976977 | K40: =D40+J40 -> 65.55238516
A41: 曹刘俊 | B41: 2016010644 | C41: =环工62单算!BH18 -> 80.83461538 | D41: =C41*0.7 -> 56.58423077 | E41: =环工62单算!BJ18 -> 86.88651877 | F41: =环工62单算!BK18 -> 86.57185796 | G41: =环工62单算!BL18 -> 84.53665427 | H41: =SUM(E41:G41) -> 257.995031 | I41: =H41/$H$6*100 -> 74.6290072 | J41: =I41*0.2 -> 14.92580144 | K41: =D41+J41 -> 71.51003221
A42: 程昊 | B42: 2016010645 | C42: =环工62单算!BH19 -> 76.39538462 | D42: =C42*0.7 -> 53.47676923 | E42: =环工62单算!BJ19 -> 79.51041976 | F42: =环工62单算!BK19 -> 83.4583711 | G42: =环工62单算!BL19 -> 82.30312026 | H42: =SUM(E42:G42) -> 245.2719111 | I42: =H42/$H$6*100 -> 70.94865025 | J42: =I42*0.2 -> 14.18973005 | K42: =D42+J42 -> 67.66649928
A43: 耿錾卜 | B43: 2016010646 | C43: =环工62单算!BH20 -> 80.59 | D43: =C43*0.7 -> 56.413 | E43: =环工62单算!BJ20 -> 88.00313263 | F43: =环工62单算!BK20 -> 85.19855291 | G43: =环工62单算!BL20 -> 85.20407533 | H43: =SUM(E43:G43) -> 258.4057609 | I43: =H43/$H$6*100 -> 74.7478171 | J43: =I43*0.2 -> 14.94956342 | K43: =D43+J43 -> 71.36256342
A44: 郭全弟 | B44: 2016010647 | C44: =环工62单算!BH21 -> 82.88384615 | D44: =C44*0.7 -> 58.01869231 | E44: =环工62单算!BJ21 -> 88.10147367 | F44: =环工62单算!BK21 -> 85.56055291 | G44: =环工62单算!BL21 -> 87.6569305 | H44: =SUM(E44:G44) -> 261.3189571 | I44: =H44/$H$6*100 -> 75.59050364 | J44: =I44*0.2 -> 15.11810073 | K44: =D44+J44 -> 73.13679304
A45: 李正映 | B45: 2016010648 | C45: =环工62单算!BH22 -> 83.39615385 | D45: =C45*0.7 -> 58.37730769 | E45: =环工62单算!BJ22 -> 89.37653417 | F45: =环工62单算!BK22 -> 90.02734483 | G45: =环工62单算!BL22 -> 93.45552331 | H45: =SUM(E45:G45) -> 272.8594023 | I45: =H45/$H$6*100 -> 78.92875387 | J45: =I45*0.2 -> 15.78575077 | K45: =D45+J45 -> 74.16305847
A46: 马学成 | B46: 2016010649 | C46: =环工62单算!BH23 -> 67.21153846 | D46: =C46*0.7 -> 47.04807692 | E46: =环工62单算!BJ23 -> 75.03263098 | F46: =环工62单算!BK23 -> 76.03667249 | G46: =环工62单算!BL23 -> 72.69288734 | H46: =SUM(E46:G46) -> 223.7621908 | I46: =H46/$H$6*100 -> 64.72663479 | J46: =I46*0.2 -> 12.94532696 | K46: =D46+J46 -> 59.99340388
A47: 孙寅辉 | B47: 2016010651 | C47: =环工62单算!BH24 -> 74.96076923 | D47: =C47*0.7 -> 52.47253846 | E47: =环工62单算!BJ24 -> 83.49016949 | F47: =环工62单算!BK24 -> 80.42668336 | G47: =环工62单算!BL24 -> 77.17632533 | H47: =SUM(E47:G47) -> 241.0931782 | I47: =H47/$H$6*100 -> 69.73988786 | J47: =I47*0.2 -> 13.94797757 | K47: =D47+J47 -> 66.42051603
A48: 王昆 | B48: 2016010653 | C48: =环工62单算!BH25 -> 69.63692308 | D48: =C48*0.7 -> 48.74584615 | E48: =环工62单算!BJ25 -> 79.26929215 | F48: =环工62单算!BK25 -> 74.287062 | G48: =环工62单算!BL25 -> 72.67771978 | H48: =SUM(E48:G48) -> 226.2340739 | I48: =H48/$H$6*100 -> 65.44166478 | J48: =I48*0.2 -> 13.08833296 | K48: =D48+J48 -> 61.83417911
A49: 温博 | B49: 2016010655 | C49: =环工62单算!BH26 -> 66.00307692 | D49: =C49*0.7 -> 46.20215385 | E49: =环工62单算!BJ26 -> 75.78629655 | F49: =环工62单算!BK26 -> 78.39109144 | G49: =环工62单算!BL26 -> 69.72549184 | H49: =SUM(E49:G49) -> 223.9028798 | I49: =H49/$H$6*100 -> 64.76733124 | J49: =I49*0.2 -> 12.95346625 | K49: =D49+J49 -> 59.15562009
A50: 肖耀 | B50: 2016010656 | C50: =环工62单算!BH27 -> 69.12615385 | D50: =C50*0.7 -> 48.38830769 | E50: =环工62单算!BJ27 -> 77.96931525 | F50: =环工62单算!BK27 -> 74.22370847 | G50: =环工62单算!BL27 -> 76.83740323 | H50: =SUM(E50:G50) -> 229.030427 | I50: =H50/$H$6*100 -> 66.25055264 | J50: =I50*0.2 -> 13.25011053 | K50: =D50+J50 -> 61.63841822
A51: 依斯安·喀迪尔 | B51: 2016010657 | C51: =环工62单算!BH28 -> 72.77307692 | D51: =C51*0.7 -> 50.94115385 | E51: =环工62单算!BJ28 -> 81.02808753 | F51: =环工62单算!BK28 -> 83.06887615 | G51: =环工62单算!BL28 -> 81.37057063 | H51: =SUM(E51:G51) -> 245.4675343 | I51: =H51/$H$6*100 -> 71.00523725 | J51: =I51*0.2 -> 14.20104745 | K51: =D51+J51 -> 65.1422013
A52: 於越 | B52: 2016010658 | C52: =环工62单算!BH29 -> 69.98076923 | D52: =C52*0.7 -> 48.98653846 | E52: =环工62单算!BJ29 -> 78.57749347 | F52: =环工62单算!BK29 -> 74.25250443 | G52: =环工62单算!BL29 -> 74.04335809 | H52: =SUM(E52:G52) -> 226.873356 | I52: =H52/$H$6*100 -> 65.62658689 | J52: =I52*0.2 -> 13.12531738 | K52: =D52+J52 -> 62.11185584

Sheet 环工16-1分数统计
A1: 序号 | B1: 姓名 | C1: 学号 | D1: 挂科情况统计（填有或无） | H1: 大一上学期 | P1: 大一下学期 | Z1: 大二上学期 | AK1: 大二下学期 | AW1: 大三上学期
D2: 必修课挂科 | E2: 选修课挂科 | F2: 四级至今没过 | G2: 体测至今没过 | H2: 入学教育与安全教育 | I2: 军事训练（Ⅰ） | J2: 高等数学B（Ⅰ） | K2: 无机化学与分析化学 | L2: 思想道德修养与法律基础 | M2: 中国近代史纲要 | N2: 大学英语（Ⅰ） | O2: 大学体育（Ⅰ） | P2: 机械制图 | Q2: 计算机辅助绘图 | R2: VB程序设计（A） | S2: 高等数学B（Ⅱ） | T2: 无机与分析化学实验（Ⅰ） | U2: 有机化学 | V2: 大学物理C（Ⅰ） | W2: 大学英语（Ⅱ） | X2: 大学体育（Ⅱ） | Y2: 金工实习 | Z2: 物理化学（Ⅰ） | AA2: 大学物理C（Ⅱ） | AB2: 大学物理实验B（Ⅰ） | AC2: 毛概（Ⅰ） | AD2: 马原 | AE2: 大学英语（Ⅲ） | AF2: 大学体育（Ⅲ） | AG2: 生物化学 | AH2: 线性代数 | AI2: 有机化学实验 | AJ2: 无机与分析化学实验（Ⅱ） | AK2: 化工原理（Ⅰ） | AL2: 环境监测实验 | AM2: 环境监测 | AN2: 工程力学（环工） | AO2: 概率统计基础 | AP2: 物理化学实验（Ⅰ） | AQ2: 物理化学（Ⅱ） | AR2: 大学物理实验B（Ⅱ） | AS2: 毛概（Ⅱ） | AT2: 大学英语Ⅳ | AU2: 大学体育Ⅳ | AV2: 认识实习 | AW2: 化工原理实验（Ⅰ） | AX2: 化工原理（Ⅱ） | AY2: 环境工程微生物学 | AZ2: 水污染控制工程（Ⅰ） | BA2: 电工学及实验 | BB2: 物理化学实验（Ⅱ） | BC2: 项目管理与技术经济 | BD2: 环境工程微生物学实验 | BE2: 水污染控制工程（Ⅰ）课程设计 | BF2: 化工原理实验（II） | BG2: 大气污染控制工程实验 | BH2: 水污染控制工程（II）课程设计 | BI2: 大气污染控制工程 | BJ2: 水污染控制工程（Ⅱ） | BK2: 就业指导 | BL2: 总学分 | BM2: 优秀门数 | BN2: 总门数 | BO2: 优良率
H3: 1 | I3: 2 | J3: 6 | K3: 4.5 | L3: 2 | M3: 2 | N3: 4 | O3: 1 | P3: 2.5 | Q3: 1 | R3: 3 | S3: 5 | T3: 2.5 | U3: 4 | V3: 3 | W3: 4 | X3: 1 | Y3: 2 | Z3: 3 | AA3: 3 | AB3: 2 | AC3: 2 | AD3: 2 | AE3: 2 | AF3: 1 | AG3: 2.5 | AH3: 3 | AI3: 2 | AJ3: 1 | AK3: 4 | AL3: 2 | AM3: 1.5 | AN3: 3 | AO3: 3 | AP3: 1.5 | AQ3: 3 | AR3: 2 | AS3: 2 | AT3: 2 | AU3: 1 | AV3: 2 | AW3: 1 | AX3: 4 | AY3: 2 | AZ3: 2 | BA3: 2 | BB3: 1.5 | BC3: 3 | BD3: 1.5 | BE3: 2 | BF3: 1 | BG3: 0.5 | BH3: 2 | BI3: 2.5 | BJ3: 3 | BK3: 1 | BL3: 130
A4: 1 | B4: 高信中 | C4: 2015010676 | D4: 有 | E4: 有 | F4: 无 | G4: 无 | H4: 68 | I4: 88 | J4: 60 | K4: 60 | L4: 90 | M4: 60 | N4: =N30*1.1 -> 88 | O4: 80 | P4: 79 | Q4: 86 | R4: 63 | S4: 61 | T4: 78 | U4: 69 | V4: 78 | W4: =W30*1.1 -> 93.5 | X4: 85 | Y4: 89 | Z4: 22 | AA4: 61 | AB4: 70 | AC4: 82 | AD4: 81 | AE4: =AE30*1.1 -> 93.5 | AF4: 92 | AG4: 78 | AH4: 47 | AI4: 76 | AJ4: 83 | AK4: 14 | AL4: 76 | AM4: 60 | AN4: 60 | AO4: 60 | AP4: 75 | AQ4: 26 | AR4: 82 | AS4: 89 | AT4: =AT30*1.1 -> 99 | AU4: 86 | AV4: 61 | AW4: 60 | AX4: 14 | AY4: 67 | AZ4: 43 | BA4: 60 | BB4: 75 | BC4: 61 | BD4: 69 | BE4: 60 | BF4: 60.0 | BG4: 81.0 | BH4: 77.0 | BI4: 68.0 | BJ4: 82.0 | BK4: 60.0 | BM4: =COUNTIF(H4:BK4,">=80") -> 17 | BN4: =COUNTIF(H4:BK4,">=0") -> 50 | BO4: =BM4/BN4 -> 34.00%
A5: 2 | B5: 程诗宇 | C5: 2016010599 | D5: 无 | E5: 无 | F5: 无 | G5: 无 | H5: 85 | I5: 91 | J5: 95 | K5: 90 | L5: 82 | M5: 76 | N5: =N31*1.1 -> 82.5 | O5: 78 | P5: 95 | Q5: 94 | R5: 81 | S5: 94 | T5: 87 | U5: 87 | V5: 88 | W5: =W31*1.1 -> 89.1 | X5: 93 | Y5: 88 | Z5: 81 | AA5: 93 | AB5: 78 | AC5: 67 | AD5: 80 | AE5: =AE31*1.1 -> 84.7 | AF5: 86 | AG5: 80 | AH5: 82 | AI5: 90 | AJ5: 95 | AK5: 82 | AL5: 88 | AM5: 82 | AN5: 78 | AO5: 72 | AP5: 83 | AQ5: 81 | AR5: 86 | AS5: 90 | AT5: =AT31*1.1 -> 91.3 | AU5: 87 | AV5: 83 | AW5: 83 | AX5: 88 | AY5: 86 | AZ5: 96 | BA5: 92 | BB5: 90 | BC5: 91 | BD5: 90 | BE5: 80 | BF5: 91.0 | BG5: 90.0 | BH5: 90.0 | BI5: 87.0 | BJ5: 89.0 | BK5: 83.0 | BM5: =COUNTIF(H5:BK5,">=80") -> 44 | BN5: =COUNTIF(H5:BK5,">=0") -> 50 | BO5: =BM5/BN5 -> 88.00%
A6: 3 | B6: 李异繁 | C6: 2016010602 | D6: 无 | E6: 无 | F6: 无 | G6: 无 | H6: 88 | I6: 92 | J6: 78 | K6: 91 | L6: 88 | M6: 81 | N6: =N32*1.15 -> 110.4 | O6: 81 | P6: 96 | Q6: 94 | R6: 86 | S6: 90 | T6: 96 | U6: 94 | V6: 86 | W6: =W32*1.15 -> 106.95 | X6: 98 | Y6: 90 | Z6: 81 | AA6: 85 | AB6: 88 | AC6: 82 | AD6: 80 | AE6: =AE32*1.15 -> 106.95 | AF6: 97 | AG6: 84 | AH6: 94 | AI6: 91 | AJ6: 92 | AK6: 83 | AL6: 92 | AM6: 90 | AN6: 90 | AO6: 78 | AP6: 89 | AQ6: 96 | AR6: 91 | AS6: 92 | AT6: =AT32*1.15 -> 103.5 | AU6: 93 | AV6: 93 | AW6: 92 | AX6: 97 | AY6: 95 | AZ6: 98 | BA6: 98 | BB6: 90 | BC6: 99 | BD6: 93 | BE6: 89 | BF6: 94.0 | BG6: 93.0 | BH6: 90.0 | BI6: 94.0 | BJ6: 98.0 | BK6: 92.0 | BM6: 48 | BN6: 50 | BO6: 96.00%
A7: 4 | B7: 刘涵钰 | C7: 2016010603 | D7: 无 | E7: 无 | F7: 无 | G7: 无 | H7: 79 | I7: 91 | J7: 77 | K7: 88 | L7: 91 | M7: 77 | N7: =N33*1.1 -> 89.1 | O7: 72 | P7: 88 | Q7: 92 | R7: 81 | S7: 94 | T7: 88 | U7: 86 | V7: 89 | W7: =W33*1.1 -> 89.1 | X7: 87 | Y7: 90 | Z7: 67 | AA7: 91 | AB7: 84 | AC7: 82 | AD7: 80 | AE7: =AE33*1.1 -> 84.7 | AF7: 80 | AG7: 83 | AH7: 83 | AI7: 87 | AJ7: 92 | AK7: 73 | AL7: 88 | AM7: 83 | AN7: 83 | AO7: 76 | AP7: 87 | AQ7: 86 | AR7: 87 | AS7: 93 | AT7: =AT33*1.1 -> 82.5 | AU7: 82 | AV7: 81 | AW7: 88 | AX7: 93 | AY7: 87 | AZ7: 90 | BA7: 90 | BB7: 90 | BC7: 92 | BD7: 88 | BE7: 87 | BF7: 94.0 | BG7: 92.0 | BH7: 92.0 | BI7: 88.0 | BJ7: 92.0 | BK7: 89.0 | BM7: 43 | BN7: 50 | BO7: 86.00%
A8: 5 | B8: 刘雅 | C8: 2016010604 | D8: 无 | E8: 无 | F8: 无 | G8: 无 | H8: 81 | I8: 88 | J8: 98 | K8: 93 | L8: 90 | M8: 80 | N8: =N34*1.2 -> 102 | O8: 83 | P8: 96 | Q8: 84 | R8: 84 | S8: 100 | T8: 94 | U8: 94 | V8: 96 | W8: =W34*1.2 -> 100.8 | X8: 90 | Y8: 90 | Z8: 95 | AA8: 99 | AB8: 92 | AC8: 87 | AD8: 89 | AE8: =AE34*1.2 -> 102 | AF8: 81 | AG8: 92 | AH8: 98 | AI8: 91 | AJ8: 91 | AK8: 87 | AL8: 91 | AM8: 94 | AN8: 96 | AO8: 90 | AP8: 89 | AQ8: 96 | AR8: 89 | AS8: 93 | AT8: =AT34*1.15 -> 93.15 | AU8: 89 | AV8: 91 | AW8: 86 | AX8: 95 | AY8: 94 | AZ8: 97 | BA8: 97 | BB8: 90 | BC8: 99 | BD8: 89 | BE8: 95 | BF8: 91.0 | BG8: 94.0 | BH8: 85.0 | BI8: 97.0 | BJ8: 97.0 | BK8: 89.0 | BM8: 50 | BN8: 50 | BO8: 100.00%
A9: 6 | B9: 马晓红 | C9: 2016010605 | D9: 有 | E9: 无 | F9: 有 | G9: 无 | H9: 77 | I9: 87 | J9: 69 | K9: 66 | L9: 80 | M9: 73 | N9: =N35*1.1 -> 66 | O9: 77 | P9: 68 | Q9: 71 | R9: 60 | S9: 60 | T9: 78 | U9: 69 | V9: 60 | W9: =W35*1.1 -> 81.4 | X9: 81 | Y9: 92 | Z9: 61 | AA9: 61 | AB9: 64 | AC9: 70 | AD9: 72 | AE9: =AE35*1.1 -> 80.3 | AF9: 86 | AG9: 76 | AH9: 71 | AI9: 80 | AJ9: 90 | AK9: 63 | AL9: 73 | AM9: 60 | AN9: 61 | AO9: 69 | AP9: 86 | AQ9: 66 | AR9: 85 | AS9: 87 | AT9: =AT35*1.1 -> 77 | AU9: 83 | AV9: 82 | AW9: 74 | AX9: 70 | AY9: 74 | AZ9: 82 | BA9: 75 | BB9: 85 | BC9: 86 | BD9: 85 | BE9: 70 | BF9: 85.0 | BG9: 89.0 | BH9: 73.0 | BI9: 74.0 | BJ9: 76.0 | BK9: 63.0 | BM9: 18 | BN9: 50 | BO9: 36.00%
A10: 7 | B10: 马一凡 | C10: 2016010606 | D10: 无 | E10: 无 | F10: 无 | G10: 无 | H10: 82 | I10: 90 | J10: 87 | K10: 91 | L10: 84 | M10: 72 | N10: =N36*1.15 -> 103.5 | O10: 77 | P10: 90 | Q10: 73 | R10: 86 | S10: 87 | T10: 87 | U10: 90 | V10: 88 | W10: =W36*1.15 -> 97.75 | X10: 86 | Y10: 88 | Z10: 60 | AA10: 86 | AB10: 71 | AC10: 78 | AD10: 85 | AE10: =AE36*1.15 -> 100.05 | AF10: 89 | AG10: 80 | AH10: 73 | AI10: 84 | AJ10: 90 | AK10: 70 | AL10: 74 | AM10: 77 | AN10: 66 | AO10: 79 | AP10: 83 | AQ10: 85 | AR10: 88 | AS10: 89 | AT10: =AT36*1.15 -> 85.1 | AU10: 90 | AV10: 90 | AW10: 76 | AX10: 79 | AY10: 82 | AZ10: 81 | BA10: 98 | BB10: 87 | BC10: 83 | BD10: 76 | BE10: 76 | BF10: 87.0 | BG10: 87.0 | BH10: 81.0 | BI10: 84.0 | BJ10: 67.0 | BK10: 77.0 | BM10: 34 | BN10: 50 | BO10: 68.00%
A11: 8 | B11: 齐泽丰 | C11: 2016010607 | D11: 无 | E11: 无 | F11: 无 | G11: 无 | H11: 84 | I11: 95 | J11: 82 | K11: 78 | L11: 82 | M11: 88 | N11: =N37*1.1 -> 92.4 | O11: 89 | P11: 91 | Q11: 82 | R11: 71 | S11: 89 | T11: 91 | U11: 82 | V11: 87 | W11: =W37*1.1 -> 99 | X11: 96 | Y11: 94 | Z11: 64 | AA11: 77 | AB11: 78 | AC11: 91 | AD11: 86 | AE11: =AE37*1.1 -> 95.7 | AF11: 92 | AG11: 80 | AH11: 76 | AI11: 87 | AJ11: 93 | AK11: 70 | AL11: 87 | AM11: 70 | AN11: 81 | AO11: 64 | AP11: 88 | AQ11: 93 | AR11: 90 | AS11: 90 | AT11: =AT37*1.1 -> 90.2 | AU11: 91 | AV11: 98 | AW11: 85 | AX11: 85 | AY11: 91 | AZ11: 95 | BA11: 99 | BB11: 88 | BC11: 91 | BD11: 88 | BE11: 86 | BF11: 94.0 | BG11: 90.0 | BH11: 90.0 | BI11: 92.0 | BJ11: 89.0 | BK11: 85.0 | BM11: 41 | BN11: 50 | BO11: 82.00%
A12: 9 | B12: 任玥辉 | C12: 2016010608 | D12: 无 | E12: 无 | F12: 无 | G12: 无 | H12: 88 | I12: 94 | J12: 84 | K12: 80 | L12: 86 | M12: 87 | N12: =N38*1.1 -> 88 | O12: 80 | P12: 84 | Q12: 78 | R12: 75 | S12: 82 | T12: 88 | U12: 81 | V12: 76 | W12: =W38*1.1 -> 100.1 | X12: 88 | Y12: 90 | Z12: 64 | AA12: 85 | AB12: 76 | AC12: 86 | AD12: 87 | AE12: =AE38*1.1 -> 95.7 | AF12: 89 | AG12: 75 | AH12: 82 | AI12: 89 | AJ12: 92 | AK12: 75 | AL12: 89 | AM12: 85 | AN12: 91 | AO12: 85 | AP12: 90 | AQ12: 93 | AR12: 88 | AS12: 93 | AT12: =AT38*1.1 -> 97.9 | AU12: 82 | AV12: 89 | AW12: 81 | AX12: 70 | AY12: 88 | AZ12: 85 | BA12: 87 | BB12: 90 | BC12: 85 | BD12: 91 | BE12: 82 | BF12: 90.0 | BG12: 91.0 | BH12: 93.0 | BI12: 85.0 | BJ12: 91.0 | BK12: 90.0 | BM12: 42 | BN12: 50 | BO12: 84.00%
A13: 10 | B13: 唐钰琪 | C13: 2016010609 | D13: 有 | E13: 无 | F13: 无 | G13: 无 | H13: 83 | I13: 93 | J13: 66 | K13: 80 | L13: 82 | M13: 82 | N13: =N39*1.1 -> 99 | O13: 89 | P13: 78 | Q13: 81 | R13: 78 | S13: 81 | T13: 92 | U13: 67 | V13: 84 | W13: =W39*1.1 -> 101.2 | X13: 95 | Y13: 92 | Z13: 82 | AA13: 84 | AB13: 76 | AC13: 92 | AD13: 87 | AE13: =AE39*1.1 -> 101.2 | AF13: 93 | AG13: 77 | AH13: 86 | AI13: 87 | AJ13: 91 | AK13: 62 | AL13: 87 | AM13: 67 | AN13: 90 | AO13: 66 | AP13: 88 | AQ13: 73 | AR13: 86 | AS13: 90 | AT13: =AT39*1.1 -> 93.5 | AU13: 90 | AV13: 94 | AW13: 82 | AX13: 77 | AY13: 96 | AZ13: 92 | BA13: 70 | BB13: 88 | BC13: 84 | BD13: 91 | BE13: 76 | BF13: 93.0 | BG13: 91.0 | BH13: 91.0 | BI13: 84.0 | BJ13: 0 | BK13: 83.0 | BM13: 37 | BN13: 50 | BO13: 74.00%
A14: 11 | B14: 闫玺宇 | C14: 2016010610 | D14: 有 | E14: 无 | F14: 无 | G14: 无 | H14: 72 | I14: 87 | J14: 62 | K14: 65 | L14: 85 | M14: 66 | N14: =N40*1.1 -> 80.3 | O14: 89 | P14: 67 | Q14: 75 | R14: 61 | S14: 60 | T14: 77 | U14: 65 | V14: 68 | W14: =W40*1.1 -> 88 | X14: 96 | Y14: 90 | Z14: 61 | AA14: 60 | AB14: 67 | AC14: 78 | AD14: 76 | AE14: =AE40*1.1 -> 90.2 | AF14: 90 | AG14: 83 | AH14: 83 | AI14: 80 | AJ14: 91 | AK14: 57 | AL14: 83 | AM14: 60 | AN14: 82 | AO14: 94 | AP14: 86 | AQ14: 60 | AR14: 85 | AS14: 86 | AT14: =AT40*1.1 -> 79.2 | AU14: 88 | AV14: 80 | AW14: 68 | AX14: 60 | AY14: 85 | AZ14: 67 | BA14: 71 | BB14: 81 | BC14: 57 | BD14: 85 | BE14: 68 | BF14: 78.0 | BG14: 91.0 | BH14: 60.0 | BI14: 64.0 | BJ14: 64.0 | BK14: 71.0 | BM14: 24 | BN14: 50 | BO14: 48.00%
A15: 12 | B15: 杨玉凤 | C15: 2016010611 | D15: 有 | E15: 无 | F15: 无 | G15: 无 | H15: 83 | I15: 91 | J15: 60 | K15: 62 | L15: 88 | M15: 76 | N15: =N41*1.1 -> 68.2 | O15: 84 | P15: 83 | Q15: 70 | R15: 67 | S15: 83 | T15: 86 | U15: 72 | V15: 60 | W15: =W41*1.1 -> 88 | X15: 90 | Y15: 93 | Z15: 61 | AA15: 64 | AB15: 79 | AC15: 78 | AD15: 77 | AE15: =AE41*1.1 -> 81.4 | AF15: 92 | AG15: 79 | AH15: 68 | AI15: 84 | AJ15: 87 | AK15: 60 | AL15: 88 | AM15: 64 | AN15: 66 | AO15: 62 | AP15: 88 | AQ15: 67 | AR15: 84 | AS15: 91 | AT15: =AT41*1.1 -> 77 | AU15: 77 | AV15: 83 | AW15: 76 | AX15: 55 | AY15: 68 | AZ15: 85 | BA15: 63 | BB15: 84 | BC15: 78 | BD15: 86 | BE15: 78 | BF15: 91.0 | BG15: 90.0 | BH15: 81.0 | BI15: 81.0 | BJ15: 75.0 | BK15: 76.0 | BM15: 22 | BN15: 50 | BO15: 44.00%
A16: 13 | B16: 游恋 | C16: 2016010612 | D16: 无 | E16: 无 | F16: 有 | G16: 无 | H16: 77 | I16: 87 | J16: 84 | K16: 93 | L16: 83 | M16: 78 | N16: =N42 -> 63 | O16: 85 | P16: 87 | Q16: 92 | R16: 76 | S16: 98 | T16: 91 | U16: 91 | V16: 95 | W16: =W42 -> 61 | X16: 93 | Y16: 93 | Z16: 80 | AA16: 91 | AB16: 86 | AC16: 81 | AD16: 79 | AE16: =AE42 -> 74 | AF16: 91 | AG16: 80 | AH16: 84 | AI16: 90 | AJ16: 88 | AK16: 84 | AL16: 89 | AM16: 84 | AN16: 86 | AO16: 82 | AP16: 90 | AQ16: 93 | AR16: 87 | AS16: 90 | AT16: =AT42 -> 80 | AU16: 94 | AV16: 87 | AW16: 85 | AX16: 91 | AY16: 85 | AZ16: 87 | BA16: 97 | BB16: 88 | BC16: 84 | BD16: 91 | BE16: 93 | BF16: 90.0 | BG16: 91.0 | BH16: 94.0 | BI16: 85.0 | BJ16: 96.0 | BK16: 89.0 | BM16: 43 | BN16: 50 | BO16: 86.00%
A17: 14 | B17: 余美琪 | C17: 2016010613 | D17: 无 | E17: 无 | F17: 无 | G17: 无 | H17: 81 | I17: 91 | J17: 84 | K17: 81 | L17: 77 | M17: 72 | N17: =N43*1.15 -> 103.5 | O17: 79 | P17: 73 | Q17: 75 | R17: 68 | S17: 85 | T17: 86 | U17: 86 | V17: 89 | W17: =W43*1.15 -> 100.05 | X17: 85 | Y17: 89 | Z17: 80 | AA17: 90 | AB17: 86 | AC17: 88 | AD17: 84 | AE17: =AE43*1.15 -> 96.6 | AF17: 89 | AG17: 75 | AH17: 84 | AI17: 88 | AJ17: 87 | AK17: 80 | AL17: 92 | AM17: 78 | AN17: 87 | AO17: 83 | AP17: 89 | AQ17: 87 | AR17: 87 | AS17: 92 | AT17: =AT43*1.15 -> 87.4 | AU17: 93 | AV17: 90 | AW17: 80 | AX17: 92 | AY17: 94 | AZ17: 87 | BA17: 91 | BB17: 87 | BC17: 88 | BD17: 89 | BE17: 72 | BF17: 96.0 | BG17: 91.0 | BH17: 93.0 | BI17: 90.0 | BJ17: 90.0 | BK17: 84.0 | BM17: 41 | BN17: 50 | BO17: 82.00%
A18: 15 | B18: 仲英杰 | C18: 2016010614 | D18: 无 | E18: 无 | F18: 无 | G18: 无 | H18: 90 | I18: 94 | J18: 98 | K18: 93 | L18: 88 | M18: 86 | N18: =N44*1.1 -> 94.6 | O18: 79 | P18: 90 | Q18: 82 | R18: 83 | S18: 93 | T18: 90 | U18: 91 | V18: 93 | W18: =W44*1.1 -> 95.7 | X18: 93 | Y18: 90 | Z18: 86 | AA18: 91 | AB18: 86 | AC18: 85 | AD18: 87 | AE18: =AE44*1.1 -> 103.4 | AF18: 93 | AG18: 78 | AH18: 86 | AI18: 90 | AJ18: 90 | AK18: 74 | AL18: 85 | AM18: 82 | AN18: 81 | AO18: 80 | AP18: 89 | AQ18: 86 | AR18: 85 | AS18: 93 | AT18: =AT44*1.1 -> 99 | AU18: 82 | AV18: 91 | AW18: 84 | AX18: 79 | AY18: 83 | AZ18: 92 | BA18: 87 | BB18: 90 | BC18: 95 | BD18: 92 | BE18: 88 | BF18: 90.0 | BG18: 94.0 | BH18: 91.0 | BI18: 94.0 | BJ18: 94.0 | BK18: 86.0 | BM18: 46 | BN18: 50 | BO18: 92.00%
A19: 16 | B19: 陈闯 | C19: 2016010617 | D19: 无 | E19: 无 | F19: 无 | G19: 无 | H19: 83 | I19: 94 | J19: 91 | K19: 90 | L19: 89 | M19: 78 | N19: =N45*1.1 -> 82.5 | O19: 94 | P19: 85 | Q19: 81 | R19: 68 | S19: 100 | T19: 86 | U19: 83 | V19: 86 | W19: =W45*1.1 -> 93.5 | X19: 94 | Y19: 96 | Z19: 72 | AA19: 92 | AB19: 78 | AC19: 88 | AD19: 87 | AE19: =AE45*1.1 -> 88 | AF19: 95 | AG19: 86 | AH19: 94 | AI19: 89 | AJ19: 92 | AK19: 72 | AL19: 88 | AM19: 74 | AN19: 86 | AO19: 87 | AP19: 89 | AQ19: 90 | AR19: 88 | AS19: 85 | AT19: =AT45*1.1 -> 80.3 | AU19: 94 | AV19: 88 | AW19: 81 | AX19: 82 | AY19: 90 | AZ19: 90 | BA19: 89 | BB19: 88 | BC19: 88 | BD19: 88 | BE19: 84 | BF19: 88.0 | BG19: 91.0 | BH19: 90.0 | BI19: 90.0 | BJ19: 86.0 | BK19: 88.0 | BM19: 44 | BN19: 50 | BO19: 88.00%
A20: 17 | B20: 丁相瑞 | C20: 2016010619 | D20: 有 | E20: 无 | F20: 无 | G20: 无 | H20: 81 | I20: 89 | J20: 83 | K20: 73 | L20: 81 | M20: 78 | N20: 69.3 | O20: 69 | P20: 78 | Q20: 84 | R20: 60 | S20: 90 | T20: 78 | U20: 77 | V20: 76 | W20: 92.4 | X20: 88 | Y20: 94 | Z20: 62 | AA20: 74 | AB20: 75 | AC20: 83 | AD20: 77 | AE20: 85.8 | AF20: 88 | AG20: 79 | AH20: 74 | AI20: 80 | AJ20: 84 | AK20: 65 | AL20: 82 | AM20: 60 | AN20: 90 | AO20: 80 | AP20: 82 | AQ20: 78 | AR20: 88 | AS20: 91 | AT20: 83.6 | AU20: 82 | AV20: 84 | AW20: 75 | AX20: 72 | AY20: 91 | AZ20: 81 | BA20: 74 | BB20: 86 | BC20: 89 | BD20: 82 | BE20: 73 | BF20: 84.0 | BG20: 88.0 | BH20: 88.0 | BI20: 76.0 | BJ20: 75.0 | BK20: 73.0 | BM20: 28 | BN20: 50 | BO20: 56.00%
A21: 18 | B21: 高军政 | C21: 2016010620 | D21: 无 | E21: 无 | F21: 无 | G21: 无 | H21: 77 | I21: 92 | J21: 80 | K21: 90 | L21: 87 | M21: 73 | N21: 72.6 | O21: 74 | P21: 87 | Q21: 93 | R21: 78 | S21: 93 | T21: 83 | U21: 80 | V21: 92 | W21: 89.1 | X21: 87 | Y21: 90 | Z21: 68 | AA21: 91 | AB21: 77 | AC21: 79 | AD21: 79 | AE21: 84.7 | AF21: 79 | AG21: 69 | AH21: 73 | AI21: 83 | AJ21: 86 | AK21: 60 | AL21: 86 | AM21: 65 | AN21: 72 | AO21: 69 | AP21: 82 | AQ21: 82 | AR21: 86 | AS21: 82 | AT21: 74.8 | AU21: 64 | AV21: 88 | AW21: 80 | AX21: 87 | AY21: 90 | AZ21: 89 | BA21: 98 | BB21: 84 | BC21: 90 | BD21: 81 | BE21: 80 | BF21: 88.0 | BG21: 87.0 | BH21: 85.0 | BI21: 87.0 | BJ21: 88.0 | BK21: 78.0 | BM21: 32 | BN21: 50 | BO21: 64.00%
A22: 19 | B22: 贾钰森 | C22: 2016010621 | D22: 有 | E22: 无 | F22: 无 | G22: 无 | H22: 81 | I22: 85 | J22: 61 | K22: 78 | L22: 81 | M22: 75 | N22: 68.2 | O22: 82 | P22: 64 | Q22: 83 | R22: 63 | S22: 68 | T22: 81 | U22: 81 | V22: 80 | W22: 84.7 | X22: 91 | Y22: 86 | Z22: 69 | AA22: 70 | AB22: 77 | AC22: 80 | AD22: 73 | AE22: 78.1 | AF22: 91 | AG22: 75 | AH22: 62 | AI22: 83 | AJ22: 85 | AK22: 73 | AL22: 86 | AM22: 76 | AN22: 71 | AO22: 64 | AP22: 86 | AQ22: 91 | AR22: 84 | AS22: 81 | AT22: 74.8 | AU22: 88 | AV22: 77 | AW22: 74 | AX22: 74 | AY22: 85 | AZ22: 85 | BA22: 97 | BB22: 83 | BC22: 91 | BD22: 87 | BE22: 82 | BF22: 82.0 | BG22: 87.0 | BH22: 84.0 | BI22: 73.0 | BJ22: 0 | BK22: 79.0 | BM22: 28 | BN22: 50 | BO22: 56.00%
A23: 20 | B23: 李佳奇 | C23: 2016010622 | D23: 无 | E23: 无 | F23: 无 | G23: 无 | H23: 87 | I23: 92 | J23: 86 | K23: 87 | L23: 87 | M23: 91 | N23: 89.1 | O23: 83 | P23: 60 | Q23: 92 | R23: 74 | S23: 96 | T23: 83 | U23: 85 | V23: 91 | W23: 99 | X23: 90 | Y23: 92 | Z23: 91 | AA23: 93 | AB23: 80 | AC23: 89 | AD23: 84 | AE23: 102.3 | AF23: 89 | AG23: 83 | AH23: 87 | AI23: 92 | AJ23: 89 | AK23: 90 | AL23: 90 | AM23: 87 | AN23: 90 | AO23: 87 | AP23: 87 | AQ23: 98 | AR23: 86 | AS23: 93 | AT23: 94.6 | AU23: 92 | AV23: 84 | AW23: 85 | AX23: 89 | AY23: 88 | AZ23: 97 | BA23: 99 | BB23: 88 | BC23: 94 | BD23: 88 | BE23: 91 | BF23: 88.0 | BG23: 93.0 | BH23: 96.0 | BI23: 95.0 | BJ23: 94.0 | BK23: 86.0 | BM23: 48 | BN23: 50 | BO23: 96.00%
A24: 21 | B24: 李同 | C24: 2016010624 | D24: 无 | E24: 无 | F24: 无 | G24: 无 | H24: 87 | I24: 91 | J24: 78 | K24: 84 | L24: 88 | M24: 83 | N24: 73.7 | O24: 65 | P24: 83 | Q24: 70 | R24: 74 | S24: 79 | T24: 90 | U24: 81 | V24: 79 | W24: 89.1 | X24: 83 | Y24: 92 | Z24: 77 | AA24: 80 | AB24: 76 | AC24: 90 | AD24: 85 | AE24: 88 | AF24: 83 | AG24: 82 | AH24: 85 | AI24: 88 | AJ24: 86 | AK24: 65 | AL24: 90 | AM24: 68 | AN24: 90 | AO24: 64 | AP24: 88 | AQ24: 87 | AR24: 87 | AS24: 94 | AT24: 89.1 | AU24: 80 | AV24: 88 | AW24: 85 | AX24: 87 | AY24: 91 | AZ24: 92 | BA24: 90 | BB24: 87 | BC24: 90 | BD24: 91 | BE24: 75 | BF24: 89.0 | BG24: 89.0 | BH24: 94.0 | BI24: 92.0 | BJ24: 89.0 | BK24: 84.0 | BM24: 37 | BN24: 50 | BO24: 74.00%
A25: 22 | B25: 吴航飞 | C25: 2016010625 | D25: 有 | E25: 无 | F25: 无 | G25: 无 | H25: 81 | I25: 85 | J25: 64 | K25: 73 | L25: 78 | M25: 71 | N25: 73.7 | O25: 67 | P25: 75 | Q25: 77 | R25: 74 | S25: 81 | T25: 81 | U25: 78 | V25: 75 | W25: 91.3 | X25: 70 | Y25: 86 | Z25: 60 | AA25: 90 | AB25: 69 | AC25: 69 | AD25: 74 | AE25: 81.4 | AF25: 89 | AG25: 72 | AH25: 95 | AI25: 83 | AJ25: 86 | AK25: 68 | AL25: 73 | AM25: 61 | AN25: 91 | AO25: 65 | AP25: 82 | AQ25: 77 | AR25: 86 | AS25: 80 | AT25: 81.4 | AU25: 82 | AV25: 81 | AW25: 76 | AX25: 77 | AY25: 69 | AZ25: 78 | BA25: 87 | BB25: 83 | BC25: 84 | BD25: 82 | BE25: 66 | BF25: 78.0 | BG25: 86.0 | BH25: 76.0 | BI25: 66.0 | BJ25: 84.0 | BK25: 70.0 | BM25: 23 | BN25: 50 | BO25: 46.00%
A26: 23 | B26: 姚泽凯 | C26: 2016010626 | D26: 有 | E26: 无 | F26: 无 | G26: 无 | H26: 77 | I26: 91 | J26: 69 | K26: 70 | L26: 89 | M26: 77 | N26: =N52*1.2 -> 102 | O26: 88 | P26: 76 | Q26: 87 | R26: 75 | S26: 71 | T26: 83 | U26: 73 | V26: 79 | W26: =W52*1.2 -> 108 | X26: 92 | Y26: 87 | Z26: 73 | AA26: 78 | AB26: 73 | AC26: 74 | AD26: 73 | AE26: =AE52*1.2 -> 102 | AF26: 84 | AG26: 76 | AH26: 66 | AI26: 83 | AJ26: 83 | AK26: 60 | AL26: 81 | AM26: 68 | AN26: 73 | AO26: 60 | AP26: 82 | AQ26: 78 | AR26: 85 | AS26: 89 | AT26: =AT52*1.2 -> 108 | AU26: 90 | AV26: 75 | AW26: 80 | AX26: 72 | AY26: 76 | AZ26: 77 | BA26: 77 | BB26: 82 | BC26: 87 | BD26: 91 | BE26: 70 | BF26: 80.0 | BG26: 87.0 | BH26: 82.0 | BI26: 77.0 | BJ26: 86.0 | BK26: 70.0 | BM26: 23 | BN26: 50 | BO26: 46.00%
A27: 24 | B27: 于鹏 | C27: 2016010627 | D27: 有 | E27: 有 | F27: 有 | G27: 无 | H27: 80 | I27: 92 | J27: 74 | K27: 76 | L27: 83 | M27: 78 | N27: =N53 -> 76 | O27: 78 | P27: 63 | Q27: 74 | R27: 64 | S27: 76 | T27: 81 | U27: 67 | V27: 67 | W27: =W53 -> 64 | X27: 80 | Y27: 85 | Z27: 60 | AA27: 75 | AB27: 69 | AC27: 77 | AD27: 79 | AE27: =AE53 -> 67 | AF27: 91 | AG27: 73 | AH27: 67 | AI27: 83 | AJ27: 84 | AK27: 67 | AL27: 74 | AM27: 62 | AN27: 60 | AO27: 67 | AP27: 79 | AQ27: 66 | AR27: 85 | AS27: 85 | AT27: =AT53 -> 75 | AU27: 81 | AV27: 84 | AW27: 72 | AX27: 68 | AY27: 65 | AZ27: 75 | BA27: 79 | BB27: 80 | BC27: 82 | BD27: 78 | BE27: 84 | BF27: 74.0 | BG27: 84.0 | BH27: 79.0 | BI27: 75.0 | BJ27: 75.0 | BK27: 74.0 | BM27: 16 | BN27: 50 | BO27: 32.00%
A28: 25 | B28: 扎西多吉 | C28: 2016010628 | D28: 有 | E28: 无 | F28: 有 | G28: 无 | H28: 60 | I28: 75 | J28: 60 | K28: 45 | L28: 60 | M28: 60 | N28: =N54 -> 43.5 | O28: 74 | P28: 54 | Q28: 45 | R28: 41 | S28: 60 | T28: 68 | U28: 46 | V28: 60 | W28: =W54 -> 41 | X28: 81 | Y28: 86 | Z28: 41 | AA28: 61 | AB28: 60 | AC28: 67 | AD28: 60 | AE28: =AE54 -> 60 | AF28: 89 | AG28: 68 | AH28: 60 | AI28: 76 | AJ28: 84 | AK28: 40 | AL28: 75 | AM28: 53 | AN28: 49 | AO28: 66 | AP28: 84 | AQ28: 46 | AR28: 87 | AS28: 60 | AT28: =AT54 -> 51 | AU28: 93 | AV28: 70 | AW28: 64 | AX28: 35 | AY28: 60 | AZ28: 54 | BA28: 50 | BB28: 82 | BC28: 64 | BD28: 81 | BE28: 69 | BF28: 68.0 | BG28: 79.0 | BH28: 67.0 | BI28: 52.0 | BJ28: 57.0 | BK28: 69.0 | BM28: 9 | BN28: 50 | BO28: 18.00%
B30: 英语 | C30: 英语A精英班 | I30: 核对无误成绩 | N30: 80 | W30: 85 | AE30: 85 | AT30: 90
C31: 英语A班 | I31: 补考通过 | N31: 75 | W31: 81 | AE31: 77 | AT31: 83
C32: 英语B班 | I32: 核对过后发先原来分数错误，按照成绩单纠正的分数。请再次核对。 | N32: =96 -> 96 | W32: =93 -> 93 | AE32: =93 -> 93 | AT32: =90 -> 90
C33: 英语C班 | N33: 81 | W33: 81 | AE33: 77 | AT33: 75
N34: =85 -> 85 | W34: =84 -> 84 | AE34: =85 -> 85 | AT34: =81 -> 81
N35: 60 | W35: 74 | AE35: 73 | AT35: 70
N36: =90 -> 90 | W36: =85 -> 85 | AE36: =87 -> 87 | AT36: =74 -> 74
N37: 84 | W37: 90 | AE37: 87 | AT37: 82
N38: 80 | W38: 91 | AE38: 87 | AT38: 89
N39: 90 | W39: 92 | AE39: 92 | AT39: 85
N40: 73 | W40: 80 | AE40: 82 | AT40: 72
N41: 62 | W41: 80 | AE41: 74 | AT41: 70
N42: 63 | W42: 61 | AE42: 74 | AT42: 80
N43: =90 -> 90 | W43: =87 -> 87 | AE43: =84 -> 84 | AT43: =76 -> 76
N44: 86 | W44: 87 | AE44: 94 | AT44: 90
N45: 75 | W45: 85 | AE45: 80 | AT45: 73
N46: 63 | W46: 84 | AE46: 78 | AT46: 76
N47: 66 | W47: 81 | AE47: 77 | AT47: 68
N48: 62 | W48: 77 | AE48: 71 | AT48: 68
N49: 81 | W49: 90 | AE49: 93 | AT49: 86
N50: 67 | W50: 81 | AE50: 80 | AT50: 81
N51: 67 | W51: 83 | AE51: 74 | AT51: 74
N52: =85 -> 85 | W52: =90 -> 90 | AE52: =85 -> 85 | AT52: =90 -> 90
N53: 76 | W53: 64 | AE53: 67 | AT53: 75
N54: 43.5 | W54: 41 | AE54: 60 | AT54: 51

Sheet 环工16-1两年综测
A1: 序号 | B1: 姓名 | C1: 学号 | D1: 大一上学期 | L1: 大一下学期 | V1: 大二上学期 | AG1: 大二下学期 | AS1: 大三上学期
D2: 入学教育与安全教育 | E2: 军事训练（Ⅰ） | F2: 高等数学B（Ⅰ） | G2: 无机化学与分析化学 | H2: 思想道德修养与法律基础 | I2: 中国近代史纲要 | J2: 大学英语（Ⅰ） | K2: 大学体育（Ⅰ） | L2: 机械制图 | M2: 计算机辅助绘图 | N2: VB程序设计（A） | O2: 高等数学B（Ⅱ） | P2: 无机与分析化学实验（Ⅰ） | Q2: 有机化学 | R2: 大学物理C（Ⅰ） | S2: 大学英语（Ⅱ） | T2: 大学体育（Ⅱ） | U2: 金工实习 | V2: 物理化学（Ⅰ） | W2: 大学物理C（Ⅱ） | X2: 大学物理实验B（Ⅰ） | Y2: 毛概（Ⅰ） | Z2: 马原 | AA2: 大学英语（Ⅲ） | AB2: 大学体育（Ⅲ） | AC2: 生物化学 | AD2: 线性代数 | AE2: 有机化学实验 | AF2: 无机与分析化学实验（Ⅱ） | AG2: 化工原理（Ⅰ） | AH2: 环境监测实验 | AI2: 环境监测 | AJ2: 工程力学（环工） | AK2: 概率统计基础 | AL2: 物理化学实验（Ⅰ） | AM2: 物理化学（Ⅱ） | AN2: 大学物理实验B（Ⅱ） | AO2: 毛概（Ⅱ） | AP2: 大学英语Ⅳ | AQ2: 大学体育Ⅳ | AR2: 认识实习 | AS2: 化工原理实验（Ⅰ） | AT2: 化工原理（Ⅱ） | AU2: 环境工程微生物学 | AV2: 水污染控制工程（Ⅰ） | AW2: 电工学及实验 | AX2: 物理化学实验（Ⅱ） | AY2: 项目管理与技术经济 | AZ2: 环境工程微生物学实验 | BA2: 水污染控制工程（Ⅰ）课程设计 | BB2: 总学分 | BC2: 优良率 | BD2: 综测一 | BE2: 综测二 | BF2: 综测三 | BG2: 综测总分 | BH2: 综测加权 | BI2: 0.2*综测加权
D3: 1 | E3: 2 | F3: 6 | G3: 4.5 | H3: 2 | I3: 2 | J3: 4 | K3: 1 | L3: 2.5 | M3: 1 | N3: 3 | O3: 5 | P3: 2.5 | Q3: 4 | R3: 3 | S3: 4 | T3: 1 | U3: 2 | V3: 3 | W3: 3 | X3: 2 | Y3: 2 | Z3: 2 | AA3: 2 | AB3: 1 | AC3: 2.5 | AD3: 3 | AE3: 2 | AF3: 1 | AG3: 4 | AH3: 2 | AI3: 1.5 | AJ3: 3 | AK3: 3 | AL3: 1.5 | AM3: 3 | AN3: 2 | AO3: 2 | AP3: 2 | AQ3: 1 | AR3: 2 | AS3: 1 | AT3: 4 | AU3: 2 | AV3: 2 | AW3: 2 | AX3: 1.5 | AY3: 3 | AZ3: 1.5 | BA3: 2 | BB3: 120
B4: 高信中 | C4: 2015010676 | D4: ='环工16-1分数统计'!H4*'环工16-1分数统计'!$H$3/120 -> 0.5666666667 | E4: ='环工16-1分数统计'!I4*'环工16-1分数统计'!$I$3/120 -> 1.466666667 | F4: ='环工16-1分数统计'!J4*'环工16-1分数统计'!$J$3/120 -> 3 | G4: ='环工16-1分数统计'!K4*'环工16-1分数统计'!$K$3/120 -> 2.25 | H4: ='环工16-1分数统计'!L4*'环工16-1分数统计'!$L$3/120 -> 1.5 | I4: ='环工16-1分数统计'!M4*'环工16-1分数统计'!$M$3/120 -> 1 | J4: ='环工16-1分数统计'!N4*'环工16-1分数统计'!$N$3/120 -> 2.933333333 | K4: ='环工16-1分数统计'!O4*'环工16-1分数统计'!$O$3/120 -> 0.6666666667 | L4: ='环工16-1分数统计'!P4*'环工16-1分数统计'!$P$3/120 -> 1.645833333 | M4: ='环工16-1分数统计'!Q4*'环工16-1分数统计'!$Q$3/120 -> 0.7166666667 | N4: ='环工16-1分数统计'!R4*'环工16-1分数统计'!$R$3/120 -> 1.575 | O4: ='环工16-1分数统计'!S4*'环工16-1分数统计'!$S$3/120 -> 2.541666667 | P4: ='环工16-1分数统计'!T4*'环工16-1分数统计'!$T$3/120 -> 1.625 | Q4: ='环工16-1分数统计'!U4*'环工16-1分数统计'!$U$3/120 -> 2.3 | R4: ='环工16-1分数统计'!V4*'环工16-1分数统计'!$V$3/120 -> 1.95 | S4: ='环工16-1分数统计'!W4*'环工16-1分数统计'!$W$3/120 -> 3.116666667 | T4: ='环工16-1分数统计'!X4*'环工16-1分数统计'!$X$3/120 -> 0.7083333333 | U4: ='环工16-1分数统计'!Y4*'环工16-1分数统计'!$Y$3/120 -> 1.483333333 | V4: ='环工16-1分数统计'!Z4*'环工16-1分数统计'!$Z$3/120 -> 0.55 | W4: ='环工16-1分数统计'!AA4*'环工16-1分数统计'!$AA$3/120 -> 1.525 | X4: ='环工16-1分数统计'!AB4*'环工16-1分数统计'!$AB$3/120 -> 1.166666667 | Y4: ='环工16-1分数统计'!AC4*'环工16-1分数统计'!$AC$3/120 -> 1.366666667 | Z4: ='环工16-1分数统计'!AD4*'环工16-1分数统计'!$AD$3/120 -> 1.35 | AA4: ='环工16-1分数统计'!AE4*'环工16-1分数统计'!$AE$3/120 -> 1.558333333 | AB4: ='环工16-1分数统计'!AF4*'环工16-1分数统计'!$AF$3/120 -> 0.7666666667 | AC4: ='环工16-1分数统计'!AG4*'环工16-1分数统计'!$AG$3/120 -> 1.625 | AD4: ='环工16-1分数统计'!AH4*'环工16-1分数统计'!$AH$3/120 -> 1.175 | AE4: ='环工16-1分数统计'!AI4*'环工16-1分数统计'!$AI$3/120 -> 1.266666667 | AF4: ='环工16-1分数统计'!AJ4*'环工16-1分数统计'!$AJ$3/120 -> 0.6916666667 | AG4: ='环工16-1分数统计'!AK4*'环工16-1分数统计'!$AK$3/120 -> 0.4666666667 | AH4: ='环工16-1分数统计'!AL4*'环工16-1分数统计'!$AL$3/120 -> 1.266666667 | AI4: ='环工16-1分数统计'!AM4*'环工16-1分数统计'!$AM$3/120 -> 0.75 | AJ4: ='环工16-1分数统计'!AN4*'环工16-1分数统计'!$AN$3/120 -> 1.5 | AK4: ='环工16-1分数统计'!AO4*'环工16-1分数统计'!$AO$3/120 -> 1.5 | AL4: ='环工16-1分数统计'!AP4*'环工16-1分数统计'!$AP$3/120 -> 0.9375 | AM4: ='环工16-1分数统计'!AQ4*'环工16-1分数统计'!$AQ$3/120 -> 0.65 | AN4: ='环工16-1分数统计'!AR4*'环工16-1分数统计'!$AR$3/120 -> 1.366666667 | AO4: ='环工16-1分数统计'!AS4*'环工16-1分数统计'!$AS$3/120 -> 1.483333333 | AP4: ='环工16-1分数统计'!AT4*'环工16-1分数统计'!$AT$3/120 -> 1.65 | AQ4: ='环工16-1分数统计'!AU4*'环工16-1分数统计'!$AU$3/120 -> 0.7166666667 | AR4: ='环工16-1分数统计'!AV4*'环工16-1分数统计'!$AV$3/120 -> 1.016666667 | AS4: ='环工16-1分数统计'!AW4*'环工16-1分数统计'!$AW$3/120 -> 0.5 | AT4: ='环工16-1分数统计'!AX4*'环工16-1分数统计'!$AX$3/120 -> 0.4666666667 | AU4: ='环工16-1分数统计'!AY4*'环工16-1分数统计'!$AY$3/120 -> 1.116666667 | AV4: ='环工16-1分数统计'!AZ4*'环工16-1分数统计'!$AZ$3/120 -> 0.7166666667 | AW4: ='环工16-1分数统计'!BA4*'环工16-1分数统计'!$BA$3/120 -> 1 | AX4: ='环工16-1分数统计'!BB4*'环工16-1分数统计'!$BB$3/120 -> 0.9375 | AY4: ='环工16-1分数统计'!BC4*'环工16-1分数统计'!$BC$3/120 -> 1.525 | AZ4: ='环工16-1分数统计'!BD4*'环工16-1分数统计'!$BD$3/120 -> 0.8625 | BA4: ='环工16-1分数统计'!BE4*'环工16-1分数统计'!$BE$3/120 -> 1 | BD4: 81.96470093 | BE4: 71.66930971 | BF4: 64.57319301 | BG4: =SUM(BD4:BF4) -> 218.2072037 | BH4: =BG4/$BG$8*100 -> 63.11976983 | BI4: =0.2*BH4 -> 12.62395397
B5: 程诗宇 | C5: 2016010599 | D5: ='环工16-1分数统计'!H5*'环工16-1分数统计'!$H$3/120 -> 0.7083333333 | E5: ='环工16-1分数统计'!I5*'环工16-1分数统计'!$I$3/120 -> 1.516666667 | F5: ='环工16-1分数统计'!J5*'环工16-1分数统计'!$J$3/120 -> 4.75 | G5: ='环工16-1分数统计'!K5*'环工16-1分数统计'!$K$3/120 -> 3.375 | H5: ='环工16-1分数统计'!L5*'环工16-1分数统计'!$L$3/120 -> 1.366666667 | I5: ='环工16-1分数统计'!M5*'环工16-1分数统计'!$M$3/120 -> 1.266666667 | J5: ='环工16-1分数统计'!N5*'环工16-1分数统计'!$N$3/120 -> 2.75 | K5: ='环工16-1分数统计'!O5*'环工16-1分数统计'!$O$3/121 -> 0.6446280992 | L5: ='环工16-1分数统计'!P5*'环工16-1分数统计'!$P$3/120 -> 1.979166667 | M5: ='环工16-1分数统计'!Q5*'环工16-1分数统计'!$Q$3/120 -> 0.7833333333 | N5: ='环工16-1分数统计'!R5*'环工16-1分数统计'!$R$3/120 -> 2.025 | O5: ='环工16-1分数统计'!S5*'环工16-1分数统计'!$S$3/120 -> 3.916666667 | P5: ='环工16-1分数统计'!T5*'环工16-1分数统计'!$T$3/120 -> 1.8125 | Q5: ='环工16-1分数统计'!U5*'环工16-1分数统计'!$U$3/120 -> 2.9 | R5: ='环工16-1分数统计'!V5*'环工16-1分数统计'!$V$3/120 -> 2.2 | S5: ='环工16-1分数统计'!W5*'环工16-1分数统计'!$W$3/120 -> 2.97 | T5: ='环工16-1分数统计'!X5*'环工16-1分数统计'!$X$3/120 -> 0.775 | U5: ='环工16-1分数统计'!Y5*'环工16-1分数统计'!$Y$3/120 -> 1.466666667 | V5: ='环工16-1分数统计'!Z5*'环工16-1分数统计'!$Z$3/120 -> 2.025 | W5: ='环工16-1分数统计'!AA5*'环工16-1分数统计'!$AA$3/120 -> 2.325 | X5: ='环工16-1分数统计'!AB5*'环工16-1分数统计'!$AB$3/120 -> 1.3 | Y5: ='环工16-1分数统计'!AC5*'环工16-1分数统计'!$AC$3/120 -> 1.116666667 | Z5: ='环工16-1分数统计'!AD5*'环工16-1分数统计'!$AD$3/120 -> 1.333333333 | AA5: ='环工16-1分数统计'!AE5*'环工16-1分数统计'!$AE$3/120 -> 1.411666667 | AB5: ='环工16-1分数统计'!AF5*'环工16-1分数统计'!$AF$3/120 -> 0.7166666667 | AC5: ='环工16-1分数统计'!AG5*'环工16-1分数统计'!$AG$3/120 -> 1.666666667 | AD5: ='环工16-1分数统计'!AH5*'环工16-1分数统计'!$AH$3/120 -> 2.05 | AE5: ='环工16-1分数统计'!AI5*'环工16-1分数统计'!$AI$3/120 -> 1.5 | AF5: ='环工16-1分数统计'!AJ5*'环工16-1分数统计'!$AJ$3/120 -> 0.7916666667 | AG5: ='环工16-1分数统计'!AK5*'环工16-1分数统计'!$AK$3/120 -> 2.733333333 | AH5: ='环工16-1分数统计'!AL5*'环工16-1分数统计'!$AL$3/120 -> 1.466666667 | AI5: ='环工16-1分数统计'!AM5*'环工16-1分数统计'!$AM$3/120 -> 1.025 | AJ5: ='环工16-1分数统计'!AN5*'环工16-1分数统计'!$AN$3/120 -> 1.95 | AK5: ='环工16-1分数统计'!AO5*'环工16-1分数统计'!$AO$3/120 -> 1.8 | AL5: ='环工16-1分数统计'!AP5*'环工16-1分数统计'!$AP$3/120 -> 1.0375 | AM5: ='环工16-1分数统计'!AQ5*'环工16-1分数统计'!$AQ$3/120 -> 2.025 | AN5: ='环工16-1分数统计'!AR5*'环工16-1分数统计'!$AR$3/120 -> 1.433333333 | AO5: ='环工16-1分数统计'!AS5*'环工16-1分数统计'!$AS$3/120 -> 1.5 | AP5: ='环工16-1分数统计'!AT5*'环工16-1分数统计'!$AT$3/120 -> 1.521666667 | AQ5: ='环工16-1分数统计'!AU5*'环工16-1分数统计'!$AU$3/120 -> 0.725 | AR5: ='环工16-1分数统计'!AV5*'环工16-1分数统计'!$AV$3/120 -> 1.383333333 | AS5: ='环工16-1分数统计'!AW5*'环工16-1分数统计'!$AW$3/120 -> 0.6916666667 | AT5: ='环工16-1分数统计'!AX5*'环工16-1分数统计'!$AX$3/120 -> 2.933333333 | AU5: ='环工16-1分数统计'!AY5*'环工16-1分数统计'!$AY$3/120 -> 1.433333333 | AV5: ='环工16-1分数统计'!AZ5*'环工16-1分数统计'!$AZ$3/120 -> 1.6 | AW5: ='环工16-1分数统计'!BA5*'环工16-1分数统计'!$BA$3/120 -> 1.533333333 | AX5: ='环工16-1分数统计'!BB5*'环工16-1分数统计'!$BB$3/120 -> 1.125 | AY5: ='环工16-1分数统计'!BC5*'环工16-1分数统计'!$BC$3/120 -> 2.275 | AZ5: ='环工16-1分数统计'!BD5*'环工16-1分数统计'!$BD$3/120 -> 1.125 | BA5: ='环工16-1分数统计'!BE5*'环工16-1分数统计'!$BE$3/120 -> 1.333333333 | BD5: 93.67031068 | BE5: 95.04436022 | BF5: 102.9772557 | BG5: =SUM(BD5:BF5) -> 291.6919266 | BH5: 84.37634945 | BI5: =0.2*BH5 -> 16.87526989
B6: 李异繁 | C6: 2016010602 | D6: ='环工16-1分数统计'!H6*'环工16-1分数统计'!$H$3/120 -> 0.7333333333 | E6: ='环工16-1分数统计'!I6*'环工16-1分数统计'!$I$3/120 -> 1.533333333 | F6: ='环工16-1分数统计'!J6*'环工16-1分数统计'!$J$3/120 -> 3.9 | G6: ='环工16-1分数统计'!K6*'环工16-1分数统计'!$K$3/120 -> 3.4125 | H6: ='环工16-1分数统计'!L6*'环工16-1分数统计'!$L$3/120 -> 1.466666667 | I6: ='环工16-1分数统计'!M6*'环工16-1分数统计'!$M$3/120 -> 1.35 | J6: ='环工16-1分数统计'!N6*'环工16-1分数统计'!$N$3/120 -> 3.68 | K6: ='环工16-1分数统计'!O6*'环工16-1分数统计'!$O$3/121 -> 0.6694214876 | L6: ='环工16-1分数统计'!P6*'环工16-1分数统计'!$P$3/120 -> 2 | M6: ='环工16-1分数统计'!Q6*'环工16-1分数统计'!$Q$3/120 -> 0.7833333333 | N6: ='环工16-1分数统计'!R6*'环工16-1分数统计'!$R$3/120 -> 2.15 | O6: ='环工16-1分数统计'!S6*'环工16-1分数统计'!$S$3/120 -> 3.75 | P6: ='环工16-1分数统计'!T6*'环工16-1分数统计'!$T$3/120 -> 2 | Q6: ='环工16-1分数统计'!U6*'环工16-1分数统计'!$U$3/120 -> 3.133333333 | R6: ='环工16-1分数统计'!V6*'环工16-1分数统计'!$V$3/120 -> 2.15 | S6: ='环工16-1分数统计'!W6*'环工16-1分数统计'!$W$3/120 -> 3.565 | T6: ='环工16-1分数统计'!X6*'环工16-1分数统计'!$X$3/120 -> 0.8166666667 | U6: ='环工16-1分数统计'!Y6*'环工16-1分数统计'!$Y$3/120 -> 1.5 | V6: ='环工16-1分数统计'!Z6*'环工16-1分数统计'!$Z$3/120 -> 2.025 | W6: ='环工16-1分数统计'!AA6*'环工16-1分数统计'!$AA$3/120 -> 2.125 | X6: ='环工16-1分数统计'!AB6*'环工16-1分数统计'!$AB$3/120 -> 1.466666667 | Y6: ='环工16-1分数统计'!AC6*'环工16-1分数统计'!$AC$3/120 -> 1.366666667 | Z6: ='环工16-1分数统计'!AD6*'环工16-1分数统计'!$AD$3/120 -> 1.333333333 | AA6: ='环工16-1分数统计'!AE6*'环工16-1分数统计'!$AE$3/120 -> 1.7825 | AB6: ='环工16-1分数统计'!AF6*'环工16-1分数统计'!$AF$3/120 -> 0.8083333333 | AC6: ='环工16-1分数统计'!AG6*'环工16-1分数统计'!$AG$3/120 -> 1.75 | AD6: ='环工16-1分数统计'!AH6*'环工16-1分数统计'!$AH$3/120 -> 2.35 | AE6: ='环工16-1分数统计'!AI6*'环工16-1分数统计'!$AI$3/120 -> 1.516666667 | AF6: ='环工16-1分数统计'!AJ6*'环工16-1分数统计'!$AJ$3/120 -> 0.7666666667 | AG6: ='环工16-1分数统计'!AK6*'环工16-1分数统计'!$AK$3/120 -> 2.766666667 | AH6: ='环工16-1分数统计'!AL6*'环工16-1分数统计'!$AL$3/120 -> 1.533333333 | AI6: ='环工16-1分数统计'!AM6*'环工16-1分数统计'!$AM$3/120 -> 1.125 | AJ6: ='环工16-1分数统计'!AN6*'环工16-1分数统计'!$AN$3/120 -> 2.25 | AK6: ='环工16-1分数统计'!AO6*'环工16-1分数统计'!$AO$3/120 -> 1.95 | AL6: ='环工16-1分数统计'!AP6*'环工16-1分数统计'!$AP$3/120 -> 1.1125 | AM6: ='环工16-1分数统计'!AQ6*'环工16-1分数统计'!$AQ$3/120 -> 2.4 | AN6: ='环工16-1分数统计'!AR6*'环工16-1分数统计'!$AR$3/120 -> 1.516666667 | AO6: ='环工16-1分数统计'!AS6*'环工16-1分数统计'!$AS$3/120 -> 1.533333333 | AP6: ='环工16-1分数统计'!AT6*'环工16-1分数统计'!$AT$3/120 -> 1.725 | AQ6: ='环工16-1分数统计'!AU6*'环工16-1分数统计'!$AU$3/120 -> 0.775 | AR6: ='环工16-1分数统计'!AV6*'环工16-1分数统计'!$AV$3/120 -> 1.55 | AS6: ='环工16-1分数统计'!AW6*'环工16-1分数统计'!$AW$3/120 -> 0.7666666667 | AT6: ='环工16-1分数统计'!AX6*'环工16-1分数统计'!$AX$3/120 -> 3.233333333 | AU6: ='环工16-1分数统计'!AY6*'环工16-1分数统计'!$AY$3/120 -> 1.583333333 | AV6: ='环工16-1分数统计'!AZ6*'环工16-1分数统计'!$AZ$3/120 -> 1.633333333 | AW6: ='环工16-1分数统计'!BA6*'环工16-1分数统计'!$BA$3/120 -> 1.633333333 | AX6: ='环工16-1分数统计'!BB6*'环工16-1分数统计'!$BB$3/120 -> 1.125 | AY6: ='环工16-1分数统计'!BC6*'环工16-1分数统计'!$BC$3/120 -> 2.475 | AZ6: ='环工16-1分数统计'!BD6*'环工16-1分数统计'!$BD$3/120 -> 1.1625 | BA6: ='环工16-1分数统计'!BE6*'环工16-1分数统计'!$BE$3/120 -> 1.483333333 | BD6: 99.19331731 | BE6: 102.2928814 | BF6: 119.8543592 | BG6: 321.3405579 | BH6: 92.95266935 | BI6: 18.59053387
B7: 刘涵钰 | C7: 2016010603 | D7: ='环工16-1分数统计'!H7*'环工16-1分数统计'!$H$3/120 -> 0.6583333333 | E7: ='环工16-1分数统计'!I7*'环工16-1分数统计'!$I$3/120 -> 1.516666667 | F7: ='环工16-1分数统计'!J7*'环工16-1分数统计'!$J$3/120 -> 3.85 | G7: ='环工16-1分数统计'!K7*'环工16-1分数统计'!$K$3/120 -> 3.3 | H7: ='环工16-1分数统计'!L7*'环工16-1分数统计'!$L$3/120 -> 1.516666667 | I7: ='环工16-1分数统计'!M7*'环工16-1分数统计'!$M$3/120 -> 1.283333333 | J7: ='环工16-1分数统计'!N7*'环工16-1分数统计'!$N$3/120 -> 2.97 | K7: ='环工16-1分数统计'!O7*'环工16-1分数统计'!$O$3/121 -> 0.5950413223 | L7: ='环工16-1分数统计'!P7*'环工16-1分数统计'!$P$3/120 -> 1.833333333 | M7: ='环工16-1分数统计'!Q7*'环工16-1分数统计'!$Q$3/120 -> 0.7666666667 | N7: ='环工16-1分数统计'!R7*'环工16-1分数统计'!$R$3/120 -> 2.025 | O7: ='环工16-1分数统计'!S7*'环工16-1分数统计'!$S$3/120 -> 3.916666667 | P7: ='环工16-1分数统计'!T7*'环工16-1分数统计'!$T$3/120 -> 1.833333333 | Q7: ='环工16-1分数统计'!U7*'环工16-1分数统计'!$U$3/120 -> 2.866666667 | R7: ='环工16-1分数统计'!V7*'环工16-1分数统计'!$V$3/120 -> 2.225 | S7: ='环工16-1分数统计'!W7*'环工16-1分数统计'!$W$3/120 -> 2.97 | T7: ='环工16-1分数统计'!X7*'环工16-1分数统计'!$X$3/120 -> 0.725 | U7: ='环工16-1分数统计'!Y7*'环工16-1分数统计'!$Y$3/120 -> 1.5 | V7: ='环工16-1分数统计'!Z7*'环工16-1分数统计'!$Z$3/120 -> 1.675 | W7: ='环工16-1分数统计'!AA7*'环工16-1分数统计'!$AA$3/120 -> 2.275 | X7: ='环工16-1分数统计'!AB7*'环工16-1分数统计'!$AB$3/120 -> 1.4 | Y7: ='环工16-1分数统计'!AC7*'环工16-1分数统计'!$AC$3/120 -> 1.366666667 | Z7: ='环工16-1分数统计'!AD7*'环工16-1分数统计'!$AD$3/120 -> 1.333333333 | AA7: ='环工16-1分数统计'!AE7*'环工16-1分数统计'!$AE$3/120 -> 1.411666667 | AB7: ='环工16-1分数统计'!AF7*'环工16-1分数统计'!$AF$3/120 -> 0.6666666667 | AC7: ='环工16-1分数统计'!AG7*'环工16-1分数统计'!$AG$3/120 -> 1.729166667 | AD7: ='环工16-1分数统计'!AH7*'环工16-1分数统计'!$AH$3/120 -> 2.075 | AE7: ='环工16-1分数统计'!AI7*'环工16-1分数统计'!$AI$3/120 -> 1.45 | AF7: ='环工16-1分数统计'!AJ7*'环工16-1分数统计'!$AJ$3/120 -> 0.7666666667 | AG7: ='环工16-1分数统计'!AK7*'环工16-1分数统计'!$AK$3/120 -> 2.433333333 | AH7: ='环工16-1分数统计'!AL7*'环工16-1分数统计'!$AL$3/120 -> 1.466666667 | AI7: ='环工16-1分数统计'!AM7*'环工16-1分数统计'!$AM$3/120 -> 1.0375 | AJ7: ='环工16-1分数统计'!AN7*'环工16-1分数统计'!$AN$3/120 -> 2.075 | AK7: ='环工16-1分数统计'!AO7*'环工16-1分数统计'!$AO$3/120 -> 1.9 | AL7: ='环工16-1分数统计'!AP7*'环工16-1分数统计'!$AP$3/120 -> 1.0875 | AM7: ='环工16-1分数统计'!AQ7*'环工16-1分数统计'!$AQ$3/120 -> 2.15 | AN7: ='环工16-1分数统计'!AR7*'环工16-1分数统计'!$AR$3/120 -> 1.45 | AO7: ='环工16-1分数统计'!AS7*'环工16-1分数统计'!$AS$3/120 -> 1.55 | AP7: ='环工16-1分数统计'!AT7*'环工16-1分数统计'!$AT$3/120 -> 1.375 | AQ7: ='环工16-1分数统计'!AU7*'环工16-1分数统计'!$AU$3/120 -> 0.6833333333 | AR7: ='环工16-1分数统计'!AV7*'环工16-1分数统计'!$AV$3/120 -> 1.35 | AS7: ='环工16-1分数统计'!AW7*'环工16-1分数统计'!$AW$3/120 -> 0.7333333333 | AT7: ='环工16-1分数统计'!AX7*'环工16-1分数统计'!$AX$3/120 -> 3.1 | AU7: ='环工16-1分数统计'!AY7*'环工16-1分数统计'!$AY$3/120 -> 1.45 | AV7: ='环工16-1分数统计'!AZ7*'环工16-1分数统计'!$AZ$3/120 -> 1.5 | AW7: ='环工16-1分数统计'!BA7*'环工16-1分数统计'!$BA$3/120 -> 1.5 | AX7: ='环工16-1分数统计'!BB7*'环工16-1分数统计'!$BB$3/120 -> 1.125 | AY7: ='环工16-1分数统计'!BC7*'环工16-1分数统计'!$BC$3/120 -> 2.3 | AZ7: ='环工16-1分数统计'!BD7*'环工16-1分数统计'!$BD$3/120 -> 1.1 | BA7: ='环工16-1分数统计'!BE7*'环工16-1分数统计'!$BE$3/120 -> 1.45 | BD7: 90.9492381 | BE7: 90.22212587 | BF7: 96.55614772 | BG7: 277.7275117 | BH7: 80.33692893 | BI7: 16.06738579
B8: 刘雅 | C8: 2016010604 | D8: ='环工16-1分数统计'!H8*'环工16-1分数统计'!$H$3/120 -> 0.675 | E8: ='环工16-1分数统计'!I8*'环工16-1分数统计'!$I$3/120 -> 1.466666667 | F8: ='环工16-1分数统计'!J8*'环工16-1分数统计'!$J$3/120 -> 4.9 | G8: ='环工16-1分数统计'!K8*'环工16-1分数统计'!$K$3/120 -> 3.4875 | H8: ='环工16-1分数统计'!L8*'环工16-1分数统计'!$L$3/120 -> 1.5 | I8: ='环工16-1分数统计'!M8*'环工16-1分数统计'!$M$3/120 -> 1.333333333 | J8: ='环工16-1分数统计'!N8*'环工16-1分数统计'!$N$3/120 -> 3.4 | K8: ='环工16-1分数统计'!O8*'环工16-1分数统计'!$O$3/121 -> 0.6859504132 | L8: ='环工16-1分数统计'!P8*'环工16-1分数统计'!$P$3/120 -> 2 | M8: ='环工16-1分数统计'!Q8*'环工16-1分数统计'!$Q$3/120 -> 0.7 | N8: ='环工16-1分数统计'!R8*'环工16-1分数统计'!$R$3/120 -> 2.1 | O8: ='环工16-1分数统计'!S8*'环工16-1分数统计'!$S$3/120 -> 4.166666667 | P8: ='环工16-1分数统计'!T8*'环工16-1分数统计'!$T$3/120 -> 1.958333333 | Q8: ='环工16-1分数统计'!U8*'环工16-1分数统计'!$U$3/120 -> 3.133333333 | R8: ='环工16-1分数统计'!V8*'环工16-1分数统计'!$V$3/120 -> 2.4 | S8: ='环工16-1分数统计'!W8*'环工16-1分数统计'!$W$3/120 -> 3.36 | T8: ='环工16-1分数统计'!X8*'环工16-1分数统计'!$X$3/120 -> 0.75 | U8: ='环工16-1分数统计'!Y8*'环工16-1分数统计'!$Y$3/120 -> 1.5 | V8: ='环工16-1分数统计'!Z8*'环工16-1分数统计'!$Z$3/120 -> 2.375 | W8: ='环工16-1分数统计'!AA8*'环工16-1分数统计'!$AA$3/120 -> 2.475 | X8: ='环工16-1分数统计'!AB8*'环工16-1分数统计'!$AB$3/120 -> 1.533333333 | Y8: ='环工16-1分数统计'!AC8*'环工16-1分数统计'!$AC$3/120 -> 1.45 | Z8: ='环工16-1分数统计'!AD8*'环工16-1分数统计'!$AD$3/120 -> 1.483333333 | AA8: ='环工16-1分数统计'!AE8*'环工16-1分数统计'!$AE$3/120 -> 1.7 | AB8: ='环工16-1分数统计'!AF8*'环工16-1分数统计'!$AF$3/120 -> 0.675 | AC8: ='环工16-1分数统计'!AG8*'环工16-1分数统计'!$AG$3/120 -> 1.916666667 | AD8: ='环工16-1分数统计'!AH8*'环工16-1分数统计'!$AH$3/120 -> 2.45 | AE8: ='环工16-1分数统计'!AI8*'环工16-1分数统计'!$AI$3/120 -> 1.516666667 | AF8: ='环工16-1分数统计'!AJ8*'环工16-1分数统计'!$AJ$3/120 -> 0.7583333333 | AG8: ='环工16-1分数统计'!AK8*'环工16-1分数统计'!$AK$3/120 -> 2.9 | AH8: ='环工16-1分数统计'!AL8*'环工16-1分数统计'!$AL$3/120 -> 1.516666667 | AI8: ='环工16-1分数统计'!AM8*'环工16-1分数统计'!$AM$3/120 -> 1.175 | AJ8: ='环工16-1分数统计'!AN8*'环工16-1分数统计'!$AN$3/120 -> 2.4 | AK8: ='环工16-1分数统计'!AO8*'环工16-1分数统计'!$AO$3/120 -> 2.25 | AL8: ='环工16-1分数统计'!AP8*'环工16-1分数统计'!$AP$3/120 -> 1.1125 | AM8: ='环工16-1分数统计'!AQ8*'环工16-1分数统计'!$AQ$3/120 -> 2.4 | AN8: ='环工16-1分数统计'!AR8*'环工16-1分数统计'!$AR$3/120 -> 1.483333333 | AO8: ='环工16-1分数统计'!AS8*'环工16-1分数统计'!$AS$3/120 -> 1.55 | AP8: ='环工16-1分数统计'!AT8*'环工16-1分数统计'!$AT$3/120 -> 1.5525 | AQ8: ='环工16-1分数统计'!AU8*'环工16-1分数统计'!$AU$3/120 -> 0.7416666667 | AR8: ='环工16-1分数统计'!AV8*'环工16-1分数统计'!$AV$3/120 -> 1.516666667 | AS8: ='环工16-1分数统计'!AW8*'环工16-1分数统计'!$AW$3/120 -> 0.7166666667 | AT8: ='环工16-1分数统计'!AX8*'环工16-1分数统计'!$AX$3/120 -> 3.166666667 | AU8: ='环工16-1分数统计'!AY8*'环工16-1分数统计'!$AY$3/120 -> 1.566666667 | AV8: ='环工16-1分数统计'!AZ8*'环工16-1分数统计'!$AZ$3/120 -> 1.616666667 | AW8: ='环工16-1分数统计'!BA8*'环工16-1分数统计'!$BA$3/120 -> 1.616666667 | AX8: ='环工16-1分数统计'!BB8*'环工16-1分数统计'!$BB$3/120 -> 1.125 | AY8: ='环工16-1分数统计'!BC8*'环工16-1分数统计'!$BC$3/120 -> 2.475 | AZ8: ='环工16-1分数统计'!BD8*'环工16-1分数统计'!$BD$3/120 -> 1.1125 | BA8: ='环工16-1分数统计'!BE8*'环工16-1分数统计'!$BE$3/120 -> 1.583333333 | BD8: 99.38865725 | BE8: 117.4018592 | BF8: 128.9129046 | BG8: 345.7034211 | BH8: =BG8/$BG$8*100 -> 100 | BI8: 20
B9: 马晓红 | C9: 2016010605 | D9: ='环工16-1分数统计'!H9*'环工16-1分数统计'!$H$3/120 -> 0.6416666667 | E9: ='环工16-1分数统计'!I9*'环工16-1分数统计'!$I$3/120 -> 1.45 | F9: ='环工16-1分数统计'!J9*'环工16-1分数统计'!$J$3/120 -> 3.45 | G9: ='环工16-1分数统计'!K9*'环工16-1分数统计'!$K$3/120 -> 2.475 | H9: ='环工16-1分数统计'!L9*'环工16-1分数统计'!$L$3/120 -> 1.333333333 | I9: ='环工16-1分数统计'!M9*'环工16-1分数统计'!$M$3/120 -> 1.216666667 | J9: ='环工16-1分数统计'!N9*'环工16-1分数统计'!$N$3/120 -> 2.2 | K9: ='环工16-1分数统计'!O9*'环工16-1分数统计'!$O$3/121 -> 0.6363636364 | L9: ='环工16-1分数统计'!P9*'环工16-1分数统计'!$P$3/120 -> 1.416666667 | M9: ='环工16-1分数统计'!Q9*'环工16-1分数统计'!$Q$3/120 -> 0.5916666667 | N9: ='环工16-1分数统计'!R9*'环工16-1分数统计'!$R$3/120 -> 1.5 | O9: ='环工16-1分数统计'!S9*'环工16-1分数统计'!$S$3/120 -> 2.5 | P9: ='环工16-1分数统计'!T9*'环工16-1分数统计'!$T$3/120 -> 1.625 | Q9: ='环工16-1分数统计'!U9*'环工16-1分数统计'!$U$3/120 -> 2.3 | R9: ='环工16-1分数统计'!V9*'环工16-1分数统计'!$V$3/120 -> 1.5 | S9: ='环工16-1分数统计'!W9*'环工16-1分数统计'!$W$3/120 -> 2.713333333 | T9: ='环工16-1分数统计'!X9*'环工16-1分数统计'!$X$3/120 -> 0.675 | U9: ='环工16-1分数统计'!Y9*'环工16-1分数统计'!$Y$3/120 -> 1.533333333 | V9: ='环工16-1分数统计'!Z9*'环工16-1分数统计'!$Z$3/120 -> 1.525 | W9: ='环工16-1分数统计'!AA9*'环工16-1分数统计'!$AA$3/120 -> 1.525 | X9: ='环工16-1分数统计'!AB9*'环工16-1分数统计'!$AB$3/120 -> 1.066666667 | Y9: ='环工16-1分数统计'!AC9*'环工16-1分数统计'!$AC$3/120 -> 1.166666667 | Z9: ='环工16-1分数统计'!AD9*'环工16-1分数统计'!$AD$3/120 -> 1.2 | AA9: ='环工16-1分数统计'!AE9*'环工16-1分数统计'!$AE$3/120 -> 1.338333333 | AB9: ='环工16-1分数统计'!AF9*'环工16-1分数统计'!$AF$3/120 -> 0.7166666667 | AC9: ='环工16-1分数统计'!AG9*'环工16-1分数统计'!$AG$3/120 -> 1.583333333 | AD9: ='环工16-1分数统计'!AH9*'环工16-1分数统计'!$AH$3/120 -> 1.775 | AE9: ='环工16-1分数统计'!AI9*'环工16-1分数统计'!$AI$3/120 -> 1.333333333 | AF9: ='环工16-1分数统计'!AJ9*'环工16-1分数统计'!$AJ$3/120 -> 0.75 | AG9: ='环工16-1分数统计'!AK9*'环工16-1分数统计'!$AK$3/120 -> 2.1 | AH9: ='环工16-1分数统计'!AL9*'环工16-1分数统计'!$AL$3/120 -> 1.216666667 | AI9: ='环工16-1分数统计'!AM9*'环工16-1分数统计'!$AM$3/120 -> 0.75 | AJ9: ='环工16-1分数统计'!AN9*'环工16-1分数统计'!$AN$3/120 -> 1.525 | AK9: ='环工16-1分数统计'!AO9*'环工16-1分数统计'!$AO$3/120 -> 1.725 | AL9: ='环工16-1分数统计'!AP9*'环工16-1分数统计'!$AP$3/120 -> 1.075 | AM9: ='环工16-1分数统计'!AQ9*'环工16-1分数统计'!$AQ$3/120 -> 1.65 | AN9: ='环工16-1分数统计'!AR9*'环工16-1分数统计'!$AR$3/120 -> 1.416666667 | AO9: ='环工16-1分数统计'!AS9*'环工16-1分数统计'!$AS$3/120 -> 1.45 | AP9: ='环工16-1分数统计'!AT9*'环工16-1分数统计'!$AT$3/120 -> 1.283333333 | AQ9: ='环工16-1分数统计'!AU9*'环工16-1分数统计'!$AU$3/120 -> 0.6916666667 | AR9: ='环工16-1分数统计'!AV9*'环工16-1分数统计'!$AV$3/120 -> 1.366666667 | AS9: ='环工16-1分数统计'!AW9*'环工16-1分数统计'!$AW$3/120 -> 0.6166666667 | AT9: ='环工16-1分数统计'!AX9*'环工16-1分数统计'!$AX$3/120 -> 2.333333333 | AU9: ='环工16-1分数统计'!AY9*'环工16-1分数统计'!$AY$3/120 -> 1.233333333 | AV9: ='环工16-1分数统计'!AZ9*'环工16-1分数统计'!$AZ$3/120 -> 1.366666667 | AW9: ='环工16-1分数统计'!BA9*'环工16-1分数统计'!$BA$3/120 -> 1.25 | AX9: ='环工16-1分数统计'!BB9*'环工16-1分数统计'!$BB$3/120 -> 1.0625 | AY9: ='环工16-1分数统计'!BC9*'环工16-1分数统计'!$BC$3/120 -> 2.15 | AZ9: ='环工16-1分数统计'!BD9*'环工16-1分数统计'!$BD$3/120 -> 1.0625 | BA9: ='环工16-1分数统计'!BE9*'环工16-1分数统计'!$BE$3/120 -> 1.166666667 | BD9: 79.61075296 | BE9: 80.31112903 | BF9: 83.06909165 | BG9: 242.9909736 | BH9: =BG9/$BG$8*100 -> 70.28885421 | BI9: 14.05777084
B10: 马一凡 | C10: 2016010606 | D10: ='环工16-1分数统计'!H10*'环工16-1分数统计'!$H$3/120 -> 0.6833333333 | E10: ='环工16-1分数统计'!I10*'环工16-1分数统计'!$I$3/120 -> 1.5 | F10: ='环工16-1分数统计'!J10*'环工16-1分数统计'!$J$3/120 -> 4.35 | G10: ='环工16-1分数统计'!K10*'环工16-1分数统计'!$K$3/120 -> 3.4125 | H10: ='环工16-1分数统计'!L10*'环工16-1分数统计'!$L$3/120 -> 1.4 | I10: ='环工16-1分数统计'!M10*'环工16-1分数统计'!$M$3/120 -> 1.2 | J10: ='环工16-1分数统计'!N10*'环工16-1分数统计'!$N$3/120 -> 3.45 | K10: ='环工16-1分数统计'!O10*'环工16-1分数统计'!$O$3/121 -> 0.6363636364 | L10: ='环工16-1分数统计'!P10*'环工16-1分数统计'!$P$3/120 -> 1.875 | M10: ='环工16-1分数统计'!Q10*'环工16-1分数统计'!$Q$3/120 -> 0.6083333333 | N10: ='环工16-1分数统计'!R10*'环工16-1分数统计'!$R$3/120 -> 2.15 | O10: ='环工16-1分数统计'!S10*'环工16-1分数统计'!$S$3/120 -> 3.625 | P10: ='环工16-1分数统计'!T10*'环工16-1分数统计'!$T$3/120 -> 1.8125 | Q10: ='环工16-1分数统计'!U10*'环工16-1分数统计'!$U$3/120 -> 3 | R10: ='环工16-1分数统计'!V10*'环工16-1分数统计'!$V$3/120 -> 2.2 | S10: ='环工16-1分数统计'!W10*'环工16-1分数统计'!$W$3/120 -> 3.258333333 | T10: ='环工16-1分数统计'!X10*'环工16-1分数统计'!$X$3/120 -> 0.7166666667 | U10: ='环工16-1分数统计'!Y10*'环工16-1分数统计'!$Y$3/120 -> 1.466666667 | V10: ='环工16-1分数统计'!Z10*'环工16-1分数统计'!$Z$3/120 -> 1.5 | W10: ='环工16-1分数统计'!AA10*'环工16-1分数统计'!$AA$3/120 -> 2.15 | X10: ='环工16-1分数统计'!AB10*'环工16-1分数统计'!$AB$3/120 -> 1.183333333 | Y10: ='环工16-1分数统计'!AC10*'环工16-1分数统计'!$AC$3/120 -> 1.3 | Z10: ='环工16-1分数统计'!AD10*'环工16-1分数统计'!$AD$3/120 -> 1.416666667 | AA10: ='环工16-1分数统计'!AE10*'环工16-1分数统计'!$AE$3/120 -> 1.6675 | AB10: ='环工16-1分数统计'!AF10*'环工16-1分数统计'!$AF$3/120 -> 0.7416666667 | AC10: ='环工16-1分数统计'!AG10*'环工16-1分数统计'!$AG$3/120 -> 1.666666667 | AD10: ='环工16-1分数统计'!AH10*'环工16-1分数统计'!$AH$3/120 -> 1.825 | AE10: ='环工16-1分数统计'!AI10*'环工16-1分数统计'!$AI$3/120 -> 1.4 | AF10: ='环工16-1分数统计'!AJ10*'环工16-1分数统计'!$AJ$3/120 -> 0.75 | AG10: ='环工16-1分数统计'!AK10*'环工16-1分数统计'!$AK$3/120 -> 2.333333333 | AH10: ='环工16-1分数统计'!AL10*'环工16-1分数统计'!$AL$3/120 -> 1.233333333 | AI10: ='环工16-1分数统计'!AM10*'环工16-1分数统计'!$AM$3/120 -> 0.9625 | AJ10: ='环工16-1分数统计'!AN10*'环工16-1分数统计'!$AN$3/120 -> 1.65 | AK10: ='环工16-1分数统计'!AO10*'环工16-1分数统计'!$AO$3/120 -> 1.975 | AL10: ='环工16-1分数统计'!AP10*'环工16-1分数统计'!$AP$3/120 -> 1.0375 | AM10: ='环工16-1分数统计'!AQ10*'环工16-1分数统计'!$AQ$3/120 -> 2.125 | AN10: ='环工16-1分数统计'!AR10*'环工16-1分数统计'!$AR$3/120 -> 1.466666667 | AO10: ='环工16-1分数统计'!AS10*'环工16-1分数统计'!$AS$3/120 -> 1.483333333 | AP10: ='环工16-1分数统计'!AT10*'环工16-1分数统计'!$AT$3/120 -> 1.418333333 | AQ10: ='环工16-1分数统计'!AU10*'环工16-1分数统计'!$AU$3/120 -> 0.75 | AR10: ='环工16-1分数统计'!AV10*'环工16-1分数统计'!$AV$3/120 -> 1.5 | AS10: ='环工16-1分数统计'!AW10*'环工16-1分数统计'!$AW$3/120 -> 0.6333333333 | AT10: ='环工16-1分数统计'!AX10*'环工16-1分数统计'!$AX$3/120 -> 2.633333333 | AU10: ='环工16-1分数统计'!AY10*'环工16-1分数统计'!$AY$3/120 -> 1.366666667 | AV10: ='环工16-1分数统计'!AZ10*'环工16-1分数统计'!$AZ$3/120 -> 1.35 | AW10: ='环工16-1分数统计'!BA10*'环工16-1分数统计'!$BA$3/120 -> 1.633333333 | AX10: ='环工16-1分数统计'!BB10*'环工16-1分数统计'!$BB$3/120 -> 1.0875 | AY10: ='环工16-1分数统计'!BC10*'环工16-1分数统计'!$BC$3/120 -> 2.075 | AZ10: ='环工16-1分数统计'!BD10*'环工16-1分数统计'!$BD$3/120 -> 0.95 | BA10: ='环工16-1分数统计'!BE10*'环工16-1分数统计'!$BE$3/120 -> 1.266666667 | BD10: 92.15105989 | BE10: 90.77473598 | BF10: 106.2349109 | BG10: 289.1607067 | BH10: 83.6441554 | BI10: 16.72883108
B11: 齐泽丰 | C11: 2016010607 | D11: ='环工16-1分数统计'!H11*'环工16-1分数统计'!$H$3/120 -> 0.7 | E11: ='环工16-1分数统计'!I11*'环工16-1分数统计'!$I$3/120 -> 1.583333333 | F11: ='环工16-1分数统计'!J11*'环工16-1分数统计'!$J$3/120 -> 4.1 | G11: ='环工16-1分数统计'!K11*'环工16-1分数统计'!$K$3/120 -> 2.925 | H11: ='环工16-1分数统计'!L11*'环工16-1分数统计'!$L$3/120 -> 1.366666667 | I11: ='环工16-1分数统计'!M11*'环工16-1分数统计'!$M$3/120 -> 1.466666667 | J11: ='环工16-1分数统计'!N11*'环工16-1分数统计'!$N$3/120 -> 3.08 | K11: ='环工16-1分数统计'!O11*'环工16-1分数统计'!$O$3/121 -> 0.7355371901 | L11: ='环工16-1分数统计'!P11*'环工16-1分数统计'!$P$3/120 -> 1.895833333 | M11: ='环工16-1分数统计'!Q11*'环工16-1分数统计'!$Q$3/120 -> 0.6833333333 | N11: ='环工16-1分数统计'!R11*'环工16-1分数统计'!$R$3/120 -> 1.775 | O11: ='环工16-1分数统计'!S11*'环工16-1分数统计'!$S$3/120 -> 3.708333333 | P11: ='环工16-1分数统计'!T11*'环工16-1分数统计'!$T$3/120 -> 1.895833333 | Q11: ='环工16-1分数统计'!U11*'环工16-1分数统计'!$U$3/120 -> 2.733333333 | R11: ='环工16-1分数统计'!V11*'环工16-1分数统计'!$V$3/120 -> 2.175 | S11: ='环工16-1分数统计'!W11*'环工16-1分数统计'!$W$3/120 -> 3.3 | T11: ='环工16-1分数统计'!X11*'环工16-1分数统计'!$X$3/120 -> 0.8 | U11: ='环工16-1分数统计'!Y11*'环工16-1分数统计'!$Y$3/120 -> 1.566666667 | V11: ='环工16-1分数统计'!Z11*'环工16-1分数统计'!$Z$3/120 -> 1.6 | W11: ='环工16-1分数统计'!AA11*'环工16-1分数统计'!$AA$3/120 -> 1.925 | X11: ='环工16-1分数统计'!AB11*'环工16-1分数统计'!$AB$3/120 -> 1.3 | Y11: ='环工16-1分数统计'!AC11*'环工16-1分数统计'!$AC$3/120 -> 1.516666667 | Z11: ='环工16-1分数统计'!AD11*'环工16-1分数统计'!$AD$3/120 -> 1.433333333 | AA11: ='环工16-1分数统计'!AE11*'环工16-1分数统计'!$AE$3/120 -> 1.595 | AB11: ='环工16-1分数统计'!AF11*'环工16-1分数统计'!$AF$3/120 -> 0.7666666667 | AC11: ='环工16-1分数统计'!AG11*'环工16-1分数统计'!$AG$3/120 -> 1.666666667 | AD11: ='环工16-1分数统计'!AH11*'环工16-1分数统计'!$AH$3/120 -> 1.9 | AE11: ='环工16-1分数统计'!AI11*'环工16-1分数统计'!$AI$3/120 -> 1.45 | AF11: ='环工16-1分数统计'!AJ11*'环工16-1分数统计'!$AJ$3/120 -> 0.775 | AG11: ='环工16-1分数统计'!AK11*'环工16-1分数统计'!$AK$3/120 -> 2.333333333 | AH11: ='环工16-1分数统计'!AL11*'环工16-1分数统计'!$AL$3/120 -> 1.45 | AI11: ='环工16-1分数统计'!AM11*'环工16-1分数统计'!$AM$3/120 -> 0.875 | AJ11: ='环工16-1分数统计'!AN11*'环工16-1分数统计'!$AN$3/120 -> 2.025 | AK11: ='环工16-1分数统计'!AO11*'环工16-1分数统计'!$AO$3/120 -> 1.6 | AL11: ='环工16-1分数统计'!AP11*'环工16-1分数统计'!$AP$3/120 -> 1.1 | AM11: ='环工16-1分数统计'!AQ11*'环工16-1分数统计'!$AQ$3/120 -> 2.325 | AN11: ='环工16-1分数统计'!AR11*'环工16-1分数统计'!$AR$3/120 -> 1.5 | AO11: ='环工16-1分数统计'!AS11*'环工16-1分数统计'!$AS$3/120 -> 1.5 | AP11: ='环工16-1分数统计'!AT11*'环工16-1分数统计'!$AT$3/120 -> 1.503333333 | AQ11: ='环工16-1分数统计'!AU11*'环工16-1分数统计'!$AU$3/120 -> 0.7583333333 | AR11: ='环工16-1分数统计'!AV11*'环工16-1分数统计'!$AV$3/120 -> 1.633333333 | AS11: ='环工16-1分数统计'!AW11*'环工16-1分数统计'!$AW$3/120 -> 0.7083333333 | AT11: ='环工16-1分数统计'!AX11*'环工16-1分数统计'!$AX$3/120 -> 2.833333333 | AU11: ='环工16-1分数统计'!AY11*'环工16-1分数统计'!$AY$3/120 -> 1.516666667 | AV11: ='环工16-1分数统计'!AZ11*'环工16-1分数统计'!$AZ$3/120 -> 1.583333333 | AW11: ='环工16-1分数统计'!BA11*'环工16-1分数统计'!$BA$3/120 -> 1.65 | AX11: ='环工16-1分数统计'!BB11*'环工16-1分数统计'!$BB$3/120 -> 1.1 | AY11: ='环工16-1分数统计'!BC11*'环工16-1分数统计'!$BC$3/120 -> 2.275 | AZ11: ='环工16-1分数统计'!BD11*'环工16-1分数统计'!$BD$3/120 -> 1.1 | BA11: ='环工16-1分数统计'!BE11*'环工16-1分数统计'!$BE$3/120 -> 1.433333333 | BD11: 92.94386513 | BE11: 97.87665921 | BF11: 119.4092672 | BG11: 310.2297915 | BH11: 89.7387103 | BI11: 17.94774206
B12: 任玥辉 | C12: 2016010608 | D12: ='环工16-1分数统计'!H12*'环工16-1分数统计'!$H$3/120 -> 0.7333333333 | E12: ='环工16-1分数统计'!I12*'环工16-1分数统计'!$I$3/120 -> 1.566666667 | F12: ='环工16-1分数统计'!J12*'环工16-1分数统计'!$J$3/120 -> 4.2 | G12: ='环工16-1分数统计'!K12*'环工16-1分数统计'!$K$3/120 -> 3 | H12: ='环工16-1分数统计'!L12*'环工16-1分数统计'!$L$3/120 -> 1.433333333 | I12: ='环工16-1分数统计'!M12*'环工16-1分数统计'!$M$3/120 -> 1.45 | J12: ='环工16-1分数统计'!N12*'环工16-1分数统计'!$N$3/120 -> 2.933333333 | K12: ='环工16-1分数统计'!O12*'环工16-1分数统计'!$O$3/121 -> 0.6611570248 | L12: ='环工16-1分数统计'!P12*'环工16-1分数统计'!$P$3/120 -> 1.75 | M12: ='环工16-1分数统计'!Q12*'环工16-1分数统计'!$Q$3/120 -> 0.65 | N12: ='环工16-1分数统计'!R12*'环工16-1分数统计'!$R$3/120 -> 1.875 | O12: ='环工16-1分数统计'!S12*'环工16-1分数统计'!$S$3/120 -> 3.416666667 | P12: ='环工16-1分数统计'!T12*'环工16-1分数统计'!$T$3/120 -> 1.833333333 | Q12: ='环工16-1分数统计'!U12*'环工16-1分数统计'!$U$3/120 -> 2.7 | R12: ='环工16-1分数统计'!V12*'环工16-1分数统计'!$V$3/120 -> 1.9 | S12: ='环工16-1分数统计'!W12*'环工16-1分数统计'!$W$3/120 -> 3.336666667 | T12: ='环工16-1分数统计'!X12*'环工16-1分数统计'!$X$3/120 -> 0.7333333333 | U12: ='环工16-1分数统计'!Y12*'环工16-1分数统计'!$Y$3/120 -> 1.5 | V12: ='环工16-1分数统计'!Z12*'环工16-1分数统计'!$Z$3/120 -> 1.6 | W12: ='环工16-1分数统计'!AA12*'环工16-1分数统计'!$AA$3/120 -> 2.125 | X12: ='环工16-1分数统计'!AB12*'环工16-1分数统计'!$AB$3/120 -> 1.266666667 | Y12: ='环工16-1分数统计'!AC12*'环工16-1分数统计'!$AC$3/120 -> 1.433333333 | Z12: ='环工16-1分数统计'!AD12*'环工16-1分数统计'!$AD$3/120 -> 1.45 | AA12: ='环工16-1分数统计'!AE12*'环工16-1分数统计'!$AE$3/120 -> 1.595 | AB12: ='环工16-1分数统计'!AF12*'环工16-1分数统计'!$AF$3/120 -> 0.7416666667 | AC12: ='环工16-1分数统计'!AG12*'环工16-1分数统计'!$AG$3/120 -> 1.5625 | AD12: ='环工16-1分数统计'!AH12*'环工16-1分数统计'!$AH$3/120 -> 2.05 | AE12: ='环工16-1分数统计'!AI12*'环工16-1分数统计'!$AI$3/120 -> 1.483333333 | AF12: ='环工16-1分数统计'!AJ12*'环工16-1分数统计'!$AJ$3/120 -> 0.7666666667 | AG12: ='环工16-1分数统计'!AK12*'环工16-1分数统计'!$AK$3/120 -> 2.5 | AH12: ='环工16-1分数统计'!AL12*'环工16-1分数统计'!$AL$3/120 -> 1.483333333 | AI12: ='环工16-1分数统计'!AM12*'环工16-1分数统计'!$AM$3/120 -> 1.0625 | AJ12: ='环工16-1分数统计'!AN12*'环工16-1分数统计'!$AN$3/120 -> 2.275 | AK12: ='环工16-1分数统计'!AO12*'环工16-1分数统计'!$AO$3/120 -> 2.125 | AL12: ='环工16-1分数统计'!AP12*'环工16-1分数统计'!$AP$3/120 -> 1.125 | AM12: ='环工16-1分数统计'!AQ12*'环工16-1分数统计'!$AQ$3/120 -> 2.325 | AN12: ='环工16-1分数统计'!AR12*'环工16-1分数统计'!$AR$3/120 -> 1.466666667 | AO12: ='环工16-1分数统计'!AS12*'环工16-1分数统计'!$AS$3/120 -> 1.55 | AP12: ='环工16-1分数统计'!AT12*'环工16-1分数统计'!$AT$3/120 -> 1.631666667 | AQ12: ='环工16-1分数统计'!AU12*'环工16-1分数统计'!$AU$3/120 -> 0.6833333333 | AR12: ='环工16-1分数统计'!AV12*'环工16-1分数统计'!$AV$3/120 -> 1.483333333 | AS12: ='环工16-1分数统计'!AW12*'环工16-1分数统计'!$AW$3/120 -> 0.675 | AT12: ='环工16-1分数统计'!AX12*'环工16-1分数统计'!$AX$3/120 -> 2.333333333 | AU12: ='环工16-1分数统计'!AY12*'环工16-1分数统计'!$AY$3/120 -> 1.466666667 | AV12: ='环工16-1分数统计'!AZ12*'环工16-1分数统计'!$AZ$3/120 -> 1.416666667 | AW12: ='环工16-1分数统计'!BA12*'环工16-1分数统计'!$BA$3/120 -> 1.45 | AX12: ='环工16-1分数统计'!BB12*'环工16-1分数统计'!$BB$3/120 -> 1.125 | AY12: ='环工16-1分数统计'!BC12*'环工16-1分数统计'!$BC$3/120 -> 2.125 | AZ12: ='环工16-1分数统计'!BD12*'环工16-1分数统计'!$BD$3/120 -> 1.1375 | BA12: ='环工16-1分数统计'!BE12*'环工16-1分数统计'!$BE$3/120 -> 1.366666667 | BD12: 92.92658464 | BE12: 91.32548749 | BF12: 98.33694536 | BG12: 282.5890175 | BH12: 81.74319381 | BI12: 16.34863876
B13: 唐钰琪 | C13: 2016010609 | D13: ='环工16-1分数统计'!H13*'环工16-1分数统计'!$H$3/120 -> 0.6916666667 | E13: ='环工16-1分数统计'!I13*'环工16-1分数统计'!$I$3/120 -> 1.55 | F13: ='环工16-1分数统计'!J13*'环工16-1分数统计'!$J$3/120 -> 3.3 | G13: ='环工16-1分数统计'!K13*'环工16-1分数统计'!$K$3/120 -> 3 | H13: ='环工16-1分数统计'!L13*'环工16-1分数统计'!$L$3/120 -> 1.366666667 | I13: ='环工16-1分数统计'!M13*'环工16-1分数统计'!$M$3/120 -> 1.366666667 | J13: ='环工16-1分数统计'!N13*'环工16-1分数统计'!$N$3/120 -> 3.3 | K13: ='环工16-1分数统计'!O13*'环工16-1分数统计'!$O$3/121 -> 0.7355371901 | L13: ='环工16-1分数统计'!P13*'环工16-1分数统计'!$P$3/120 -> 1.625 | M13: ='环工16-1分数统计'!Q13*'环工16-1分数统计'!$Q$3/120 -> 0.675 | N13: ='环工16-1分数统计'!R13*'环工16-1分数统计'!$R$3/120 -> 1.95 | O13: ='环工16-1分数统计'!S13*'环工16-1分数统计'!$S$3/120 -> 3.375 | P13: ='环工16-1分数统计'!T13*'环工16-1分数统计'!$T$3/120 -> 1.916666667 | Q13: ='环工16-1分数统计'!U13*'环工16-1分数统计'!$U$3/120 -> 2.233333333 | R13: ='环工16-1分数统计'!V13*'环工16-1分数统计'!$V$3/120 -> 2.1 | S13: ='环工16-1分数统计'!W13*'环工16-1分数统计'!$W$3/120 -> 3.373333333 | T13: ='环工16-1分数统计'!X13*'环工16-1分数统计'!$X$3/120 -> 0.7916666667 | U13: ='环工16-1分数统计'!Y13*'环工16-1分数统计'!$Y$3/120 -> 1.533333333 | V13: ='环工16-1分数统计'!Z13*'环工16-1分数统计'!$Z$3/120 -> 2.05 | W13: ='环工16-1分数统计'!AA13*'环工16-1分数统计'!$AA$3/120 -> 2.1 | X13: ='环工16-1分数统计'!AB13*'环工16-1分数统计'!$AB$3/120 -> 1.266666667 | Y13: ='环工16-1分数统计'!AC13*'环工16-1分数统计'!$AC$3/120 -> 1.533333333 | Z13: ='环工16-1分数统计'!AD13*'环工16-1分数统计'!$AD$3/120 -> 1.45 | AA13: ='环工16-1分数统计'!AE13*'环工16-1分数统计'!$AE$3/120 -> 1.686666667 | AB13: ='环工16-1分数统计'!AF13*'环工16-1分数统计'!$AF$3/120 -> 0.775 | AC13: ='环工16-1分数统计'!AG13*'环工16-1分数统计'!$AG$3/120 -> 1.604166667 | AD13: ='环工16-1分数统计'!AH13*'环工16-1分数统计'!$AH$3/120 -> 2.15 | AE13: ='环工16-1分数统计'!AI13*'环工16-1分数统计'!$AI$3/120 -> 1.45 | AF13: ='环工16-1分数统计'!AJ13*'环工16-1分数统计'!$AJ$3/120 -> 0.7583333333 | AG13: ='环工16-1分数统计'!AK13*'环工16-1分数统计'!$AK$3/120 -> 2.066666667 | AH13: ='环工16-1分数统计'!AL13*'环工16-1分数统计'!$AL$3/120 -> 1.45 | AI13: ='环工16-1分数统计'!AM13*'环工16-1分数统计'!$AM$3/120 -> 0.8375 | AJ13: ='环工16-1分数统计'!AN13*'环工16-1分数统计'!$AN$3/120 -> 2.25 | AK13: ='环工16-1分数统计'!AO13*'环工16-1分数统计'!$AO$3/120 -> 1.65 | AL13: ='环工16-1分数统计'!AP13*'环工16-1分数统计'!$AP$3/120 -> 1.1 | AM13: ='环工16-1分数统计'!AQ13*'环工16-1分数统计'!$AQ$3/120 -> 1.825 | AN13: ='环工16-1分数统计'!AR13*'环工16-1分数统计'!$AR$3/120 -> 1.433333333 | AO13: ='环工16-1分数统计'!AS13*'环工16-1分数统计'!$AS$3/120 -> 1.5 | AP13: ='环工16-1分数统计'!AT13*'环工16-1分数统计'!$AT$3/120 -> 1.558333333 | AQ13: ='环工16-1分数统计'!AU13*'环工16-1分数统计'!$AU$3/120 -> 0.75 | AR13: ='环工16-1分数统计'!AV13*'环工16-1分数统计'!$AV$3/120 -> 1.566666667 | AS13: ='环工16-1分数统计'!AW13*'环工16-1分数统计'!$AW$3/120 -> 0.6833333333 | AT13: ='环工16-1分数统计'!AX13*'环工16-1分数统计'!$AX$3/120 -> 2.566666667 | AU13: ='环工16-1分数统计'!AY13*'环工16-1分数统计'!$AY$3/120 -> 1.6 | AV13: ='环工16-1分数统计'!AZ13*'环工16-1分数统计'!$AZ$3/120 -> 1.533333333 | AW13: ='环工16-1分数统计'!BA13*'环工16-1分数统计'!$BA$3/120 -> 1.166666667 | AX13: ='环工16-1分数统计'!BB13*'环工16-1分数统计'!$BB$3/120 -> 1.1 | AY13: ='环工16-1分数统计'!BC13*'环工16-1分数统计'!$BC$3/120 -> 2.1 | AZ13: ='环工16-1分数统计'!BD13*'环工16-1分数统计'!$BD$3/120 -> 1.1375 | BA13: ='环工16-1分数统计'!BE13*'环工16-1分数统计'!$BE$3/120 -> 1.266666667 | BD13: 92.99754494 | BE13: 94.04100668 | BF13: 100.0105412 | BG13: 287.0490928 | BH13: 83.03333879 | BI13: 16.60666776
B14: 闫玺宇 | C14: 2016010610 | D14: ='环工16-1分数统计'!H14*'环工16-1分数统计'!$H$3/120 -> 0.6 | E14: ='环工16-1分数统计'!I14*'环工16-1分数统计'!$I$3/120 -> 1.45 | F14: ='环工16-1分数统计'!J14*'环工16-1分数统计'!$J$3/120 -> 3.1 | G14: ='环工16-1分数统计'!K14*'环工16-1分数统计'!$K$3/120 -> 2.4375 | H14: ='环工16-1分数统计'!L14*'环工16-1分数统计'!$L$3/120 -> 1.416666667 | I14: ='环工16-1分数统计'!M14*'环工16-1分数统计'!$M$3/120 -> 1.1 | J14: ='环工16-1分数统计'!N14*'环工16-1分数统计'!$N$3/120 -> 2.676666667 | K14: ='环工16-1分数统计'!O14*'环工16-1分数统计'!$O$3/121 -> 0.7355371901 | L14: ='环工16-1分数统计'!P14*'环工16-1分数统计'!$P$3/120 -> 1.395833333 | M14: ='环工16-1分数统计'!Q14*'环工16-1分数统计'!$Q$3/120 -> 0.625 | N14: ='环工16-1分数统计'!R14*'环工16-1分数统计'!$R$3/120 -> 1.525 | O14: ='环工16-1分数统计'!S14*'环工16-1分数统计'!$S$3/120 -> 2.5 | P14: ='环工16-1分数统计'!T14*'环工16-1分数统计'!$T$3/120 -> 1.604166667 | Q14: ='环工16-1分数统计'!U14*'环工16-1分数统计'!$U$3/120 -> 2.166666667 | R14: ='环工16-1分数统计'!V14*'环工16-1分数统计'!$V$3/120 -> 1.7 | S14: ='环工16-1分数统计'!W14*'环工16-1分数统计'!$W$3/120 -> 2.933333333 | T14: ='环工16-1分数统计'!X14*'环工16-1分数统计'!$X$3/120 -> 0.8 | U14: ='环工16-1分数统计'!Y14*'环工16-1分数统计'!$Y$3/120 -> 1.5 | V14: ='环工16-1分数统计'!Z14*'环工16-1分数统计'!$Z$3/120 -> 1.525 | W14: ='环工16-1分数统计'!AA14*'环工16-1分数统计'!$AA$3/120 -> 1.5 | X14: ='环工16-1分数统计'!AB14*'环工16-1分数统计'!$AB$3/120 -> 1.116666667 | Y14: ='环工16-1分数统计'!AC14*'环工16-1分数统计'!$AC$3/120 -> 1.3 | Z14: ='环工16-1分数统计'!AD14*'环工16-1分数统计'!$AD$3/120 -> 1.266666667 | AA14: ='环工16-1分数统计'!AE14*'环工16-1分数统计'!$AE$3/120 -> 1.503333333 | AB14: ='环工16-1分数统计'!AF14*'环工16-1分数统计'!$AF$3/120 -> 0.75 | AC14: ='环工16-1分数统计'!AG14*'环工16-1分数统计'!$AG$3/120 -> 1.729166667 | AD14: ='环工16-1分数统计'!AH14*'环工16-1分数统计'!$AH$3/120 -> 2.075 | AE14: ='环工16-1分数统计'!AI14*'环工16-1分数统计'!$AI$3/120 -> 1.333333333 | AF14: ='环工16-1分数统计'!AJ14*'环工16-1分数统计'!$AJ$3/120 -> 0.7583333333 | AG14: ='环工16-1分数统计'!AK14*'环工16-1分数统计'!$AK$3/120 -> 1.9 | AH14: ='环工16-1分数统计'!AL14*'环工16-1分数统计'!$AL$3/120 -> 1.383333333 | AI14: ='环工16-1分数统计'!AM14*'环工16-1分数统计'!$AM$3/120 -> 0.75 | AJ14: ='环工16-1分数统计'!AN14*'环工16-1分数统计'!$AN$3/120 -> 2.05 | AK14: ='环工16-1分数统计'!AO14*'环工16-1分数统计'!$AO$3/120 -> 2.35 | AL14: ='环工16-1分数统计'!AP14*'环工16-1分数统计'!$AP$3/120 -> 1.075 | AM14: ='环工16-1分数统计'!AQ14*'环工16-1分数统计'!$AQ$3/120 -> 1.5 | AN14: ='环工16-1分数统计'!AR14*'环工16-1分数统计'!$AR$3/120 -> 1.416666667 | AO14: ='环工16-1分数统计'!AS14*'环工16-1分数统计'!$AS$3/120 -> 1.433333333 | AP14: ='环工16-1分数统计'!AT14*'环工16-1分数统计'!$AT$3/120 -> 1.32 | AQ14: ='环工16-1分数统计'!AU14*'环工16-1分数统计'!$AU$3/120 -> 0.7333333333 | AR14: ='环工16-1分数统计'!AV14*'环工16-1分数统计'!$AV$3/120 -> 1.333333333 | AS14: ='环工16-1分数统计'!AW14*'环工16-1分数统计'!$AW$3/120 -> 0.5666666667 | AT14: ='环工16-1分数统计'!AX14*'环工16-1分数统计'!$AX$3/120 -> 2 | AU14: ='环工16-1分数统计'!AY14*'环工16-1分数统计'!$AY$3/120 -> 1.416666667 | AV14: ='环工16-1分数统计'!AZ14*'环工16-1分数统计'!$AZ$3/120 -> 1.116666667 | AW14: ='环工16-1分数统计'!BA14*'环工16-1分数统计'!$BA$3/120 -> 1.183333333 | AX14: ='环工16-1分数统计'!BB14*'环工16-1分数统计'!$BB$3/120 -> 1.0125 | AY14: ='环工16-1分数统计'!BC14*'环工16-1分数统计'!$BC$3/120 -> 1.425 | AZ14: ='环工16-1分数统计'!BD14*'环工16-1分数统计'!$BD$3/120 -> 1.0625 | BA14: ='环工16-1分数统计'!BE14*'环工16-1分数统计'!$BE$3/120 -> 1.133333333 | BD14: 82.65141302 | BE14: 84.65174204 | BF14: 80.2561021 | BG14: 247.5592572 | BH14: 71.61030006 | BI14: 14.32206001
B15: 杨玉凤 | C15: 2016010611 | D15: ='环工16-1分数统计'!H15*'环工16-1分数统计'!$H$3/120 -> 0.6916666667 | E15: ='环工16-1分数统计'!I15*'环工16-1分数统计'!$I$3/120 -> 1.516666667 | F15: ='环工16-1分数统计'!J15*'环工16-1分数统计'!$J$3/120 -> 3 | G15: ='环工16-1分数统计'!K15*'环工16-1分数统计'!$K$3/120 -> 2.325 | H15: ='环工16-1分数统计'!L15*'环工16-1分数统计'!$L$3/120 -> 1.466666667 | I15: ='环工16-1分数统计'!M15*'环工16-1分数统计'!$M$3/120 -> 1.266666667 | J15: ='环工16-1分数统计'!N15*'环工16-1分数统计'!$N$3/120 -> 2.273333333 | K15: ='环工16-1分数统计'!O15*'环工16-1分数统计'!$O$3/121 -> 0.694214876 | L15: ='环工16-1分数统计'!P15*'环工16-1分数统计'!$P$3/120 -> 1.729166667 | M15: ='环工16-1分数统计'!Q15*'环工16-1分数统计'!$Q$3/120 -> 0.5833333333 | N15: ='环工16-1分数统计'!R15*'环工16-1分数统计'!$R$3/120 -> 1.675 | O15: ='环工16-1分数统计'!S15*'环工16-1分数统计'!$S$3/120 -> 3.458333333 | P15: ='环工16-1分数统计'!T15*'环工16-1分数统计'!$T$3/120 -> 1.791666667 | Q15: ='环工16-1分数统计'!U15*'环工16-1分数统计'!$U$3/120 -> 2.4 | R15: ='环工16-1分数统计'!V15*'环工16-1分数统计'!$V$3/120 -> 1.5 | S15: ='环工16-1分数统计'!W15*'环工16-1分数统计'!$W$3/120 -> 2.933333333 | T15: ='环工16-1分数统计'!X15*'环工16-1分数统计'!$X$3/120 -> 0.75 | U15: ='环工16-1分数统计'!Y15*'环工16-1分数统计'!$Y$3/120 -> 1.55 | V15: ='环工16-1分数统计'!Z15*'环工16-1分数统计'!$Z$3/120 -> 1.525 | W15: ='环工16-1分数统计'!AA15*'环工16-1分数统计'!$AA$3/120 -> 1.6 | X15: ='环工16-1分数统计'!AB15*'环工16-1分数统计'!$AB$3/120 -> 1.316666667 | Y15: ='环工16-1分数统计'!AC15*'环工16-1分数统计'!$AC$3/120 -> 1.3 | Z15: ='环工16-1分数统计'!AD15*'环工16-1分数统计'!$AD$3/120 -> 1.283333333 | AA15: ='环工16-1分数统计'!AE15*'环工16-1分数统计'!$AE$3/120 -> 1.356666667 | AB15: ='环工16-1分数统计'!AF15*'环工16-1分数统计'!$AF$3/120 -> 0.7666666667 | AC15: ='环工16-1分数统计'!AG15*'环工16-1分数统计'!$AG$3/120 -> 1.645833333 | AD15: ='环工16-1分数统计'!AH15*'环工16-1分数统计'!$AH$3/120 -> 1.7 | AE15: ='环工16-1分数统计'!AI15*'环工16-1分数统计'!$AI$3/120 -> 1.4 | AF15: ='环工16-1分数统计'!AJ15*'环工16-1分数统计'!$AJ$3/120 -> 0.725 | AG15: ='环工16-1分数统计'!AK15*'环工16-1分数统计'!$AK$3/120 -> 2 | AH15: ='环工16-1分数统计'!AL15*'环工16-1分数统计'!$AL$3/120 -> 1.466666667 | AI15: ='环工16-1分数统计'!AM15*'环工16-1分数统计'!$AM$3/120 -> 0.8 | AJ15: ='环工16-1分数统计'!AN15*'环工16-1分数统计'!$AN$3/120 -> 1.65 | AK15: ='环工16-1分数统计'!AO15*'环工16-1分数统计'!$AO$3/120 -> 1.55 | AL15: ='环工16-1分数统计'!AP15*'环工16-1分数统计'!$AP$3/120 -> 1.1 | AM15: ='环工16-1分数统计'!AQ15*'环工16-1分数统计'!$AQ$3/120 -> 1.675 | AN15: ='环工16-1分数统计'!AR15*'环工16-1分数统计'!$AR$3/120 -> 1.4 | AO15: ='环工16-1分数统计'!AS15*'环工16-1分数统计'!$AS$3/120 -> 1.516666667 | AP15: ='环工16-1分数统计'!AT15*'环工16-1分数统计'!$AT$3/120 -> 1.283333333 | AQ15: ='环工16-1分数统计'!AU15*'环工16-1分数统计'!$AU$3/120 -> 0.6416666667 | AR15: ='环工16-1分数统计'!AV15*'环工16-1分数统计'!$AV$3/120 -> 1.383333333 | AS15: ='环工16-1分数统计'!AW15*'环工16-1分数统计'!$AW$3/120 -> 0.6333333333 | AT15: ='环工16-1分数统计'!AX15*'环工16-1分数统计'!$AX$3/120 -> 1.833333333 | AU15: ='环工16-1分数统计'!AY15*'环工16-1分数统计'!$AY$3/120 -> 1.133333333 | AV15: ='环工16-1分数统计'!AZ15*'环工16-1分数统计'!$AZ$3/120 -> 1.416666667 | AW15: ='环工16-1分数统计'!BA15*'环工16-1分数统计'!$BA$3/120 -> 1.05 | AX15: ='环工16-1分数统计'!BB15*'环工16-1分数统计'!$BB$3/120 -> 1.05 | AY15: ='环工16-1分数统计'!BC15*'环工16-1分数统计'!$BC$3/120 -> 1.95 | AZ15: ='环工16-1分数统计'!BD15*'环工16-1分数统计'!$BD$3/120 -> 1.075 | BA15: ='环工16-1分数统计'!BE15*'环工16-1分数统计'!$BE$3/120 -> 1.3 | BD15: 80.63928761 | BE15: 82.41473292 | BF15: 83.49705235 | BG15: 246.5510729 | BH15: 71.31866735 | BI15: 14.26373347
B16: 游恋 | C16: 2016010612 | D16: ='环工16-1分数统计'!H16*'环工16-1分数统计'!$H$3/120 -> 0.6416666667 | E16: ='环工16-1分数统计'!I16*'环工16-1分数统计'!$I$3/120 -> 1.45 | F16: ='环工16-1分数统计'!J16*'环工16-1分数统计'!$J$3/120 -> 4.2 | G16: ='环工16-1分数统计'!K16*'环工16-1分数统计'!$K$3/120 -> 3.4875 | H16: ='环工16-1分数统计'!L16*'环工16-1分数统计'!$L$3/120 -> 1.383333333 | I16: ='环工16-1分数统计'!M16*'环工16-1分数统计'!$M$3/120 -> 1.3 | J16: ='环工16-1分数统计'!N16*'环工16-1分数统计'!$N$3/120 -> 2.1 | K16: ='环工16-1分数统计'!O16*'环工16-1分数统计'!$O$3/121 -> 0.7024793388 | L16: ='环工16-1分数统计'!P16*'环工16-1分数统计'!$P$3/120 -> 1.8125 | M16: ='环工16-1分数统计'!Q16*'环工16-1分数统计'!$Q$3/120 -> 0.7666666667 | N16: ='环工16-1分数统计'!R16*'环工16-1分数统计'!$R$3/120 -> 1.9 | O16: ='环工16-1分数统计'!S16*'环工16-1分数统计'!$S$3/120 -> 4.083333333 | P16: ='环工16-1分数统计'!T16*'环工16-1分数统计'!$T$3/120 -> 1.895833333 | Q16: ='环工16-1分数统计'!U16*'环工16-1分数统计'!$U$3/120 -> 3.033333333 | R16: ='环工16-1分数统计'!V16*'环工16-1分数统计'!$V$3/120 -> 2.375 | S16: ='环工16-1分数统计'!W16*'环工16-1分数统计'!$W$3/120 -> 2.033333333 | T16: ='环工16-1分数统计'!X16*'环工16-1分数统计'!$X$3/120 -> 0.775 | U16: ='环工16-1分数统计'!Y16*'环工16-1分数统计'!$Y$3/120 -> 1.55 | V16: ='环工16-1分数统计'!Z16*'环工16-1分数统计'!$Z$3/120 -> 2 | W16: ='环工16-1分数统计'!AA16*'环工16-1分数统计'!$AA$3/120 -> 2.275 | X16: ='环工16-1分数统计'!AB16*'环工16-1分数统计'!$AB$3/120 -> 1.433333333 | Y16: ='环工16-1分数统计'!AC16*'环工16-1分数统计'!$AC$3/120 -> 1.35 | Z16: ='环工16-1分数统计'!AD16*'环工16-1分数统计'!$AD$3/120 -> 1.316666667 | AA16: ='环工16-1分数统计'!AE16*'环工16-1分数统计'!$AE$3/120 -> 1.233333333 | AB16: ='环工16-1分数统计'!AF16*'环工16-1分数统计'!$AF$3/120 -> 0.7583333333 | AC16: ='环工16-1分数统计'!AG16*'环工16-1分数统计'!$AG$3/120 -> 1.666666667 | AD16: ='环工16-1分数统计'!AH16*'环工16-1分数统计'!$AH$3/120 -> 2.1 | AE16: ='环工16-1分数统计'!AI16*'环工16-1分数统计'!$AI$3/120 -> 1.5 | AF16: ='环工16-1分数统计'!AJ16*'环工16-1分数统计'!$AJ$3/120 -> 0.7333333333 | AG16: ='环工16-1分数统计'!AK16*'环工16-1分数统计'!$AK$3/120 -> 2.8 | AH16: ='环工16-1分数统计'!AL16*'环工16-1分数统计'!$AL$3/120 -> 1.483333333 | AI16: ='环工16-1分数统计'!AM16*'环工16-1分数统计'!$AM$3/120 -> 1.05 | AJ16: ='环工16-1分数统计'!AN16*'环工16-1分数统计'!$AN$3/120 -> 2.15 | AK16: ='环工16-1分数统计'!AO16*'环工16-1分数统计'!$AO$3/120 -> 2.05 | AL16: ='环工16-1分数统计'!AP16*'环工16-1分数统计'!$AP$3/120 -> 1.125 | AM16: ='环工16-1分数统计'!AQ16*'环工16-1分数统计'!$AQ$3/120 -> 2.325 | AN16: ='环工16-1分数统计'!AR16*'环工16-1分数统计'!$AR$3/120 -> 1.45 | AO16: ='环工16-1分数统计'!AS16*'环工16-1分数统计'!$AS$3/120 -> 1.5 | AP16: ='环工16-1分数统计'!AT16*'环工16-1分数统计'!$AT$3/120 -> 1.333333333 | AQ16: ='环工16-1分数统计'!AU16*'环工16-1分数统计'!$AU$3/120 -> 0.7833333333 | AR16: ='环工16-1分数统计'!AV16*'环工16-1分数统计'!$AV$3/120 -> 1.45 | AS16: ='环工16-1分数统计'!AW16*'环工16-1分数统计'!$AW$3/120 -> 0.7083333333 | AT16: ='环工16-1分数统计'!AX16*'环工16-1分数统计'!$AX$3/120 -> 3.033333333 | AU16: ='环工16-1分数统计'!AY16*'环工16-1分数统计'!$AY$3/120 -> 1.416666667 | AV16: ='环工16-1分数统计'!AZ16*'环工16-1分数统计'!$AZ$3/120 -> 1.45 | AW16: ='环工16-1分数统计'!BA16*'环工16-1分数统计'!$BA$3/120 -> 1.616666667 | AX16: ='环工16-1分数统计'!BB16*'环工16-1分数统计'!$BB$3/120 -> 1.1 | AY16: ='环工16-1分数统计'!BC16*'环工16-1分数统计'!$BC$3/120 -> 2.1 | AZ16: ='环工16-1分数统计'!BD16*'环工16-1分数统计'!$BD$3/120 -> 1.1375 | BA16: ='环工16-1分数统计'!BE16*'环工16-1分数统计'!$BE$3/120 -> 1.55 | BD16: 91.16873315 | BE16: 98.03067941 | BF16: 94.45784191 | BG16: 283.6572545 | BH16: 82.05219769 | BI16: 16.41043954
B17: 余美琪 | C17: 2016010613 | D17: ='环工16-1分数统计'!H17*'环工16-1分数统计'!$H$3/120 -> 0.675 | E17: ='环工16-1分数统计'!I17*'环工16-1分数统计'!$I$3/120 -> 1.516666667 | F17: ='环工16-1分数统计'!J17*'环工16-1分数统计'!$J$3/120 -> 4.2 | G17: ='环工16-1分数统计'!K17*'环工16-1分数统计'!$K$3/120 -> 3.0375 | H17: ='环工16-1分数统计'!L17*'环工16-1分数统计'!$L$3/120 -> 1.283333333 | I17: ='环工16-1分数统计'!M17*'环工16-1分数统计'!$M$3/120 -> 1.2 | J17: ='环工16-1分数统计'!N17*'环工16-1分数统计'!$N$3/120 -> 3.45 | K17: ='环工16-1分数统计'!O17*'环工16-1分数统计'!$O$3/121 -> 0.652892562 | L17: ='环工16-1分数统计'!P17*'环工16-1分数统计'!$P$3/120 -> 1.520833333 | M17: ='环工16-1分数统计'!Q17*'环工16-1分数统计'!$Q$3/120 -> 0.625 | N17: ='环工16-1分数统计'!R17*'环工16-1分数统计'!$R$3/120 -> 1.7 | O17: ='环工16-1分数统计'!S17*'环工16-1分数统计'!$S$3/120 -> 3.541666667 | P17: ='环工16-1分数统计'!T17*'环工16-1分数统计'!$T$3/120 -> 1.791666667 | Q17: ='环工16-1分数统计'!U17*'环工16-1分数统计'!$U$3/120 -> 2.866666667 | R17: ='环工16-1分数统计'!V17*'环工16-1分数统计'!$V$3/120 -> 2.225 | S17: ='环工16-1分数统计'!W17*'环工16-1分数统计'!$W$3/120 -> 3.335 | T17: ='环工16-1分数统计'!X17*'环工16-1分数统计'!$X$3/120 -> 0.7083333333 | U17: ='环工16-1分数统计'!Y17*'环工16-1分数统计'!$Y$3/120 -> 1.483333333 | V17: ='环工16-1分数统计'!Z17*'环工16-1分数统计'!$Z$3/120 -> 2 | W17: ='环工16-1分数统计'!AA17*'环工16-1分数统计'!$AA$3/120 -> 2.25 | X17: ='环工16-1分数统计'!AB17*'环工16-1分数统计'!$AB$3/120 -> 1.433333333 | Y17: ='环工16-1分数统计'!AC17*'环工16-1分数统计'!$AC$3/120 -> 1.466666667 | Z17: ='环工16-1分数统计'!AD17*'环工16-1分数统计'!$AD$3/120 -> 1.4 | AA17: ='环工16-1分数统计'!AE17*'环工16-1分数统计'!$AE$3/120 -> 1.61 | AB17: ='环工16-1分数统计'!AF17*'环工16-1分数统计'!$AF$3/120 -> 0.7416666667 | AC17: ='环工16-1分数统计'!AG17*'环工16-1分数统计'!$AG$3/120 -> 1.5625 | AD17: ='环工16-1分数统计'!AH17*'环工16-1分数统计'!$AH$3/120 -> 2.1 | AE17: ='环工16-1分数统计'!AI17*'环工16-1分数统计'!$AI$3/120 -> 1.466666667 | AF17: ='环工16-1分数统计'!AJ17*'环工16-1分数统计'!$AJ$3/120 -> 0.725 | AG17: ='环工16-1分数统计'!AK17*'环工16-1分数统计'!$AK$3/120 -> 2.666666667 | AH17: ='环工16-1分数统计'!AL17*'环工16-1分数统计'!$AL$3/120 -> 1.533333333 | AI17: ='环工16-1分数统计'!AM17*'环工16-1分数统计'!$AM$3/120 -> 0.975 | AJ17: ='环工16-1分数统计'!AN17*'环工16-1分数统计'!$AN$3/120 -> 2.175 | AK17: ='环工16-1分数统计'!AO17*'环工16-1分数统计'!$AO$3/120 -> 2.075 | AL17: ='环工16-1分数统计'!AP17*'环工16-1分数统计'!$AP$3/120 -> 1.1125 | AM17: ='环工16-1分数统计'!AQ17*'环工16-1分数统计'!$AQ$3/120 -> 2.175 | AN17: ='环工16-1分数统计'!AR17*'环工16-1分数统计'!$AR$3/120 -> 1.45 | AO17: ='环工16-1分数统计'!AS17*'环工16-1分数统计'!$AS$3/120 -> 1.533333333 | AP17: ='环工16-1分数统计'!AT17*'环工16-1分数统计'!$AT$3/120 -> 1.456666667 | AQ17: ='环工16-1分数统计'!AU17*'环工16-1分数统计'!$AU$3/120 -> 0.775 | AR17: ='环工16-1分数统计'!AV17*'环工16-1分数统计'!$AV$3/120 -> 1.5 | AS17: ='环工16-1分数统计'!AW17*'环工16-1分数统计'!$AW$3/120 -> 0.6666666667 | AT17: ='环工16-1分数统计'!AX17*'环工16-1分数统计'!$AX$3/120 -> 3.066666667 | AU17: ='环工16-1分数统计'!AY17*'环工16-1分数统计'!$AY$3/120 -> 1.566666667 | AV17: ='环工16-1分数统计'!AZ17*'环工16-1分数统计'!$AZ$3/120 -> 1.45 | AW17: ='环工16-1分数统计'!BA17*'环工16-1分数统计'!$BA$3/120 -> 1.516666667 | AX17: ='环工16-1分数统计'!BB17*'环工16-1分数统计'!$BB$3/120 -> 1.0875 | AY17: ='环工16-1分数统计'!BC17*'环工16-1分数统计'!$BC$3/120 -> 2.2 | AZ17: ='环工16-1分数统计'!BD17*'环工16-1分数统计'!$BD$3/120 -> 1.1125 | BA17: ='环工16-1分数统计'!BE17*'环工16-1分数统计'!$BE$3/120 -> 1.2 | BD17: 89.371215 | BE17: 90.0143683 | BF17: 96.2065859 | BG17: 275.5921692 | BH17: 79.71924847 | BI17: 15.94384969
B18: 仲英杰 | C18: 2016010614 | D18: ='环工16-1分数统计'!H18*'环工16-1分数统计'!$H$3/120 -> 0.75 | E18: ='环工16-1分数统计'!I18*'环工16-1分数统计'!$I$3/120 -> 1.566666667 | F18: ='环工16-1分数统计'!J18*'环工16-1分数统计'!$J$3/120 -> 4.9 | G18: ='环工16-1分数统计'!K18*'环工16-1分数统计'!$K$3/120 -> 3.4875 | H18: ='环工16-1分数统计'!L18*'环工16-1分数统计'!$L$3/120 -> 1.466666667 | I18: ='环工16-1分数统计'!M18*'环工16-1分数统计'!$M$3/120 -> 1.433333333 | J18: ='环工16-1分数统计'!N18*'环工16-1分数统计'!$N$3/120 -> 3.153333333 | K18: ='环工16-1分数统计'!O18*'环工16-1分数统计'!$O$3/121 -> 0.652892562 | L18: ='环工16-1分数统计'!P18*'环工16-1分数统计'!$P$3/120 -> 1.875 | M18: ='环工16-1分数统计'!Q18*'环工16-1分数统计'!$Q$3/120 -> 0.6833333333 | N18: ='环工16-1分数统计'!R18*'环工16-1分数统计'!$R$3/120 -> 2.075 | O18: ='环工16-1分数统计'!S18*'环工16-1分数统计'!$S$3/120 -> 3.875 | P18: ='环工16-1分数统计'!T18*'环工16-1分数统计'!$T$3/120 -> 1.875 | Q18: ='环工16-1分数统计'!U18*'环工16-1分数统计'!$U$3/120 -> 3.033333333 | R18: ='环工16-1分数统计'!V18*'环工16-1分数统计'!$V$3/120 -> 2.325 | S18: ='环工16-1分数统计'!W18*'环工16-1分数统计'!$W$3/120 -> 3.19 | T18: ='环工16-1分数统计'!X18*'环工16-1分数统计'!$X$3/120 -> 0.775 | U18: ='环工16-1分数统计'!Y18*'环工16-1分数统计'!$Y$3/120 -> 1.5 | V18: ='环工16-1分数统计'!Z18*'环工16-1分数统计'!$Z$3/120 -> 2.15 | W18: ='环工16-1分数统计'!AA18*'环工16-1分数统计'!$AA$3/120 -> 2.275 | X18: ='环工16-1分数统计'!AB18*'环工16-1分数统计'!$AB$3/120 -> 1.433333333 | Y18: ='环工16-1分数统计'!AC18*'环工16-1分数统计'!$AC$3/120 -> 1.416666667 | Z18: ='环工16-1分数统计'!AD18*'环工16-1分数统计'!$AD$3/120 -> 1.45 | AA18: ='环工16-1分数统计'!AE18*'环工16-1分数统计'!$AE$3/120 -> 1.723333333 | AB18: ='环工16-1分数统计'!AF18*'环工16-1分数统计'!$AF$3/120 -> 0.775 | AC18: ='环工16-1分数统计'!AG18*'环工16-1分数统计'!$AG$3/120 -> 1.625 | AD18: ='环工16-1分数统计'!AH18*'环工16-1分数统计'!$AH$3/120 -> 2.15 | AE18: ='环工16-1分数统计'!AI18*'环工16-1分数统计'!$AI$3/120 -> 1.5 | AF18: ='环工16-1分数统计'!AJ18*'环工16-1分数统计'!$AJ$3/120 -> 0.75 | AG18: ='环工16-1分数统计'!AK18*'环工16-1分数统计'!$AK$3/120 -> 2.466666667 | AH18: ='环工16-1分数统计'!AL18*'环工16-1分数统计'!$AL$3/120 -> 1.416666667 | AI18: ='环工16-1分数统计'!AM18*'环工16-1分数统计'!$AM$3/120 -> 1.025 | AJ18: ='环工16-1分数统计'!AN18*'环工16-1分数统计'!$AN$3/120 -> 2.025 | AK18: ='环工16-1分数统计'!AO18*'环工16-1分数统计'!$AO$3/120 -> 2 | AL18: ='环工16-1分数统计'!AP18*'环工16-1分数统计'!$AP$3/120 -> 1.1125 | AM18: ='环工16-1分数统计'!AQ18*'环工16-1分数统计'!$AQ$3/120 -> 2.15 | AN18: ='环工16-1分数统计'!AR18*'环工16-1分数统计'!$AR$3/120 -> 1.416666667 | AO18: ='环工16-1分数统计'!AS18*'环工16-1分数统计'!$AS$3/120 -> 1.55 | AP18: ='环工16-1分数统计'!AT18*'环工16-1分数统计'!$AT$3/120 -> 1.65 | AQ18: ='环工16-1分数统计'!AU18*'环工16-1分数统计'!$AU$3/120 -> 0.6833333333 | AR18: ='环工16-1分数统计'!AV18*'环工16-1分数统计'!$AV$3/120 -> 1.516666667 | AS18: ='环工16-1分数统计'!AW18*'环工16-1分数统计'!$AW$3/120 -> 0.7 | AT18: ='环工16-1分数统计'!AX18*'环工16-1分数统计'!$AX$3/120 -> 2.633333333 | AU18: ='环工16-1分数统计'!AY18*'环工16-1分数统计'!$AY$3/120 -> 1.383333333 | AV18: ='环工16-1分数统计'!AZ18*'环工16-1分数统计'!$AZ$3/120 -> 1.533333333 | AW18: ='环工16-1分数统计'!BA18*'环工16-1分数统计'!$BA$3/120 -> 1.45 | AX18: ='环工16-1分数统计'!BB18*'环工16-1分数统计'!$BB$3/120 -> 1.125 | AY18: ='环工16-1分数统计'!BC18*'环工16-1分数统计'!$BC$3/120 -> 2.375 | AZ18: ='环工16-1分数统计'!BD18*'环工16-1分数统计'!$BD$3/120 -> 1.15 | BA18: ='环工16-1分数统计'!BE18*'环工16-1分数统计'!$BE$3/120 -> 1.466666667 | BD18: 98.43992237 | BE18: 105.2956936 | BF18: 111.153582 | BG18: 314.8891979 | BH18: 91.08651483 | BI18: 18.21730297
B19: 陈闯 | C19: 2016010617 | D19: ='环工16-1分数统计'!H19*'环工16-1分数统计'!$H$3/120 -> 0.6916666667 | E19: ='环工16-1分数统计'!I19*'环工16-1分数统计'!$I$3/120 -> 1.566666667 | F19: ='环工16-1分数统计'!J19*'环工16-1分数统计'!$J$3/120 -> 4.55 | G19: ='环工16-1分数统计'!K19*'环工16-1分数统计'!$K$3/120 -> 3.375 | H19: ='环工16-1分数统计'!L19*'环工16-1分数统计'!$L$3/120 -> 1.483333333 | I19: ='环工16-1分数统计'!M19*'环工16-1分数统计'!$M$3/120 -> 1.3 | J19: ='环工16-1分数统计'!N19*'环工16-1分数统计'!$N$3/120 -> 2.75 | K19: ='环工16-1分数统计'!O19*'环工16-1分数统计'!$O$3/121 -> 0.7768595041 | L19: ='环工16-1分数统计'!P19*'环工16-1分数统计'!$P$3/120 -> 1.770833333 | M19: ='环工16-1分数统计'!Q19*'环工16-1分数统计'!$Q$3/120 -> 0.675 | N19: ='环工16-1分数统计'!R19*'环工16-1分数统计'!$R$3/120 -> 1.7 | O19: ='环工16-1分数统计'!S19*'环工16-1分数统计'!$S$3/120 -> 4.166666667 | P19: ='环工16-1分数统计'!T19*'环工16-1分数统计'!$T$3/120 -> 1.791666667 | Q19: ='环工16-1分数统计'!U19*'环工16-1分数统计'!$U$3/120 -> 2.766666667 | R19: ='环工16-1分数统计'!V19*'环工16-1分数统计'!$V$3/120 -> 2.15 | S19: ='环工16-1分数统计'!W19*'环工16-1分数统计'!$W$3/120 -> 3.116666667 | T19: ='环工16-1分数统计'!X19*'环工16-1分数统计'!$X$3/120 -> 0.7833333333 | U19: ='环工16-1分数统计'!Y19*'环工16-1分数统计'!$Y$3/120 -> 1.6 | V19: ='环工16-1分数统计'!Z19*'环工16-1分数统计'!$Z$3/120 -> 1.8 | W19: ='环工16-1分数统计'!AA19*'环工16-1分数统计'!$AA$3/120 -> 2.3 | X19: ='环工16-1分数统计'!AB19*'环工16-1分数统计'!$AB$3/120 -> 1.3 | Y19: ='环工16-1分数统计'!AC19*'环工16-1分数统计'!$AC$3/120 -> 1.466666667 | Z19: ='环工16-1分数统计'!AD19*'环工16-1分数统计'!$AD$3/120 -> 1.45 | AA19: ='环工16-1分数统计'!AE19*'环工16-1分数统计'!$AE$3/120 -> 1.466666667 | AB19: ='环工16-1分数统计'!AF19*'环工16-1分数统计'!$AF$3/120 -> 0.7916666667 | AC19: ='环工16-1分数统计'!AG19*'环工16-1分数统计'!$AG$3/120 -> 1.791666667 | AD19: ='环工16-1分数统计'!AH19*'环工16-1分数统计'!$AH$3/120 -> 2.35 | AE19: ='环工16-1分数统计'!AI19*'环工16-1分数统计'!$AI$3/120 -> 1.483333333 | AF19: ='环工16-1分数统计'!AJ19*'环工16-1分数统计'!$AJ$3/120 -> 0.7666666667 | AG19: ='环工16-1分数统计'!AK19*'环工16-1分数统计'!$AK$3/120 -> 2.4 | AH19: ='环工16-1分数统计'!AL19*'环工16-1分数统计'!$AL$3/120 -> 1.466666667 | AI19: ='环工16-1分数统计'!AM19*'环工16-1分数统计'!$AM$3/120 -> 0.925 | AJ19: ='环工16-1分数统计'!AN19*'环工16-1分数统计'!$AN$3/120 -> 2.15 | AK19: ='环工16-1分数统计'!AO19*'环工16-1分数统计'!$AO$3/120 -> 2.175 | AL19: ='环工16-1分数统计'!AP19*'环工16-1分数统计'!$AP$3/120 -> 1.1125 | AM19: ='环工16-1分数统计'!AQ19*'环工16-1分数统计'!$AQ$3/120 -> 2.25 | AN19: ='环工16-1分数统计'!AR19*'环工16-1分数统计'!$AR$3/120 -> 1.466666667 | AO19: ='环工16-1分数统计'!AS19*'环工16-1分数统计'!$AS$3/120 -> 1.416666667 | AP19: ='环工16-1分数统计'!AT19*'环工16-1分数统计'!$AT$3/120 -> 1.338333333 | AQ19: ='环工16-1分数统计'!AU19*'环工16-1分数统计'!$AU$3/120 -> 0.7833333333 | AR19: ='环工16-1分数统计'!AV19*'环工16-1分数统计'!$AV$3/120 -> 1.466666667 | AS19: ='环工16-1分数统计'!AW19*'环工16-1分数统计'!$AW$3/120 -> 0.675 | AT19: ='环工16-1分数统计'!AX19*'环工16-1分数统计'!$AX$3/120 -> 2.733333333 | AU19: ='环工16-1分数统计'!AY19*'环工16-1分数统计'!$AY$3/120 -> 1.5 | AV19: ='环工16-1分数统计'!AZ19*'环工16-1分数统计'!$AZ$3/120 -> 1.5 | AW19: ='环工16-1分数统计'!BA19*'环工16-1分数统计'!$BA$3/120 -> 1.483333333 | AX19: ='环工16-1分数统计'!BB19*'环工16-1分数统计'!$BB$3/120 -> 1.1 | AY19: ='环工16-1分数统计'!BC19*'环工16-1分数统计'!$BC$3/120 -> 2.2 | AZ19: ='环工16-1分数统计'!BD19*'环工16-1分数统计'!$BD$3/120 -> 1.1 | BA19: ='环工16-1分数统计'!BE19*'环工16-1分数统计'!$BE$3/120 -> 1.4 | BD19: 95.24470342 | BE19: 109.4514228 | BF19: 107.4614166 | BG19: 312.1575429 | BH19: 90.29634185 | BI19: 18.05926837
B20: 丁相瑞 | C20: 2016010619 | D20: ='环工16-1分数统计'!H20*'环工16-1分数统计'!$H$3/120 -> 0.675 | E20: ='环工16-1分数统计'!I20*'环工16-1分数统计'!$I$3/120 -> 1.483333333 | F20: ='环工16-1分数统计'!J20*'环工16-1分数统计'!$J$3/120 -> 4.15 | G20: ='环工16-1分数统计'!K20*'环工16-1分数统计'!$K$3/120 -> 2.7375 | H20: ='环工16-1分数统计'!L20*'环工16-1分数统计'!$L$3/120 -> 1.35 | I20: ='环工16-1分数统计'!M20*'环工16-1分数统计'!$M$3/120 -> 1.3 | J20: ='环工16-1分数统计'!N20*'环工16-1分数统计'!$N$3/120 -> 2.31 | K20: ='环工16-1分数统计'!O20*'环工16-1分数统计'!$O$3/121 -> 0.5702479339 | L20: ='环工16-1分数统计'!P20*'环工16-1分数统计'!$P$3/120 -> 1.625 | M20: ='环工16-1分数统计'!Q20*'环工16-1分数统计'!$Q$3/120 -> 0.7 | N20: ='环工16-1分数统计'!R20*'环工16-1分数统计'!$R$3/120 -> 1.5 | O20: ='环工16-1分数统计'!S20*'环工16-1分数统计'!$S$3/120 -> 3.75 | P20: ='环工16-1分数统计'!T20*'环工16-1分数统计'!$T$3/120 -> 1.625 | Q20: ='环工16-1分数统计'!U20*'环工16-1分数统计'!$U$3/120 -> 2.566666667 | R20: ='环工16-1分数统计'!V20*'环工16-1分数统计'!$V$3/120 -> 1.9 | S20: ='环工16-1分数统计'!W20*'环工16-1分数统计'!$W$3/120 -> 3.08 | T20: ='环工16-1分数统计'!X20*'环工16-1分数统计'!$X$3/120 -> 0.7333333333 | U20: ='环工16-1分数统计'!Y20*'环工16-1分数统计'!$Y$3/120 -> 1.566666667 | V20: ='环工16-1分数统计'!Z20*'环工16-1分数统计'!$Z$3/120 -> 1.55 | W20: ='环工16-1分数统计'!AA20*'环工16-1分数统计'!$AA$3/120 -> 1.85 | X20: ='环工16-1分数统计'!AB20*'环工16-1分数统计'!$AB$3/120 -> 1.25 | Y20: ='环工16-1分数统计'!AC20*'环工16-1分数统计'!$AC$3/120 -> 1.383333333 | Z20: ='环工16-1分数统计'!AD20*'环工16-1分数统计'!$AD$3/120 -> 1.283333333 | AA20: ='环工16-1分数统计'!AE20*'环工16-1分数统计'!$AE$3/120 -> 1.43 | AB20: ='环工16-1分数统计'!AF20*'环工16-1分数统计'!$AF$3/120 -> 0.7333333333 | AC20: ='环工16-1分数统计'!AG20*'环工16-1分数统计'!$AG$3/120 -> 1.645833333 | AD20: ='环工16-1分数统计'!AH20*'环工16-1分数统计'!$AH$3/120 -> 1.85 | AE20: ='环工16-1分数统计'!AI20*'环工16-1分数统计'!$AI$3/120 -> 1.333333333 | AF20: ='环工16-1分数统计'!AJ20*'环工16-1分数统计'!$AJ$3/120 -> 0.7 | AG20: ='环工16-1分数统计'!AK20*'环工16-1分数统计'!$AK$3/120 -> 2.166666667 | AH20: ='环工16-1分数统计'!AL20*'环工16-1分数统计'!$AL$3/120 -> 1.366666667 | AI20: ='环工16-1分数统计'!AM20*'环工16-1分数统计'!$AM$3/120 -> 0.75 | AJ20: ='环工16-1分数统计'!AN20*'环工16-1分数统计'!$AN$3/120 -> 2.25 | AK20: ='环工16-1分数统计'!AO20*'环工16-1分数统计'!$AO$3/120 -> 2 | AL20: ='环工16-1分数统计'!AP20*'环工16-1分数统计'!$AP$3/120 -> 1.025 | AM20: ='环工16-1分数统计'!AQ20*'环工16-1分数统计'!$AQ$3/120 -> 1.95 | AN20: ='环工16-1分数统计'!AR20*'环工16-1分数统计'!$AR$3/120 -> 1.466666667 | AO20: ='环工16-1分数统计'!AS20*'环工16-1分数统计'!$AS$3/120 -> 1.516666667 | AP20: ='环工16-1分数统计'!AT20*'环工16-1分数统计'!$AT$3/120 -> 1.393333333 | AQ20: ='环工16-1分数统计'!AU20*'环工16-1分数统计'!$AU$3/120 -> 0.6833333333 | AR20: ='环工16-1分数统计'!AV20*'环工16-1分数统计'!$AV$3/120 -> 1.4 | AS20: ='环工16-1分数统计'!AW20*'环工16-1分数统计'!$AW$3/120 -> 0.625 | AT20: ='环工16-1分数统计'!AX20*'环工16-1分数统计'!$AX$3/120 -> 2.4 | AU20: ='环工16-1分数统计'!AY20*'环工16-1分数统计'!$AY$3/120 -> 1.516666667 | AV20: ='环工16-1分数统计'!AZ20*'环工16-1分数统计'!$AZ$3/120 -> 1.35 | AW20: ='环工16-1分数统计'!BA20*'环工16-1分数统计'!$BA$3/120 -> 1.233333333 | AX20: ='环工16-1分数统计'!BB20*'环工16-1分数统计'!$BB$3/120 -> 1.075 | AY20: ='环工16-1分数统计'!BC20*'环工16-1分数统计'!$BC$3/120 -> 2.225 | AZ20: ='环工16-1分数统计'!BD20*'环工16-1分数统计'!$BD$3/120 -> 1.025 | BA20: ='环工16-1分数统计'!BE20*'环工16-1分数统计'!$BE$3/120 -> 1.216666667 | BD20: 86.61188494 | BE20: 85.57837638 | BF20: 88.37967786 | BG20: 260.5699392 | BH20: 75.37383876 | BI20: 15.07476775
B21: 高军政 | C21: 2016010620 | D21: ='环工16-1分数统计'!H21*'环工16-1分数统计'!$H$3/120 -> 0.6416666667 | E21: ='环工16-1分数统计'!I21*'环工16-1分数统计'!$I$3/120 -> 1.533333333 | F21: ='环工16-1分数统计'!J21*'环工16-1分数统计'!$J$3/120 -> 4 | G21: ='环工16-1分数统计'!K21*'环工16-1分数统计'!$K$3/120 -> 3.375 | H21: ='环工16-1分数统计'!L21*'环工16-1分数统计'!$L$3/120 -> 1.45 | I21: ='环工16-1分数统计'!M21*'环工16-1分数统计'!$M$3/120 -> 1.216666667 | J21: ='环工16-1分数统计'!N21*'环工16-1分数统计'!$N$3/120 -> 2.42 | K21: ='环工16-1分数统计'!O21*'环工16-1分数统计'!$O$3/121 -> 0.6115702479 | L21: ='环工16-1分数统计'!P21*'环工16-1分数统计'!$P$3/120 -> 1.8125 | M21: ='环工16-1分数统计'!Q21*'环工16-1分数统计'!$Q$3/120 -> 0.775 | N21: ='环工16-1分数统计'!R21*'环工16-1分数统计'!$R$3/120 -> 1.95 | O21: ='环工16-1分数统计'!S21*'环工16-1分数统计'!$S$3/120 -> 3.875 | P21: ='环工16-1分数统计'!T21*'环工16-1分数统计'!$T$3/120 -> 1.729166667 | Q21: ='环工16-1分数统计'!U21*'环工16-1分数统计'!$U$3/120 -> 2.666666667 | R21: ='环工16-1分数统计'!V21*'环工16-1分数统计'!$V$3/120 -> 2.3 | S21: ='环工16-1分数统计'!W21*'环工16-1分数统计'!$W$3/120 -> 2.97 | T21: ='环工16-1分数统计'!X21*'环工16-1分数统计'!$X$3/120 -> 0.725 | U21: ='环工16-1分数统计'!Y21*'环工16-1分数统计'!$Y$3/120 -> 1.5 | V21: ='环工16-1分数统计'!Z21*'环工16-1分数统计'!$Z$3/120 -> 1.7 | W21: ='环工16-1分数统计'!AA21*'环工16-1分数统计'!$AA$3/120 -> 2.275 | X21: ='环工16-1分数统计'!AB21*'环工16-1分数统计'!$AB$3/120 -> 1.283333333 | Y21: ='环工16-1分数统计'!AC21*'环工16-1分数统计'!$AC$3/120 -> 1.316666667 | Z21: ='环工16-1分数统计'!AD21*'环工16-1分数统计'!$AD$3/120 -> 1.316666667 | AA21: ='环工16-1分数统计'!AE21*'环工16-1分数统计'!$AE$3/120 -> 1.411666667 | AB21: ='环工16-1分数统计'!AF21*'环工16-1分数统计'!$AF$3/120 -> 0.6583333333 | AC21: ='环工16-1分数统计'!AG21*'环工16-1分数统计'!$AG$3/120 -> 1.4375 | AD21: ='环工16-1分数统计'!AH21*'环工16-1分数统计'!$AH$3/120 -> 1.825 | AE21: ='环工16-1分数统计'!AI21*'环工16-1分数统计'!$AI$3/120 -> 1.383333333 | AF21: ='环工16-1分数统计'!AJ21*'环工16-1分数统计'!$AJ$3/120 -> 0.7166666667 | AG21: ='环工16-1分数统计'!AK21*'环工16-1分数统计'!$AK$3/120 -> 2 | AH21: ='环工16-1分数统计'!AL21*'环工16-1分数统计'!$AL$3/120 -> 1.433333333 | AI21: ='环工16-1分数统计'!AM21*'环工16-1分数统计'!$AM$3/120 -> 0.8125 | AJ21: ='环工16-1分数统计'!AN21*'环工16-1分数统计'!$AN$3/120 -> 1.8 | AK21: ='环工16-1分数统计'!AO21*'环工16-1分数统计'!$AO$3/120 -> 1.725 | AL21: ='环工16-1分数统计'!AP21*'环工16-1分数统计'!$AP$3/120 -> 1.025 | AM21: ='环工16-1分数统计'!AQ21*'环工16-1分数统计'!$AQ$3/120 -> 2.05 | AN21: ='环工16-1分数统计'!AR21*'环工16-1分数统计'!$AR$3/120 -> 1.433333333 | AO21: ='环工16-1分数统计'!AS21*'环工16-1分数统计'!$AS$3/120 -> 1.366666667 | AP21: ='环工16-1分数统计'!AT21*'环工16-1分数统计'!$AT$3/120 -> 1.246666667 | AQ21: ='环工16-1分数统计'!AU21*'环工16-1分数统计'!$AU$3/120 -> 0.5333333333 | AR21: ='环工16-1分数统计'!AV21*'环工16-1分数统计'!$AV$3/120 -> 1.466666667 | AS21: ='环工16-1分数统计'!AW21*'环工16-1分数统计'!$AW$3/120 -> 0.6666666667 | AT21: ='环工16-1分数统计'!AX21*'环工16-1分数统计'!$AX$3/120 -> 2.9 | AU21: ='环工16-1分数统计'!AY21*'环工16-1分数统计'!$AY$3/120 -> 1.5 | AV21: ='环工16-1分数统计'!AZ21*'环工16-1分数统计'!$AZ$3/120 -> 1.483333333 | AW21: ='环工16-1分数统计'!BA21*'环工16-1分数统计'!$BA$3/120 -> 1.633333333 | AX21: ='环工16-1分数统计'!BB21*'环工16-1分数统计'!$BB$3/120 -> 1.05 | AY21: ='环工16-1分数统计'!BC21*'环工16-1分数统计'!$BC$3/120 -> 2.25 | AZ21: ='环工16-1分数统计'!BD21*'环工16-1分数统计'!$BD$3/120 -> 1.0125 | BA21: ='环工16-1分数统计'!BE21*'环工16-1分数统计'!$BE$3/120 -> 1.333333333 | BD21: 89.39301698 | BE21: 83.87043699 | BF21: 90.68818674 | BG21: 263.9516407 | BH21: 76.35204763 | BI21: 15.27040953
B22: 贾钰森 | C22: 2016010621 | D22: ='环工16-1分数统计'!H22*'环工16-1分数统计'!$H$3/120 -> 0.675 | E22: ='环工16-1分数统计'!I22*'环工16-1分数统计'!$I$3/120 -> 1.416666667 | F22: ='环工16-1分数统计'!J22*'环工16-1分数统计'!$J$3/120 -> 3.05 | G22: ='环工16-1分数统计'!K22*'环工16-1分数统计'!$K$3/120 -> 2.925 | H22: ='环工16-1分数统计'!L22*'环工16-1分数统计'!$L$3/120 -> 1.35 | I22: ='环工16-1分数统计'!M22*'环工16-1分数统计'!$M$3/120 -> 1.25 | J22: ='环工16-1分数统计'!N22*'环工16-1分数统计'!$N$3/120 -> 2.273333333 | K22: ='环工16-1分数统计'!O22*'环工16-1分数统计'!$O$3/121 -> 0.6776859504 | L22: ='环工16-1分数统计'!P22*'环工16-1分数统计'!$P$3/120 -> 1.333333333 | M22: ='环工16-1分数统计'!Q22*'环工16-1分数统计'!$Q$3/120 -> 0.6916666667 | N22: ='环工16-1分数统计'!R22*'环工16-1分数统计'!$R$3/120 -> 1.575 | O22: ='环工16-1分数统计'!S22*'环工16-1分数统计'!$S$3/120 -> 2.833333333 | P22: ='环工16-1分数统计'!T22*'环工16-1分数统计'!$T$3/120 -> 1.6875 | Q22: ='环工16-1分数统计'!U22*'环工16-1分数统计'!$U$3/120 -> 2.7 | R22: ='环工16-1分数统计'!V22*'环工16-1分数统计'!$V$3/120 -> 2 | S22: ='环工16-1分数统计'!W22*'环工16-1分数统计'!$W$3/120 -> 2.823333333 | T22: ='环工16-1分数统计'!X22*'环工16-1分数统计'!$X$3/120 -> 0.7583333333 | U22: ='环工16-1分数统计'!Y22*'环工16-1分数统计'!$Y$3/120 -> 1.433333333 | V22: ='环工16-1分数统计'!Z22*'环工16-1分数统计'!$Z$3/120 -> 1.725 | W22: ='环工16-1分数统计'!AA22*'环工16-1分数统计'!$AA$3/120 -> 1.75 | X22: ='环工16-1分数统计'!AB22*'环工16-1分数统计'!$AB$3/120 -> 1.283333333 | Y22: ='环工16-1分数统计'!AC22*'环工16-1分数统计'!$AC$3/120 -> 1.333333333 | Z22: ='环工16-1分数统计'!AD22*'环工16-1分数统计'!$AD$3/120 -> 1.216666667 | AA22: ='环工16-1分数统计'!AE22*'环工16-1分数统计'!$AE$3/120 -> 1.301666667 | AB22: ='环工16-1分数统计'!AF22*'环工16-1分数统计'!$AF$3/120 -> 0.7583333333 | AC22: ='环工16-1分数统计'!AG22*'环工16-1分数统计'!$AG$3/120 -> 1.5625 | AD22: ='环工16-1分数统计'!AH22*'环工16-1分数统计'!$AH$3/120 -> 1.55 | AE22: ='环工16-1分数统计'!AI22*'环工16-1分数统计'!$AI$3/120 -> 1.383333333 | AF22: ='环工16-1分数统计'!AJ22*'环工16-1分数统计'!$AJ$3/120 -> 0.7083333333 | AG22: ='环工16-1分数统计'!AK22*'环工16-1分数统计'!$AK$3/120 -> 2.433333333 | AH22: ='环工16-1分数统计'!AL22*'环工16-1分数统计'!$AL$3/120 -> 1.433333333 | AI22: ='环工16-1分数统计'!AM22*'环工16-1分数统计'!$AM$3/120 -> 0.95 | AJ22: ='环工16-1分数统计'!AN22*'环工16-1分数统计'!$AN$3/120 -> 1.775 | AK22: ='环工16-1分数统计'!AO22*'环工16-1分数统计'!$AO$3/120 -> 1.6 | AL22: ='环工16-1分数统计'!AP22*'环工16-1分数统计'!$AP$3/120 -> 1.075 | AM22: ='环工16-1分数统计'!AQ22*'环工16-1分数统计'!$AQ$3/120 -> 2.275 | AN22: ='环工16-1分数统计'!AR22*'环工16-1分数统计'!$AR$3/120 -> 1.4 | AO22: ='环工16-1分数统计'!AS22*'环工16-1分数统计'!$AS$3/120 -> 1.35 | AP22: ='环工16-1分数统计'!AT22*'环工16-1分数统计'!$AT$3/120 -> 1.246666667 | AQ22: ='环工16-1分数统计'!AU22*'环工16-1分数统计'!$AU$3/120 -> 0.7333333333 | AR22: ='环工16-1分数统计'!AV22*'环工16-1分数统计'!$AV$3/120 -> 1.283333333 | AS22: ='环工16-1分数统计'!AW22*'环工16-1分数统计'!$AW$3/120 -> 0.6166666667 | AT22: ='环工16-1分数统计'!AX22*'环工16-1分数统计'!$AX$3/120 -> 2.466666667 | AU22: ='环工16-1分数统计'!AY22*'环工16-1分数统计'!$AY$3/120 -> 1.416666667 | AV22: ='环工16-1分数统计'!AZ22*'环工16-1分数统计'!$AZ$3/120 -> 1.416666667 | AW22: ='环工16-1分数统计'!BA22*'环工16-1分数统计'!$BA$3/120 -> 1.616666667 | AX22: ='环工16-1分数统计'!BB22*'环工16-1分数统计'!$BB$3/120 -> 1.0375 | AY22: ='环工16-1分数统计'!BC22*'环工16-1分数统计'!$BC$3/120 -> 2.275 | AZ22: ='环工16-1分数统计'!BD22*'环工16-1分数统计'!$BD$3/120 -> 1.0875 | BA22: ='环工16-1分数统计'!BE22*'环工16-1分数统计'!$BE$3/120 -> 1.366666667 | BD22: 85.9154988 | BE22: 84.95940668 | BF22: 82.98329019 | BG22: 253.8581957 | BH22: 73.43236433 | BI22: 14.68647287
B23: 李佳奇 | C23: 2016010622 | D23: ='环工16-1分数统计'!H23*'环工16-1分数统计'!$H$3/120 -> 0.725 | E23: ='环工16-1分数统计'!I23*'环工16-1分数统计'!$I$3/120 -> 1.533333333 | F23: ='环工16-1分数统计'!J23*'环工16-1分数统计'!$J$3/120 -> 4.3 | G23: ='环工16-1分数统计'!K23*'环工16-1分数统计'!$K$3/120 -> 3.2625 | H23: ='环工16-1分数统计'!L23*'环工16-1分数统计'!$L$3/120 -> 1.45 | I23: ='环工16-1分数统计'!M23*'环工16-1分数统计'!$M$3/120 -> 1.516666667 | J23: ='环工16-1分数统计'!N23*'环工16-1分数统计'!$N$3/120 -> 2.97 | K23: ='环工16-1分数统计'!O23*'环工16-1分数统计'!$O$3/121 -> 0.6859504132 | L23: ='环工16-1分数统计'!P23*'环工16-1分数统计'!$P$3/120 -> 1.25 | M23: ='环工16-1分数统计'!Q23*'环工16-1分数统计'!$Q$3/120 -> 0.7666666667 | N23: ='环工16-1分数统计'!R23*'环工16-1分数统计'!$R$3/120 -> 1.85 | O23: ='环工16-1分数统计'!S23*'环工16-1分数统计'!$S$3/120 -> 4 | P23: ='环工16-1分数统计'!T23*'环工16-1分数统计'!$T$3/120 -> 1.729166667 | Q23: ='环工16-1分数统计'!U23*'环工16-1分数统计'!$U$3/120 -> 2.833333333 | R23: ='环工16-1分数统计'!V23*'环工16-1分数统计'!$V$3/120 -> 2.275 | S23: ='环工16-1分数统计'!W23*'环工16-1分数统计'!$W$3/120 -> 3.3 | T23: ='环工16-1分数统计'!X23*'环工16-1分数统计'!$X$3/120 -> 0.75 | U23: ='环工16-1分数统计'!Y23*'环工16-1分数统计'!$Y$3/120 -> 1.533333333 | V23: ='环工16-1分数统计'!Z23*'环工16-1分数统计'!$Z$3/120 -> 2.275 | W23: ='环工16-1分数统计'!AA23*'环工16-1分数统计'!$AA$3/120 -> 2.325 | X23: ='环工16-1分数统计'!AB23*'环工16-1分数统计'!$AB$3/120 -> 1.333333333 | Y23: ='环工16-1分数统计'!AC23*'环工16-1分数统计'!$AC$3/120 -> 1.483333333 | Z23: ='环工16-1分数统计'!AD23*'环工16-1分数统计'!$AD$3/120 -> 1.4 | AA23: ='环工16-1分数统计'!AE23*'环工16-1分数统计'!$AE$3/120 -> 1.705 | AB23: ='环工16-1分数统计'!AF23*'环工16-1分数统计'!$AF$3/120 -> 0.7416666667 | AC23: ='环工16-1分数统计'!AG23*'环工16-1分数统计'!$AG$3/120 -> 1.729166667 | AD23: ='环工16-1分数统计'!AH23*'环工16-1分数统计'!$AH$3/120 -> 2.175 | AE23: ='环工16-1分数统计'!AI23*'环工16-1分数统计'!$AI$3/120 -> 1.533333333 | AF23: ='环工16-1分数统计'!AJ23*'环工16-1分数统计'!$AJ$3/120 -> 0.7416666667 | AG23: ='环工16-1分数统计'!AK23*'环工16-1分数统计'!$AK$3/120 -> 3 | AH23: ='环工16-1分数统计'!AL23*'环工16-1分数统计'!$AL$3/120 -> 1.5 | AI23: ='环工16-1分数统计'!AM23*'环工16-1分数统计'!$AM$3/120 -> 1.0875 | AJ23: ='环工16-1分数统计'!AN23*'环工16-1分数统计'!$AN$3/120 -> 2.25 | AK23: ='环工16-1分数统计'!AO23*'环工16-1分数统计'!$AO$3/120 -> 2.175 | AL23: ='环工16-1分数统计'!AP23*'环工16-1分数统计'!$AP$3/120 -> 1.0875 | AM23: ='环工16-1分数统计'!AQ23*'环工16-1分数统计'!$AQ$3/120 -> 2.45 | AN23: ='环工16-1分数统计'!AR23*'环工16-1分数统计'!$AR$3/120 -> 1.433333333 | AO23: ='环工16-1分数统计'!AS23*'环工16-1分数统计'!$AS$3/120 -> 1.55 | AP23: ='环工16-1分数统计'!AT23*'环工16-1分数统计'!$AT$3/120 -> 1.576666667 | AQ23: ='环工16-1分数统计'!AU23*'环工16-1分数统计'!$AU$3/120 -> 0.7666666667 | AR23: ='环工16-1分数统计'!AV23*'环工16-1分数统计'!$AV$3/120 -> 1.4 | AS23: ='环工16-1分数统计'!AW23*'环工16-1分数统计'!$AW$3/120 -> 0.7083333333 | AT23: ='环工16-1分数统计'!AX23*'环工16-1分数统计'!$AX$3/120 -> 2.966666667 | AU23: ='环工16-1分数统计'!AY23*'环工16-1分数统计'!$AY$3/120 -> 1.466666667 | AV23: ='环工16-1分数统计'!AZ23*'环工16-1分数统计'!$AZ$3/120 -> 1.616666667 | AW23: ='环工16-1分数统计'!BA23*'环工16-1分数统计'!$BA$3/120 -> 1.65 | AX23: ='环工16-1分数统计'!BB23*'环工16-1分数统计'!$BB$3/120 -> 1.1 | AY23: ='环工16-1分数统计'!BC23*'环工16-1分数统计'!$BC$3/120 -> 2.35 | AZ23: ='环工16-1分数统计'!BD23*'环工16-1分数统计'!$BD$3/120 -> 1.1 | BA23: ='环工16-1分数统计'!BE23*'环工16-1分数统计'!$BE$3/120 -> 1.516666667 | BD23: 91.86990147 | BE23: 95.0651481 | BF23: 102.0322101 | BG23: 288.9672597 | BH23: 83.58819788 | BI23: 16.71763958
B24: 李同 | C24: 2016010624 | D24: ='环工16-1分数统计'!H24*'环工16-1分数统计'!$H$3/120 -> 0.725 | E24: ='环工16-1分数统计'!I24*'环工16-1分数统计'!$I$3/120 -> 1.516666667 | F24: ='环工16-1分数统计'!J24*'环工16-1分数统计'!$J$3/120 -> 3.9 | G24: ='环工16-1分数统计'!K24*'环工16-1分数统计'!$K$3/120 -> 3.15 | H24: ='环工16-1分数统计'!L24*'环工16-1分数统计'!$L$3/120 -> 1.466666667 | I24: ='环工16-1分数统计'!M24*'环工16-1分数统计'!$M$3/120 -> 1.383333333 | J24: ='环工16-1分数统计'!N24*'环工16-1分数统计'!$N$3/120 -> 2.456666667 | K24: ='环工16-1分数统计'!O24*'环工16-1分数统计'!$O$3/121 -> 0.5371900826 | L24: ='环工16-1分数统计'!P24*'环工16-1分数统计'!$P$3/120 -> 1.729166667 | M24: ='环工16-1分数统计'!Q24*'环工16-1分数统计'!$Q$3/120 -> 0.5833333333 | N24: ='环工16-1分数统计'!R24*'环工16-1分数统计'!$R$3/120 -> 1.85 | O24: ='环工16-1分数统计'!S24*'环工16-1分数统计'!$S$3/120 -> 3.291666667 | P24: ='环工16-1分数统计'!T24*'环工16-1分数统计'!$T$3/120 -> 1.875 | Q24: ='环工16-1分数统计'!U24*'环工16-1分数统计'!$U$3/120 -> 2.7 | R24: ='环工16-1分数统计'!V24*'环工16-1分数统计'!$V$3/120 -> 1.975 | S24: ='环工16-1分数统计'!W24*'环工16-1分数统计'!$W$3/120 -> 2.97 | T24: ='环工16-1分数统计'!X24*'环工16-1分数统计'!$X$3/120 -> 0.6916666667 | U24: ='环工16-1分数统计'!Y24*'环工16-1分数统计'!$Y$3/120 -> 1.533333333 | V24: ='环工16-1分数统计'!Z24*'环工16-1分数统计'!$Z$3/120 -> 1.925 | W24: ='环工16-1分数统计'!AA24*'环工16-1分数统计'!$AA$3/120 -> 2 | X24: ='环工16-1分数统计'!AB24*'环工16-1分数统计'!$AB$3/120 -> 1.266666667 | Y24: ='环工16-1分数统计'!AC24*'环工16-1分数统计'!$AC$3/120 -> 1.5 | Z24: ='环工16-1分数统计'!AD24*'环工16-1分数统计'!$AD$3/120 -> 1.416666667 | AA24: ='环工16-1分数统计'!AE24*'环工16-1分数统计'!$AE$3/120 -> 1.466666667 | AB24: ='环工16-1分数统计'!AF24*'环工16-1分数统计'!$AF$3/120 -> 0.6916666667 | AC24: ='环工16-1分数统计'!AG24*'环工16-1分数统计'!$AG$3/120 -> 1.708333333 | AD24: ='环工16-1分数统计'!AH24*'环工16-1分数统计'!$AH$3/120 -> 2.125 | AE24: ='环工16-1分数统计'!AI24*'环工16-1分数统计'!$AI$3/120 -> 1.466666667 | AF24: ='环工16-1分数统计'!AJ24*'环工16-1分数统计'!$AJ$3/120 -> 0.7166666667 | AG24: ='环工16-1分数统计'!AK24*'环工16-1分数统计'!$AK$3/120 -> 2.166666667 | AH24: ='环工16-1分数统计'!AL24*'环工16-1分数统计'!$AL$3/120 -> 1.5 | AI24: ='环工16-1分数统计'!AM24*'环工16-1分数统计'!$AM$3/120 -> 0.85 | AJ24: ='环工16-1分数统计'!AN24*'环工16-1分数统计'!$AN$3/120 -> 2.25 | AK24: ='环工16-1分数统计'!AO24*'环工16-1分数统计'!$AO$3/120 -> 1.6 | AL24: ='环工16-1分数统计'!AP24*'环工16-1分数统计'!$AP$3/120 -> 1.1 | AM24: ='环工16-1分数统计'!AQ24*'环工16-1分数统计'!$AQ$3/120 -> 2.175 | AN24: ='环工16-1分数统计'!AR24*'环工16-1分数统计'!$AR$3/120 -> 1.45 | AO24: ='环工16-1分数统计'!AS24*'环工16-1分数统计'!$AS$3/120 -> 1.566666667 | AP24: ='环工16-1分数统计'!AT24*'环工16-1分数统计'!$AT$3/120 -> 1.485 | AQ24: ='环工16-1分数统计'!AU24*'环工16-1分数统计'!$AU$3/120 -> 0.6666666667 | AR24: ='环工16-1分数统计'!AV24*'环工16-1分数统计'!$AV$3/120 -> 1.466666667 | AS24: ='环工16-1分数统计'!AW24*'环工16-1分数统计'!$AW$3/120 -> 0.7083333333 | AT24: ='环工16-1分数统计'!AX24*'环工16-1分数统计'!$AX$3/120 -> 2.9 | AU24: ='环工16-1分数统计'!AY24*'环工16-1分数统计'!$AY$3/120 -> 1.516666667 | AV24: ='环工16-1分数统计'!AZ24*'环工16-1分数统计'!$AZ$3/120 -> 1.533333333 | AW24: ='环工16-1分数统计'!BA24*'环工16-1分数统计'!$BA$3/120 -> 1.5 | AX24: ='环工16-1分数统计'!BB24*'环工16-1分数统计'!$BB$3/120 -> 1.0875 | AY24: ='环工16-1分数统计'!BC24*'环工16-1分数统计'!$BC$3/120 -> 2.25 | AZ24: ='环工16-1分数统计'!BD24*'环工16-1分数统计'!$BD$3/120 -> 1.1375 | BA24: ='环工16-1分数统计'!BE24*'环工16-1分数统计'!$BE$3/120 -> 1.25 | BD24: 89.41289484 | BE24: 90.92676022 | BF24: 93.04822122 | BG24: 273.3878763 | BH24: 79.08162304 | BI24: 15.81632461
B25: 吴航飞 | C25: 2016010625 | D25: ='环工16-1分数统计'!H25*'环工16-1分数统计'!$H$3/120 -> 0.675 | E25: ='环工16-1分数统计'!I25*'环工16-1分数统计'!$I$3/120 -> 1.416666667 | F25: ='环工16-1分数统计'!J25*'环工16-1分数统计'!$J$3/120 -> 3.2 | G25: ='环工16-1分数统计'!K25*'环工16-1分数统计'!$K$3/120 -> 2.7375 | H25: ='环工16-1分数统计'!L25*'环工16-1分数统计'!$L$3/120 -> 1.3 | I25: ='环工16-1分数统计'!M25*'环工16-1分数统计'!$M$3/120 -> 1.183333333 | J25: ='环工16-1分数统计'!N25*'环工16-1分数统计'!$N$3/120 -> 2.456666667 | K25: ='环工16-1分数统计'!O25*'环工16-1分数统计'!$O$3/121 -> 0.5537190083 | L25: ='环工16-1分数统计'!P25*'环工16-1分数统计'!$P$3/120 -> 1.5625 | M25: ='环工16-1分数统计'!Q25*'环工16-1分数统计'!$Q$3/120 -> 0.6416666667 | N25: ='环工16-1分数统计'!R25*'环工16-1分数统计'!$R$3/120 -> 1.85 | O25: ='环工16-1分数统计'!S25*'环工16-1分数统计'!$S$3/120 -> 3.375 | P25: ='环工16-1分数统计'!T25*'环工16-1分数统计'!$T$3/120 -> 1.6875 | Q25: ='环工16-1分数统计'!U25*'环工16-1分数统计'!$U$3/120 -> 2.6 | R25: ='环工16-1分数统计'!V25*'环工16-1分数统计'!$V$3/120 -> 1.875 | S25: ='环工16-1分数统计'!W25*'环工16-1分数统计'!$W$3/120 -> 3.043333333 | T25: ='环工16-1分数统计'!X25*'环工16-1分数统计'!$X$3/120 -> 0.5833333333 | U25: ='环工16-1分数统计'!Y25*'环工16-1分数统计'!$Y$3/120 -> 1.433333333 | V25: ='环工16-1分数统计'!Z25*'环工16-1分数统计'!$Z$3/120 -> 1.5 | W25: ='环工16-1分数统计'!AA25*'环工16-1分数统计'!$AA$3/120 -> 2.25 | X25: ='环工16-1分数统计'!AB25*'环工16-1分数统计'!$AB$3/120 -> 1.15 | Y25: ='环工16-1分数统计'!AC25*'环工16-1分数统计'!$AC$3/120 -> 1.15 | Z25: ='环工16-1分数统计'!AD25*'环工16-1分数统计'!$AD$3/120 -> 1.233333333 | AA25: ='环工16-1分数统计'!AE25*'环工16-1分数统计'!$AE$3/120 -> 1.356666667 | AB25: ='环工16-1分数统计'!AF25*'环工16-1分数统计'!$AF$3/120 -> 0.7416666667 | AC25: ='环工16-1分数统计'!AG25*'环工16-1分数统计'!$AG$3/120 -> 1.5 | AD25: ='环工16-1分数统计'!AH25*'环工16-1分数统计'!$AH$3/120 -> 2.375 | AE25: ='环工16-1分数统计'!AI25*'环工16-1分数统计'!$AI$3/120 -> 1.383333333 | AF25: ='环工16-1分数统计'!AJ25*'环工16-1分数统计'!$AJ$3/120 -> 0.7166666667 | AG25: ='环工16-1分数统计'!AK25*'环工16-1分数统计'!$AK$3/120 -> 2.266666667 | AH25: ='环工16-1分数统计'!AL25*'环工16-1分数统计'!$AL$3/120 -> 1.216666667 | AI25: ='环工16-1分数统计'!AM25*'环工16-1分数统计'!$AM$3/120 -> 0.7625 | AJ25: ='环工16-1分数统计'!AN25*'环工16-1分数统计'!$AN$3/120 -> 2.275 | AK25: ='环工16-1分数统计'!AO25*'环工16-1分数统计'!$AO$3/120 -> 1.625 | AL25: ='环工16-1分数统计'!AP25*'环工16-1分数统计'!$AP$3/120 -> 1.025 | AM25: ='环工16-1分数统计'!AQ25*'环工16-1分数统计'!$AQ$3/120 -> 1.925 | AN25: ='环工16-1分数统计'!AR25*'环工16-1分数统计'!$AR$3/120 -> 1.433333333 | AO25: ='环工16-1分数统计'!AS25*'环工16-1分数统计'!$AS$3/120 -> 1.333333333 | AP25: ='环工16-1分数统计'!AT25*'环工16-1分数统计'!$AT$3/120 -> 1.356666667 | AQ25: ='环工16-1分数统计'!AU25*'环工16-1分数统计'!$AU$3/120 -> 0.6833333333 | AR25: ='环工16-1分数统计'!AV25*'环工16-1分数统计'!$AV$3/120 -> 1.35 | AS25: ='环工16-1分数统计'!AW25*'环工16-1分数统计'!$AW$3/120 -> 0.6333333333 | AT25: ='环工16-1分数统计'!AX25*'环工16-1分数统计'!$AX$3/120 -> 2.566666667 | AU25: ='环工16-1分数统计'!AY25*'环工16-1分数统计'!$AY$3/120 -> 1.15 | AV25: ='环工16-1分数统计'!AZ25*'环工16-1分数统计'!$AZ$3/120 -> 1.3 | AW25: ='环工16-1分数统计'!BA25*'环工16-1分数统计'!$BA$3/120 -> 1.45 | AX25: ='环工16-1分数统计'!BB25*'环工16-1分数统计'!$BB$3/120 -> 1.0375 | AY25: ='环工16-1分数统计'!BC25*'环工16-1分数统计'!$BC$3/120 -> 2.1 | AZ25: ='环工16-1分数统计'!BD25*'环工16-1分数统计'!$BD$3/120 -> 1.025 | BA25: ='环工16-1分数统计'!BE25*'环工16-1分数统计'!$BE$3/120 -> 1.1 | BD25: 84.24693447 | BE25: 84.14303092 | BF25: 82.57951935 | BG25: 250.9694847 | BH25: 72.59676053 | BI25: 14.51935211
B26: 姚泽凯 | C26: 2016010626 | D26: ='环工16-1分数统计'!H26*'环工16-1分数统计'!$H$3/120 -> 0.6416666667 | E26: ='环工16-1分数统计'!I26*'环工16-1分数统计'!$I$3/120 -> 1.516666667 | F26: ='环工16-1分数统计'!J26*'环工16-1分数统计'!$J$3/120 -> 3.45 | G26: ='环工16-1分数统计'!K26*'环工16-1分数统计'!$K$3/120 -> 2.625 | H26: ='环工16-1分数统计'!L26*'环工16-1分数统计'!$L$3/120 -> 1.483333333 | I26: ='环工16-1分数统计'!M26*'环工16-1分数统计'!$M$3/120 -> 1.283333333 | J26: ='环工16-1分数统计'!N26*'环工16-1分数统计'!$N$3/120 -> 3.4 | K26: ='环工16-1分数统计'!O26*'环工16-1分数统计'!$O$3/121 -> 0.7272727273 | L26: ='环工16-1分数统计'!P26*'环工16-1分数统计'!$P$3/120 -> 1.583333333 | M26: ='环工16-1分数统计'!Q26*'环工16-1分数统计'!$Q$3/120 -> 0.725 | N26: ='环工16-1分数统计'!R26*'环工16-1分数统计'!$R$3/120 -> 1.875 | O26: ='环工16-1分数统计'!S26*'环工16-1分数统计'!$S$3/120 -> 2.958333333 | P26: ='环工16-1分数统计'!T26*'环工16-1分数统计'!$T$3/120 -> 1.729166667 | Q26: ='环工16-1分数统计'!U26*'环工16-1分数统计'!$U$3/120 -> 2.433333333 | R26: ='环工16-1分数统计'!V26*'环工16-1分数统计'!$V$3/120 -> 1.975 | S26: ='环工16-1分数统计'!W26*'环工16-1分数统计'!$W$3/120 -> 3.6 | T26: ='环工16-1分数统计'!X26*'环工16-1分数统计'!$X$3/120 -> 0.7666666667 | U26: ='环工16-1分数统计'!Y26*'环工16-1分数统计'!$Y$3/120 -> 1.45 | V26: ='环工16-1分数统计'!Z26*'环工16-1分数统计'!$Z$3/120 -> 1.825 | W26: ='环工16-1分数统计'!AA26*'环工16-1分数统计'!$AA$3/120 -> 1.95 | X26: ='环工16-1分数统计'!AB26*'环工16-1分数统计'!$AB$3/120 -> 1.216666667 | Y26: ='环工16-1分数统计'!AC26*'环工16-1分数统计'!$AC$3/120 -> 1.233333333 | Z26: ='环工16-1分数统计'!AD26*'环工16-1分数统计'!$AD$3/120 -> 1.216666667 | AA26: ='环工16-1分数统计'!AE26*'环工16-1分数统计'!$AE$3/120 -> 1.7 | AB26: ='环工16-1分数统计'!AF26*'环工16-1分数统计'!$AF$3/120 -> 0.7 | AC26: ='环工16-1分数统计'!AG26*'环工16-1分数统计'!$AG$3/120 -> 1.583333333 | AD26: ='环工16-1分数统计'!AH26*'环工16-1分数统计'!$AH$3/120 -> 1.65 | AE26: ='环工16-1分数统计'!AI26*'环工16-1分数统计'!$AI$3/120 -> 1.383333333 | AF26: ='环工16-1分数统计'!AJ26*'环工16-1分数统计'!$AJ$3/120 -> 0.6916666667 | AG26: ='环工16-1分数统计'!AK26*'环工16-1分数统计'!$AK$3/120 -> 2 | AH26: ='环工16-1分数统计'!AL26*'环工16-1分数统计'!$AL$3/120 -> 1.35 | AI26: ='环工16-1分数统计'!AM26*'环工16-1分数统计'!$AM$3/120 -> 0.85 | AJ26: ='环工16-1分数统计'!AN26*'环工16-1分数统计'!$AN$3/120 -> 1.825 | AK26: ='环工16-1分数统计'!AO26*'环工16-1分数统计'!$AO$3/120 -> 1.5 | AL26: ='环工16-1分数统计'!AP26*'环工16-1分数统计'!$AP$3/120 -> 1.025 | AM26: ='环工16-1分数统计'!AQ26*'环工16-1分数统计'!$AQ$3/120 -> 1.95 | AN26: ='环工16-1分数统计'!AR26*'环工16-1分数统计'!$AR$3/120 -> 1.416666667 | AO26: ='环工16-1分数统计'!AS26*'环工16-1分数统计'!$AS$3/120 -> 1.483333333 | AP26: ='环工16-1分数统计'!AT26*'环工16-1分数统计'!$AT$3/120 -> 1.8 | AQ26: ='环工16-1分数统计'!AU26*'环工16-1分数统计'!$AU$3/120 -> 0.75 | AR26: ='环工16-1分数统计'!AV26*'环工16-1分数统计'!$AV$3/120 -> 1.25 | AS26: ='环工16-1分数统计'!AW26*'环工16-1分数统计'!$AW$3/120 -> 0.6666666667 | AT26: ='环工16-1分数统计'!AX26*'环工16-1分数统计'!$AX$3/120 -> 2.4 | AU26: ='环工16-1分数统计'!AY26*'环工16-1分数统计'!$AY$3/120 -> 1.266666667 | AV26: ='环工16-1分数统计'!AZ26*'环工16-1分数统计'!$AZ$3/120 -> 1.283333333 | AW26: ='环工16-1分数统计'!BA26*'环工16-1分数统计'!$BA$3/120 -> 1.283333333 | AX26: ='环工16-1分数统计'!BB26*'环工16-1分数统计'!$BB$3/120 -> 1.025 | AY26: ='环工16-1分数统计'!BC26*'环工16-1分数统计'!$BC$3/120 -> 2.175 | AZ26: ='环工16-1分数统计'!BD26*'环工16-1分数统计'!$BD$3/120 -> 1.1375 | BA26: ='环工16-1分数统计'!BE26*'环工16-1分数统计'!$BE$3/120 -> 1.166666667 | BD26: 89.77818527 | BE26: 86.40130279 | BF26: 86.90136471 | BG26: 263.0808528 | BH26: 76.1001589 | BI26: 15.22003178
B27: 于鹏 | C27: 2016010627 | D27: ='环工16-1分数统计'!H27*'环工16-1分数统计'!$H$3/120 -> 0.6666666667 | E27: ='环工16-1分数统计'!I27*'环工16-1分数统计'!$I$3/120 -> 1.533333333 | F27: ='环工16-1分数统计'!J27*'环工16-1分数统计'!$J$3/120 -> 3.7 | G27: ='环工16-1分数统计'!K27*'环工16-1分数统计'!$K$3/120 -> 2.85 | H27: ='环工16-1分数统计'!L27*'环工16-1分数统计'!$L$3/120 -> 1.383333333 | I27: ='环工16-1分数统计'!M27*'环工16-1分数统计'!$M$3/120 -> 1.3 | J27: ='环工16-1分数统计'!N27*'环工16-1分数统计'!$N$3/120 -> 2.533333333 | K27: ='环工16-1分数统计'!O27*'环工16-1分数统计'!$O$3/121 -> 0.6446280992 | L27: ='环工16-1分数统计'!P27*'环工16-1分数统计'!$P$3/120 -> 1.3125 | M27: ='环工16-1分数统计'!Q27*'环工16-1分数统计'!$Q$3/120 -> 0.6166666667 | N27: ='环工16-1分数统计'!R27*'环工16-1分数统计'!$R$3/120 -> 1.6 | O27: ='环工16-1分数统计'!S27*'环工16-1分数统计'!$S$3/120 -> 3.166666667 | P27: ='环工16-1分数统计'!T27*'环工16-1分数统计'!$T$3/120 -> 1.6875 | Q27: ='环工16-1分数统计'!U27*'环工16-1分数统计'!$U$3/120 -> 2.233333333 | R27: ='环工16-1分数统计'!V27*'环工16-1分数统计'!$V$3/120 -> 1.675 | S27: ='环工16-1分数统计'!W27*'环工16-1分数统计'!$W$3/120 -> 2.133333333 | T27: ='环工16-1分数统计'!X27*'环工16-1分数统计'!$X$3/120 -> 0.6666666667 | U27: ='环工16-1分数统计'!Y27*'环工16-1分数统计'!$Y$3/120 -> 1.416666667 | V27: ='环工16-1分数统计'!Z27*'环工16-1分数统计'!$Z$3/120 -> 1.5 | W27: ='环工16-1分数统计'!AA27*'环工16-1分数统计'!$AA$3/120 -> 1.875 | X27: ='环工16-1分数统计'!AB27*'环工16-1分数统计'!$AB$3/120 -> 1.15 | Y27: ='环工16-1分数统计'!AC27*'环工16-1分数统计'!$AC$3/120 -> 1.283333333 | Z27: ='环工16-1分数统计'!AD27*'环工16-1分数统计'!$AD$3/120 -> 1.316666667 | AA27: ='环工16-1分数统计'!AE27*'环工16-1分数统计'!$AE$3/120 -> 1.116666667 | AB27: ='环工16-1分数统计'!AF27*'环工16-1分数统计'!$AF$3/120 -> 0.7583333333 | AC27: ='环工16-1分数统计'!AG27*'环工16-1分数统计'!$AG$3/120 -> 1.520833333 | AD27: ='环工16-1分数统计'!AH27*'环工16-1分数统计'!$AH$3/120 -> 1.675 | AE27: ='环工16-1分数统计'!AI27*'环工16-1分数统计'!$AI$3/120 -> 1.383333333 | AF27: ='环工16-1分数统计'!AJ27*'环工16-1分数统计'!$AJ$3/120 -> 0.7 | AG27: ='环工16-1分数统计'!AK27*'环工16-1分数统计'!$AK$3/120 -> 2.233333333 | AH27: ='环工16-1分数统计'!AL27*'环工16-1分数统计'!$AL$3/120 -> 1.233333333 | AI27: ='环工16-1分数统计'!AM27*'环工16-1分数统计'!$AM$3/120 -> 0.775 | AJ27: ='环工16-1分数统计'!AN27*'环工16-1分数统计'!$AN$3/120 -> 1.5 | AK27: ='环工16-1分数统计'!AO27*'环工16-1分数统计'!$AO$3/120 -> 1.675 | AL27: ='环工16-1分数统计'!AP27*'环工16-1分数统计'!$AP$3/120 -> 0.9875 | AM27: ='环工16-1分数统计'!AQ27*'环工16-1分数统计'!$AQ$3/120 -> 1.65 | AN27: ='环工16-1分数统计'!AR27*'环工16-1分数统计'!$AR$3/120 -> 1.416666667 | AO27: ='环工16-1分数统计'!AS27*'环工16-1分数统计'!$AS$3/120 -> 1.416666667 | AP27: ='环工16-1分数统计'!AT27*'环工16-1分数统计'!$AT$3/120 -> 1.25 | AQ27: ='环工16-1分数统计'!AU27*'环工16-1分数统计'!$AU$3/120 -> 0.675 | AR27: ='环工16-1分数统计'!AV27*'环工16-1分数统计'!$AV$3/120 -> 1.4 | AS27: ='环工16-1分数统计'!AW27*'环工16-1分数统计'!$AW$3/120 -> 0.6 | AT27: ='环工16-1分数统计'!AX27*'环工16-1分数统计'!$AX$3/120 -> 2.266666667 | AU27: ='环工16-1分数统计'!AY27*'环工16-1分数统计'!$AY$3/120 -> 1.083333333 | AV27: ='环工16-1分数统计'!AZ27*'环工16-1分数统计'!$AZ$3/120 -> 1.25 | AW27: ='环工16-1分数统计'!BA27*'环工16-1分数统计'!$BA$3/120 -> 1.316666667 | AX27: ='环工16-1分数统计'!BB27*'环工16-1分数统计'!$BB$3/120 -> 1 | AY27: ='环工16-1分数统计'!BC27*'环工16-1分数统计'!$BC$3/120 -> 2.05 | AZ27: ='环工16-1分数统计'!BD27*'环工16-1分数统计'!$BD$3/120 -> 0.975 | BA27: ='环工16-1分数统计'!BE27*'环工16-1分数统计'!$BE$3/120 -> 1.4 | BD27: 81.66582553 | BE27: 80.57801274 | BF27: 85.83872836 | BG27: 248.0825666 | BH27: 71.76167533 | BI27: 14.35233507
B28: 扎西多吉 | C28: 2016010628 | D28: ='环工16-1分数统计'!H28*'环工16-1分数统计'!$H$3/120 -> 0.5 | E28: ='环工16-1分数统计'!I28*'环工16-1分数统计'!$I$3/120 -> 1.25 | F28: ='环工16-1分数统计'!J28*'环工16-1分数统计'!$J$3/120 -> 3 | G28: ='环工16-1分数统计'!K28*'环工16-1分数统计'!$K$3/120 -> 1.6875 | H28: ='环工16-1分数统计'!L28*'环工16-1分数统计'!$L$3/120 -> 1 | I28: ='环工16-1分数统计'!M28*'环工16-1分数统计'!$M$3/120 -> 1 | J28: ='环工16-1分数统计'!N28*'环工16-1分数统计'!$N$3/120 -> 1.45 | K28: ='环工16-1分数统计'!O28*'环工16-1分数统计'!$O$3/121 -> 0.6115702479 | L28: ='环工16-1分数统计'!P28*'环工16-1分数统计'!$P$3/120 -> 1.125 | M28: ='环工16-1分数统计'!Q28*'环工16-1分数统计'!$Q$3/120 -> 0.375 | N28: ='环工16-1分数统计'!R28*'环工16-1分数统计'!$R$3/120 -> 1.025 | O28: ='环工16-1分数统计'!S28*'环工16-1分数统计'!$S$3/120 -> 2.5 | P28: ='环工16-1分数统计'!T28*'环工16-1分数统计'!$T$3/120 -> 1.416666667 | Q28: ='环工16-1分数统计'!U28*'环工16-1分数统计'!$U$3/120 -> 1.533333333 | R28: ='环工16-1分数统计'!V28*'环工16-1分数统计'!$V$3/120 -> 1.5 | S28: ='环工16-1分数统计'!W28*'环工16-1分数统计'!$W$3/120 -> 1.366666667 | T28: ='环工16-1分数统计'!X28*'环工16-1分数统计'!$X$3/120 -> 0.675 | U28: ='环工16-1分数统计'!Y28*'环工16-1分数统计'!$Y$3/120 -> 1.433333333 | V28: ='环工16-1分数统计'!Z28*'环工16-1分数统计'!$Z$3/121 -> 1.016528926 | W28: ='环工16-1分数统计'!AA28*'环工16-1分数统计'!$AA$3/120 -> 1.525 | X28: ='环工16-1分数统计'!AB28*'环工16-1分数统计'!$AB$3/120 -> 1 | Y28: ='环工16-1分数统计'!AC28*'环工16-1分数统计'!$AC$3/120 -> 1.116666667 | Z28: ='环工16-1分数统计'!AD28*'环工16-1分数统计'!$AD$3/120 -> 1 | AA28: ='环工16-1分数统计'!AE28*'环工16-1分数统计'!$AE$3/120 -> 1 | AB28: ='环工16-1分数统计'!AF28*'环工16-1分数统计'!$AF$3/120 -> 0.7416666667 | AC28: ='环工16-1分数统计'!AG28*'环工16-1分数统计'!$AG$3/120 -> 1.416666667 | AD28: ='环工16-1分数统计'!AH28*'环工16-1分数统计'!$AH$3/120 -> 1.5 | AE28: ='环工16-1分数统计'!AI28*'环工16-1分数统计'!$AI$3/120 -> 1.266666667 | AF28: ='环工16-1分数统计'!AJ28*'环工16-1分数统计'!$AJ$3/120 -> 0.7 | AG28: ='环工16-1分数统计'!AK28*'环工16-1分数统计'!$AK$3/120 -> 1.333333333 | AH28: ='环工16-1分数统计'!AL28*'环工16-1分数统计'!$AL$3/120 -> 1.25 | AI28: ='环工16-1分数统计'!AM28*'环工16-1分数统计'!$AM$3/120 -> 0.6625 | AJ28: ='环工16-1分数统计'!AN28*'环工16-1分数统计'!$AN$3/120 -> 1.225 | AK28: ='环工16-1分数统计'!AO28*'环工16-1分数统计'!$AO$3/120 -> 1.65 | AL28: ='环工16-1分数统计'!AP28*'环工16-1分数统计'!$AP$3/120 -> 1.05 | AM28: ='环工16-1分数统计'!AQ28*'环工16-1分数统计'!$AQ$3/120 -> 1.15 | AN28: ='环工16-1分数统计'!AR28*'环工16-1分数统计'!$AR$3/121 -> 1.438016529 | AO28: ='环工16-1分数统计'!AS28*'环工16-1分数统计'!$AS$3/120 -> 1 | AP28: ='环工16-1分数统计'!AT28*'环工16-1分数统计'!$AT$3/120 -> 0.85 | AQ28: ='环工16-1分数统计'!AU28*'环工16-1分数统计'!$AU$3/120 -> 0.775 | AR28: ='环工16-1分数统计'!AV28*'环工16-1分数统计'!$AV$3/120 -> 1.166666667 | AS28: ='环工16-1分数统计'!AW28*'环工16-1分数统计'!$AW$3/120 -> 0.5333333333 | AT28: ='环工16-1分数统计'!AX28*'环工16-1分数统计'!$AX$3/120 -> 1.166666667 | AU28: ='环工16-1分数统计'!AY28*'环工16-1分数统计'!$AY$3/120 -> 1 | AV28: ='环工16-1分数统计'!AZ28*'环工16-1分数统计'!$AZ$3/120 -> 0.9 | AW28: ='环工16-1分数统计'!BA28*'环工16-1分数统计'!$BA$3/120 -> 0.8333333333 | AX28: ='环工16-1分数统计'!BB28*'环工16-1分数统计'!$BB$3/121 -> 1.016528926 | AY28: ='环工16-1分数统计'!BC28*'环工16-1分数统计'!$BC$3/120 -> 1.6 | AZ28: ='环工16-1分数统计'!BD28*'环工16-1分数统计'!$BD$3/120 -> 1.0125 | BA28: ='环工16-1分数统计'!BE28*'环工16-1分数统计'!$BE$3/120 -> 1.15 | BD28: 64.89110939 | BE28: 75.71609759 | BF28: 73.09373234 | BG28: 213.7009393 | BH28: 61.81626397 | BI28: 12.36325279

Sheet 环工16-1单算
C1: 入学教育与安全教育 | D1: 军事训练（Ⅰ） | E1: 高等数学B（Ⅰ） | F1: 无机化学与分析化学 | G1: 思想道德修养与法律基础 | H1: 中国近代史纲要 | I1: 大学英语（Ⅰ） | J1: 大学体育（Ⅰ） | K1: 机械制图 | L1: 计算机辅助绘图 | M1: VB程序设计（A） | N1: 高等数学B（Ⅱ） | O1: 无机与分析化学实验（Ⅰ） | P1: 有机化学 | Q1: 大学物理C（Ⅰ） | R1: 大学英语（Ⅱ） | S1: 大学体育（Ⅱ） | T1: 金工实习 | U1: 物理化学（Ⅰ） | V1: 大学物理C（Ⅱ） | W1: 大学物理实验B（Ⅰ） | X1: 毛概（Ⅰ） | Y1: 马原 | Z1: 大学英语（Ⅲ） | AA1: 大学体育（Ⅲ） | AB1: 生物化学 | AC1: 线性代数 | AD1: 有机化学实验 | AE1: 无机与分析化学实验（Ⅱ） | AF1: 化工原理（Ⅰ） | AG1: 环境监测实验 | AH1: 环境监测 | AI1: 工程力学（环工） | AJ1: 概率统计基础 | AK1: 物理化学实验（Ⅰ） | AL1: 物理化学（Ⅱ） | AM1: 大学物理实验B（Ⅱ） | AN1: 毛概（Ⅱ） | AO1: 大学英语Ⅳ | AP1: 大学体育Ⅳ | AQ1: 认识实习 | AR1: 化工原理实验（Ⅰ） | AS1: 化工原理（Ⅱ） | AT1: 环境工程微生物学 | AU1: 水污染控制工程（Ⅰ） | AV1: 电工学及实验 | AW1: 物理化学实验（Ⅱ） | AX1: 项目管理与技术经济 | AY1: 环境工程微生物学实验 | AZ1: 水污染控制工程（Ⅰ）课程设计 | BA1: 化工原理实验（II） | BB1: 大气污染控制工程实验 | BC1: 水污染控制工程（II）课程设计 | BD1: 大气污染控制工程 | BE1: 水污染控制工程（Ⅱ） | BF1: 就业指导
C2: 1 | D2: 2 | E2: 6 | F2: 4.5 | G2: 2 | H2: 2 | I2: 4 | J2: 1 | K2: 2.5 | L2: 1 | M2: 3 | N2: 5 | O2: 2.5 | P2: 4 | Q2: 3 | R2: 4 | S2: 1 | T2: 2 | U2: 3 | V2: 3 | W2: 2 | X2: 2 | Y2: 2 | Z2: 2 | AA2: 1 | AB2: 2.5 | AC2: 3 | AD2: 2 | AE2: 1 | AF2: 4 | AG2: 2 | AH2: 1.5 | AI2: 3 | AJ2: 3 | AK2: 1.5 | AL2: 3 | AM2: 2 | AN2: 2 | AO2: 2 | AP2: 1 | AQ2: 2 | AR2: 1 | AS2: 4 | AT2: 2 | AU2: 2 | AV2: 2 | AW2: 1.5 | AX2: 3 | AY2: 1.5 | AZ2: 2 | BA2: 1 | BB2: 0.5 | BC2: 2 | BD2: 2.5 | BE2: 3 | BF2: 1
A3: 姓名 | B3: 学号 | C3: 大一上学期 | K3: 大一下学期 | U3: 大二上学期 | AF3: 大二下学期 | AR3: 大三上学期 | BA3: 大三下学期 | BG3: 必修课加权总分 | BH3: 必修课加权*0.7 | BI3: 第一年综测 | BJ3: 第二年综测 | BK3: 第三年综测 | BL3: 三年综测加和 | BM3: 综测加权 | BN3: 综测加权*0.2 | BO3: 总分（必修课＋综测）
A4: 高信中 | B4: 2015010676 | C4: ='环工16-1分数统计'!H4*'环工16-1分数统计'!H$3/130 -> 0.5230769231 | D4: ='环工16-1分数统计'!I4*'环工16-1分数统计'!I$3/130 -> 1.353846154 | E4: ='环工16-1分数统计'!J4*'环工16-1分数统计'!J$3/130 -> 2.769230769 | F4: ='环工16-1分数统计'!K4*'环工16-1分数统计'!K$3/130 -> 2.076923077 | G4: ='环工16-1分数统计'!L4*'环工16-1分数统计'!L$3/130 -> 1.384615385 | H4: ='环工16-1分数统计'!M4*'环工16-1分数统计'!M$3/130 -> 0.9230769231 | I4: ='环工16-1分数统计'!N4*'环工16-1分数统计'!N$3/130 -> 2.707692308 | J4: ='环工16-1分数统计'!O4*'环工16-1分数统计'!O$3/130 -> 0.6153846154 | K4: ='环工16-1分数统计'!P4*'环工16-1分数统计'!P$3/130 -> 1.519230769 | L4: ='环工16-1分数统计'!Q4*'环工16-1分数统计'!Q$3/130 -> 0.6615384615 | M4: ='环工16-1分数统计'!R4*'环工16-1分数统计'!R$3/130 -> 1.453846154 | N4: ='环工16-1分数统计'!S4*'环工16-1分数统计'!S$3/130 -> 2.346153846 | O4: ='环工16-1分数统计'!T4*'环工16-1分数统计'!T$3/130 -> 1.5 | P4: ='环工16-1分数统计'!U4*'环工16-1分数统计'!U$3/130 -> 2.123076923 | Q4: ='环工16-1分数统计'!V4*'环工16-1分数统计'!V$3/130 -> 1.8 | R4: ='环工16-1分数统计'!W4*'环工16-1分数统计'!W$3/130 -> 2.876923077 | S4: ='环工16-1分数统计'!X4*'环工16-1分数统计'!X$3/130 -> 0.6538461538 | T4: ='环工16-1分数统计'!Y4*'环工16-1分数统计'!Y$3/130 -> 1.369230769 | U4: ='环工16-1分数统计'!Z4*'环工16-1分数统计'!Z$3/130 -> 0.5076923077 | V4: ='环工16-1分数统计'!AA4*'环工16-1分数统计'!AA$3/130 -> 1.407692308 | W4: ='环工16-1分数统计'!AB4*'环工16-1分数统计'!AB$3/130 -> 1.076923077 | X4: ='环工16-1分数统计'!AC4*'环工16-1分数统计'!AC$3/130 -> 1.261538462 | Y4: ='环工16-1分数统计'!AD4*'环工16-1分数统计'!AD$3/130 -> 1.246153846 | Z4: ='环工16-1分数统计'!AE4*'环工16-1分数统计'!AE$3/130 -> 1.438461538 | AA4: ='环工16-1分数统计'!AF4*'环工16-1分数统计'!AF$3/130 -> 0.7076923077 | AB4: ='环工16-1分数统计'!AG4*'环工16-1分数统计'!AG$3/130 -> 1.5 | AC4: ='环工16-1分数统计'!AH4*'环工16-1分数统计'!AH$3/130 -> 1.084615385 | AD4: ='环工16-1分数统计'!AI4*'环工16-1分数统计'!AI$3/130 -> 1.169230769 | AE4: ='环工16-1分数统计'!AJ4*'环工16-1分数统计'!AJ$3/130 -> 0.6384615385 | AF4: ='环工16-1分数统计'!AK4*'环工16-1分数统计'!AK$3/130 -> 0.4307692308 | AG4: ='环工16-1分数统计'!AL4*'环工16-1分数统计'!AL$3/130 -> 1.169230769 | AH4: ='环工16-1分数统计'!AM4*'环工16-1分数统计'!AM$3/130 -> 0.6923076923 | AI4: ='环工16-1分数统计'!AN4*'环工16-1分数统计'!AN$3/130 -> 1.384615385 | AJ4: ='环工16-1分数统计'!AO4*'环工16-1分数统计'!AO$3/130 -> 1.384615385 | AK4: ='环工16-1分数统计'!AP4*'环工16-1分数统计'!AP$3/130 -> 0.8653846154 | AL4: ='环工16-1分数统计'!AQ4*'环工16-1分数统计'!AQ$3/130 -> 0.6 | AM4: ='环工16-1分数统计'!AR4*'环工16-1分数统计'!AR$3/130 -> 1.261538462 | AN4: ='环工16-1分数统计'!AS4*'环工16-1分数统计'!AS$3/130 -> 1.369230769 | AO4: ='环工16-1分数统计'!AT4*'环工16-1分数统计'!AT$3/130 -> 1.523076923 | AP4: ='环工16-1分数统计'!AU4*'环工16-1分数统计'!AU$3/130 -> 0.6615384615 | AQ4: ='环工16-1分数统计'!AV4*'环工16-1分数统计'!AV$3/130 -> 0.9384615385 | AR4: ='环工16-1分数统计'!AW4*'环工16-1分数统计'!AW$3/130 -> 0.4615384615 | AS4: ='环工16-1分数统计'!AX4*'环工16-1分数统计'!AX$3/130 -> 0.4307692308 | AT4: ='环工16-1分数统计'!AY4*'环工16-1分数统计'!AY$3/130 -> 1.030769231 | AU4: ='环工16-1分数统计'!AZ4*'环工16-1分数统计'!AZ$3/130 -> 0.6615384615 | AV4: ='环工16-1分数统计'!BA4*'环工16-1分数统计'!BA$3/130 -> 0.9230769231 | AW4: ='环工16-1分数统计'!BB4*'环工16-1分数统计'!BB$3/130 -> 0.8653846154 | AX4: ='环工16-1分数统计'!BC4*'环工16-1分数统计'!BC$3/130 -> 1.407692308 | AY4: ='环工16-1分数统计'!BD4*'环工16-1分数统计'!BD$3/130 -> 0.7961538462 | AZ4: ='环工16-1分数统计'!BE4*'环工16-1分数统计'!BE$3/130 -> 0.9230769231 | BA4: ='环工16-1分数统计'!BF4*'环工16-1分数统计'!BF$3/130 -> 0.4615384615 | BB4: ='环工16-1分数统计'!BG4*'环工16-1分数统计'!BG$3/130 -> 0.3115384615 | BC4: ='环工16-1分数统计'!BH4*'环工16-1分数统计'!BH$3/130 -> 1.184615385 | BD4: ='环工16-1分数统计'!BI4*'环工16-1分数统计'!BI$3/130 -> 1.307692308 | BE4: ='环工16-1分数统计'!BJ4*'环工16-1分数统计'!BJ$3/130 -> 1.892307692 | BF4: ='环工16-1分数统计'!BK4*'环工16-1分数统计'!BK$3/130 -> 0.4615384615 | BG4: =SUM(C4:BF4) -> 66.09615385 | BH4: =BG4*0.7 -> 46.26730769 | BI4: ='环工16-1两年综测'!BD4 -> 81.96470093 | BJ4: ='环工16-1两年综测'!BE4 -> 71.66930971 | BK4: ='环工16-1两年综测'!BF4 -> 64.57319301 | BL4: =SUM(BI4:BK4) -> 218.2072037 | BM4: =BL4/$BL$8*100 -> 63.11976983 | BN4: =BM4*0.2 -> 12.62395397 | BO4: =BH4+BN4 -> 58.89126166
A5: 程诗宇 | B5: 2016010599 | C5: ='环工16-1分数统计'!H5*'环工16-1分数统计'!H$3/130 -> 0.6538461538 | D5: ='环工16-1分数统计'!I5*'环工16-1分数统计'!I$3/130 -> 1.4 | E5: ='环工16-1分数统计'!J5*'环工16-1分数统计'!J$3/130 -> 4.384615385 | F5: ='环工16-1分数统计'!K5*'环工16-1分数统计'!K$3/130 -> 3.115384615 | G5: ='环工16-1分数统计'!L5*'环工16-1分数统计'!L$3/130 -> 1.261538462 | H5: ='环工16-1分数统计'!M5*'环工16-1分数统计'!M$3/130 -> 1.169230769 | I5: ='环工16-1分数统计'!N5*'环工16-1分数统计'!N$3/130 -> 2.538461538 | J5: ='环工16-1分数统计'!O5*'环工16-1分数统计'!O$3/130 -> 0.6 | K5: ='环工16-1分数统计'!P5*'环工16-1分数统计'!P$3/130 -> 1.826923077 | L5: ='环工16-1分数统计'!Q5*'环工16-1分数统计'!Q$3/130 -> 0.7230769231 | M5: ='环工16-1分数统计'!R5*'环工16-1分数统计'!R$3/130 -> 1.869230769 | N5: ='环工16-1分数统计'!S5*'环工16-1分数统计'!S$3/130 -> 3.615384615 | O5: ='环工16-1分数统计'!T5*'环工16-1分数统计'!T$3/130 -> 1.673076923 | P5: ='环工16-1分数统计'!U5*'环工16-1分数统计'!U$3/130 -> 2.676923077 | Q5: ='环工16-1分数统计'!V5*'环工16-1分数统计'!V$3/130 -> 2.030769231 | R5: ='环工16-1分数统计'!W5*'环工16-1分数统计'!W$3/130 -> 2.741538462 | S5: ='环工16-1分数统计'!X5*'环工16-1分数统计'!X$3/130 -> 0.7153846154 | T5: ='环工16-1分数统计'!Y5*'环工16-1分数统计'!Y$3/130 -> 1.353846154 | U5: ='环工16-1分数统计'!Z5*'环工16-1分数统计'!Z$3/130 -> 1.869230769 | V5: ='环工16-1分数统计'!AA5*'环工16-1分数统计'!AA$3/130 -> 2.146153846 | W5: ='环工16-1分数统计'!AB5*'环工16-1分数统计'!AB$3/130 -> 1.2 | X5: ='环工16-1分数统计'!AC5*'环工16-1分数统计'!AC$3/130 -> 1.030769231 | Y5: ='环工16-1分数统计'!AD5*'环工16-1分数统计'!AD$3/130 -> 1.230769231 | Z5: ='环工16-1分数统计'!AE5*'环工16-1分数统计'!AE$3/130 -> 1.303076923 | AA5: ='环工16-1分数统计'!AF5*'环工16-1分数统计'!AF$3/130 -> 0.6615384615 | AB5: ='环工16-1分数统计'!AG5*'环工16-1分数统计'!AG$3/130 -> 1.538461538 | AC5: ='环工16-1分数统计'!AH5*'环工16-1分数统计'!AH$3/130 -> 1.892307692 | AD5: ='环工16-1分数统计'!AI5*'环工16-1分数统计'!AI$3/130 -> 1.384615385 | AE5: ='环工16-1分数统计'!AJ5*'环工16-1分数统计'!AJ$3/130 -> 0.7307692308 | AF5: ='环工16-1分数统计'!AK5*'环工16-1分数统计'!AK$3/130 -> 2.523076923 | AG5: ='环工16-1分数统计'!AL5*'环工16-1分数统计'!AL$3/130 -> 1.353846154 | AH5: ='环工16-1分数统计'!AM5*'环工16-1分数统计'!AM$3/130 -> 0.9461538462 | AI5: ='环工16-1分数统计'!AN5*'环工16-1分数统计'!AN$3/130 -> 1.8 | AJ5: ='环工16-1分数统计'!AO5*'环工16-1分数统计'!AO$3/130 -> 1.661538462 | AK5: ='环工16-1分数统计'!AP5*'环工16-1分数统计'!AP$3/130 -> 0.9576923077 | AL5: ='环工16-1分数统计'!AQ5*'环工16-1分数统计'!AQ$3/130 -> 1.869230769 | AM5: ='环工16-1分数统计'!AR5*'环工16-1分数统计'!AR$3/130 -> 1.323076923 | AN5: ='环工16-1分数统计'!AS5*'环工16-1分数统计'!AS$3/130 -> 1.384615385 | AO5: ='环工16-1分数统计'!AT5*'环工16-1分数统计'!AT$3/130 -> 1.404615385 | AP5: ='环工16-1分数统计'!AU5*'环工16-1分数统计'!AU$3/130 -> 0.6692307692 | AQ5: ='环工16-1分数统计'!AV5*'环工16-1分数统计'!AV$3/130 -> 1.276923077 | AR5: ='环工16-1分数统计'!AW5*'环工16-1分数统计'!AW$3/130 -> 0.6384615385 | AS5: ='环工16-1分数统计'!AX5*'环工16-1分数统计'!AX$3/130 -> 2.707692308 | AT5: ='环工16-1分数统计'!AY5*'环工16-1分数统计'!AY$3/130 -> 1.323076923 | AU5: ='环工16-1分数统计'!AZ5*'环工16-1分数统计'!AZ$3/130 -> 1.476923077 | AV5: ='环工16-1分数统计'!BA5*'环工16-1分数统计'!BA$3/130 -> 1.415384615 | AW5: ='环工16-1分数统计'!BB5*'环工16-1分数统计'!BB$3/130 -> 1.038461538 | AX5: ='环工16-1分数统计'!BC5*'环工16-1分数统计'!BC$3/130 -> 2.1 | AY5: ='环工16-1分数统计'!BD5*'环工16-1分数统计'!BD$3/130 -> 1.038461538 | AZ5: ='环工16-1分数统计'!BE5*'环工16-1分数统计'!BE$3/130 -> 1.230769231 | BA5: ='环工16-1分数统计'!BF5*'环工16-1分数统计'!BF$3/130 -> 0.7 | BB5: ='环工16-1分数统计'!BG5*'环工16-1分数统计'!BG$3/130 -> 0.3461538462 | BC5: ='环工16-1分数统计'!BH5*'环工16-1分数统计'!BH$3/130 -> 1.384615385 | BD5: ='环工16-1分数统计'!BI5*'环工16-1分数统计'!BI$3/130 -> 1.673076923 | BE5: ='环工16-1分数统计'!BJ5*'环工16-1分数统计'!BJ$3/130 -> 2.053846154 | BF5: ='环工16-1分数统计'!BK5*'环工16-1分数统计'!BK$3/130 -> 0.6384615385 | BG5: =SUM(C5:BF5) -> 86.27230769 | BH5: =BG5*0.7 -> 60.39061538 | BI5: ='环工16-1两年综测'!BD5 -> 93.67031068 | BJ5: ='环工16-1两年综测'!BE5 -> 95.04436022 | BK5: ='环工16-1两年综测'!BF5 -> 102.9772557 | BL5: =SUM(BI5:BK5) -> 291.6919266 | BM5: 84.37634945 | BN5: =BM5*0.2 -> 16.87526989 | BO5: =BH5+BN5 -> 77.26588527
A6: 李异繁 | B6: 2016010602 | C6: ='环工16-1分数统计'!H6*'环工16-1分数统计'!H$3/130 -> 0.6769230769 | D6: ='环工16-1分数统计'!I6*'环工16-1分数统计'!I$3/130 -> 1.415384615 | E6: ='环工16-1分数统计'!J6*'环工16-1分数统计'!J$3/130 -> 3.6 | F6: ='环工16-1分数统计'!K6*'环工16-1分数统计'!K$3/130 -> 3.15 | G6: ='环工16-1分数统计'!L6*'环工16-1分数统计'!L$3/130 -> 1.353846154 | H6: ='环工16-1分数统计'!M6*'环工16-1分数统计'!M$3/130 -> 1.246153846 | I6: ='环工16-1分数统计'!N6*'环工16-1分数统计'!N$3/130 -> 3.396923077 | J6: ='环工16-1分数统计'!O6*'环工16-1分数统计'!O$3/130 -> 0.6230769231 | K6: ='环工16-1分数统计'!P6*'环工16-1分数统计'!P$3/130 -> 1.846153846 | L6: ='环工16-1分数统计'!Q6*'环工16-1分数统计'!Q$3/130 -> 0.7230769231 | M6: ='环工16-1分数统计'!R6*'环工16-1分数统计'!R$3/130 -> 1.984615385 | N6: ='环工16-1分数统计'!S6*'环工16-1分数统计'!S$3/130 -> 3.461538462 | O6: ='环工16-1分数统计'!T6*'环工16-1分数统计'!T$3/130 -> 1.846153846 | P6: ='环工16-1分数统计'!U6*'环工16-1分数统计'!U$3/130 -> 2.892307692 | Q6: ='环工16-1分数统计'!V6*'环工16-1分数统计'!V$3/130 -> 1.984615385 | R6: ='环工16-1分数统计'!W6*'环工16-1分数统计'!W$3/130 -> 3.290769231 | S6: ='环工16-1分数统计'!X6*'环工16-1分数统计'!X$3/130 -> 0.7538461538 | T6: ='环工16-1分数统计'!Y6*'环工16-1分数统计'!Y$3/130 -> 1.384615385 | U6: ='环工16-1分数统计'!Z6*'环工16-1分数统计'!Z$3/130 -> 1.869230769 | V6: ='环工16-1分数统计'!AA6*'环工16-1分数统计'!AA$3/130 -> 1.961538462 | W6: ='环工16-1分数统计'!AB6*'环工16-1分数统计'!AB$3/130 -> 1.353846154 | X6: ='环工16-1分数统计'!AC6*'环工16-1分数统计'!AC$3/130 -> 1.261538462 | Y6: ='环工16-1分数统计'!AD6*'环工16-1分数统计'!AD$3/130 -> 1.230769231 | Z6: ='环工16-1分数统计'!AE6*'环工16-1分数统计'!AE$3/130 -> 1.645384615 | AA6: ='环工16-1分数统计'!AF6*'环工16-1分数统计'!AF$3/130 -> 0.7461538462 | AB6: ='环工16-1分数统计'!AG6*'环工16-1分数统计'!AG$3/130 -> 1.615384615 | AC6: ='环工16-1分数统计'!AH6*'环工16-1分数统计'!AH$3/130 -> 2.169230769 | AD6: ='环工16-1分数统计'!AI6*'环工16-1分数统计'!AI$3/130 -> 1.4 | AE6: ='环工16-1分数统计'!AJ6*'环工16-1分数统计'!AJ$3/130 -> 0.7076923077 | AF6: ='环工16-1分数统计'!AK6*'环工16-1分数统计'!AK$3/130 -> 2.553846154 | AG6: ='环工16-1分数统计'!AL6*'环工16-1分数统计'!AL$3/130 -> 1.415384615 | AH6: ='环工16-1分数统计'!AM6*'环工16-1分数统计'!AM$3/130 -> 1.038461538 | AI6: ='环工16-1分数统计'!AN6*'环工16-1分数统计'!AN$3/130 -> 2.076923077 | AJ6: ='环工16-1分数统计'!AO6*'环工16-1分数统计'!AO$3/130 -> 1.8 | AK6: ='环工16-1分数统计'!AP6*'环工16-1分数统计'!AP$3/130 -> 1.026923077 | AL6: ='环工16-1分数统计'!AQ6*'环工16-1分数统计'!AQ$3/130 -> 2.215384615 | AM6: ='环工16-1分数统计'!AR6*'环工16-1分数统计'!AR$3/130 -> 1.4 | AN6: ='环工16-1分数统计'!AS6*'环工16-1分数统计'!AS$3/130 -> 1.415384615 | AO6: ='环工16-1分数统计'!AT6*'环工16-1分数统计'!AT$3/130 -> 1.592307692 | AP6: ='环工16-1分数统计'!AU6*'环工16-1分数统计'!AU$3/130 -> 0.7153846154 | AQ6: ='环工16-1分数统计'!AV6*'环工16-1分数统计'!AV$3/130 -> 1.430769231 | AR6: ='环工16-1分数统计'!AW6*'环工16-1分数统计'!AW$3/130 -> 0.7076923077 | AS6: ='环工16-1分数统计'!AX6*'环工16-1分数统计'!AX$3/130 -> 2.984615385 | AT6: ='环工16-1分数统计'!AY6*'环工16-1分数统计'!AY$3/130 -> 1.461538462 | AU6: ='环工16-1分数统计'!AZ6*'环工16-1分数统计'!AZ$3/130 -> 1.507692308 | AV6: ='环工16-1分数统计'!BA6*'环工16-1分数统计'!BA$3/130 -> 1.507692308 | AW6: ='环工16-1分数统计'!BB6*'环工16-1分数统计'!BB$3/130 -> 1.038461538 | AX6: ='环工16-1分数统计'!BC6*'环工16-1分数统计'!BC$3/130 -> 2.284615385 | AY6: ='环工16-1分数统计'!BD6*'环工16-1分数统计'!BD$3/130 -> 1.073076923 | AZ6: ='环工16-1分数统计'!BE6*'环工16-1分数统计'!BE$3/130 -> 1.369230769 | BA6: ='环工16-1分数统计'!BF6*'环工16-1分数统计'!BF$3/130 -> 0.7230769231 | BB6: ='环工16-1分数统计'!BG6*'环工16-1分数统计'!BG$3/130 -> 0.3576923077 | BC6: ='环工16-1分数统计'!BH6*'环工16-1分数统计'!BH$3/130 -> 1.384615385 | BD6: ='环工16-1分数统计'!BI6*'环工16-1分数统计'!BI$3/130 -> 1.807692308 | BE6: ='环工16-1分数统计'!BJ6*'环工16-1分数统计'!BJ$3/130 -> 2.261538462 | BF6: ='环工16-1分数统计'!BK6*'环工16-1分数统计'!BK$3/130 -> 0.7076923077 | BG6: 91.44846154 | BH6: 64.01392308 | BI6: ='环工16-1两年综测'!BD6 -> 99.19331731 | BJ6: ='环工16-1两年综测'!BE6 -> 102.2928814 | BK6: ='环工16-1两年综测'!BF6 -> 119.8543592 | BL6: 321.3405579 | BM6: 92.95266935 | BN6: 18.59053387 | BO6: 82.60445695
A7: 刘涵钰 | B7: 2016010603 | C7: ='环工16-1分数统计'!H7*'环工16-1分数统计'!H$3/130 -> 0.6076923077 | D7: ='环工16-1分数统计'!I7*'环工16-1分数统计'!I$3/130 -> 1.4 | E7: ='环工16-1分数统计'!J7*'环工16-1分数统计'!J$3/130 -> 3.553846154 | F7: ='环工16-1分数统计'!K7*'环工16-1分数统计'!K$3/130 -> 3.046153846 | G7: ='环工16-1分数统计'!L7*'环工16-1分数统计'!L$3/130 -> 1.4 | H7: ='环工16-1分数统计'!M7*'环工16-1分数统计'!M$3/130 -> 1.184615385 | I7: ='环工16-1分数统计'!N7*'环工16-1分数统计'!N$3/130 -> 2.741538462 | J7: ='环工16-1分数统计'!O7*'环工16-1分数统计'!O$3/130 -> 0.5538461538 | K7: ='环工16-1分数统计'!P7*'环工16-1分数统计'!P$3/130 -> 1.692307692 | L7: ='环工16-1分数统计'!Q7*'环工16-1分数统计'!Q$3/130 -> 0.7076923077 | M7: ='环工16-1分数统计'!R7*'环工16-1分数统计'!R$3/130 -> 1.869230769 | N7: ='环工16-1分数统计'!S7*'环工16-1分数统计'!S$3/130 -> 3.615384615 | O7: ='环工16-1分数统计'!T7*'环工16-1分数统计'!T$3/130 -> 1.692307692 | P7: ='环工16-1分数统计'!U7*'环工16-1分数统计'!U$3/130 -> 2.646153846 | Q7: ='环工16-1分数统计'!V7*'环工16-1分数统计'!V$3/130 -> 2.053846154 | R7: ='环工16-1分数统计'!W7*'环工16-1分数统计'!W$3/130 -> 2.741538462 | S7: ='环工16-1分数统计'!X7*'环工16-1分数统计'!X$3/130 -> 0.6692307692 | T7: ='环工16-1分数统计'!Y7*'环工16-1分数统计'!Y$3/130 -> 1.384615385 | U7: ='环工16-1分数统计'!Z7*'环工16-1分数统计'!Z$3/130 -> 1.546153846 | V7: ='环工16-1分数统计'!AA7*'环工16-1分数统计'!AA$3/130 -> 2.1 | W7: ='环工16-1分数统计'!AB7*'环工16-1分数统计'!AB$3/130 -> 1.292307692 | X7: ='环工16-1分数统计'!AC7*'环工16-1分数统计'!AC$3/130 -> 1.261538462 | Y7: ='环工16-1分数统计'!AD7*'环工16-1分数统计'!AD$3/130 -> 1.230769231 | Z7: ='环工16-1分数统计'!AE7*'环工16-1分数统计'!AE$3/130 -> 1.303076923 | AA7: ='环工16-1分数统计'!AF7*'环工16-1分数统计'!AF$3/130 -> 0.6153846154 | AB7: ='环工16-1分数统计'!AG7*'环工16-1分数统计'!AG$3/130 -> 1.596153846 | AC7: ='环工16-1分数统计'!AH7*'环工16-1分数统计'!AH$3/130 -> 1.915384615 | AD7: ='环工16-1分数统计'!AI7*'环工16-1分数统计'!AI$3/130 -> 1.338461538 | AE7: ='环工16-1分数统计'!AJ7*'环工16-1分数统计'!AJ$3/130 -> 0.7076923077 | AF7: ='环工16-1分数统计'!AK7*'环工16-1分数统计'!AK$3/130 -> 2.246153846 | AG7: ='环工16-1分数统计'!AL7*'环工16-1分数统计'!AL$3/130 -> 1.353846154 | AH7: ='环工16-1分数统计'!AM7*'环工16-1分数统计'!AM$3/130 -> 0.9576923077 | AI7: ='环工16-1分数统计'!AN7*'环工16-1分数统计'!AN$3/130 -> 1.915384615 | AJ7: ='环工16-1分数统计'!AO7*'环工16-1分数统计'!AO$3/130 -> 1.753846154 | AK7: ='环工16-1分数统计'!AP7*'环工16-1分数统计'!AP$3/130 -> 1.003846154 | AL7: ='环工16-1分数统计'!AQ7*'环工16-1分数统计'!AQ$3/130 -> 1.984615385 | AM7: ='环工16-1分数统计'!AR7*'环工16-1分数统计'!AR$3/130 -> 1.338461538 | AN7: ='环工16-1分数统计'!AS7*'环工16-1分数统计'!AS$3/130 -> 1.430769231 | AO7: ='环工16-1分数统计'!AT7*'环工16-1分数统计'!AT$3/130 -> 1.269230769 | AP7: ='环工16-1分数统计'!AU7*'环工16-1分数统计'!AU$3/130 -> 0.6307692308 | AQ7: ='环工16-1分数统计'!AV7*'环工16-1分数统计'!AV$3/130 -> 1.246153846 | AR7: ='环工16-1分数统计'!AW7*'环工16-1分数统计'!AW$3/130 -> 0.6769230769 | AS7: ='环工16-1分数统计'!AX7*'环工16-1分数统计'!AX$3/130 -> 2.861538462 | AT7: ='环工16-1分数统计'!AY7*'环工16-1分数统计'!AY$3/130 -> 1.338461538 | AU7: ='环工16-1分数统计'!AZ7*'环工16-1分数统计'!AZ$3/130 -> 1.384615385 | AV7: ='环工16-1分数统计'!BA7*'环工16-1分数统计'!BA$3/130 -> 1.384615385 | AW7: ='环工16-1分数统计'!BB7*'环工16-1分数统计'!BB$3/130 -> 1.038461538 | AX7: ='环工16-1分数统计'!BC7*'环工16-1分数统计'!BC$3/130 -> 2.123076923 | AY7: ='环工16-1分数统计'!BD7*'环工16-1分数统计'!BD$3/130 -> 1.015384615 | AZ7: ='环工16-1分数统计'!BE7*'环工16-1分数统计'!BE$3/130 -> 1.338461538 | BA7: ='环工16-1分数统计'!BF7*'环工16-1分数统计'!BF$3/130 -> 0.7230769231 | BB7: ='环工16-1分数统计'!BG7*'环工16-1分数统计'!BG$3/130 -> 0.3538461538 | BC7: ='环工16-1分数统计'!BH7*'环工16-1分数统计'!BH$3/130 -> 1.415384615 | BD7: ='环工16-1分数统计'!BI7*'环工16-1分数统计'!BI$3/130 -> 1.692307692 | BE7: ='环工16-1分数统计'!BJ7*'环工16-1分数统计'!BJ$3/130 -> 2.123076923 | BF7: ='环工16-1分数统计'!BK7*'环工16-1分数统计'!BK$3/130 -> 0.6846153846 | BG7: 85.75153846 | BH7: 60.02607692 | BI7: ='环工16-1两年综测'!BD7 -> 90.9492381 | BJ7: ='环工16-1两年综测'!BE7 -> 90.22212587 | BK7: ='环工16-1两年综测'!BF7 -> 96.55614772 | BL7: 277.7275117 | BM7: 80.33692893 | BN7: 16.06738579 | BO7: 76.09346271
A8: 刘雅 | B8: 2016010604 | C8: ='环工16-1分数统计'!H8*'环工16-1分数统计'!H$3/130 -> 0.6230769231 | D8: ='环工16-1分数统计'!I8*'环工16-1分数统计'!I$3/130 -> 1.353846154 | E8: ='环工16-1分数统计'!J8*'环工16-1分数统计'!J$3/130 -> 4.523076923 | F8: ='环工16-1分数统计'!K8*'环工16-1分数统计'!K$3/130 -> 3.219230769 | G8: ='环工16-1分数统计'!L8*'环工16-1分数统计'!L$3/130 -> 1.384615385 | H8: ='环工16-1分数统计'!M8*'环工16-1分数统计'!M$3/130 -> 1.230769231 | I8: ='环工16-1分数统计'!N8*'环工16-1分数统计'!N$3/130 -> 3.138461538 | J8: ='环工16-1分数统计'!O8*'环工16-1分数统计'!O$3/130 -> 0.6384615385 | K8: ='环工16-1分数统计'!P8*'环工16-1分数统计'!P$3/130 -> 1.846153846 | L8: ='环工16-1分数统计'!Q8*'环工16-1分数统计'!Q$3/130 -> 0.6461538462 | M8: ='环工16-1分数统计'!R8*'环工16-1分数统计'!R$3/130 -> 1.938461538 | N8: ='环工16-1分数统计'!S8*'环工16-1分数统计'!S$3/130 -> 3.846153846 | O8: ='环工16-1分数统计'!T8*'环工16-1分数统计'!T$3/130 -> 1.807692308 | P8: ='环工16-1分数统计'!U8*'环工16-1分数统计'!U$3/130 -> 2.892307692 | Q8: ='环工16-1分数统计'!V8*'环工16-1分数统计'!V$3/130 -> 2.215384615 | R8: ='环工16-1分数统计'!W8*'环工16-1分数统计'!W$3/130 -> 3.101538462 | S8: ='环工16-1分数统计'!X8*'环工16-1分数统计'!X$3/130 -> 0.6923076923 | T8: ='环工16-1分数统计'!Y8*'环工16-1分数统计'!Y$3/130 -> 1.384615385 | U8: ='环工16-1分数统计'!Z8*'环工16-1分数统计'!Z$3/130 -> 2.192307692 | V8: ='环工16-1分数统计'!AA8*'环工16-1分数统计'!AA$3/130 -> 2.284615385 | W8: ='环工16-1分数统计'!AB8*'环工16-1分数统计'!AB$3/130 -> 1.415384615 | X8: ='环工16-1分数统计'!AC8*'环工16-1分数统计'!AC$3/130 -> 1.338461538 | Y8: ='环工16-1分数统计'!AD8*'环工16-1分数统计'!AD$3/130 -> 1.369230769 | Z8: ='环工16-1分数统计'!AE8*'环工16-1分数统计'!AE$3/130 -> 1.569230769 | AA8: ='环工16-1分数统计'!AF8*'环工16-1分数统计'!AF$3/130 -> 0.6230769231 | AB8: ='环工16-1分数统计'!AG8*'环工16-1分数统计'!AG$3/130 -> 1.769230769 | AC8: ='环工16-1分数统计'!AH8*'环工16-1分数统计'!AH$3/130 -> 2.261538462 | AD8: ='环工16-1分数统计'!AI8*'环工16-1分数统计'!AI$3/130 -> 1.4 | AE8: ='环工16-1分数统计'!AJ8*'环工16-1分数统计'!AJ$3/130 -> 0.7 | AF8: ='环工16-1分数统计'!AK8*'环工16-1分数统计'!AK$3/130 -> 2.676923077 | AG8: ='环工16-1分数统计'!AL8*'环工16-1分数统计'!AL$3/130 -> 1.4 | AH8: ='环工16-1分数统计'!AM8*'环工16-1分数统计'!AM$3/130 -> 1.084615385 | AI8: ='环工16-1分数统计'!AN8*'环工16-1分数统计'!AN$3/130 -> 2.215384615 | AJ8: ='环工16-1分数统计'!AO8*'环工16-1分数统计'!AO$3/130 -> 2.076923077 | AK8: ='环工16-1分数统计'!AP8*'环工16-1分数统计'!AP$3/130 -> 1.026923077 | AL8: ='环工16-1分数统计'!AQ8*'环工16-1分数统计'!AQ$3/130 -> 2.215384615 | AM8: ='环工16-1分数统计'!AR8*'环工16-1分数统计'!AR$3/130 -> 1.369230769 | AN8: ='环工16-1分数统计'!AS8*'环工16-1分数统计'!AS$3/130 -> 1.430769231 | AO8: ='环工16-1分数统计'!AT8*'环工16-1分数统计'!AT$3/130 -> 1.433076923 | AP8: ='环工16-1分数统计'!AU8*'环工16-1分数统计'!AU$3/130 -> 0.6846153846 | AQ8: ='环工16-1分数统计'!AV8*'环工16-1分数统计'!AV$3/130 -> 1.4 | AR8: ='环工16-1分数统计'!AW8*'环工16-1分数统计'!AW$3/130 -> 0.6615384615 | AS8: ='环工16-1分数统计'!AX8*'环工16-1分数统计'!AX$3/130 -> 2.923076923 | AT8: ='环工16-1分数统计'!AY8*'环工16-1分数统计'!AY$3/130 -> 1.446153846 | AU8: ='环工16-1分数统计'!AZ8*'环工16-1分数统计'!AZ$3/130 -> 1.492307692 | AV8: ='环工16-1分数统计'!BA8*'环工16-1分数统计'!BA$3/130 -> 1.492307692 | AW8: ='环工16-1分数统计'!BB8*'环工16-1分数统计'!BB$3/130 -> 1.038461538 | AX8: ='环工16-1分数统计'!BC8*'环工16-1分数统计'!BC$3/130 -> 2.284615385 | AY8: ='环工16-1分数统计'!BD8*'环工16-1分数统计'!BD$3/130 -> 1.026923077 | AZ8: ='环工16-1分数统计'!BE8*'环工16-1分数统计'!BE$3/130 -> 1.461538462 | BA8: ='环工16-1分数统计'!BF8*'环工16-1分数统计'!BF$3/130 -> 0.7 | BB8: ='环工16-1分数统计'!BG8*'环工16-1分数统计'!BG$3/130 -> 0.3615384615 | BC8: ='环工16-1分数统计'!BH8*'环工16-1分数统计'!BH$3/130 -> 1.307692308 | BD8: ='环工16-1分数统计'!BI8*'环工16-1分数统计'!BI$3/130 -> 1.865384615 | BE8: ='环工16-1分数统计'!BJ8*'环工16-1分数统计'!BJ$3/130 -> 2.238461538 | BF8: ='环工16-1分数统计'!BK8*'环工16-1分数统计'!BK$3/130 -> 0.6846153846 | BG8: 93.40384615 | BH8: 65.38269231 | BI8: ='环工16-1两年综测'!BD8 -> 99.38865725 | BJ8: ='环工16-1两年综测'!BE8 -> 117.4018592 | BK8: ='环工16-1两年综测'!BF8 -> 128.9129046 | BL8: 345.7034211 | BM8: =BL8/$BL$8*100 -> 100 | BN8: 20 | BO8: 85.38269231
A9: 马晓红 | B9: 2016010605 | C9: ='环工16-1分数统计'!H9*'环工16-1分数统计'!H$3/130 -> 0.5923076923 | D9: ='环工16-1分数统计'!I9*'环工16-1分数统计'!I$3/130 -> 1.338461538 | E9: ='环工16-1分数统计'!J9*'环工16-1分数统计'!J$3/130 -> 3.184615385 | F9: ='环工16-1分数统计'!K9*'环工16-1分数统计'!K$3/130 -> 2.284615385 | G9: ='环工16-1分数统计'!L9*'环工16-1分数统计'!L$3/130 -> 1.230769231 | H9: ='环工16-1分数统计'!M9*'环工16-1分数统计'!M$3/130 -> 1.123076923 | I9: ='环工16-1分数统计'!N9*'环工16-1分数统计'!N$3/130 -> 2.030769231 | J9: ='环工16-1分数统计'!O9*'环工16-1分数统计'!O$3/130 -> 0.5923076923 | K9: ='环工16-1分数统计'!P9*'环工16-1分数统计'!P$3/130 -> 1.307692308 | L9: ='环工16-1分数统计'!Q9*'环工16-1分数统计'!Q$3/130 -> 0.5461538462 | M9: ='环工16-1分数统计'!R9*'环工16-1分数统计'!R$3/130 -> 1.384615385 | N9: ='环工16-1分数统计'!S9*'环工16-1分数统计'!S$3/130 -> 2.307692308 | O9: ='环工16-1分数统计'!T9*'环工16-1分数统计'!T$3/130 -> 1.5 | P9: ='环工16-1分数统计'!U9*'环工16-1分数统计'!U$3/130 -> 2.123076923 | Q9: ='环工16-1分数统计'!V9*'环工16-1分数统计'!V$3/130 -> 1.384615385 | R9: ='环工16-1分数统计'!W9*'环工16-1分数统计'!W$3/130 -> 2.504615385 | S9: ='环工16-1分数统计'!X9*'环工16-1分数统计'!X$3/130 -> 0.6230769231 | T9: ='环工16-1分数统计'!Y9*'环工16-1分数统计'!Y$3/130 -> 1.415384615 | U9: ='环工16-1分数统计'!Z9*'环工16-1分数统计'!Z$3/130 -> 1.407692308 | V9: ='环工16-1分数统计'!AA9*'环工16-1分数统计'!AA$3/130 -> 1.407692308 | W9: ='环工16-1分数统计'!AB9*'环工16-1分数统计'!AB$3/130 -> 0.9846153846 | X9: ='环工16-1分数统计'!AC9*'环工16-1分数统计'!AC$3/130 -> 1.076923077 | Y9: ='环工16-1分数统计'!AD9*'环工16-1分数统计'!AD$3/130 -> 1.107692308 | Z9: ='环工16-1分数统计'!AE9*'环工16-1分数统计'!AE$3/130 -> 1.235384615 | AA9: ='环工16-1分数统计'!AF9*'环工16-1分数统计'!AF$3/130 -> 0.6615384615 | AB9: ='环工16-1分数统计'!AG9*'环工16-1分数统计'!AG$3/130 -> 1.461538462 | AC9: ='环工16-1分数统计'!AH9*'环工16-1分数统计'!AH$3/130 -> 1.638461538 | AD9: ='环工16-1分数统计'!AI9*'环工16-1分数统计'!AI$3/130 -> 1.230769231 | AE9: ='环工16-1分数统计'!AJ9*'环工16-1分数统计'!AJ$3/130 -> 0.6923076923 | AF9: ='环工16-1分数统计'!AK9*'环工16-1分数统计'!AK$3/130 -> 1.938461538 | AG9: ='环工16-1分数统计'!AL9*'环工16-1分数统计'!AL$3/130 -> 1.123076923 | AH9: ='环工16-1分数统计'!AM9*'环工16-1分数统计'!AM$3/130 -> 0.6923076923 | AI9: ='环工16-1分数统计'!AN9*'环工16-1分数统计'!AN$3/130 -> 1.407692308 | AJ9: ='环工16-1分数统计'!AO9*'环工16-1分数统计'!AO$3/130 -> 1.592307692 | AK9: ='环工16-1分数统计'!AP9*'环工16-1分数统计'!AP$3/130 -> 0.9923076923 | AL9: ='环工16-1分数统计'!AQ9*'环工16-1分数统计'!AQ$3/130 -> 1.523076923 | AM9: ='环工16-1分数统计'!AR9*'环工16-1分数统计'!AR$3/130 -> 1.307692308 | AN9: ='环工16-1分数统计'!AS9*'环工16-1分数统计'!AS$3/130 -> 1.338461538 | AO9: ='环工16-1分数统计'!AT9*'环工16-1分数统计'!AT$3/130 -> 1.184615385 | AP9: ='环工16-1分数统计'!AU9*'环工16-1分数统计'!AU$3/130 -> 0.6384615385 | AQ9: ='环工16-1分数统计'!AV9*'环工16-1分数统计'!AV$3/130 -> 1.261538462 | AR9: ='环工16-1分数统计'!AW9*'环工16-1分数统计'!AW$3/130 -> 0.5692307692 | AS9: ='环工16-1分数统计'!AX9*'环工16-1分数统计'!AX$3/130 -> 2.153846154 | AT9: ='环工16-1分数统计'!AY9*'环工16-1分数统计'!AY$3/130 -> 1.138461538 | AU9: ='环工16-1分数统计'!AZ9*'环工16-1分数统计'!AZ$3/130 -> 1.261538462 | AV9: ='环工16-1分数统计'!BA9*'环工16-1分数统计'!BA$3/130 -> 1.153846154 | AW9: ='环工16-1分数统计'!BB9*'环工16-1分数统计'!BB$3/130 -> 0.9807692308 | AX9: ='环工16-1分数统计'!BC9*'环工16-1分数统计'!BC$3/130 -> 1.984615385 | AY9: ='环工16-1分数统计'!BD9*'环工16-1分数统计'!BD$3/130 -> 0.9807692308 | AZ9: ='环工16-1分数统计'!BE9*'环工16-1分数统计'!BE$3/130 -> 1.076923077 | BA9: ='环工16-1分数统计'!BF9*'环工16-1分数统计'!BF$3/130 -> 0.6538461538 | BB9: ='环工16-1分数统计'!BG9*'环工16-1分数统计'!BG$3/130 -> 0.3423076923 | BC9: ='环工16-1分数统计'!BH9*'环工16-1分数统计'!BH$3/130 -> 1.123076923 | BD9: ='环工16-1分数统计'!BI9*'环工16-1分数统计'!BI$3/130 -> 1.423076923 | BE9: ='环工16-1分数统计'!BJ9*'环工16-1分数统计'!BJ$3/130 -> 1.753846154 | BF9: ='环工16-1分数统计'!BK9*'环工16-1分数统计'!BK$3/130 -> 0.4846153846 | BG9: 72.45923077 | BH9: 50.72146154 | BI9: ='环工16-1两年综测'!BD9 -> 79.61075296 | BJ9: ='环工16-1两年综测'!BE9 -> 80.31112903 | BK9: ='环工16-1两年综测'!BF9 -> 83.06909165 | BL9: 242.9909736 | BM9: =BL9/$BL$8*100 -> 70.28885421 | BN9: 14.05777084 | BO9: 64.77923238
A10: 马一凡 | B10: 2016010606 | C10: ='环工16-1分数统计'!H10*'环工16-1分数统计'!H$3/130 -> 0.6307692308 | D10: ='环工16-1分数统计'!I10*'环工16-1分数统计'!I$3/130 -> 1.384615385 | E10: ='环工16-1分数统计'!J10*'环工16-1分数统计'!J$3/130 -> 4.015384615 | F10: ='环工16-1分数统计'!K10*'环工16-1分数统计'!K$3/130 -> 3.15 | G10: ='环工16-1分数统计'!L10*'环工16-1分数统计'!L$3/130 -> 1.292307692 | H10: ='环工16-1分数统计'!M10*'环工16-1分数统计'!M$3/130 -> 1.107692308 | I10: ='环工16-1分数统计'!N10*'环工16-1分数统计'!N$3/130 -> 3.184615385 | J10: ='环工16-1分数统计'!O10*'环工16-1分数统计'!O$3/130 -> 0.5923076923 | K10: ='环工16-1分数统计'!P10*'环工16-1分数统计'!P$3/130 -> 1.730769231 | L10: ='环工16-1分数统计'!Q10*'环工16-1分数统计'!Q$3/130 -> 0.5615384615 | M10: ='环工16-1分数统计'!R10*'环工16-1分数统计'!R$3/130 -> 1.984615385 | N10: ='环工16-1分数统计'!S10*'环工16-1分数统计'!S$3/130 -> 3.346153846 | O10: ='环工16-1分数统计'!T10*'环工16-1分数统计'!T$3/130 -> 1.673076923 | P10: ='环工16-1分数统计'!U10*'环工16-1分数统计'!U$3/130 -> 2.769230769 | Q10: ='环工16-1分数统计'!V10*'环工16-1分数统计'!V$3/130 -> 2.030769231 | R10: ='环工16-1分数统计'!W10*'环工16-1分数统计'!W$3/130 -> 3.007692308 | S10: ='环工16-1分数统计'!X10*'环工16-1分数统计'!X$3/130 -> 0.6615384615 | T10: ='环工16-1分数统计'!Y10*'环工16-1分数统计'!Y$3/130 -> 1.353846154 | U10: ='环工16-1分数统计'!Z10*'环工16-1分数统计'!Z$3/130 -> 1.384615385 | V10: ='环工16-1分数统计'!AA10*'环工16-1分数统计'!AA$3/130 -> 1.984615385 | W10: ='环工16-1分数统计'!AB10*'环工16-1分数统计'!AB$3/130 -> 1.092307692 | X10: ='环工16-1分数统计'!AC10*'环工16-1分数统计'!AC$3/130 -> 1.2 | Y10: ='环工16-1分数统计'!AD10*'环工16-1分数统计'!AD$3/130 -> 1.307692308 | Z10: ='环工16-1分数统计'!AE10*'环工16-1分数统计'!AE$3/130 -> 1.539230769 | AA10: ='环工16-1分数统计'!AF10*'环工16-1分数统计'!AF$3/130 -> 0.6846153846 | AB10: ='环工16-1分数统计'!AG10*'环工16-1分数统计'!AG$3/130 -> 1.538461538 | AC10: ='环工16-1分数统计'!AH10*'环工16-1分数统计'!AH$3/130 -> 1.684615385 | AD10: ='环工16-1分数统计'!AI10*'环工16-1分数统计'!AI$3/130 -> 1.292307692 | AE10: ='环工16-1分数统计'!AJ10*'环工16-1分数统计'!AJ$3/130 -> 0.6923076923 | AF10: ='环工16-1分数统计'!AK10*'环工16-1分数统计'!AK$3/130 -> 2.153846154 | AG10: ='环工16-1分数统计'!AL10*'环工16-1分数统计'!AL$3/130 -> 1.138461538 | AH10: ='环工16-1分数统计'!AM10*'环工16-1分数统计'!AM$3/130 -> 0.8884615385 | AI10: ='环工16-1分数统计'!AN10*'环工16-1分数统计'!AN$3/130 -> 1.523076923 | AJ10: ='环工16-1分数统计'!AO10*'环工16-1分数统计'!AO$3/130 -> 1.823076923 | AK10: ='环工16-1分数统计'!AP10*'环工16-1分数统计'!AP$3/130 -> 0.9576923077 | AL10: ='环工16-1分数统计'!AQ10*'环工16-1分数统计'!AQ$3/130 -> 1.961538462 | AM10: ='环工16-1分数统计'!AR10*'环工16-1分数统计'!AR$3/130 -> 1.353846154 | AN10: ='环工16-1分数统计'!AS10*'环工16-1分数统计'!AS$3/130 -> 1.369230769 | AO10: ='环工16-1分数统计'!AT10*'环工16-1分数统计'!AT$3/130 -> 1.309230769 | AP10: ='环工16-1分数统计'!AU10*'环工16-1分数统计'!AU$3/130 -> 0.6923076923 | AQ10: ='环工16-1分数统计'!AV10*'环工16-1分数统计'!AV$3/130 -> 1.384615385 | AR10: ='环工16-1分数统计'!AW10*'环工16-1分数统计'!AW$3/130 -> 0.5846153846 | AS10: ='环工16-1分数统计'!AX10*'环工16-1分数统计'!AX$3/130 -> 2.430769231 | AT10: ='环工16-1分数统计'!AY10*'环工16-1分数统计'!AY$3/130 -> 1.261538462 | AU10: ='环工16-1分数统计'!AZ10*'环工16-1分数统计'!AZ$3/130 -> 1.246153846 | AV10: ='环工16-1分数统计'!BA10*'环工16-1分数统计'!BA$3/130 -> 1.507692308 | AW10: ='环工16-1分数统计'!BB10*'环工16-1分数统计'!BB$3/130 -> 1.003846154 | AX10: ='环工16-1分数统计'!BC10*'环工16-1分数统计'!BC$3/130 -> 1.915384615 | AY10: ='环工16-1分数统计'!BD10*'环工16-1分数统计'!BD$3/130 -> 0.8769230769 | AZ10: ='环工16-1分数统计'!BE10*'环工16-1分数统计'!BE$3/130 -> 1.169230769 | BA10: ='环工16-1分数统计'!BF10*'环工16-1分数统计'!BF$3/130 -> 0.6692307692 | BB10: ='环工16-1分数统计'!BG10*'环工16-1分数统计'!BG$3/130 -> 0.3346153846 | BC10: ='环工16-1分数统计'!BH10*'环工16-1分数统计'!BH$3/130 -> 1.246153846 | BD10: ='环工16-1分数统计'!BI10*'环工16-1分数统计'!BI$3/130 -> 1.615384615 | BE10: ='环工16-1分数统计'!BJ10*'环工16-1分数统计'!BJ$3/130 -> 1.546153846 | BF10: ='环工16-1分数统计'!BK10*'环工16-1分数统计'!BK$3/130 -> 0.5923076923 | BG10: 83.43307692 | BH10: 58.40315385 | BI10: ='环工16-1两年综测'!BD10 -> 92.15105989 | BJ10: ='环工16-1两年综测'!BE10 -> 90.77473598 | BK10: ='环工16-1两年综测'!BF10 -> 106.2349109 | BL10: 289.1607067 | BM10: 83.6441554 | BN10: 16.72883108 | BO10: 75.13198493
A11: 齐泽丰 | B11: 2016010607 | C11: ='环工16-1分数统计'!H11*'环工16-1分数统计'!H$3/130 -> 0.6461538462 | D11: ='环工16-1分数统计'!I11*'环工16-1分数统计'!I$3/130 -> 1.461538462 | E11: ='环工16-1分数统计'!J11*'环工16-1分数统计'!J$3/130 -> 3.784615385 | F11: ='环工16-1分数统计'!K11*'环工16-1分数统计'!K$3/130 -> 2.7 | G11: ='环工16-1分数统计'!L11*'环工16-1分数统计'!L$3/130 -> 1.261538462 | H11: ='环工16-1分数统计'!M11*'环工16-1分数统计'!M$3/130 -> 1.353846154 | I11: ='环工16-1分数统计'!N11*'环工16-1分数统计'!N$3/130 -> 2.843076923 | J11: ='环工16-1分数统计'!O11*'环工16-1分数统计'!O$3/130 -> 0.6846153846 | K11: ='环工16-1分数统计'!P11*'环工16-1分数统计'!P$3/130 -> 1.75 | L11: ='环工16-1分数统计'!Q11*'环工16-1分数统计'!Q$3/130 -> 0.6307692308 | M11: ='环工16-1分数统计'!R11*'环工16-1分数统计'!R$3/130 -> 1.638461538 | N11: ='环工16-1分数统计'!S11*'环工16-1分数统计'!S$3/130 -> 3.423076923 | O11: ='环工16-1分数统计'!T11*'环工16-1分数统计'!T$3/130 -> 1.75 | P11: ='环工16-1分数统计'!U11*'环工16-1分数统计'!U$3/130 -> 2.523076923 | Q11: ='环工16-1分数统计'!V11*'环工16-1分数统计'!V$3/130 -> 2.007692308 | R11: ='环工16-1分数统计'!W11*'环工16-1分数统计'!W$3/130 -> 3.046153846 | S11: ='环工16-1分数统计'!X11*'环工16-1分数统计'!X$3/130 -> 0.7384615385 | T11: ='环工16-1分数统计'!Y11*'环工16-1分数统计'!Y$3/130 -> 1.446153846 | U11: ='环工16-1分数统计'!Z11*'环工16-1分数统计'!Z$3/130 -> 1.476923077 | V11: ='环工16-1分数统计'!AA11*'环工16-1分数统计'!AA$3/130 -> 1.776923077 | W11: ='环工16-1分数统计'!AB11*'环工16-1分数统计'!AB$3/130 -> 1.2 | X11: ='环工16-1分数统计'!AC11*'环工16-1分数统计'!AC$3/130 -> 1.4 | Y11: ='环工16-1分数统计'!AD11*'环工16-1分数统计'!AD$3/130 -> 1.323076923 | Z11: ='环工16-1分数统计'!AE11*'环工16-1分数统计'!AE$3/130 -> 1.472307692 | AA11: ='环工16-1分数统计'!AF11*'环工16-1分数统计'!AF$3/130 -> 0.7076923077 | AB11: ='环工16-1分数统计'!AG11*'环工16-1分数统计'!AG$3/130 -> 1.538461538 | AC11: ='环工16-1分数统计'!AH11*'环工16-1分数统计'!AH$3/130 -> 1.753846154 | AD11: ='环工16-1分数统计'!AI11*'环工16-1分数统计'!AI$3/130 -> 1.338461538 | AE11: ='环工16-1分数统计'!AJ11*'环工16-1分数统计'!AJ$3/130 -> 0.7153846154 | AF11: ='环工16-1分数统计'!AK11*'环工16-1分数统计'!AK$3/130 -> 2.153846154 | AG11: ='环工16-1分数统计'!AL11*'环工16-1分数统计'!AL$3/130 -> 1.338461538 | AH11: ='环工16-1分数统计'!AM11*'环工16-1分数统计'!AM$3/130 -> 0.8076923077 | AI11: ='环工16-1分数统计'!AN11*'环工16-1分数统计'!AN$3/130 -> 1.869230769 | AJ11: ='环工16-1分数统计'!AO11*'环工16-1分数统计'!AO$3/130 -> 1.476923077 | AK11: ='环工16-1分数统计'!AP11*'环工16-1分数统计'!AP$3/130 -> 1.015384615 | AL11: ='环工16-1分数统计'!AQ11*'环工16-1分数统计'!AQ$3/130 -> 2.146153846 | AM11: ='环工16-1分数统计'!AR11*'环工16-1分数统计'!AR$3/130 -> 1.384615385 | AN11: ='环工16-1分数统计'!AS11*'环工16-1分数统计'!AS$3/130 -> 1.384615385 | AO11: ='环工16-1分数统计'!AT11*'环工16-1分数统计'!AT$3/130 -> 1.387692308 | AP11: ='环工16-1分数统计'!AU11*'环工16-1分数统计'!AU$3/130 -> 0.7 | AQ11: ='环工16-1分数统计'!AV11*'环工16-1分数统计'!AV$3/130 -> 1.507692308 | AR11: ='环工16-1分数统计'!AW11*'环工16-1分数统计'!AW$3/130 -> 0.6538461538 | AS11: ='环工16-1分数统计'!AX11*'环工16-1分数统计'!AX$3/130 -> 2.615384615 | AT11: ='环工16-1分数统计'!AY11*'环工16-1分数统计'!AY$3/130 -> 1.4 | AU11: ='环工16-1分数统计'!AZ11*'环工16-1分数统计'!AZ$3/130 -> 1.461538462 | AV11: ='环工16-1分数统计'!BA11*'环工16-1分数统计'!BA$3/130 -> 1.523076923 | AW11: ='环工16-1分数统计'!BB11*'环工16-1分数统计'!BB$3/130 -> 1.015384615 | AX11: ='环工16-1分数统计'!BC11*'环工16-1分数统计'!BC$3/130 -> 2.1 | AY11: ='环工16-1分数统计'!BD11*'环工16-1分数统计'!BD$3/130 -> 1.015384615 | AZ11: ='环工16-1分数统计'!BE11*'环工16-1分数统计'!BE$3/130 -> 1.323076923 | BA11: ='环工16-1分数统计'!BF11*'环工16-1分数统计'!BF$3/130 -> 0.7230769231 | BB11: ='环工16-1分数统计'!BG11*'环工16-1分数统计'!BG$3/130 -> 0.3461538462 | BC11: ='环工16-1分数统计'!BH11*'环工16-1分数统计'!BH$3/130 -> 1.384615385 | BD11: ='环工16-1分数统计'!BI11*'环工16-1分数统计'!BI$3/130 -> 1.769230769 | BE11: ='环工16-1分数统计'!BJ11*'环工16-1分数统计'!BJ$3/130 -> 2.053846154 | BF11: ='环工16-1分数统计'!BK11*'环工16-1分数统计'!BK$3/130 -> 0.6538461538 | BG11: 85.60307692 | BH11: 59.92215385 | BI11: ='环工16-1两年综测'!BD11 -> 92.94386513 | BJ11: ='环工16-1两年综测'!BE11 -> 97.87665921 | BK11: ='环工16-1两年综测'!BF11 -> 119.4092672 | BL11: 310.2297915 | BM11: 89.7387103 | BN11: 17.94774206 | BO11: 77.86989591
A12: 任玥辉 | B12: 2016010608 | C12: ='环工16-1分数统计'!H12*'环工16-1分数统计'!H$3/130 -> 0.6769230769 | D12: ='环工16-1分数统计'!I12*'环工16-1分数统计'!I$3/130 -> 1.446153846 | E12: ='环工16-1分数统计'!J12*'环工16-1分数统计'!J$3/130 -> 3.876923077 | F12: ='环工16-1分数统计'!K12*'环工16-1分数统计'!K$3/130 -> 2.769230769 | G12: ='环工16-1分数统计'!L12*'环工16-1分数统计'!L$3/130 -> 1.323076923 | H12: ='环工16-1分数统计'!M12*'环工16-1分数统计'!M$3/130 -> 1.338461538 | I12: ='环工16-1分数统计'!N12*'环工16-1分数统计'!N$3/130 -> 2.707692308 | J12: ='环工16-1分数统计'!O12*'环工16-1分数统计'!O$3/130 -> 0.6153846154 | K12: ='环工16-1分数统计'!P12*'环工16-1分数统计'!P$3/130 -> 1.615384615 | L12: ='环工16-1分数统计'!Q12*'环工16-1分数统计'!Q$3/130 -> 0.6 | M12: ='环工16-1分数统计'!R12*'环工16-1分数统计'!R$3/130 -> 1.730769231 | N12: ='环工16-1分数统计'!S12*'环工16-1分数统计'!S$3/130 -> 3.153846154 | O12: ='环工16-1分数统计'!T12*'环工16-1分数统计'!T$3/130 -> 1.692307692 | P12: ='环工16-1分数统计'!U12*'环工16-1分数统计'!U$3/130 -> 2.492307692 | Q12: ='环工16-1分数统计'!V12*'环工16-1分数统计'!V$3/130 -> 1.753846154 | R12: ='环工16-1分数统计'!W12*'环工16-1分数统计'!W$3/130 -> 3.08 | S12: ='环工16-1分数统计'!X12*'环工16-1分数统计'!X$3/130 -> 0.6769230769 | T12: ='环工16-1分数统计'!Y12*'环工16-1分数统计'!Y$3/130 -> 1.384615385 | U12: ='环工16-1分数统计'!Z12*'环工16-1分数统计'!Z$3/130 -> 1.476923077 | V12: ='环工16-1分数统计'!AA12*'环工16-1分数统计'!AA$3/130 -> 1.961538462 | W12: ='环工16-1分数统计'!AB12*'环工16-1分数统计'!AB$3/130 -> 1.169230769 | X12: ='环工16-1分数统计'!AC12*'环工16-1分数统计'!AC$3/130 -> 1.323076923 | Y12: ='环工16-1分数统计'!AD12*'环工16-1分数统计'!AD$3/130 -> 1.338461538 | Z12: ='环工16-1分数统计'!AE12*'环工16-1分数统计'!AE$3/130 -> 1.472307692 | AA12: ='环工16-1分数统计'!AF12*'环工16-1分数统计'!AF$3/130 -> 0.6846153846 | AB12: ='环工16-1分数统计'!AG12*'环工16-1分数统计'!AG$3/130 -> 1.442307692 | AC12: ='环工16-1分数统计'!AH12*'环工16-1分数统计'!AH$3/130 -> 1.892307692 | AD12: ='环工16-1分数统计'!AI12*'环工16-1分数统计'!AI$3/130 -> 1.369230769 | AE12: ='环工16-1分数统计'!AJ12*'环工16-1分数统计'!AJ$3/130 -> 0.7076923077 | AF12: ='环工16-1分数统计'!AK12*'环工16-1分数统计'!AK$3/130 -> 2.307692308 | AG12: ='环工16-1分数统计'!AL12*'环工16-1分数统计'!AL$3/130 -> 1.369230769 | AH12: ='环工16-1分数统计'!AM12*'环工16-1分数统计'!AM$3/130 -> 0.9807692308 | AI12: ='环工16-1分数统计'!AN12*'环工16-1分数统计'!AN$3/130 -> 2.1 | AJ12: ='环工16-1分数统计'!AO12*'环工16-1分数统计'!AO$3/130 -> 1.961538462 | AK12: ='环工16-1分数统计'!AP12*'环工16-1分数统计'!AP$3/130 -> 1.038461538 | AL12: ='环工16-1分数统计'!AQ12*'环工16-1分数统计'!AQ$3/130 -> 2.146153846 | AM12: ='环工16-1分数统计'!AR12*'环工16-1分数统计'!AR$3/130 -> 1.353846154 | AN12: ='环工16-1分数统计'!AS12*'环工16-1分数统计'!AS$3/130 -> 1.430769231 | AO12: ='环工16-1分数统计'!AT12*'环工16-1分数统计'!AT$3/130 -> 1.506153846 | AP12: ='环工16-1分数统计'!AU12*'环工16-1分数统计'!AU$3/130 -> 0.6307692308 | AQ12: ='环工16-1分数统计'!AV12*'环工16-1分数统计'!AV$3/130 -> 1.369230769 | AR12: ='环工16-1分数统计'!AW12*'环工16-1分数统计'!AW$3/130 -> 0.6230769231 | AS12: ='环工16-1分数统计'!AX12*'环工16-1分数统计'!AX$3/130 -> 2.153846154 | AT12: ='环工16-1分数统计'!AY12*'环工16-1分数统计'!AY$3/130 -> 1.353846154 | AU12: ='环工16-1分数统计'!AZ12*'环工16-1分数统计'!AZ$3/130 -> 1.307692308 | AV12: ='环工16-1分数统计'!BA12*'环工16-1分数统计'!BA$3/130 -> 1.338461538 | AW12: ='环工16-1分数统计'!BB12*'环工16-1分数统计'!BB$3/130 -> 1.038461538 | AX12: ='环工16-1分数统计'!BC12*'环工16-1分数统计'!BC$3/130 -> 1.961538462 | AY12: ='环工16-1分数统计'!BD12*'环工16-1分数统计'!BD$3/130 -> 1.05 | AZ12: ='环工16-1分数统计'!BE12*'环工16-1分数统计'!BE$3/130 -> 1.261538462 | BA12: ='环工16-1分数统计'!BF12*'环工16-1分数统计'!BF$3/130 -> 0.6923076923 | BB12: ='环工16-1分数统计'!BG12*'环工16-1分数统计'!BG$3/130 -> 0.35 | BC12: ='环工16-1分数统计'!BH12*'环工16-1分数统计'!BH$3/130 -> 1.430769231 | BD12: ='环工16-1分数统计'!BI12*'环工16-1分数统计'!BI$3/130 -> 1.634615385 | BE12: ='环工16-1分数统计'!BJ12*'环工16-1分数统计'!BJ$3/130 -> 2.1 | BF12: ='环工16-1分数统计'!BK12*'环工16-1分数统计'!BK$3/130 -> 0.6923076923 | BG12: 84.95461538 | BH12: 59.46823077 | BI12: ='环工16-1两年综测'!BD12 -> 92.92658464 | BJ12: ='环工16-1两年综测'!BE12 -> 91.32548749 | BK12: ='环工16-1两年综测'!BF12 -> 98.33694536 | BL12: 282.5890175 | BM12: 81.74319381 | BN12: 16.34863876 | BO12: 75.81686953
A13: 唐钰琪 | B13: 2016010609 | C13: ='环工16-1分数统计'!H13*'环工16-1分数统计'!H$3/130 -> 0.6384615385 | D13: ='环工16-1分数统计'!I13*'环工16-1分数统计'!I$3/130 -> 1.430769231 | E13: ='环工16-1分数统计'!J13*'环工16-1分数统计'!J$3/130 -> 3.046153846 | F13: ='环工16-1分数统计'!K13*'环工16-1分数统计'!K$3/130 -> 2.769230769 | G13: ='环工16-1分数统计'!L13*'环工16-1分数统计'!L$3/130 -> 1.261538462 | H13: ='环工16-1分数统计'!M13*'环工16-1分数统计'!M$3/130 -> 1.261538462 | I13: ='环工16-1分数统计'!N13*'环工16-1分数统计'!N$3/130 -> 3.046153846 | J13: ='环工16-1分数统计'!O13*'环工16-1分数统计'!O$3/130 -> 0.6846153846 | K13: ='环工16-1分数统计'!P13*'环工16-1分数统计'!P$3/130 -> 1.5 | L13: ='环工16-1分数统计'!Q13*'环工16-1分数统计'!Q$3/130 -> 0.6230769231 | M13: ='环工16-1分数统计'!R13*'环工16-1分数统计'!R$3/130 -> 1.8 | N13: ='环工16-1分数统计'!S13*'环工16-1分数统计'!S$3/130 -> 3.115384615 | O13: ='环工16-1分数统计'!T13*'环工16-1分数统计'!T$3/130 -> 1.769230769 | P13: ='环工16-1分数统计'!U13*'环工16-1分数统计'!U$3/130 -> 2.061538462 | Q13: ='环工16-1分数统计'!V13*'环工16-1分数统计'!V$3/130 -> 1.938461538 | R13: ='环工16-1分数统计'!W13*'环工16-1分数统计'!W$3/130 -> 3.113846154 | S13: ='环工16-1分数统计'!X13*'环工16-1分数统计'!X$3/130 -> 0.7307692308 | T13: ='环工16-1分数统计'!Y13*'环工16-1分数统计'!Y$3/130 -> 1.415384615 | U13: ='环工16-1分数统计'!Z13*'环工16-1分数统计'!Z$3/130 -> 1.892307692 | V13: ='环工16-1分数统计'!AA13*'环工16-1分数统计'!AA$3/130 -> 1.938461538 | W13: ='环工16-1分数统计'!AB13*'环工16-1分数统计'!AB$3/130 -> 1.169230769 | X13: ='环工16-1分数统计'!AC13*'环工16-1分数统计'!AC$3/130 -> 1.415384615 | Y13: ='环工16-1分数统计'!AD13*'环工16-1分数统计'!AD$3/130 -> 1.338461538 | Z13: ='环工16-1分数统计'!AE13*'环工16-1分数统计'!AE$3/130 -> 1.556923077 | AA13: ='环工16-1分数统计'!AF13*'环工16-1分数统计'!AF$3/130 -> 0.7153846154 | AB13: ='环工16-1分数统计'!AG13*'环工16-1分数统计'!AG$3/130 -> 1.480769231 | AC13: ='环工16-1分数统计'!AH13*'环工16-1分数统计'!AH$3/130 -> 1.984615385 | AD13: ='环工16-1分数统计'!AI13*'环工16-1分数统计'!AI$3/130 -> 1.338461538 | AE13: ='环工16-1分数统计'!AJ13*'环工16-1分数统计'!AJ$3/130 -> 0.7 | AF13: ='环工16-1分数统计'!AK13*'环工16-1分数统计'!AK$3/130 -> 1.907692308 | AG13: ='环工16-1分数统计'!AL13*'环工16-1分数统计'!AL$3/130 -> 1.338461538 | AH13: ='环工16-1分数统计'!AM13*'环工16-1分数统计'!AM$3/130 -> 0.7730769231 | AI13: ='环工16-1分数统计'!AN13*'环工16-1分数统计'!AN$3/130 -> 2.076923077 | AJ13: ='环工16-1分数统计'!AO13*'环工16-1分数统计'!AO$3/130 -> 1.523076923 | AK13: ='环工16-1分数统计'!AP13*'环工16-1分数统计'!AP$3/130 -> 1.015384615 | AL13: ='环工16-1分数统计'!AQ13*'环工16-1分数统计'!AQ$3/130 -> 1.684615385 | AM13: ='环工16-1分数统计'!AR13*'环工16-1分数统计'!AR$3/130 -> 1.323076923 | AN13: ='环工16-1分数统计'!AS13*'环工16-1分数统计'!AS$3/130 -> 1.384615385 | AO13: ='环工16-1分数统计'!AT13*'环工16-1分数统计'!AT$3/130 -> 1.438461538 | AP13: ='环工16-1分数统计'!AU13*'环工16-1分数统计'!AU$3/130 -> 0.6923076923 | AQ13: ='环工16-1分数统计'!AV13*'环工16-1分数统计'!AV$3/130 -> 1.446153846 | AR13: ='环工16-1分数统计'!AW13*'环工16-1分数统计'!AW$3/130 -> 0.6307692308 | AS13: ='环工16-1分数统计'!AX13*'环工16-1分数统计'!AX$3/130 -> 2.369230769 | AT13: ='环工16-1分数统计'!AY13*'环工16-1分数统计'!AY$3/130 -> 1.476923077 | AU13: ='环工16-1分数统计'!AZ13*'环工16-1分数统计'!AZ$3/130 -> 1.415384615 | AV13: ='环工16-1分数统计'!BA13*'环工16-1分数统计'!BA$3/130 -> 1.076923077 | AW13: ='环工16-1分数统计'!BB13*'环工16-1分数统计'!BB$3/130 -> 1.015384615 | AX13: ='环工16-1分数统计'!BC13*'环工16-1分数统计'!BC$3/130 -> 1.938461538 | AY13: ='环工16-1分数统计'!BD13*'环工16-1分数统计'!BD$3/130 -> 1.05 | AZ13: ='环工16-1分数统计'!BE13*'环工16-1分数统计'!BE$3/130 -> 1.169230769 | BA13: ='环工16-1分数统计'!BF13*'环工16-1分数统计'!BF$3/130 -> 0.7153846154 | BB13: ='环工16-1分数统计'!BG13*'环工16-1分数统计'!BG$3/130 -> 0.35 | BC13: ='环工16-1分数统计'!BH13*'环工16-1分数统计'!BH$3/130 -> 1.4 | BD13: ='环工16-1分数统计'!BI13*'环工16-1分数统计'!BI$3/130 -> 1.615384615 | BE13: ='环工16-1分数统计'!BJ13*'环工16-1分数统计'!BJ$3/130 -> 0 | BF13: ='环工16-1分数统计'!BK13*'环工16-1分数统计'!BK$3/130 -> 0.6384615385 | BG13: 81.20153846 | BH13: 56.84107692 | BI13: ='环工16-1两年综测'!BD13 -> 92.99754494 | BJ13: ='环工16-1两年综测'!BE13 -> 94.04100668 | BK13: ='环工16-1两年综测'!BF13 -> 100.0105412 | BL13: 287.0490928 | BM13: 83.03333879 | BN13: 16.60666776 | BO13: 73.44774468
A14: 闫玺宇 | B14: 2016010610 | C14: ='环工16-1分数统计'!H14*'环工16-1分数统计'!H$3/130 -> 0.5538461538 | D14: ='环工16-1分数统计'!I14*'环工16-1分数统计'!I$3/130 -> 1.338461538 | E14: ='环工16-1分数统计'!J14*'环工16-1分数统计'!J$3/130 -> 2.861538462 | F14: ='环工16-1分数统计'!K14*'环工16-1分数统计'!K$3/130 -> 2.25 | G14: ='环工16-1分数统计'!L14*'环工16-1分数统计'!L$3/130 -> 1.307692308 | H14: ='环工16-1分数统计'!M14*'环工16-1分数统计'!M$3/130 -> 1.015384615 | I14: ='环工16-1分数统计'!N14*'环工16-1分数统计'!N$3/130 -> 2.470769231 | J14: ='环工16-1分数统计'!O14*'环工16-1分数统计'!O$3/130 -> 0.6846153846 | K14: ='环工16-1分数统计'!P14*'环工16-1分数统计'!P$3/130 -> 1.288461538 | L14: ='环工16-1分数统计'!Q14*'环工16-1分数统计'!Q$3/130 -> 0.5769230769 | M14: ='环工16-1分数统计'!R14*'环工16-1分数统计'!R$3/130 -> 1.407692308 | N14: ='环工16-1分数统计'!S14*'环工16-1分数统计'!S$3/130 -> 2.307692308 | O14: ='环工16-1分数统计'!T14*'环工16-1分数统计'!T$3/130 -> 1.480769231 | P14: ='环工16-1分数统计'!U14*'环工16-1分数统计'!U$3/130 -> 2 | Q14: ='环工16-1分数统计'!V14*'环工16-1分数统计'!V$3/130 -> 1.569230769 | R14: ='环工16-1分数统计'!W14*'环工16-1分数统计'!W$3/130 -> 2.707692308 | S14: ='环工16-1分数统计'!X14*'环工16-1分数统计'!X$3/130 -> 0.7384615385 | T14: ='环工16-1分数统计'!Y14*'环工16-1分数统计'!Y$3/130 -> 1.384615385 | U14: ='环工16-1分数统计'!Z14*'环工16-1分数统计'!Z$3/130 -> 1.407692308 | V14: ='环工16-1分数统计'!AA14*'环工16-1分数统计'!AA$3/130 -> 1.384615385 | W14: ='环工16-1分数统计'!AB14*'环工16-1分数统计'!AB$3/130 -> 1.030769231 | X14: ='环工16-1分数统计'!AC14*'环工16-1分数统计'!AC$3/130 -> 1.2 | Y14: ='环工16-1分数统计'!AD14*'环工16-1分数统计'!AD$3/130 -> 1.169230769 | Z14: ='环工16-1分数统计'!AE14*'环工16-1分数统计'!AE$3/130 -> 1.387692308 | AA14: ='环工16-1分数统计'!AF14*'环工16-1分数统计'!AF$3/130 -> 0.6923076923 | AB14: ='环工16-1分数统计'!AG14*'环工16-1分数统计'!AG$3/130 -> 1.596153846 | AC14: ='环工16-1分数统计'!AH14*'环工16-1分数统计'!AH$3/130 -> 1.915384615 | AD14: ='环工16-1分数统计'!AI14*'环工16-1分数统计'!AI$3/130 -> 1.230769231 | AE14: ='环工16-1分数统计'!AJ14*'环工16-1分数统计'!AJ$3/130 -> 0.7 | AF14: ='环工16-1分数统计'!AK14*'环工16-1分数统计'!AK$3/130 -> 1.753846154 | AG14: ='环工16-1分数统计'!AL14*'环工16-1分数统计'!AL$3/130 -> 1.276923077 | AH14: ='环工16-1分数统计'!AM14*'环工16-1分数统计'!AM$3/130 -> 0.6923076923 | AI14: ='环工16-1分数统计'!AN14*'环工16-1分数统计'!AN$3/130 -> 1.892307692 | AJ14: ='环工16-1分数统计'!AO14*'环工16-1分数统计'!AO$3/130 -> 2.169230769 | AK14: ='环工16-1分数统计'!AP14*'环工16-1分数统计'!AP$3/130 -> 0.9923076923 | AL14: ='环工16-1分数统计'!AQ14*'环工16-1分数统计'!AQ$3/130 -> 1.384615385 | AM14: ='环工16-1分数统计'!AR14*'环工16-1分数统计'!AR$3/130 -> 1.307692308 | AN14: ='环工16-1分数统计'!AS14*'环工16-1分数统计'!AS$3/130 -> 1.323076923 | AO14: ='环工16-1分数统计'!AT14*'环工16-1分数统计'!AT$3/130 -> 1.218461538 | AP14: ='环工16-1分数统计'!AU14*'环工16-1分数统计'!AU$3/130 -> 0.6769230769 | AQ14: ='环工16-1分数统计'!AV14*'环工16-1分数统计'!AV$3/130 -> 1.230769231 | AR14: ='环工16-1分数统计'!AW14*'环工16-1分数统计'!AW$3/130 -> 0.5230769231 | AS14: ='环工16-1分数统计'!AX14*'环工16-1分数统计'!AX$3/130 -> 1.846153846 | AT14: ='环工16-1分数统计'!AY14*'环工16-1分数统计'!AY$3/130 -> 1.307692308 | AU14: ='环工16-1分数统计'!AZ14*'环工16-1分数统计'!AZ$3/130 -> 1.030769231 | AV14: ='环工16-1分数统计'!BA14*'环工16-1分数统计'!BA$3/130 -> 1.092307692 | AW14: ='环工16-1分数统计'!BB14*'环工16-1分数统计'!BB$3/130 -> 0.9346153846 | AX14: ='环工16-1分数统计'!BC14*'环工16-1分数统计'!BC$3/130 -> 1.315384615 | AY14: ='环工16-1分数统计'!BD14*'环工16-1分数统计'!BD$3/130 -> 0.9807692308 | AZ14: ='环工16-1分数统计'!BE14*'环工16-1分数统计'!BE$3/130 -> 1.046153846 | BA14: ='环工16-1分数统计'!BF14*'环工16-1分数统计'!BF$3/130 -> 0.6 | BB14: ='环工16-1分数统计'!BG14*'环工16-1分数统计'!BG$3/130 -> 0.35 | BC14: ='环工16-1分数统计'!BH14*'环工16-1分数统计'!BH$3/130 -> 0.9230769231 | BD14: ='环工16-1分数统计'!BI14*'环工16-1分数统计'!BI$3/130 -> 1.230769231 | BE14: ='环工16-1分数统计'!BJ14*'环工16-1分数统计'!BJ$3/130 -> 1.476923077 | BF14: ='环工16-1分数统计'!BK14*'环工16-1分数统计'!BK$3/130 -> 0.5461538462 | BG14: 72.78076923 | BH14: 50.94653846 | BI14: ='环工16-1两年综测'!BD14 -> 82.65141302 | BJ14: ='环工16-1两年综测'!BE14 -> 84.65174204 | BK14: ='环工16-1两年综测'!BF14 -> 80.2561021 | BL14: 247.5592572 | BM14: 71.61030006 | BN14: 14.32206001 | BO14: 65.26859847
A15: 杨玉凤 | B15: 2016010611 | C15: ='环工16-1分数统计'!H15*'环工16-1分数统计'!H$3/130 -> 0.6384615385 | D15: ='环工16-1分数统计'!I15*'环工16-1分数统计'!I$3/130 -> 1.4 | E15: ='环工16-1分数统计'!J15*'环工16-1分数统计'!J$3/130 -> 2.769230769 | F15: ='环工16-1分数统计'!K15*'环工16-1分数统计'!K$3/130 -> 2.146153846 | G15: ='环工16-1分数统计'!L15*'环工16-1分数统计'!L$3/130 -> 1.353846154 | H15: ='环工16-1分数统计'!M15*'环工16-1分数统计'!M$3/130 -> 1.169230769 | I15: ='环工16-1分数统计'!N15*'环工16-1分数统计'!N$3/130 -> 2.098461538 | J15: ='环工16-1分数统计'!O15*'环工16-1分数统计'!O$3/130 -> 0.6461538462 | K15: ='环工16-1分数统计'!P15*'环工16-1分数统计'!P$3/130 -> 1.596153846 | L15: ='环工16-1分数统计'!Q15*'环工16-1分数统计'!Q$3/130 -> 0.5384615385 | M15: ='环工16-1分数统计'!R15*'环工16-1分数统计'!R$3/130 -> 1.546153846 | N15: ='环工16-1分数统计'!S15*'环工16-1分数统计'!S$3/130 -> 3.192307692 | O15: ='环工16-1分数统计'!T15*'环工16-1分数统计'!T$3/130 -> 1.653846154 | P15: ='环工16-1分数统计'!U15*'环工16-1分数统计'!U$3/130 -> 2.215384615 | Q15: ='环工16-1分数统计'!V15*'环工16-1分数统计'!V$3/130 -> 1.384615385 | R15: ='环工16-1分数统计'!W15*'环工16-1分数统计'!W$3/130 -> 2.707692308 | S15: ='环工16-1分数统计'!X15*'环工16-1分数统计'!X$3/130 -> 0.6923076923 | T15: ='环工16-1分数统计'!Y15*'环工16-1分数统计'!Y$3/130 -> 1.430769231 | U15: ='环工16-1分数统计'!Z15*'环工16-1分数统计'!Z$3/130 -> 1.407692308 | V15: ='环工16-1分数统计'!AA15*'环工16-1分数统计'!AA$3/130 -> 1.476923077 | W15: ='环工16-1分数统计'!AB15*'环工16-1分数统计'!AB$3/130 -> 1.215384615 | X15: ='环工16-1分数统计'!AC15*'环工16-1分数统计'!AC$3/130 -> 1.2 | Y15: ='环工16-1分数统计'!AD15*'环工16-1分数统计'!AD$3/130 -> 1.184615385 | Z15: ='环工16-1分数统计'!AE15*'环工16-1分数统计'!AE$3/130 -> 1.252307692 | AA15: ='环工16-1分数统计'!AF15*'环工16-1分数统计'!AF$3/130 -> 0.7076923077 | AB15: ='环工16-1分数统计'!AG15*'环工16-1分数统计'!AG$3/130 -> 1.519230769 | AC15: ='环工16-1分数统计'!AH15*'环工16-1分数统计'!AH$3/130 -> 1.569230769 | AD15: ='环工16-1分数统计'!AI15*'环工16-1分数统计'!AI$3/130 -> 1.292307692 | AE15: ='环工16-1分数统计'!AJ15*'环工16-1分数统计'!AJ$3/130 -> 0.6692307692 | AF15: ='环工16-1分数统计'!AK15*'环工16-1分数统计'!AK$3/130 -> 1.846153846 | AG15: ='环工16-1分数统计'!AL15*'环工16-1分数统计'!AL$3/130 -> 1.353846154 | AH15: ='环工16-1分数统计'!AM15*'环工16-1分数统计'!AM$3/130 -> 0.7384615385 | AI15: ='环工16-1分数统计'!AN15*'环工16-1分数统计'!AN$3/130 -> 1.523076923 | AJ15: ='环工16-1分数统计'!AO15*'环工16-1分数统计'!AO$3/130 -> 1.430769231 | AK15: ='环工16-1分数统计'!AP15*'环工16-1分数统计'!AP$3/130 -> 1.015384615 | AL15: ='环工16-1分数统计'!AQ15*'环工16-1分数统计'!AQ$3/130 -> 1.546153846 | AM15: ='环工16-1分数统计'!AR15*'环工16-1分数统计'!AR$3/130 -> 1.292307692 | AN15: ='环工16-1分数统计'!AS15*'环工16-1分数统计'!AS$3/130 -> 1.4 | AO15: ='环工16-1分数统计'!AT15*'环工16-1分数统计'!AT$3/130 -> 1.184615385 | AP15: ='环工16-1分数统计'!AU15*'环工16-1分数统计'!AU$3/130 -> 0.5923076923 | AQ15: ='环工16-1分数统计'!AV15*'环工16-1分数统计'!AV$3/130 -> 1.276923077 | AR15: ='环工16-1分数统计'!AW15*'环工16-1分数统计'!AW$3/130 -> 0.5846153846 | AS15: ='环工16-1分数统计'!AX15*'环工16-1分数统计'!AX$3/130 -> 1.692307692 | AT15: ='环工16-1分数统计'!AY15*'环工16-1分数统计'!AY$3/130 -> 1.046153846 | AU15: ='环工16-1分数统计'!AZ15*'环工16-1分数统计'!AZ$3/130 -> 1.307692308 | AV15: ='环工16-1分数统计'!BA15*'环工16-1分数统计'!BA$3/130 -> 0.9692307692 | AW15: ='环工16-1分数统计'!BB15*'环工16-1分数统计'!BB$3/130 -> 0.9692307692 | AX15: ='环工16-1分数统计'!BC15*'环工16-1分数统计'!BC$3/130 -> 1.8 | AY15: ='环工16-1分数统计'!BD15*'环工16-1分数统计'!BD$3/130 -> 0.9923076923 | AZ15: ='环工16-1分数统计'!BE15*'环工16-1分数统计'!BE$3/130 -> 1.2 | BA15: ='环工16-1分数统计'!BF15*'环工16-1分数统计'!BF$3/130 -> 0.7 | BB15: ='环工16-1分数统计'!BG15*'环工16-1分数统计'!BG$3/130 -> 0.3461538462 | BC15: ='环工16-1分数统计'!BH15*'环工16-1分数统计'!BH$3/130 -> 1.246153846 | BD15: ='环工16-1分数统计'!BI15*'环工16-1分数统计'!BI$3/130 -> 1.557692308 | BE15: ='环工16-1分数统计'!BJ15*'环工16-1分数统计'!BJ$3/130 -> 1.730769231 | BF15: ='环工16-1分数统计'!BK15*'环工16-1分数统计'!BK$3/130 -> 0.5846153846 | BG15: 74.60076923 | BH15: 52.22053846 | BI15: ='环工16-1两年综测'!BD15 -> 80.63928761 | BJ15: ='环工16-1两年综测'!BE15 -> 82.41473292 | BK15: ='环工16-1两年综测'!BF15 -> 83.49705235 | BL15: 246.5510729 | BM15: 71.31866735 | BN15: 14.26373347 | BO15: 66.48427193
A16: 游恋 | B16: 2016010612 | C16: ='环工16-1分数统计'!H16*'环工16-1分数统计'!H$3/130 -> 0.5923076923 | D16: ='环工16-1分数统计'!I16*'环工16-1分数统计'!I$3/130 -> 1.338461538 | E16: ='环工16-1分数统计'!J16*'环工16-1分数统计'!J$3/130 -> 3.876923077 | F16: ='环工16-1分数统计'!K16*'环工16-1分数统计'!K$3/130 -> 3.219230769 | G16: ='环工16-1分数统计'!L16*'环工16-1分数统计'!L$3/130 -> 1.276923077 | H16: ='环工16-1分数统计'!M16*'环工16-1分数统计'!M$3/130 -> 1.2 | I16: ='环工16-1分数统计'!N16*'环工16-1分数统计'!N$3/130 -> 1.938461538 | J16: ='环工16-1分数统计'!O16*'环工16-1分数统计'!O$3/130 -> 0.6538461538 | K16: ='环工16-1分数统计'!P16*'环工16-1分数统计'!P$3/130 -> 1.673076923 | L16: ='环工16-1分数统计'!Q16*'环工16-1分数统计'!Q$3/130 -> 0.7076923077 | M16: ='环工16-1分数统计'!R16*'环工16-1分数统计'!R$3/130 -> 1.753846154 | N16: ='环工16-1分数统计'!S16*'环工16-1分数统计'!S$3/130 -> 3.769230769 | O16: ='环工16-1分数统计'!T16*'环工16-1分数统计'!T$3/130 -> 1.75 | P16: ='环工16-1分数统计'!U16*'环工16-1分数统计'!U$3/130 -> 2.8 | Q16: ='环工16-1分数统计'!V16*'环工16-1分数统计'!V$3/130 -> 2.192307692 | R16: ='环工16-1分数统计'!W16*'环工16-1分数统计'!W$3/130 -> 1.876923077 | S16: ='环工16-1分数统计'!X16*'环工16-1分数统计'!X$3/130 -> 0.7153846154 | T16: ='环工16-1分数统计'!Y16*'环工16-1分数统计'!Y$3/130 -> 1.430769231 | U16: ='环工16-1分数统计'!Z16*'环工16-1分数统计'!Z$3/130 -> 1.846153846 | V16: ='环工16-1分数统计'!AA16*'环工16-1分数统计'!AA$3/130 -> 2.1 | W16: ='环工16-1分数统计'!AB16*'环工16-1分数统计'!AB$3/130 -> 1.323076923 | X16: ='环工16-1分数统计'!AC16*'环工16-1分数统计'!AC$3/130 -> 1.246153846 | Y16: ='环工16-1分数统计'!AD16*'环工16-1分数统计'!AD$3/130 -> 1.215384615 | Z16: ='环工16-1分数统计'!AE16*'环工16-1分数统计'!AE$3/130 -> 1.138461538 | AA16: ='环工16-1分数统计'!AF16*'环工16-1分数统计'!AF$3/130 -> 0.7 | AB16: ='环工16-1分数统计'!AG16*'环工16-1分数统计'!AG$3/130 -> 1.538461538 | AC16: ='环工16-1分数统计'!AH16*'环工16-1分数统计'!AH$3/130 -> 1.938461538 | AD16: ='环工16-1分数统计'!AI16*'环工16-1分数统计'!AI$3/130 -> 1.384615385 | AE16: ='环工16-1分数统计'!AJ16*'环工16-1分数统计'!AJ$3/130 -> 0.6769230769 | AF16: ='环工16-1分数统计'!AK16*'环工16-1分数统计'!AK$3/130 -> 2.584615385 | AG16: ='环工16-1分数统计'!AL16*'环工16-1分数统计'!AL$3/130 -> 1.369230769 | AH16: ='环工16-1分数统计'!AM16*'环工16-1分数统计'!AM$3/130 -> 0.9692307692 | AI16: ='环工16-1分数统计'!AN16*'环工16-1分数统计'!AN$3/130 -> 1.984615385 | AJ16: ='环工16-1分数统计'!AO16*'环工16-1分数统计'!AO$3/130 -> 1.892307692 | AK16: ='环工16-1分数统计'!AP16*'环工16-1分数统计'!AP$3/130 -> 1.038461538 | AL16: ='环工16-1分数统计'!AQ16*'环工16-1分数统计'!AQ$3/130 -> 2.146153846 | AM16: ='环工16-1分数统计'!AR16*'环工16-1分数统计'!AR$3/130 -> 1.338461538 | AN16: ='环工16-1分数统计'!AS16*'环工16-1分数统计'!AS$3/130 -> 1.384615385 | AO16: ='环工16-1分数统计'!AT16*'环工16-1分数统计'!AT$3/130 -> 1.230769231 | AP16: ='环工16-1分数统计'!AU16*'环工16-1分数统计'!AU$3/130 -> 0.7230769231 | AQ16: ='环工16-1分数统计'!AV16*'环工16-1分数统计'!AV$3/130 -> 1.338461538 | AR16: ='环工16-1分数统计'!AW16*'环工16-1分数统计'!AW$3/130 -> 0.6538461538 | AS16: ='环工16-1分数统计'!AX16*'环工16-1分数统计'!AX$3/130 -> 2.8 | AT16: ='环工16-1分数统计'!AY16*'环工16-1分数统计'!AY$3/130 -> 1.307692308 | AU16: ='环工16-1分数统计'!AZ16*'环工16-1分数统计'!AZ$3/130 -> 1.338461538 | AV16: ='环工16-1分数统计'!BA16*'环工16-1分数统计'!BA$3/130 -> 1.492307692 | AW16: ='环工16-1分数统计'!BB16*'环工16-1分数统计'!BB$3/130 -> 1.015384615 | AX16: ='环工16-1分数统计'!BC16*'环工16-1分数统计'!BC$3/130 -> 1.938461538 | AY16: ='环工16-1分数统计'!BD16*'环工16-1分数统计'!BD$3/130 -> 1.05 | AZ16: ='环工16-1分数统计'!BE16*'环工16-1分数统计'!BE$3/130 -> 1.430769231 | BA16: ='环工16-1分数统计'!BF16*'环工16-1分数统计'!BF$3/130 -> 0.6923076923 | BB16: ='环工16-1分数统计'!BG16*'环工16-1分数统计'!BG$3/130 -> 0.35 | BC16: ='环工16-1分数统计'!BH16*'环工16-1分数统计'!BH$3/130 -> 1.446153846 | BD16: ='环工16-1分数统计'!BI16*'环工16-1分数统计'!BI$3/130 -> 1.634615385 | BE16: ='环工16-1分数统计'!BJ16*'环工16-1分数统计'!BJ$3/130 -> 2.215384615 | BF16: ='环工16-1分数统计'!BK16*'环工16-1分数统计'!BK$3/130 -> 0.6846153846 | BG16: 85.92307692 | BH16: 60.14615385 | BI16: ='环工16-1两年综测'!BD16 -> 91.16873315 | BJ16: ='环工16-1两年综测'!BE16 -> 98.03067941 | BK16: ='环工16-1两年综测'!BF16 -> 94.45784191 | BL16: 283.6572545 | BM16: 82.05219769 | BN16: 16.41043954 | BO16: 76.55659338
A17: 余美琪 | B17: 2016010613 | C17: ='环工16-1分数统计'!H17*'环工16-1分数统计'!H$3/130 -> 0.6230769231 | D17: ='环工16-1分数统计'!I17*'环工16-1分数统计'!I$3/130 -> 1.4 | E17: ='环工16-1分数统计'!J17*'环工16-1分数统计'!J$3/130 -> 3.876923077 | F17: ='环工16-1分数统计'!K17*'环工16-1分数统计'!K$3/130 -> 2.803846154 | G17: ='环工16-1分数统计'!L17*'环工16-1分数统计'!L$3/130 -> 1.184615385 | H17: ='环工16-1分数统计'!M17*'环工16-1分数统计'!M$3/130 -> 1.107692308 | I17: ='环工16-1分数统计'!N17*'环工16-1分数统计'!N$3/130 -> 3.184615385 | J17: ='环工16-1分数统计'!O17*'环工16-1分数统计'!O$3/130 -> 0.6076923077 | K17: ='环工16-1分数统计'!P17*'环工16-1分数统计'!P$3/130 -> 1.403846154 | L17: ='环工16-1分数统计'!Q17*'环工16-1分数统计'!Q$3/130 -> 0.5769230769 | M17: ='环工16-1分数统计'!R17*'环工16-1分数统计'!R$3/130 -> 1.569230769 | N17: ='环工16-1分数统计'!S17*'环工16-1分数统计'!S$3/130 -> 3.269230769 | O17: ='环工16-1分数统计'!T17*'环工16-1分数统计'!T$3/130 -> 1.653846154 | P17: ='环工16-1分数统计'!U17*'环工16-1分数统计'!U$3/130 -> 2.646153846 | Q17: ='环工16-1分数统计'!V17*'环工16-1分数统计'!V$3/130 -> 2.053846154 | R17: ='环工16-1分数统计'!W17*'环工16-1分数统计'!W$3/130 -> 3.078461538 | S17: ='环工16-1分数统计'!X17*'环工16-1分数统计'!X$3/130 -> 0.6538461538 | T17: ='环工16-1分数统计'!Y17*'环工16-1分数统计'!Y$3/130 -> 1.369230769 | U17: ='环工16-1分数统计'!Z17*'环工16-1分数统计'!Z$3/130 -> 1.846153846 | V17: ='环工16-1分数统计'!AA17*'环工16-1分数统计'!AA$3/130 -> 2.076923077 | W17: ='环工16-1分数统计'!AB17*'环工16-1分数统计'!AB$3/130 -> 1.323076923 | X17: ='环工16-1分数统计'!AC17*'环工16-1分数统计'!AC$3/130 -> 1.353846154 | Y17: ='环工16-1分数统计'!AD17*'环工16-1分数统计'!AD$3/130 -> 1.292307692 | Z17: ='环工16-1分数统计'!AE17*'环工16-1分数统计'!AE$3/130 -> 1.486153846 | AA17: ='环工16-1分数统计'!AF17*'环工16-1分数统计'!AF$3/130 -> 0.6846153846 | AB17: ='环工16-1分数统计'!AG17*'环工16-1分数统计'!AG$3/130 -> 1.442307692 | AC17: ='环工16-1分数统计'!AH17*'环工16-1分数统计'!AH$3/130 -> 1.938461538 | AD17: ='环工16-1分数统计'!AI17*'环工16-1分数统计'!AI$3/130 -> 1.353846154 | AE17: ='环工16-1分数统计'!AJ17*'环工16-1分数统计'!AJ$3/130 -> 0.6692307692 | AF17: ='环工16-1分数统计'!AK17*'环工16-1分数统计'!AK$3/130 -> 2.461538462 | AG17: ='环工16-1分数统计'!AL17*'环工16-1分数统计'!AL$3/130 -> 1.415384615 | AH17: ='环工16-1分数统计'!AM17*'环工16-1分数统计'!AM$3/130 -> 0.9 | AI17: ='环工16-1分数统计'!AN17*'环工16-1分数统计'!AN$3/130 -> 2.007692308 | AJ17: ='环工16-1分数统计'!AO17*'环工16-1分数统计'!AO$3/130 -> 1.915384615 | AK17: ='环工16-1分数统计'!AP17*'环工16-1分数统计'!AP$3/130 -> 1.026923077 | AL17: ='环工16-1分数统计'!AQ17*'环工16-1分数统计'!AQ$3/130 -> 2.007692308 | AM17: ='环工16-1分数统计'!AR17*'环工16-1分数统计'!AR$3/130 -> 1.338461538 | AN17: ='环工16-1分数统计'!AS17*'环工16-1分数统计'!AS$3/130 -> 1.415384615 | AO17: ='环工16-1分数统计'!AT17*'环工16-1分数统计'!AT$3/130 -> 1.344615385 | AP17: ='环工16-1分数统计'!AU17*'环工16-1分数统计'!AU$3/130 -> 0.7153846154 | AQ17: ='环工16-1分数统计'!AV17*'环工16-1分数统计'!AV$3/130 -> 1.384615385 | AR17: ='环工16-1分数统计'!AW17*'环工16-1分数统计'!AW$3/130 -> 0.6153846154 | AS17: ='环工16-1分数统计'!AX17*'环工16-1分数统计'!AX$3/130 -> 2.830769231 | AT17: ='环工16-1分数统计'!AY17*'环工16-1分数统计'!AY$3/130 -> 1.446153846 | AU17: ='环工16-1分数统计'!AZ17*'环工16-1分数统计'!AZ$3/130 -> 1.338461538 | AV17: ='环工16-1分数统计'!BA17*'环工16-1分数统计'!BA$3/130 -> 1.4 | AW17: ='环工16-1分数统计'!BB17*'环工16-1分数统计'!BB$3/130 -> 1.003846154 | AX17: ='环工16-1分数统计'!BC17*'环工16-1分数统计'!BC$3/130 -> 2.030769231 | AY17: ='环工16-1分数统计'!BD17*'环工16-1分数统计'!BD$3/130 -> 1.026923077 | AZ17: ='环工16-1分数统计'!BE17*'环工16-1分数统计'!BE$3/130 -> 1.107692308 | BA17: ='环工16-1分数统计'!BF17*'环工16-1分数统计'!BF$3/130 -> 0.7384615385 | BB17: ='环工16-1分数统计'!BG17*'环工16-1分数统计'!BG$3/130 -> 0.35 | BC17: ='环工16-1分数统计'!BH17*'环工16-1分数统计'!BH$3/130 -> 1.430769231 | BD17: ='环工16-1分数统计'!BI17*'环工16-1分数统计'!BI$3/130 -> 1.730769231 | BE17: ='环工16-1分数统计'!BJ17*'环工16-1分数统计'!BJ$3/130 -> 2.076923077 | BF17: ='环工16-1分数统计'!BK17*'环工16-1分数统计'!BK$3/130 -> 0.6461538462 | BG17: 86.23615385 | BH17: 60.36530769 | BI17: ='环工16-1两年综测'!BD17 -> 89.371215 | BJ17: ='环工16-1两年综测'!BE17 -> 90.0143683 | BK17: ='环工16-1两年综测'!BF17 -> 96.2065859 | BL17: 275.5921692 | BM17: 79.71924847 | BN17: 15.94384969 | BO17: 76.30915739
A18: 仲英杰 | B18: 2016010614 | C18: ='环工16-1分数统计'!H18*'环工16-1分数统计'!H$3/130 -> 0.6923076923 | D18: ='环工16-1分数统计'!I18*'环工16-1分数统计'!I$3/130 -> 1.446153846 | E18: ='环工16-1分数统计'!J18*'环工16-1分数统计'!J$3/130 -> 4.523076923 | F18: ='环工16-1分数统计'!K18*'环工16-1分数统计'!K$3/130 -> 3.219230769 | G18: ='环工16-1分数统计'!L18*'环工16-1分数统计'!L$3/130 -> 1.353846154 | H18: ='环工16-1分数统计'!M18*'环工16-1分数统计'!M$3/130 -> 1.323076923 | I18: ='环工16-1分数统计'!N18*'环工16-1分数统计'!N$3/130 -> 2.910769231 | J18: ='环工16-1分数统计'!O18*'环工16-1分数统计'!O$3/130 -> 0.6076923077 | K18: ='环工16-1分数统计'!P18*'环工16-1分数统计'!P$3/130 -> 1.730769231 | L18: ='环工16-1分数统计'!Q18*'环工16-1分数统计'!Q$3/130 -> 0.6307692308 | M18: ='环工16-1分数统计'!R18*'环工16-1分数统计'!R$3/130 -> 1.915384615 | N18: ='环工16-1分数统计'!S18*'环工16-1分数统计'!S$3/130 -> 3.576923077 | O18: ='环工16-1分数统计'!T18*'环工16-1分数统计'!T$3/130 -> 1.730769231 | P18: ='环工16-1分数统计'!U18*'环工16-1分数统计'!U$3/130 -> 2.8 | Q18: ='环工16-1分数统计'!V18*'环工16-1分数统计'!V$3/130 -> 2.146153846 | R18: ='环工16-1分数统计'!W18*'环工16-1分数统计'!W$3/130 -> 2.944615385 | S18: ='环工16-1分数统计'!X18*'环工16-1分数统计'!X$3/130 -> 0.7153846154 | T18: ='环工16-1分数统计'!Y18*'环工16-1分数统计'!Y$3/130 -> 1.384615385 | U18: ='环工16-1分数统计'!Z18*'环工16-1分数统计'!Z$3/130 -> 1.984615385 | V18: ='环工16-1分数统计'!AA18*'环工16-1分数统计'!AA$3/130 -> 2.1 | W18: ='环工16-1分数统计'!AB18*'环工16-1分数统计'!AB$3/130 -> 1.323076923 | X18: ='环工16-1分数统计'!AC18*'环工16-1分数统计'!AC$3/130 -> 1.307692308 | Y18: ='环工16-1分数统计'!AD18*'环工16-1分数统计'!AD$3/130 -> 1.338461538 | Z18: ='环工16-1分数统计'!AE18*'环工16-1分数统计'!AE$3/130 -> 1.590769231 | AA18: ='环工16-1分数统计'!AF18*'环工16-1分数统计'!AF$3/130 -> 0.7153846154 | AB18: ='环工16-1分数统计'!AG18*'环工16-1分数统计'!AG$3/130 -> 1.5 | AC18: ='环工16-1分数统计'!AH18*'环工16-1分数统计'!AH$3/130 -> 1.984615385 | AD18: ='环工16-1分数统计'!AI18*'环工16-1分数统计'!AI$3/130 -> 1.384615385 | AE18: ='环工16-1分数统计'!AJ18*'环工16-1分数统计'!AJ$3/130 -> 0.6923076923 | AF18: ='环工16-1分数统计'!AK18*'环工16-1分数统计'!AK$3/130 -> 2.276923077 | AG18: ='环工16-1分数统计'!AL18*'环工16-1分数统计'!AL$3/130 -> 1.307692308 | AH18: ='环工16-1分数统计'!AM18*'环工16-1分数统计'!AM$3/130 -> 0.9461538462 | AI18: ='环工16-1分数统计'!AN18*'环工16-1分数统计'!AN$3/130 -> 1.869230769 | AJ18: ='环工16-1分数统计'!AO18*'环工16-1分数统计'!AO$3/130 -> 1.846153846 | AK18: ='环工16-1分数统计'!AP18*'环工16-1分数统计'!AP$3/130 -> 1.026923077 | AL18: ='环工16-1分数统计'!AQ18*'环工16-1分数统计'!AQ$3/130 -> 1.984615385 | AM18: ='环工16-1分数统计'!AR18*'环工16-1分数统计'!AR$3/130 -> 1.307692308 | AN18: ='环工16-1分数统计'!AS18*'环工16-1分数统计'!AS$3/130 -> 1.430769231 | AO18: ='环工16-1分数统计'!AT18*'环工16-1分数统计'!AT$3/130 -> 1.523076923 | AP18: ='环工16-1分数统计'!AU18*'环工16-1分数统计'!AU$3/130 -> 0.6307692308 | AQ18: ='环工16-1分数统计'!AV18*'环工16-1分数统计'!AV$3/130 -> 1.4 | AR18: ='环工16-1分数统计'!AW18*'环工16-1分数统计'!AW$3/130 -> 0.6461538462 | AS18: ='环工16-1分数统计'!AX18*'环工16-1分数统计'!AX$3/130 -> 2.430769231 | AT18: ='环工16-1分数统计'!AY18*'环工16-1分数统计'!AY$3/130 -> 1.276923077 | AU18: ='环工16-1分数统计'!AZ18*'环工16-1分数统计'!AZ$3/130 -> 1.415384615 | AV18: ='环工16-1分数统计'!BA18*'环工16-1分数统计'!BA$3/130 -> 1.338461538 | AW18: ='环工16-1分数统计'!BB18*'环工16-1分数统计'!BB$3/130 -> 1.038461538 | AX18: ='环工16-1分数统计'!BC18*'环工16-1分数统计'!BC$3/130 -> 2.192307692 | AY18: ='环工16-1分数统计'!BD18*'环工16-1分数统计'!BD$3/130 -> 1.061538462 | AZ18: ='环工16-1分数统计'!BE18*'环工16-1分数统计'!BE$3/130 -> 1.353846154 | BA18: ='环工16-1分数统计'!BF18*'环工16-1分数统计'!BF$3/130 -> 0.6923076923 | BB18: ='环工16-1分数统计'!BG18*'环工16-1分数统计'!BG$3/130 -> 0.3615384615 | BC18: ='环工16-1分数统计'!BH18*'环工16-1分数统计'!BH$3/130 -> 1.4 | BD18: ='环工16-1分数统计'!BI18*'环工16-1分数统计'!BI$3/130 -> 1.807692308 | BE18: ='环工16-1分数统计'!BJ18*'环工16-1分数统计'!BJ$3/130 -> 2.169230769 | BF18: ='环工16-1分数统计'!BK18*'环工16-1分数统计'!BK$3/130 -> 0.6615384615 | BG18: 88.96923077 | BH18: 62.27846154 | BI18: ='环工16-1两年综测'!BD18 -> 98.43992237 | BJ18: ='环工16-1两年综测'!BE18 -> 105.2956936 | BK18: ='环工16-1两年综测'!BF18 -> 111.153582 | BL18: 314.8891979 | BM18: 91.08651483 | BN18: 18.21730297 | BO18: 80.4957645
A19: 陈闯 | B19: 2016010617 | C19: ='环工16-1分数统计'!H19*'环工16-1分数统计'!H$3/130 -> 0.6384615385 | D19: ='环工16-1分数统计'!I19*'环工16-1分数统计'!I$3/130 -> 1.446153846 | E19: ='环工16-1分数统计'!J19*'环工16-1分数统计'!J$3/130 -> 4.2 | F19: ='环工16-1分数统计'!K19*'环工16-1分数统计'!K$3/130 -> 3.115384615 | G19: ='环工16-1分数统计'!L19*'环工16-1分数统计'!L$3/130 -> 1.369230769 | H19: ='环工16-1分数统计'!M19*'环工16-1分数统计'!M$3/130 -> 1.2 | I19: ='环工16-1分数统计'!N19*'环工16-1分数统计'!N$3/130 -> 2.538461538 | J19: ='环工16-1分数统计'!O19*'环工16-1分数统计'!O$3/130 -> 0.7230769231 | K19: ='环工16-1分数统计'!P19*'环工16-1分数统计'!P$3/130 -> 1.634615385 | L19: ='环工16-1分数统计'!Q19*'环工16-1分数统计'!Q$3/130 -> 0.6230769231 | M19: ='环工16-1分数统计'!R19*'环工16-1分数统计'!R$3/130 -> 1.569230769 | N19: ='环工16-1分数统计'!S19*'环工16-1分数统计'!S$3/130 -> 3.846153846 | O19: ='环工16-1分数统计'!T19*'环工16-1分数统计'!T$3/130 -> 1.653846154 | P19: ='环工16-1分数统计'!U19*'环工16-1分数统计'!U$3/130 -> 2.553846154 | Q19: ='环工16-1分数统计'!V19*'环工16-1分数统计'!V$3/130 -> 1.984615385 | R19: ='环工16-1分数统计'!W19*'环工16-1分数统计'!W$3/130 -> 2.876923077 | S19: ='环工16-1分数统计'!X19*'环工16-1分数统计'!X$3/130 -> 0.7230769231 | T19: ='环工16-1分数统计'!Y19*'环工16-1分数统计'!Y$3/130 -> 1.476923077 | U19: ='环工16-1分数统计'!Z19*'环工16-1分数统计'!Z$3/130 -> 1.661538462 | V19: ='环工16-1分数统计'!AA19*'环工16-1分数统计'!AA$3/130 -> 2.123076923 | W19: ='环工16-1分数统计'!AB19*'环工16-1分数统计'!AB$3/130 -> 1.2 | X19: ='环工16-1分数统计'!AC19*'环工16-1分数统计'!AC$3/130 -> 1.353846154 | Y19: ='环工16-1分数统计'!AD19*'环工16-1分数统计'!AD$3/130 -> 1.338461538 | Z19: ='环工16-1分数统计'!AE19*'环工16-1分数统计'!AE$3/130 -> 1.353846154 | AA19: ='环工16-1分数统计'!AF19*'环工16-1分数统计'!AF$3/130 -> 0.7307692308 | AB19: ='环工16-1分数统计'!AG19*'环工16-1分数统计'!AG$3/130 -> 1.653846154 | AC19: ='环工16-1分数统计'!AH19*'环工16-1分数统计'!AH$3/130 -> 2.169230769 | AD19: ='环工16-1分数统计'!AI19*'环工16-1分数统计'!AI$3/130 -> 1.369230769 | AE19: ='环工16-1分数统计'!AJ19*'环工16-1分数统计'!AJ$3/130 -> 0.7076923077 | AF19: ='环工16-1分数统计'!AK19*'环工16-1分数统计'!AK$3/130 -> 2.215384615 | AG19: ='环工16-1分数统计'!AL19*'环工16-1分数统计'!AL$3/130 -> 1.353846154 | AH19: ='环工16-1分数统计'!AM19*'环工16-1分数统计'!AM$3/130 -> 0.8538461538 | AI19: ='环工16-1分数统计'!AN19*'环工16-1分数统计'!AN$3/130 -> 1.984615385 | AJ19: ='环工16-1分数统计'!AO19*'环工16-1分数统计'!AO$3/130 -> 2.007692308 | AK19: ='环工16-1分数统计'!AP19*'环工16-1分数统计'!AP$3/130 -> 1.026923077 | AL19: ='环工16-1分数统计'!AQ19*'环工16-1分数统计'!AQ$3/130 -> 2.076923077 | AM19: ='环工16-1分数统计'!AR19*'环工16-1分数统计'!AR$3/130 -> 1.353846154 | AN19: ='环工16-1分数统计'!AS19*'环工16-1分数统计'!AS$3/130 -> 1.307692308 | AO19: ='环工16-1分数统计'!AT19*'环工16-1分数统计'!AT$3/130 -> 1.235384615 | AP19: ='环工16-1分数统计'!AU19*'环工16-1分数统计'!AU$3/130 -> 0.7230769231 | AQ19: ='环工16-1分数统计'!AV19*'环工16-1分数统计'!AV$3/130 -> 1.353846154 | AR19: ='环工16-1分数统计'!AW19*'环工16-1分数统计'!AW$3/130 -> 0.6230769231 | AS19: ='环工16-1分数统计'!AX19*'环工16-1分数统计'!AX$3/130 -> 2.523076923 | AT19: ='环工16-1分数统计'!AY19*'环工16-1分数统计'!AY$3/130 -> 1.384615385 | AU19: ='环工16-1分数统计'!AZ19*'环工16-1分数统计'!AZ$3/130 -> 1.384615385 | AV19: ='环工16-1分数统计'!BA19*'环工16-1分数统计'!BA$3/130 -> 1.369230769 | AW19: ='环工16-1分数统计'!BB19*'环工16-1分数统计'!BB$3/130 -> 1.015384615 | AX19: ='环工16-1分数统计'!BC19*'环工16-1分数统计'!BC$3/130 -> 2.030769231 | AY19: ='环工16-1分数统计'!BD19*'环工16-1分数统计'!BD$3/130 -> 1.015384615 | AZ19: ='环工16-1分数统计'!BE19*'环工16-1分数统计'!BE$3/130 -> 1.292307692 | BA19: ='环工16-1分数统计'!BF19*'环工16-1分数统计'!BF$3/130 -> 0.6769230769 | BB19: ='环工16-1分数统计'!BG19*'环工16-1分数统计'!BG$3/130 -> 0.35 | BC19: ='环工16-1分数统计'!BH19*'环工16-1分数统计'!BH$3/130 -> 1.384615385 | BD19: ='环工16-1分数统计'!BI19*'环工16-1分数统计'!BI$3/130 -> 1.730769231 | BE19: ='环工16-1分数统计'!BJ19*'环工16-1分数统计'!BJ$3/130 -> 1.984615385 | BF19: ='环工16-1分数统计'!BK19*'环工16-1分数统计'!BK$3/130 -> 0.6769230769 | BG19: 86.77 | BH19: 60.739 | BI19: ='环工16-1两年综测'!BD19 -> 95.24470342 | BJ19: ='环工16-1两年综测'!BE19 -> 109.4514228 | BK19: ='环工16-1两年综测'!BF19 -> 107.4614166 | BL19: 312.1575429 | BM19: 90.29634185 | BN19: 18.05926837 | BO19: 78.79826837
A20: 丁相瑞 | B20: 2016010619 | C20: ='环工16-1分数统计'!H20*'环工16-1分数统计'!H$3/130 -> 0.6230769231 | D20: ='环工16-1分数统计'!I20*'环工16-1分数统计'!I$3/130 -> 1.369230769 | E20: ='环工16-1分数统计'!J20*'环工16-1分数统计'!J$3/130 -> 3.830769231 | F20: ='环工16-1分数统计'!K20*'环工16-1分数统计'!K$3/130 -> 2.526923077 | G20: ='环工16-1分数统计'!L20*'环工16-1分数统计'!L$3/130 -> 1.246153846 | H20: ='环工16-1分数统计'!M20*'环工16-1分数统计'!M$3/130 -> 1.2 | I20: ='环工16-1分数统计'!N20*'环工16-1分数统计'!N$3/130 -> 2.132307692 | J20: ='环工16-1分数统计'!O20*'环工16-1分数统计'!O$3/130 -> 0.5307692308 | K20: ='环工16-1分数统计'!P20*'环工16-1分数统计'!P$3/130 -> 1.5 | L20: ='环工16-1分数统计'!Q20*'环工16-1分数统计'!Q$3/130 -> 0.6461538462 | M20: ='环工16-1分数统计'!R20*'环工16-1分数统计'!R$3/130 -> 1.384615385 | N20: ='环工16-1分数统计'!S20*'环工16-1分数统计'!S$3/130 -> 3.461538462 | O20: ='环工16-1分数统计'!T20*'环工16-1分数统计'!T$3/130 -> 1.5 | P20: ='环工16-1分数统计'!U20*'环工16-1分数统计'!U$3/130 -> 2.369230769 | Q20: ='环工16-1分数统计'!V20*'环工16-1分数统计'!V$3/130 -> 1.753846154 | R20: ='环工16-1分数统计'!W20*'环工16-1分数统计'!W$3/130 -> 2.843076923 | S20: ='环工16-1分数统计'!X20*'环工16-1分数统计'!X$3/130 -> 0.6769230769 | T20: ='环工16-1分数统计'!Y20*'环工16-1分数统计'!Y$3/130 -> 1.446153846 | U20: ='环工16-1分数统计'!Z20*'环工16-1分数统计'!Z$3/130 -> 1.430769231 | V20: ='环工16-1分数统计'!AA20*'环工16-1分数统计'!AA$3/130 -> 1.707692308 | W20: ='环工16-1分数统计'!AB20*'环工16-1分数统计'!AB$3/130 -> 1.153846154 | X20: ='环工16-1分数统计'!AC20*'环工16-1分数统计'!AC$3/130 -> 1.276923077 | Y20: ='环工16-1分数统计'!AD20*'环工16-1分数统计'!AD$3/130 -> 1.184615385 | Z20: ='环工16-1分数统计'!AE20*'环工16-1分数统计'!AE$3/130 -> 1.32 | AA20: ='环工16-1分数统计'!AF20*'环工16-1分数统计'!AF$3/130 -> 0.6769230769 | AB20: ='环工16-1分数统计'!AG20*'环工16-1分数统计'!AG$3/130 -> 1.519230769 | AC20: ='环工16-1分数统计'!AH20*'环工16-1分数统计'!AH$3/130 -> 1.707692308 | AD20: ='环工16-1分数统计'!AI20*'环工16-1分数统计'!AI$3/130 -> 1.230769231 | AE20: ='环工16-1分数统计'!AJ20*'环工16-1分数统计'!AJ$3/130 -> 0.6461538462 | AF20: ='环工16-1分数统计'!AK20*'环工16-1分数统计'!AK$3/130 -> 2 | AG20: ='环工16-1分数统计'!AL20*'环工16-1分数统计'!AL$3/130 -> 1.261538462 | AH20: ='环工16-1分数统计'!AM20*'环工16-1分数统计'!AM$3/130 -> 0.6923076923 | AI20: ='环工16-1分数统计'!AN20*'环工16-1分数统计'!AN$3/130 -> 2.076923077 | AJ20: ='环工16-1分数统计'!AO20*'环工16-1分数统计'!AO$3/130 -> 1.846153846 | AK20: ='环工16-1分数统计'!AP20*'环工16-1分数统计'!AP$3/130 -> 0.9461538462 | AL20: ='环工16-1分数统计'!AQ20*'环工16-1分数统计'!AQ$3/130 -> 1.8 | AM20: ='环工16-1分数统计'!AR20*'环工16-1分数统计'!AR$3/130 -> 1.353846154 | AN20: ='环工16-1分数统计'!AS20*'环工16-1分数统计'!AS$3/130 -> 1.4 | AO20: ='环工16-1分数统计'!AT20*'环工16-1分数统计'!AT$3/130 -> 1.286153846 | AP20: ='环工16-1分数统计'!AU20*'环工16-1分数统计'!AU$3/130 -> 0.6307692308 | AQ20: ='环工16-1分数统计'!AV20*'环工16-1分数统计'!AV$3/130 -> 1.292307692 | AR20: ='环工16-1分数统计'!AW20*'环工16-1分数统计'!AW$3/130 -> 0.5769230769 | AS20: ='环工16-1分数统计'!AX20*'环工16-1分数统计'!AX$3/130 -> 2.215384615 | AT20: ='环工16-1分数统计'!AY20*'环工16-1分数统计'!AY$3/130 -> 1.4 | AU20: ='环工16-1分数统计'!AZ20*'环工16-1分数统计'!AZ$3/130 -> 1.246153846 | AV20: ='环工16-1分数统计'!BA20*'环工16-1分数统计'!BA$3/130 -> 1.138461538 | AW20: ='环工16-1分数统计'!BB20*'环工16-1分数统计'!BB$3/130 -> 0.9923076923 | AX20: ='环工16-1分数统计'!BC20*'环工16-1分数统计'!BC$3/130 -> 2.053846154 | AY20: ='环工16-1分数统计'!BD20*'环工16-1分数统计'!BD$3/130 -> 0.9461538462 | AZ20: ='环工16-1分数统计'!BE20*'环工16-1分数统计'!BE$3/130 -> 1.123076923 | BA20: ='环工16-1分数统计'!BF20*'环工16-1分数统计'!BF$3/130 -> 0.6461538462 | BB20: ='环工16-1分数统计'!BG20*'环工16-1分数统计'!BG$3/130 -> 0.3384615385 | BC20: ='环工16-1分数统计'!BH20*'环工16-1分数统计'!BH$3/130 -> 1.353846154 | BD20: ='环工16-1分数统计'!BI20*'环工16-1分数统计'!BI$3/130 -> 1.461538462 | BE20: ='环工16-1分数统计'!BJ20*'环工16-1分数统计'!BJ$3/130 -> 1.730769231 | BF20: ='环工16-1分数统计'!BK20*'环工16-1分数统计'!BK$3/130 -> 0.5615384615 | BG20: 79.26615385 | BH20: 55.48630769 | BI20: ='环工16-1两年综测'!BD20 -> 86.61188494 | BJ20: ='环工16-1两年综测'!BE20 -> 85.57837638 | BK20: ='环工16-1两年综测'!BF20 -> 88.37967786 | BL20: 260.5699392 | BM20: 75.37383876 | BN20: 15.07476775 | BO20: 70.56107544
A21: 高军政 | B21: 2016010620 | C21: ='环工16-1分数统计'!H21*'环工16-1分数统计'!H$3/130 -> 0.5923076923 | D21: ='环工16-1分数统计'!I21*'环工16-1分数统计'!I$3/130 -> 1.415384615 | E21: ='环工16-1分数统计'!J21*'环工16-1分数统计'!J$3/130 -> 3.692307692 | F21: ='环工16-1分数统计'!K21*'环工16-1分数统计'!K$3/130 -> 3.115384615 | G21: ='环工16-1分数统计'!L21*'环工16-1分数统计'!L$3/130 -> 1.338461538 | H21: ='环工16-1分数统计'!M21*'环工16-1分数统计'!M$3/130 -> 1.123076923 | I21: ='环工16-1分数统计'!N21*'环工16-1分数统计'!N$3/130 -> 2.233846154 | J21: ='环工16-1分数统计'!O21*'环工16-1分数统计'!O$3/130 -> 0.5692307692 | K21: ='环工16-1分数统计'!P21*'环工16-1分数统计'!P$3/130 -> 1.673076923 | L21: ='环工16-1分数统计'!Q21*'环工16-1分数统计'!Q$3/130 -> 0.7153846154 | M21: ='环工16-1分数统计'!R21*'环工16-1分数统计'!R$3/130 -> 1.8 | N21: ='环工16-1分数统计'!S21*'环工16-1分数统计'!S$3/130 -> 3.576923077 | O21: ='环工16-1分数统计'!T21*'环工16-1分数统计'!T$3/130 -> 1.596153846 | P21: ='环工16-1分数统计'!U21*'环工16-1分数统计'!U$3/130 -> 2.461538462 | Q21: ='环工16-1分数统计'!V21*'环工16-1分数统计'!V$3/130 -> 2.123076923 | R21: ='环工16-1分数统计'!W21*'环工16-1分数统计'!W$3/130 -> 2.741538462 | S21: ='环工16-1分数统计'!X21*'环工16-1分数统计'!X$3/130 -> 0.6692307692 | T21: ='环工16-1分数统计'!Y21*'环工16-1分数统计'!Y$3/130 -> 1.384615385 | U21: ='环工16-1分数统计'!Z21*'环工16-1分数统计'!Z$3/130 -> 1.569230769 | V21: ='环工16-1分数统计'!AA21*'环工16-1分数统计'!AA$3/130 -> 2.1 | W21: ='环工16-1分数统计'!AB21*'环工16-1分数统计'!AB$3/130 -> 1.184615385 | X21: ='环工16-1分数统计'!AC21*'环工16-1分数统计'!AC$3/130 -> 1.215384615 | Y21: ='环工16-1分数统计'!AD21*'环工16-1分数统计'!AD$3/130 -> 1.215384615 | Z21: ='环工16-1分数统计'!AE21*'环工16-1分数统计'!AE$3/130 -> 1.303076923 | AA21: ='环工16-1分数统计'!AF21*'环工16-1分数统计'!AF$3/130 -> 0.6076923077 | AB21: ='环工16-1分数统计'!AG21*'环工16-1分数统计'!AG$3/130 -> 1.326923077 | AC21: ='环工16-1分数统计'!AH21*'环工16-1分数统计'!AH$3/130 -> 1.684615385 | AD21: ='环工16-1分数统计'!AI21*'环工16-1分数统计'!AI$3/130 -> 1.276923077 | AE21: ='环工16-1分数统计'!AJ21*'环工16-1分数统计'!AJ$3/130 -> 0.6615384615 | AF21: ='环工16-1分数统计'!AK21*'环工16-1分数统计'!AK$3/130 -> 1.846153846 | AG21: ='环工16-1分数统计'!AL21*'环工16-1分数统计'!AL$3/130 -> 1.323076923 | AH21: ='环工16-1分数统计'!AM21*'环工16-1分数统计'!AM$3/130 -> 0.75 | AI21: ='环工16-1分数统计'!AN21*'环工16-1分数统计'!AN$3/130 -> 1.661538462 | AJ21: ='环工16-1分数统计'!AO21*'环工16-1分数统计'!AO$3/130 -> 1.592307692 | AK21: ='环工16-1分数统计'!AP21*'环工16-1分数统计'!AP$3/130 -> 0.9461538462 | AL21: ='环工16-1分数统计'!AQ21*'环工16-1分数统计'!AQ$3/130 -> 1.892307692 | AM21: ='环工16-1分数统计'!AR21*'环工16-1分数统计'!AR$3/130 -> 1.323076923 | AN21: ='环工16-1分数统计'!AS21*'环工16-1分数统计'!AS$3/130 -> 1.261538462 | AO21: ='环工16-1分数统计'!AT21*'环工16-1分数统计'!AT$3/130 -> 1.150769231 | AP21: ='环工16-1分数统计'!AU21*'环工16-1分数统计'!AU$3/130 -> 0.4923076923 | AQ21: ='环工16-1分数统计'!AV21*'环工16-1分数统计'!AV$3/130 -> 1.353846154 | AR21: ='环工16-1分数统计'!AW21*'环工16-1分数统计'!AW$3/130 -> 0.6153846154 | AS21: ='环工16-1分数统计'!AX21*'环工16-1分数统计'!AX$3/130 -> 2.676923077 | AT21: ='环工16-1分数统计'!AY21*'环工16-1分数统计'!AY$3/130 -> 1.384615385 | AU21: ='环工16-1分数统计'!AZ21*'环工16-1分数统计'!AZ$3/130 -> 1.369230769 | AV21: ='环工16-1分数统计'!BA21*'环工16-1分数统计'!BA$3/130 -> 1.507692308 | AW21: ='环工16-1分数统计'!BB21*'环工16-1分数统计'!BB$3/130 -> 0.9692307692 | AX21: ='环工16-1分数统计'!BC21*'环工16-1分数统计'!BC$3/130 -> 2.076923077 | AY21: ='环工16-1分数统计'!BD21*'环工16-1分数统计'!BD$3/130 -> 0.9346153846 | AZ21: ='环工16-1分数统计'!BE21*'环工16-1分数统计'!BE$3/130 -> 1.230769231 | BA21: ='环工16-1分数统计'!BF21*'环工16-1分数统计'!BF$3/130 -> 0.6769230769 | BB21: ='环工16-1分数统计'!BG21*'环工16-1分数统计'!BG$3/130 -> 0.3346153846 | BC21: ='环工16-1分数统计'!BH21*'环工16-1分数统计'!BH$3/130 -> 1.307692308 | BD21: ='环工16-1分数统计'!BI21*'环工16-1分数统计'!BI$3/130 -> 1.673076923 | BE21: ='环工16-1分数统计'!BJ21*'环工16-1分数统计'!BJ$3/130 -> 2.030769231 | BF21: ='环工16-1分数统计'!BK21*'环工16-1分数统计'!BK$3/130 -> 0.6 | BG21: 81.94846154 | BH21: 57.36392308 | BI21: ='环工16-1两年综测'!BD21 -> 89.39301698 | BJ21: ='环工16-1两年综测'!BE21 -> 83.87043699 | BK21: ='环工16-1两年综测'!BF21 -> 90.68818674 | BL21: 263.9516407 | BM21: 76.35204763 | BN21: 15.27040953 | BO21: 72.6343326
